Workbook

Sheet สรุป
G1: สิ่งที่ส่งมาด้วย 1 | H1: สิ่งที่ส่งมาด้วย 2
A2: สรุปการตรวจสอบรายงานผลการจ่ายเงินโครงการกระตุ้นเศรษฐกิจ ปี 2567 ผ่านคนพิการ ขององค์กรปกครองส่วนท้องถิ่น กรณีการจ่ายเป็นเงินสด
A3: จำนวน 1,990 แห่ง จำนวนผู้มีสิทธิ 168,478 ราย จำนวนเงิน 1,684,780,000 บาท
A5: รายการ | B5: ข้อมูลการจ่ายเงินสดของกรมบัญชีกลาง | E5: ข้อมูลการจ่ายเงินสดจากรายงานของ อปท. | H5: การดำเนินการ
B6: จำนวน อปท. (แห่ง) | C6: จำนวน ผู้มีสิทธิ (ราย) | D6: จำนวนเงิน (บาท) | E6: จำนวน อปท. (แห่ง) | F6: จำนวน ผู้มีสิทธิ (ราย) | G6: จำนวนเงิน (บาท)
A7: 1. องค์กรปกครองส่วนท้องถิ่นที่ยังไม่ส่งรายงาน | B7: 712 | C7: 65,380 | D7: 653,800,000 | E7: 712 | F7: 65,380 | G7: 653,800,000 | H7: ตรวจสอบและส่งรายงานสรุปผลการจ่ายเงินให้ถูกต้องหากจ่ายเงินสดให้ผู้มีสิทธิไม่สำเร็จทุกรายให้นำเงินส่งคืนเข้าบัญชีเงินฝากธนาคารของกรมบัญชีกลาง
A8: 1.1 มีรายการนำเงินส่งคืนกรมบัญชีกลางบางส่วน ตามหนังสือกระทรวงการคลัง ที่ กค 0402.2/ ว 151 ลงวันที่ 20 ก.ย. 67 | B8: 27 | C8: 5,234 | D8: 52,340,000 | E8: 27 | F8: 34 | G8: 340,000
A9: 1.1.1 นำเงินส่งคืนกรมบัญชีกลางตามหนังสือกระทรวงการคลัง ที่ กค 0402.2/ ว 151 ลงวันที่ 20 ก.ย. 67 | C9: 34 | D9: 340,000 | F9: 34 | G9: 340,000
A10: 1.1.2 ไม่พบรายการนำเงินส่งคืนกรมบัญชีกลาง ตามหนังสือกระทรวงการคลัง ที่ กค 0402.2/ ว151 ลงวันที่ 20 ก.ย. 67 | C10: 5,200 | D10: 52,000,000 | F10: 5,200 | G10: 52,000,000
A11: 1.2 ไม่พบรายการนำเงินส่งคืนกรมบัญชีกลาง ตามหนังสือกระทรวงการคลัง ที่ กค 0402.2/ ว151 ลงวันที่ 20 ก.ย. 67 | B11: 685 | C11: 60,146 | D11: 601,460,000 | E11: 685 | F11: 60,146 | G11: 601,460,000
A12: 2. องค์กรปกครองส่วนท้องถิ่นส่งรายงานแล้ว | B12: 1,278 | C12: 103,098 | D12: 1,030,980,000 | E12: 1,278 | F12: 102,446 | G12: 1,024,460,000
A13: 2.1 องค์กรปกครองส่วนท้องถิ่นที่ส่งรายงานและรายงานข้อมูลผู้มีสิทธิถูกต้อง | B13: 1,149 | C13: 85,410 | D13: 854,100,000 | E13: 1,149 | F13: 85,410 | G13: 854,100,000
A14: 2.1.1 องค์กรปกครองส่วนท้องถิ่นที่จ่ายเงินสดให้ผู้มีสิทธิสำเร็จทุกราย | B14: 1,073 | C14: 74,995 | D14: 749,950,000 | E14: 1,073 | F14: 74,995 | G14: 749,950,000
A15: 2.1.2 องค์กรปกครองส่วนท้องถิ่นที่จ่ายเงินสดให้ผู้มีสิทธิไม่สำเร็จบางราย | B15: 76 | C15: 10,415 | D15: 104,150,000 | E15: 76 | F15: 10,415 | G15: 104,150,000
A16: (1) ผู้มีสิทธิได้รับเงินสด | F16: 10,320 | G16: 103,200,000
A17: (2) ผู้มีสิทธิไม่ได้รับเงินสด | F17: 95 | G17: 950,000
A18: (2.1) พบรายการนำเงินส่งคืนกรมบัญชีกลาง ตามหนังสือกระทรวงการคลัง ที่ กค 0402.2/ ว 151 ลงวันที่ 20 ก.ย. 67 | E18: 57 | F18: 64 | G18: 640,000
A19: (2.2) ไม่พบรายการนำเงินส่งคืนกรมบัญชีกลาง ตามหนังสือกระทรวงการคลัง ที่ กค 0402.2/ ว 151 ลงวันที่ 20 ก.ย. 67 | E19: 19 | F19: 31 | G19: 310,000 | H19: ติดตามนำเงินส่งคืน บก. ตามหนังสือ ที่ กค 0402.2/ ว151
A20: 2.2 องค์กรปกครองส่วนท้องถิ่นที่ส่งรายงานและรายงานข้อมูลผู้มีสิทธิไม่ถูกต้อง | B20: 129 | C20: 17,688 | D20: 176,880,000 | E20: 129 | F20: 17,036 | G20: 170,360,000 | H20: ตรวจสอบ แก้ไขข้อมูลให้ถูกต้อง และติดตามนำเงินส่งคืน บก. ตามหนังสือ ที่ กค 0402.2/ ว151 บัญชีเงินฝากธนาคารของกรมบัญชีกลาง ที่ บมจ. ธนาคารกรุงไทย ชื่อบัญชี “กรมบัญชีกลางเพื่อการจ่ายเงินตามโครงการกระตุ้นเศรษฐกิจ ปี 2567 แก่คนพิการ”
A21: 2.2.1 องค์กรปกครองส่วนท้องถิ่นรายงานจำนวนผู้มีสิทธิสูงกว่ากรมบัญชีกลาง | B21: 38 | C21: 4,620 | D21: 46,200,000 | E21: 38 | F21: 5,084 | G21: 50,840,000
A22: (1) องค์กรปกครองส่วนท้องถิ่นที่จ่ายเงินสดให้ผู้มีสิทธิสำเร็จทุกราย | E22: 25 | F22: 3,265 | G22: 32,650,000
A23: (2) องค์กรปกครองส่วนท้องถิ่นที่จ่ายเงินสดให้ผู้มีสิทธิไม่สำเร็จบางราย | E23: 13 | F23: 1,819 | G23: 18,190,000
A24: (2.1) ผู้มีสิทธิได้รับเงินสด | F24: 1,799 | G24: 17,990,000
A25: (2.2) ผู้มีสิทธิไม่ได้รับเงินสด | F25: 20 | G25: 200,000
A26: (2.2.1) พบรายการนำเงินส่งคืนกรมบัญชีกลาง ตามหนังสือกระทรวงการคลัง ที่ กค 0402.2/ ว 151 ลงวันที่ 20 ก.ย. 67 | E26: 5 | F26: 7 | G26: 70,000
A27: (2.2.2) ไม่พบรายการนำเงินส่งคืนกรมบัญชีกลาง ตามหนังสือกระทรวงการคลัง ที่ กค 0402.2/ ว 151 ลงวันที่ 20 ก.ย. 67 | E27: 8 | F27: 13 | G27: 130,000
A28: 2.2.2 องค์กรปกครองส่วนท้องถิ่นรายงานจำนวนผู้มีสิทธิต่ำกว่ากรมบัญชีกลาง | B28: 91 | C28: 13,068 | D28: 130,680,000 | E28: 91 | F28: 11,952 | G28: 119,520,000
A29: (1) องค์กรปกครองส่วนท้องถิ่นที่จ่ายเงินสดให้ผู้มีสิทธิสำเร็จทุกราย | E29: 82 | F29: 10,922 | G29: 109,220,000
A30: (2) องค์กรปกครองส่วนท้องถิ่นที่จ่ายเงินสดให้ผู้มีสิทธิไม่สำเร็จบางราย | E30: 9 | F30: 1,030 | G30: 10,300,000
A31: (2.1) ผู้มีสิทธิได้รับเงินสด | F31: 1,018 | G31: 10,180,000
A32: (2.2) ผู้มีสิทธิไม่ได้รับเงินสด | F32: 12 | G32: 120,000
A33: (2.2.1) พบรายการนำเงินส่งคืนกรมบัญชีกลาง ตามหนังสือกระทรวงการคลัง ที่ กค 0402.2/ ว 151 ลงวันที่ 20 ก.ย. 67 | E33: 3 | F33: 3 | G33: 30,000
A34: (2.2.2) ไม่พบรายการนำเงินส่งคืนกรมบัญชีกลาง ตามหนังสือกระทรวงการคลัง ที่ กค 0402.2/ ว 151 ลงวันที่ 20 ก.ย. 67 | E34: 6 | F34: 9 | G34: 90,000
A35: รวมทั้งสิ้น | B35: 1,990 | C35: 168,478 | D35: 1,684,780,000 | E35: 1,990 | F35: 167,826 | G35: 1,678,260,000
A36: หมายเหตุ : 1. ขอให้กรมส่งเสริมการปกครองท้องถิ่น แจ้งองค์กรปกครองส่วนท้องถิ่นตามข้อ 1 ข้อ 2.1.2 (2.2) และข้อ 2.2 ให้ดำเนินการตรวจสอบและส่งรายงานให้ถูกต้อง หากจ่ายเงินสดให้ผู้มีสิทธิไม่สำเร็จทุกรายให้นำเงินส่งคืนกรมบัญชีกลาง
A37: หมายเหตุ : ตามหนังสือกระทรวงการคลัง ที่ กค 0402.2/ ว 151 ลงวันที่ 20 ก.ย. 67
A38: 2. รายละเอียดข้อมูลตามข้อ 1 - 2 อยู่ในไฟล์สิ่งที่ส่งมาด้วย 2 ผลการตรวจสอบแบบรายงานสรุปผลการจ่ายเงินโครงการกระตุ้นเศรษฐกิจ ปี 2567 ผ่านคนพิการ กรณีการจ่ายเป็นเงินสด แยกเป็น sheet ตามรายละเอียดดังกล่าว

Sheet สรุปรายละเอียดการตรวจสอบรายงาน
A1: สรุปรายละเอียดการตรวจสอบรายงานผลการจ่ายเงินโครงการกระตุ้นเศรษฐกิจ ปี 2567 ผ่านคนพิการ ขององค์กรปกครองส่วนท้องถิ่น กรณีการจ่ายเป็นเงินสด
A2: จำนวน 1,990 แห่ง จำนวนผู้มีสิทธิ 168,478 ราย จำนวนเงิน 1,684,780,000 บาท
A4: ลำดับ | B4: ลำดับ | C4: ชื่อจังหวัด | D4: รหัสหน่วยงาน | E4: ชื่อหน่วยงาน | F4: รายงาน บก. จ่ายเงิน (คน) | K4: รายงาน สถ. จ่ายเงิน (คน) | N4: ผลต่างรายงานของ | O4: จำนวนคน
F5: ครั้งที่ 1 | G5: ครั้งที่ 2 | H5: ครั้งที่ 3 | I5: ครั้งที่ 4 | J5: รวม | K5: จ่ายสำเร็จ | L5: จ่ายไม่สำเร็จ | M5: รวม | N5: บก. - สถ. (คน) | O5: คืนแล้ว | P5: ยังไม่คืน | Q5: คืนไม่ครบ
A6: 1 | B6: 1 | C6: เชียงใหม่ | D6: 1550041356 | E6: เทศบาลเมืองเมืองแกนพัฒนา | F6: 44 | G6: 0 | H6: 0 | I6: 0 | J6: =F6+G6+H6+I6 -> 44 | K6: 23 | L6: 0 | M6: =K6+L6 -> 23 | N6: =M6-J6 -> -21
A7: 2 | B7: 2 | C7: เชียงใหม่ | D7: 1550051357 | E7: เทศบาลตำบลป่าแดด อ. เมืองเชียงใหม่ จ. เชียงใหม่ | F7: 2 | G7: 0 | H7: 0 | I7: 0 | J7: =F7+G7+H7+I7 -> 2
A8: 3 | B8: 3 | C8: เชียงใหม่ | D8: 1550051361 | E8: เทศบาลตำบลสุเทพ | F8: 4 | G8: 0 | H8: 0 | I8: 0 | J8: 4 | K8: 4 | L8: 0 | M8: =K8+L8 -> 4 | N8: =M8-J8 -> 0
A9: 4 | B9: 4 | C9: เชียงใหม่ | D9: 1550051367 | E9: เทศบาลตำบลเมืองนะ | F9: 186 | G9: 0 | H9: 0 | I9: 0 | J9: 186 | K9: 185 | L9: 1 | M9: 186 | N9: 0 | O9: 1
A10: 5 | B10: 5 | C10: เชียงใหม่ | D10: 1550051368 | E10: เทศบาลตำบลเมืองงาย | F10: 87 | G10: 0 | H10: 0 | I10: 0 | J10: 87 | K10: 87 | L10: 0 | M10: 87 | N10: 0
A11: 6 | B11: 6 | C11: เชียงใหม่ | D11: 1550051369 | E11: เทศบาลตำบลพระธาตุปู่ก่ำ | F11: 29 | G11: 0 | H11: 0 | I11: 0 | J11: 29 | K11: 29 | L11: 0 | M11: 29 | N11: 0
A12: 7 | B12: 7 | C12: เชียงใหม่ | D12: 1550051370 | E12: เทศบาลตำบลปิงโค้ง | F12: 154 | G12: 0 | H12: 0 | I12: 0 | J12: 154 | K12: 154 | L12: 0 | M12: 154 | N12: 0
A13: 8 | B13: 8 | C13: เชียงใหม่ | D13: 1550051371 | E13: เทศบาลตำบลทุ่งข้าวพวง | F13: 99 | G13: 0 | H13: 0 | I13: 0 | J13: 99 | K13: 99 | L13: 0 | M13: 99 | N13: 0
A14: 9 | B14: 9 | C14: เชียงใหม่ | D14: 1550051379 | E14: เทศบาลตำบลแม่ปูคา | F14: 110 | G14: 1 | H14: 0 | I14: 0 | J14: 111 | K14: 111 | L14: 0 | M14: 111 | N14: 0
A15: 10 | B15: 10 | C15: เชียงใหม่ | D15: 1550051383 | E15: เทศบาลตำบลสะเมิงใต้ | F15: 120 | G15: 1 | H15: 1 | I15: 0 | J15: 122 | O15: 1
A16: 11 | B16: 11 | C16: เชียงใหม่ | D16: 1550051384 | E16: เทศบาลตำบลแม่ริม | F16: 4 | G16: 0 | H16: 0 | I16: 0 | J16: 4
A17: 12 | B17: 12 | C17: เชียงใหม่ | D17: 1550051385 | E17: เทศบาลตำบลสันมหาพน | F17: 33 | G17: 0 | H17: 0 | I17: 0 | J17: 33
A18: 13 | B18: 13 | C18: เชียงใหม่ | D18: 1550051387 | E18: เทศบาลตำบลสง่าบ้าน | F18: 50 | G18: 0 | H18: 0 | I18: 0 | J18: 50 | K18: 50 | L18: 0 | M18: =K18+L18 -> 50 | N18: =M18-J18 -> 0
A19: 14 | B19: 14 | C19: เชียงใหม่ | D19: 1550051394 | E19: เทศบาลตำบลบ้านกลาง อ. สันป่าตอง จ. เชียงใหม่ | F19: 151 | G19: 0 | H19: 0 | I19: 0 | J19: 151 | K19: 151 | L19: 0 | M19: =K19+L19 -> 151 | N19: =M19-J19 -> 0
A20: 15 | B20: 15 | C20: เชียงใหม่ | D20: 1550051395 | E20: เทศบาลตำบลสันป่าตอง | F20: 33 | G20: 0 | H20: 0 | I20: 0 | J20: 33 | K20: 33 | L20: 0 | M20: =K20+L20 -> 33 | N20: =M20-J20 -> 0
A21: 16 | B21: 16 | C21: เชียงใหม่ | D21: 1550051397 | E21: เทศบาลตำบลแม่ปั๋ง | F21: 13 | G21: 0 | H21: 0 | I21: 0 | J21: 13
A22: 17 | B22: 17 | C22: เชียงใหม่ | D22: 1550051398 | E22: เทศบาลตำบลแม่อาย | F22: 75 | G22: 1 | H22: 1 | I22: 0 | J22: 77 | K22: 77 | L22: 0 | M22: =K22+L22 -> 77 | N22: =M22-J22 -> 0
A23: 18 | B23: 18 | C23: เชียงใหม่ | D23: 1550051399 | E23: เทศบาลตำบลแม่วาง | F23: 4 | G23: 0 | H23: 0 | I23: 0 | J23: 4
A24: 19 | B24: 19 | C24: เชียงใหม่ | D24: 1550051400 | E24: เทศบาลตำบลไชยปราการ | F24: 33 | G24: 3 | H24: 0 | I24: 0 | J24: 36
A25: 20 | B25: 20 | C25: เชียงใหม่ | D25: 1550051407 | E25: เทศบาลตำบลบ่อหลวง | F25: 2 | G25: 0 | H25: 0 | I25: 0 | J25: 2 | K25: 2 | L25: 0 | M25: =K25+L25 -> 2 | N25: =M25-J25 -> 0
A26: 21 | B26: 21 | C26: เชียงใหม่ | D26: 1550051411 | E26: เทศบาลตำบลหนองป่าครั่ง | F26: 1 | G26: 0 | H26: 0 | I26: 0 | J26: 1
A27: 22 | B27: 22 | C27: เชียงใหม่ | D27: 1550051413 | E27: เทศบาลตำบลบ้านแปะ | F27: 445 | G27: 9 | H27: 4 | I27: 0 | J27: 458 | K27: 458 | L27: 0 | M27: =K27+L27 -> 458 | N27: =M27-J27 -> 0
A28: 23 | B28: 23 | C28: เชียงใหม่ | D28: 1550051442 | E28: เทศบาลตำบลทุ่งสะโตก | F28: 21 | G28: 2 | H28: 0 | I28: 0 | J28: 23 | K28: 23 | L28: 0 | M28: =K28+L28 -> 23 | N28: =M28-J28 -> 0
A29: 24 | B29: 24 | C29: เชียงใหม่ | D29: 1550051443 | E29: เทศบาลตำบลทุ่งต้อม | F29: 104 | G29: 2 | H29: 2 | I29: 0 | J29: 108 | K29: 107 | L29: 1 | M29: =K29+L29 -> 108 | N29: =M29-J29 -> 0 | O29: 1
A30: 25 | B30: 25 | C30: เชียงใหม่ | D30: 1550051446 | E30: เทศบาลตำบลสองแคว | F30: 126 | G30: 0 | H30: 0 | I30: 0 | J30: 126
A31: 26 | B31: 26 | C31: เชียงใหม่ | D31: 1550051447 | E31: เทศบาลตำบลยางคราม | F31: 210 | G31: 2 | H31: 0 | I31: 0 | J31: 212
A32: 27 | B32: 27 | C32: เชียงใหม่ | D32: 1550051448 | E32: เทศบาลตำบลสันติสุข | F32: 129 | G32: 0 | H32: 0 | I32: 0 | J32: 129
A33: 28 | B33: 28 | C33: เชียงใหม่ | D33: 1550051462 | E33: เทศบาลตำบลหนองบัว อ. ไชยปราการ จ. เชียงใหม่ | F33: 47 | G33: 0 | H33: 0 | I33: 0 | J33: 47 | K33: 47 | L33: 0 | M33: =K33+L33 -> 47 | N33: =M33-J33 -> 0
A34: 29 | B34: 29 | C34: เชียงใหม่ | D34: 1550051468 | E34: เทศบาลตำบลท่ากว้าง | F34: 81 | G34: 0 | H34: 0 | I34: 0 | J34: 81 | K34: 81 | L34: 0 | M34: =K34+L34 -> 81 | N34: =M34-J34 -> 0
A35: 30 | B35: 30 | C35: เชียงใหม่ | D35: 1550051471 | E35: เทศบาลตำบลสันทรายมหาวงศ์ | F35: 218 | G35: 0 | H35: 2 | I35: 0 | J35: 220
A36: 31 | B36: 31 | C36: เชียงใหม่ | D36: 1550051473 | E36: เทศบาลตำบลขัวมุง | F36: 83 | G36: 1 | H36: 0 | I36: 0 | J36: 84 | K36: 43 | L36: 0 | M36: =K36+L36 -> 43 | N36: =M36-J36 -> -41
A37: 32 | B37: 32 | C37: เชียงใหม่ | D37: 1550051508 | E37: เทศบาลตำบลห้วยทราย | F37: 124 | G37: 0 | H37: 0 | I37: 0 | J37: 124 | K37: 123 | L37: 1 | M37: =K37+L37 -> 124 | N37: =M37-J37 -> 0 | O37: 1
A38: 33 | B38: 33 | C38: เชียงใหม่ | D38: 1550051509 | E38: เทศบาลตำบลสันกลาง | F38: 2 | G38: 0 | H38: 0 | I38: 0 | J38: 2 | K38: 2 | L38: 0 | M38: =K38+L38 -> 2 | N38: =M38-J38 -> 0
A39: 34 | B39: 34 | C39: เชียงใหม่ | D39: 1550051511 | E39: เทศบาลตำบลบ้านแม | F39: 7 | G39: 0 | H39: 0 | I39: 0 | J39: 7 | K39: 7 | L39: 0 | M39: =K39+L39 -> 7 | N39: =M39-J39 -> 0
A40: 35 | B40: 35 | C40: เชียงใหม่ | D40: 1550051514 | E40: เทศบาลตำบลป่าไหน่ | F40: 30 | G40: 0 | H40: 0 | I40: 0 | J40: 30
A41: 36 | B41: 36 | C41: เชียงใหม่ | D41: 1550051516 | E41: เทศบาลตำบลบ้านโป่ง | F41: 147 | G41: 0 | H41: 0 | I41: 0 | J41: 147 | K41: 147 | L41: 0 | M41: =K41+L41 -> 147 | N41: =M41-J41 -> 0
A42: 37 | B42: 37 | C42: เชียงใหม่ | D42: 1550051517 | E42: เทศบาลตำบลน้ำแพร่ | F42: 140 | G42: 0 | H42: 1 | I42: 0 | J42: 141
A43: 38 | B43: 38 | C43: เชียงใหม่ | D43: 1550051531 | E43: เทศบาลตำบลสันทราย อ. ฝาง จ. เชียงใหม่ | F43: 100 | G43: 0 | H43: 0 | I43: 0 | J43: 100 | K43: 100 | L43: 0 | M43: =K43+L43 -> 100 | N43: =M43-J43 -> 0
A44: 39 | B44: 39 | C44: เชียงใหม่ | D44: 1550051533 | E44: เทศบาลตำบลแม่ข่า | F44: 41 | G44: 4 | H44: 1 | I44: 0 | J44: 46 | K44: 46 | L44: 0 | M44: =K44+L44 -> 46 | N44: =M44-J44 -> 0
A45: 40 | B45: 40 | C45: เชียงใหม่ | D45: 1550051547 | E45: เทศบาลตำบลแม่ฮ้อยเงิน | F45: 44 | G45: 0 | H45: 0 | I45: 0 | J45: 44 | K45: 44 | L45: 0 | M45: =K45+L45 -> 44 | N45: =M45-J45 -> 0
A46: 41 | B46: 41 | C46: เชียงใหม่ | D46: 1550051548 | E46: เทศบาลตำบลป่าเมี่ยง | F46: 80 | G46: 2 | H46: 0 | I46: 0 | J46: 82 | K46: 82 | L46: 0 | M46: =K46+L46 -> 82 | N46: =M46-J46 -> 0
A47: 42 | B47: 42 | C47: เชียงใหม่ | D47: 1550051551 | E47: เทศบาลตำบลแม่นะ | F47: 99 | G47: 2 | H47: 1 | I47: 0 | J47: 102 | K47: 101 | L47: 0 | M47: =K47+L47 -> 101 | N47: =M47-J47 -> -1
A48: 43 | B48: 43 | C48: เชียงใหม่ | D48: 1550051559 | E48: เทศบาลตำบลท่าผา อ. แม่แจ่ม จ. เชียงใหม่ | F48: 89 | G48: 0 | H48: 0 | I48: 0 | J48: 89
A49: 44 | B49: 44 | C49: เชียงใหม่ | D49: 1550061414 | E49: องค์การบริหารส่วนตำบลข่วงเปา | F49: 160 | G49: 0 | H49: 1 | I49: 0 | J49: 161 | K49: 161 | L49: 0 | M49: =K49+L49 -> 161 | N49: =M49-J49 -> 0
A50: 45 | B50: 45 | C50: เชียงใหม่ | D50: 1550061415 | E50: องค์การบริหารส่วนตำบลแม่แดด | F50: 14 | G50: 2 | H50: 0 | I50: 0 | J50: 16 | K50: 16 | L50: 0 | M50: =K50+L50 -> 16 | N50: =M50-J50 -> 0
A51: 46 | B51: 46 | C51: เชียงใหม่ | D51: 1550061419 | E51: องค์การบริหารส่วนตำบลสบเปิง | F51: 70 | G51: 6 | H51: 0 | I51: 0 | J51: 76 | K51: 87 | L51: 1 | M51: =K51+L51 -> 88 | N51: =M51-J51 -> 12 | P51: 1
A52: 47 | B52: 47 | C52: เชียงใหม่ | D52: 1550061420 | E52: องค์การบริหารส่วนตำบลบ้านเป้า อ. แม่แตง จ. เชียงใหม่ | F52: 68 | G52: 2 | H52: 0 | I52: 0 | J52: 70 | O52: 1
A53: 48 | B53: 48 | C53: เชียงใหม่ | D53: 1550061423 | E53: องค์การบริหารส่วนตำบลเมืองก๋าย | F53: 38 | G53: 0 | H53: 0 | I53: 0 | J53: 38 | K53: 38 | L53: 0 | M53: =K53+L53 -> 38 | N53: =M53-J53 -> 0
A54: 49 | B54: 49 | C54: เชียงใหม่ | D54: 1550061425 | E54: องค์การบริหารส่วนตำบลกื๊ดช้าง | F54: 53 | G54: 0 | H54: 1 | I54: 0 | J54: 54
A55: 50 | B55: 50 | C55: เชียงใหม่ | D55: 1550061427 | E55: องค์การบริหารส่วนตำบลแม่แวน | F55: 124 | G55: 2 | H55: 0 | I55: 0 | J55: 126 | K55: 126 | L55: 0 | M55: =K55+L55 -> 126 | N55: =M55-J55 -> 0
A56: 51 | B56: 51 | C56: เชียงใหม่ | D56: 1550061429 | E56: องค์การบริหารส่วนตำบลดอยลาง | F56: 55 | G56: 0 | H56: 0 | I56: 0 | J56: 55 | K56: 55 | L56: 0 | M56: 55 | N56: 0
A57: 52 | B57: 52 | C57: เชียงใหม่ | D57: 1550061431 | E57: องค์การบริหารส่วนตำบลสันต้นหมื้อ | F57: 4 | G57: 0 | H57: 0 | I57: 0 | J57: 4 | K57: 4 | L57: 0 | M57: 4 | N57: 0
A58: 53 | B58: 53 | C58: เชียงใหม่ | D58: 1550061433 | E58: องค์การบริหารส่วนตำบลท่าตอน | F58: 4 | G58: 0 | H58: 0 | I58: 0 | J58: 4 | K58: 4 | L58: 0 | M58: 4 | N58: 0
A59: 54 | B59: 54 | C59: เชียงใหม่ | D59: 1550061435 | E59: องค์การบริหารส่วนตำบลโป่งน้ำร้อน อ. ฝาง จ. เชียงใหม่ | F59: 10 | G59: 0 | H59: 0 | I59: 0 | J59: 10 | K59: 10 | L59: 0 | M59: 10 | N59: 0
A60: 55 | B60: 55 | C60: เชียงใหม่ | D60: 1550061437 | E60: องค์การบริหารส่วนตำบลสันกลาง อ. สันป่าตอง จ. เชียงใหม่ | F60: 70 | G60: 0 | H60: 0 | I60: 0 | J60: 70 | K60: 70 | L60: 0 | M60: 70 | N60: 0
A61: 56 | B61: 56 | C61: เชียงใหม่ | D61: 1550061438 | E61: องค์การบริหารส่วนตำบลท่าวังพร้าว | F61: 64 | G61: 0 | H61: 0 | I61: 0 | J61: 64 | K61: 64 | L61: 0 | M61: 64 | N61: 0
A62: 57 | B62: 57 | C62: เชียงใหม่ | D62: 1550061440 | E62: องค์การบริหารส่วนตำบลแม่ก๊า | F62: 191 | G62: 0 | H62: 0 | I62: 0 | J62: 191 | K62: 191 | L62: 0 | M62: 191 | N62: 0
A63: 58 | B63: 58 | C63: เชียงใหม่ | D63: 1550061441 | E63: องค์การบริหารส่วนตำบลบ้านกลาง อ. สันป่าตอง จ. เชียงใหม่ | F63: 20 | G63: 0 | H63: 0 | I63: 0 | J63: 20
A64: 59 | B64: 59 | C64: เชียงใหม่ | D64: 1550061450 | E64: องค์การบริหารส่วนตำบลออนกลาง | F64: 2 | G64: 0 | H64: 0 | I64: 0 | J64: 2 | K64: 2 | L64: 0 | M64: =K64+L64 -> 2 | N64: =M64-J64 -> 0
A65: 60 | B65: 60 | C65: เชียงใหม่ | D65: 1550061451 | E65: องค์การบริหารส่วนตำบลบ้านสหกรณ์ | F65: 78 | G65: 0 | H65: 0 | I65: 0 | J65: 78 | K65: 78 | L65: 0 | M65: =K65+L65 -> 78 | N65: =M65-J65 -> 0
A66: 61 | B66: 61 | C66: เชียงใหม่ | D66: 1550061452 | E66: องค์การบริหารส่วนตำบลห้วยแก้ว อ. แม่ออน จ. เชียงใหม่ | F66: 71 | G66: 2 | H66: 0 | I66: 0 | J66: 73 | K66: 69 | L66: 0 | M66: =K66+L66 -> 69 | N66: =M66-J66 -> -4
A67: 62 | B67: 62 | C67: เชียงใหม่ | D67: 1550061454 | E67: องค์การบริหารส่วนตำบลทาเหนือ | F67: 128 | G67: 0 | H67: 0 | I67: 0 | J67: 128 | K67: 128 | L67: 0 | M67: =K67+L67 -> 128 | N67: =M67-J67 -> 0
A68: 63 | B68: 63 | C68: เชียงใหม่ | D68: 1550061455 | E68: องค์การบริหารส่วนตำบลบ้านกาด | F68: 42 | G68: 0 | H68: 0 | I68: 0 | J68: 42
A69: 64 | B69: 64 | C69: เชียงใหม่ | D69: 1550061456 | E69: องค์การบริหารส่วนตำบลทุ่งปี้ | F69: 214 | G69: 0 | H69: 1 | I69: 0 | J69: 215
A70: 65 | B70: 65 | C70: เชียงใหม่ | D70: 1550061457 | E70: องค์การบริหารส่วนตำบลทุ่งรวงทอง | F70: 55 | G70: 1 | H70: 0 | I70: 0 | J70: 56
A71: 66 | B71: 66 | C71: เชียงใหม่ | D71: 1550061458 | E71: องค์การบริหารส่วนตำบลแม่วิน | F71: 93 | G71: 2 | H71: 0 | I71: 0 | J71: =F71+G71+H71+I71 -> 95 | K71: 95 | L71: 0 | M71: =K71+L71 -> 95 | N71: =M71-J71 -> 0
A72: 67 | B72: 67 | C72: เชียงใหม่ | D72: 1550061461 | E72: องค์การบริหารส่วนตำบลแม่ทะลบ | F72: 137 | G72: 0 | H72: 5 | I72: 0 | J72: 142 | K72: 141 | L72: 1 | M72: =K72+L72 -> 142 | N72: =M72-J72 -> 0 | O72: 1
A73: 68 | B73: 68 | C73: เชียงใหม่ | D73: 1550061478 | E73: องค์การบริหารส่วนตำบลนาเกียน | F73: 1 | G73: 0 | H73: 0 | I73: 1 | J73: 2
A74: 69 | B74: 69 | C74: เชียงใหม่ | D74: 1550061481 | E74: องค์การบริหารส่วนตำบลท่าเดื่อ | F74: 4 | G74: 1 | H74: 0 | I74: 0 | J74: 5 | K74: 5 | L74: 0 | M74: =K74+L74 -> 5 | N74: =M74-J74 -> 0
A75: 70 | B75: 70 | C75: เชียงใหม่ | D75: 1550061485 | E75: องค์การบริหารส่วนตำบลหางดง | F75: 73 | G75: 0 | H75: 0 | I75: 0 | J75: 73 | K75: 73 | L75: 0 | M75: =K75+L75 -> 73 | N75: =M75-J75 -> 0
A76: 71 | B76: 71 | C76: เชียงใหม่ | D76: 1550061486 | E76: องค์การบริหารส่วนตำบลฮอด | F76: 122 | G76: 0 | H76: 3 | I76: 0 | J76: 125 | K76: 125 | L76: 0 | M76: =K76+L76 -> 125 | N76: =M76-J76 -> 0
A77: 72 | B77: 72 | C77: เชียงใหม่ | D77: 1550061487 | E77: องค์การบริหารส่วนตำบลบ่อสลี | F77: 204 | G77: 0 | H77: 0 | I77: 2 | J77: 206 | K77: 206 | L77: 0 | M77: =K77+L77 -> 206 | N77: =M77-J77 -> 0
A78: 73 | B78: 73 | C78: เชียงใหม่ | D78: 1550061488 | E78: องค์การบริหารส่วนตำบลนาคอเรือ | F78: 179 | G78: 0 | H78: 1 | I78: 0 | J78: 180 | K78: 180 | L78: 0 | M78: =K78+L78 -> 180 | N78: =M78-J78 -> 0
A79: 74 | B79: 74 | C79: เชียงใหม่ | D79: 1550061504 | E79: องค์การบริหารส่วนตำบลสันกำแพง | F79: 36 | G79: 0 | H79: 0 | I79: 0 | J79: 36
A80: 75 | B80: 75 | C80: เชียงใหม่ | D80: 1550061510 | E80: องค์การบริหารส่วนตำบลแช่ช้าง | F80: 103 | G80: 0 | H80: 0 | I80: 0 | J80: 103 | K80: 103 | L80: 0 | M80: =K80+L80 -> 103 | N80: =M80-J80 -> 0
A81: 76 | B81: 76 | C81: เชียงใหม่ | D81: 1550061515 | E81: องค์การบริหารส่วนตำบลสันทราย อ. พร้าว จ. เชียงใหม่ | F81: 138 | G81: 0 | H81: 0 | I81: 0 | J81: 138 | K81: 138 | L81: 0 | M81: =K81+L81 -> 138 | N81: =M81-J81 -> 0
A82: 77 | B82: 77 | C82: เชียงใหม่ | D82: 1550061518 | E82: องค์การบริหารส่วนตำบลเขื่อนผาก | F82: 82 | G82: 1 | H82: 0 | I82: 0 | J82: 83
A83: 78 | B83: 78 | C83: เชียงใหม่ | D83: 1550061519 | E83: องค์การบริหารส่วนตำบลสะเมิงเหนือ | F83: 186 | G83: 1 | H83: 0 | I83: 0 | J83: 187 | K83: 187 | L83: 0 | M83: =K83+L83 -> 187 | N83: =M83-J83 -> 0
A84: 79 | B84: 79 | C84: เชียงใหม่ | D84: 1550061520 | E84: องค์การบริหารส่วนตำบลแม่สาบ | F84: 203 | G84: 1 | H84: 0 | I84: 0 | J84: 204 | K84: 204 | L84: 0 | M84: =K84+L84 -> 204 | N84: =M84-J84 -> 0
A85: 80 | B85: 80 | C85: เชียงใหม่ | D85: 1550061521 | E85: องค์การบริหารส่วนตำบลบ่อแก้ว อ. สะเมิง จ. เชียงใหม่ | F85: 184 | G85: 0 | H85: 0 | I85: 0 | J85: 184 | K85: 183 | L85: 1 | M85: =K85+L85 -> 184 | N85: =M85-J85 -> 0 | O85: 1
A86: 81 | B86: 81 | C86: เชียงใหม่ | D86: 1550061522 | E86: องค์การบริหารส่วนตำบลยั้งเมิน | F86: 166 | G86: 0 | H86: 0 | I86: 0 | J86: 166
A87: 82 | B87: 82 | C87: เชียงใหม่ | D87: 1550061526 | E87: องค์การบริหารส่วนตำบลสะลวง | F87: 118 | G87: 0 | H87: 0 | I87: 0 | J87: 118 | K87: 118 | L87: 0 | M87: =K87+L87 -> 118 | N87: =M87-J87 -> 0
A88: 83 | B88: 83 | C88: เชียงใหม่ | D88: 1550061528 | E88: องค์การบริหารส่วนตำบลม่อนปิ่น | F88: 60 | G88: 0 | H88: 0 | I88: 0 | J88: 60
A89: 84 | B89: 84 | C89: เชียงใหม่ | D89: 1550061529 | E89: องค์การบริหารส่วนตำบลแม่งอน | F89: 125 | G89: 0 | H89: 0 | I89: 0 | J89: 125
A90: 85 | B90: 85 | C90: เชียงใหม่ | D90: 1550061530 | E90: องค์การบริหารส่วนตำบลแม่สูน | F90: 136 | G90: 0 | H90: 2 | I90: 0 | J90: 138 | K90: 136 | L90: 0 | M90: =K90+L90 -> 136 | N90: =M90-J90 -> -2
A91: 86 | B91: 86 | C91: เชียงใหม่ | D91: 1550061532 | E91: องค์การบริหารส่วนตำบลแม่คะ | F91: 105 | G91: 2 | H91: 2 | I91: 0 | J91: 109
A92: 87 | B92: 87 | C92: เชียงใหม่ | D92: 1550061538 | E92: องค์การบริหารส่วนตำบลดอนแก้ว | F92: 42 | G92: 0 | H92: 0 | I92: 0 | J92: 42 | K92: 42 | L92: 0 | M92: =K92+L92 -> 42 | N92: =M92-J92 -> 0
A93: 88 | B93: 88 | C93: เชียงใหม่ | D93: 1550061549 | E93: องค์การบริหารส่วนตำบลเทพเสด็จ | F93: 45 | G93: 0 | H93: 0 | I93: 0 | J93: 45 | K93: 45 | L93: 0 | M93: =K93+L93 -> 45 | N93: =M93-J93 -> 0
A94: 89 | B94: 89 | C94: เชียงใหม่ | D94: 1550061550 | E94: องค์การบริหารส่วนตำบลเชียงดาว | F94: 63 | G94: 0 | H94: 0 | I94: 0 | J94: 63 | K94: 63 | L94: 0 | M94: =K94+L94 -> 63 | N94: =M94-J94 -> 0
A95: 90 | B95: 90 | C95: เชียงราย | D95: 1557051222 | E95: เทศบาลตำบลบ้านต้า | F95: 2 | G95: 0 | H95: 0 | I95: 0 | J95: 2
A96: 91 | B96: 91 | C96: เชียงราย | D96: 1557051232 | E96: เทศบาลตำบลเจดีย์หลวง | F96: 143 | G96: 0 | H96: 4 | I96: 0 | J96: 147 | K96: 147 | L96: 2 | M96: =K96+L96 -> 149 | N96: =M96-J96 -> 2 | O96: 2
A97: 92 | B97: 92 | C97: เชียงราย | D97: 1557051234 | E97: เทศบาลตำบลสันทราย อ. แม่จัน จ. เชียงราย | F97: 3 | G97: 0 | H97: 0 | I97: 0 | J97: 3 | K97: 3 | L97: 0 | M97: =K97+L97 -> 3 | N97: =M97-J97 -> 0
A98: 93 | B98: 93 | C98: เชียงราย | D98: 1557051235 | E98: เทศบาลตำบลแม่คำ | F98: 31 | G98: 0 | H98: 0 | I98: 0 | J98: 31 | K98: 31 | L98: 0 | M98: =K98+L98 -> 31 | N98: =M98-J98 -> 0
A99: 94 | B99: 94 | C99: เชียงราย | D99: 1557051245 | E99: เทศบาลตำบลป่าซาง อ. แม่จัน จ. เชียงราย | F99: 8 | G99: 0 | H99: 0 | I99: 0 | J99: 8
A100: 95 | B100: 95 | C100: เชียงราย | D100: 1557051250 | E100: เทศบาลตำบลดอยฮาง | F100: 5 | G100: 0 | H100: 0 | I100: 0 | J100: 5 | K100: 5 | L100: 0 | M100: =K100+L100 -> 5 | N100: =M100-J100 -> 0
A101: 96 | B101: 96 | C101: เชียงราย | D101: 1557051254 | E101: เทศบาลตำบลสันทรายงาม | F101: 11 | G101: 0 | H101: 0 | I101: 0 | J101: 11
A102: 97 | B102: 97 | C102: เชียงราย | D102: 1557051266 | E102: เทศบาลตำบลดงมะดะ | F102: 55 | G102: 0 | H102: 0 | I102: 0 | J102: 55 | K102: 55 | L102: 0 | M102: =K102+L102 -> 55 | N102: =M102-J102 -> 0
A103: 98 | B103: 98 | C103: เชียงราย | D103: 1557051273 | E103: เทศบาลตำบลบ้านแซว | F103: 9 | G103: 0 | H103: 0 | I103: 0 | J103: 9 | K103: 9 | L103: 0 | M103: =K103+L103 -> 9 | N103: =M103-J103 -> 0
A104: 99 | B104: 99 | C104: เชียงราย | D104: 1557051279 | E104: เทศบาลตำบลสายน้ำคำ | F104: 60 | G104: 0 | H104: 0 | I104: 0 | J104: 60 | K104: 60 | L104: 0 | M104: =K104+L104 -> 60 | N104: =M104-J104 -> 0
A105: 100 | B105: 100 | C105: เชียงราย | D105: 1557051283 | E105: เทศบาลตำบลม่วงยาย | F105: 41 | G105: 0 | H105: 0 | I105: 0 | J105: 41 | K105: 41 | L105: 0 | M105: =K105+L105 -> 41 | N105: =M105-J105 -> 0
A106: 101 | B106: 101 | C106: เชียงราย | D106: 1557051286 | E106: เทศบาลตำบลท่าข้าม อ. เวียงแก่น จ. เชียงราย | F106: 133 | G106: 1 | H106: 0 | I106: 0 | J106: 134 | K106: 134 | L106: 0 | M106: =K106+L106 -> 134 | N106: =M106-J106 -> 0
A107: 102 | B107: 102 | C107: เชียงราย | D107: 1557051296 | E107: เทศบาลตำบลเวียงสรวย | F107: 273 | G107: 1 | H107: 0 | I107: 0 | J107: 274
A108: 103 | B108: 103 | C108: เชียงราย | D108: 1557051303 | E108: เทศบาลตำบลสันมะเค็ด | F108: 201 | G108: 4 | H108: 1 | I108: 0 | J108: 206 | K108: 201 | L108: 0 | M108: =K108+L108 -> 201 | N108: =M108-J108 -> -5
A109: 104 | B109: 104 | C109: เชียงราย | D109: 1557051312 | E109: เทศบาลตำบลท่าข้าวเปลือก | F109: 138 | G109: 2 | H109: 0 | I109: 0 | J109: 140 | K109: 140 | L109: 0 | M109: =K109+L109 -> 140 | N109: =M109-J109 -> 0
A110: 105 | B110: 105 | C110: เชียงราย | D110: 1557051323 | E110: เทศบาลตำบลห้วยซ้อ | F110: 3 | G110: 1 | H110: 0 | I110: 0 | J110: 4
A111: 106 | B111: 106 | C111: เชียงราย | D111: 1557051326 | E111: เทศบาลตำบลป่างิ้ว | F111: 242 | G111: 1 | H111: 3 | I111: 0 | J111: 246
A112: 107 | B112: 107 | C112: เชียงราย | D112: 1557051338 | E112: เทศบาลตำบลสันมะค่า | F112: 63 | G112: 0 | H112: 0 | I112: 0 | J112: 63
A113: 108 | B113: 108 | C113: เชียงราย | D113: 1557051339 | E113: เทศบาลตำบลโรงช้าง อ. ป่าแดด จ. เชียงราย | F113: 161 | G113: 1 | H113: 0 | I113: 0 | J113: 162
A114: 109 | B114: 109 | C114: เชียงราย | D114: 1557051340 | E114: เทศบาลตำบลศรีโพธิ์เงิน | F114: 52 | G114: 0 | H114: 0 | I114: 0 | J114: 52 | K114: 52 | L114: 0 | M114: =K114+L114 -> 52 | N114: =M114-J114 -> 0
A115: 110 | B115: 110 | C115: เชียงราย | D115: 1557051348 | E115: เทศบาลตำบลสันทราย อ. เมืองเชียงราย จ. เชียงราย | F115: 18 | G115: 0 | H115: 0 | I115: 0 | J115: 18 | K115: 18 | L115: 0 | M115: =K115+L115 -> 18 | N115: =M115-J115 -> 0
A116: 111 | B116: 111 | C116: เชียงราย | D116: 1557051350 | E116: เทศบาลตำบลดอยลาน | F116: 201 | G116: 2 | H116: 0 | I116: 0 | J116: 203
A117: 112 | B117: 112 | C117: เชียงราย | D117: 1557051352 | E117: เทศบาลตำบลท่าสุด | F117: 78 | G117: 2 | H117: 0 | I117: 0 | J117: 80 | K117: 80 | L117: 0 | M117: =K117+L117 -> 80 | N117: =M117-J117 -> 0
A118: 113 | B118: 113 | C118: เชียงราย | D118: 1557061248 | E118: องค์การบริหารส่วนตำบลดงมหาวัน | F118: 95 | G118: 1 | H118: 0 | I118: 0 | J118: 96 | K118: 96 | L118: 0 | M118: =K118+L118 -> 96 | N118: =M118-J118 -> 0
A119: 114 | B119: 114 | C119: เชียงราย | D119: 1557061255 | E119: องค์การบริหารส่วนตำบลศรีดอนไชย | F119: 132 | G119: 0 | H119: 0 | I119: 0 | J119: 132 | K119: 132 | L119: 0 | M119: =K119+L119 -> 132 | N119: =M119-J119 -> 0
A120: 115 | B120: 115 | C120: เชียงราย | D120: 1557061256 | E120: องค์การบริหารส่วนตำบลหนองแรด | F120: 66 | G120: 1 | H120: 0 | I120: 0 | J120: 67 | K120: 67 | L120: 0 | M120: =K120+L120 -> 67 | N120: =M120-J120 -> 0
A121: 116 | B121: 116 | C121: เชียงราย | D121: 1557061267 | E121: องค์การบริหารส่วนตำบลจอมหมอกแก้ว | F121: 10 | G121: 0 | H121: 0 | I121: 0 | J121: 10 | K121: 10 | L121: 0 | M121: =K121+L121 -> 10 | N121: =M121-J121 -> 0
A122: 117 | B122: 117 | C122: เชียงราย | D122: 1557061269 | E122: องค์การบริหารส่วนตำบลป่าก่อดำ | F122: 8 | G122: 1 | H122: 0 | I122: 0 | J122: 9
A123: 118 | B123: 118 | C123: เชียงราย | D123: 1557061271 | E123: องค์การบริหารส่วนตำบลต้า | F123: 236 | G123: 0 | H123: 0 | I123: 0 | J123: 236 | K123: 236 | L123: 0 | M123: =K123+L123 -> 236 | N123: =M123-J123 -> 0
A124: 119 | B124: 119 | C124: เชียงราย | D124: 1557061278 | E124: องค์การบริหารส่วนตำบลแม่จัน | F124: 71 | G124: 1 | H124: 0 | I124: 0 | J124: 72 | K124: 71 | L124: 0 | M124: =K124+L124 -> 71 | N124: =M124-J124 -> -1
A125: 120 | B125: 120 | C125: เชียงราย | D125: 1557061281 | E125: องค์การบริหารส่วนตำบลแม่สลองนอก | F125: 45 | G125: 0 | H125: 0 | I125: 0 | J125: 45
A126: 121 | B126: 121 | C126: เชียงราย | D126: 1557061282 | E126: องค์การบริหารส่วนตำบลแม่ฟ้าหลวง | F126: 112 | G126: 0 | H126: 0 | I126: 0 | J126: 112
A127: 122 | B127: 122 | C127: เชียงราย | D127: 1557061284 | E127: องค์การบริหารส่วนตำบลปอ | F127: 179 | G127: 0 | H127: 0 | I127: 0 | J127: 179 | K127: 179 | L127: 1 | M127: =K127+L127 -> 180 | N127: =M127-J127 -> 1 | O127: 1
A128: 123 | B128: 123 | C128: เชียงราย | D128: 1557061291 | E128: องค์การบริหารส่วนตำบลหนองป่าก่อ | F128: 43 | G128: 0 | H128: 0 | I128: 0 | J128: 43
A129: 124 | B129: 124 | C129: เชียงราย | D129: 1557061292 | E129: องค์การบริหารส่วนตำบลโชคชัย อ. ดอยหลวง จ. เชียงราย | F129: 106 | G129: 1 | H129: 0 | I129: 0 | J129: 107 | K129: 106 | L129: 1 | M129: =K129+L129 -> 107 | N129: =M129-J129 -> 0 | O129: 1
A130: 125 | B130: 125 | C130: เชียงราย | D130: 1557061297 | E130: องค์การบริหารส่วนตำบลป่าแดด | F130: 25 | G130: 0 | H130: 0 | I130: 0 | J130: 25
A131: 126 | B131: 126 | C131: เชียงราย | D131: 1557061298 | E131: องค์การบริหารส่วนตำบลศรีถ้อย | F131: 92 | G131: 1 | H131: 3 | I131: 0 | J131: 96 | K131: 96 | L131: 0 | M131: =K131+L131 -> 96 | N131: =M131-J131 -> 0
A132: 127 | B132: 127 | C132: เชียงราย | D132: 1557061301 | E132: องค์การบริหารส่วนตำบลเจดีย์หลวง | F132: 36 | G132: 0 | H132: 0 | I132: 0 | J132: 36 | K132: 36 | L132: 0 | M132: =K132+L132 -> 36 | N132: =M132-J132 -> 0
A133: 128 | B133: 128 | C133: เชียงราย | D133: 1557061302 | E133: องค์การบริหารส่วนตำบลแม่พริก อ. แม่สรวย จ. เชียงราย | F133: 186 | G133: 2 | H133: 1 | I133: 0 | J133: 189
A134: 129 | B134: 129 | C134: เชียงราย | D134: 1557061304 | E134: องค์การบริหารส่วนตำบลแม่อ้อ | F134: 85 | G134: 1 | H134: 0 | I134: 0 | J134: 86 | K134: 86 | L134: 0 | M134: =K134+L134 -> 86 | N134: =M134-J134 -> 0
A135: 130 | B135: 130 | C135: เชียงราย | D135: 1557061306 | E135: องค์การบริหารส่วนตำบลสันติสุข | F135: 60 | G135: 0 | H135: 0 | I135: 0 | J135: =F135+G135+H135+I135 -> 60 | K135: 60 | L135: 0 | M135: =K135+L135 -> 60 | N135: =M135-J135 -> 0
A136: 131 | B136: 131 | C136: เชียงราย | D136: 1557061308 | E136: องค์การบริหารส่วนตำบลหัวง้ม | F136: 123 | G136: 0 | H136: 0 | I136: 0 | J136: 123
A137: 132 | B137: 132 | C137: เชียงราย | D137: 1557061309 | E137: องค์การบริหารส่วนตำบลเจริญเมือง | F137: 8 | G137: 0 | H137: 0 | I137: 0 | J137: 8 | K137: 8 | L137: 0 | M137: =K137+L137 -> 8 | N137: =M137-J137 -> 0
A138: 133 | B138: 133 | C138: เชียงราย | D138: 1557061310 | E138: องค์การบริหารส่วนตำบลป่าหุ่ง | F138: 9 | G138: 0 | H138: 0 | I138: 0 | J138: 9 | K138: 9 | L138: 0 | M138: =K138+L138 -> 9 | N138: =M138-J138 -> 0
A139: 134 | B139: 134 | C139: เชียงราย | D139: 1557061311 | E139: องค์การบริหารส่วนตำบลสันทราย อ. แม่จัน จ. เชียงราย | F139: 32 | G139: 0 | H139: 0 | I139: 0 | J139: 32 | K139: 32 | L139: 0 | M139: =K139+L139 -> 32 | N139: =M139-J139 -> 0
A140: 135 | B140: 135 | C140: เชียงราย | D140: 1557061314 | E140: องค์การบริหารส่วนตำบลศรีค้ำ | F140: 137 | G140: 1 | H140: 0 | I140: 0 | J140: 138 | K140: 138 | L140: 1 | M140: =K140+L140 -> 139 | N140: =M140-J140 -> 1 | P140: 1
A141: 136 | B141: 136 | C141: เชียงราย | D141: 1557061317 | E141: องค์การบริหารส่วนตำบลทรายขาว อ. พาน จ. เชียงราย | F141: 232 | G141: 5 | H141: 1 | I141: 0 | J141: 238 | K141: 238 | L141: 0 | M141: =K141+L141 -> 238 | N141: =M141-J141 -> 0
A142: 137 | B142: 137 | C142: เชียงราย | D142: 1557061319 | E142: องค์การบริหารส่วนตำบลแม่เย็น | F142: 9 | G142: 0 | H142: 0 | I142: 0 | J142: 9
A143: 138 | B143: 138 | C143: เชียงราย | D143: 1557061320 | E143: องค์การบริหารส่วนตำบลเมืองพาน อ. พาน จ. เชียงราย | F143: 113 | G143: 1 | H143: 0 | I143: 0 | J143: 114 | K143: 113 | L143: 1 | M143: =K143+L143 -> 114 | N143: =M143-J143 -> 0 | O143: 1
A144: 139 | B144: 139 | C144: เชียงราย | D144: 1557061321 | E144: องค์การบริหารส่วนตำบลทานตะวัน | F144: 110 | G144: 0 | H144: 0 | I144: 0 | J144: 110 | K144: 108 | L144: 2 | M144: =K144+L144 -> 110 | N144: =M144-J144 -> 0 | P144: 2
A145: 140 | B145: 140 | C145: เชียงราย | D145: 1557061324 | E145: องค์การบริหารส่วนตำบลสันสลี | F145: 188 | G145: 3 | H145: 2 | I145: 0 | J145: 193
A146: 141 | B146: 141 | C146: เชียงราย | D146: 1557061329 | E146: องค์การบริหารส่วนตำบลเวียง อ. เวียงป่าเป้า จ. เชียงราย | F146: 260 | G146: 0 | H146: 0 | I146: 0 | J146: 260 | K146: 260 | L146: 0 | M146: =K146+L146 -> 260 | N146: =M146-J146 -> 0
A147: 142 | B147: 142 | C147: เชียงราย | D147: 1557061330 | E147: องค์การบริหารส่วนตำบลแม่เจดีย์ | F147: 3 | G147: 0 | H147: 0 | I147: 0 | J147: 3
A148: 143 | B148: 143 | C148: เชียงราย | D148: 1557061333 | E148: องค์การบริหารส่วนตำบลโป่งผา | F148: 119 | G148: 1 | H148: 0 | I148: 0 | J148: 120
A149: 144 | B149: 144 | C149: เชียงราย | D149: 1557061335 | E149: องค์การบริหารส่วนตำบลโป่งงาม | F149: 152 | G149: 2 | H149: 0 | I149: 0 | J149: 154 | K149: 154 | L149: 0 | M149: =K149+L149 -> 154 | N149: =M149-J149 -> 0
A150: 145 | B150: 145 | C150: เชียงราย | D150: 1557061337 | E150: องค์การบริหารส่วนตำบลศรีเมืองชุม | F150: 37 | G150: 0 | H150: 0 | I150: 0 | J150: 37 | K150: 37 | L150: 0 | M150: =K150+L150 -> 37 | N150: =M150-J150 -> 0
A151: 146 | B151: 146 | C151: เชียงราย | D151: 1557061341 | E151: องค์การบริหารส่วนตำบลเวียง อ. เทิง จ. เชียงราย | F151: 201 | G151: 0 | H151: 1 | I151: 0 | J151: 202 | K151: 202 | L151: 0 | M151: =K151+L151 -> 202 | N151: =M151-J151 -> 0
A152: 147 | B152: 147 | C152: เชียงราย | D152: 1557061346 | E152: องค์การบริหารส่วนตำบลตับเต่า | F152: 246 | G152: 1 | H152: 0 | I152: 0 | J152: 247
A153: 148 | B153: 148 | C153: เชียงราย | D153: 1557061354 | E153: องค์การบริหารส่วนตำบลทุ่งก่อ | F153: 38 | G153: 0 | H153: 0 | I153: 0 | J153: 38 | K153: 38 | L153: 0 | M153: =K153+L153 -> 38 | N153: =M153-J153 -> 0
A154: 149 | B154: 149 | C154: เพชรบุรี | D154: 1576054033 | E154: เทศบาลตำบลบางเก่า | F154: 106 | G154: 2 | H154: 0 | I154: 1 | J154: 109 | K154: 109 | L154: 0 | M154: 109 | N154: 0
A155: 150 | B155: 150 | C155: เพชรบุรี | D155: 1576064017 | E155: องค์การบริหารส่วนตำบลไร่ส้ม | F155: 9 | G155: 0 | H155: 0 | I155: 0 | J155: 9 | K155: 9 | L155: 0 | M155: 9 | N155: 0
A156: 151 | B156: 151 | C156: เพชรบุรี | D156: 1576064034 | E156: องค์การบริหารส่วนตำบลหนองศาลา | F156: 59 | G156: 0 | H156: 0 | I156: 0 | J156: 59 | K156: 59 | L156: 0 | M156: 59 | N156: 0
A157: 152 | B157: 152 | C157: เพชรบุรี | D157: 1576064035 | E157: องค์การบริหารส่วนตำบลห้วยทรายเหนือ | F157: 52 | G157: 1 | H157: 1 | I157: 0 | J157: 54 | K157: 54 | L157: 0 | M157: 54 | N157: 0
A158: 153 | B158: 153 | C158: เพชรบุรี | D158: 1576064037 | E158: องค์การบริหารส่วนตำบลพุสวรรค์ | F158: 19 | G158: 2 | H158: 0 | I158: 0 | J158: 21 | K158: 21 | L158: 0 | M158: 21 | N158: 0
A159: 154 | B159: 154 | C159: เพชรบุรี | D159: 1576064041 | E159: องค์การบริหารส่วนตำบลแหลมผักเบี้ย | F159: 43 | G159: 1 | H159: 0 | I159: 0 | J159: 44 | K159: 44 | L159: 0 | M159: 44 | N159: 0
A160: 155 | B160: 155 | C160: เพชรบุรี | D160: 1576064046 | E160: องค์การบริหารส่วนตำบลสองพี่น้อง อ. แก่งกระจาน จ. เพชรบุรี | F160: 51 | G160: 1 | H160: 0 | I160: 0 | J160: 52 | K160: 51 | L160: 0 | M160: 51 | N160: -1
A161: 156 | B161: 156 | C161: เพชรบุรี | D161: 1576064047 | E161: องค์การบริหารส่วนตำบลวังจันทร์ อ. แก่งกระจาน จ. เพชรบุรี | F161: 4 | G161: 0 | H161: 0 | I161: 0 | J161: 4 | K161: 4 | L161: 0 | M161: 4 | N161: 0
A162: 157 | B162: 157 | C162: เพชรบุรี | D162: 1576064054 | E162: องค์การบริหารส่วนตำบลไร่โคก | F162: 50 | G162: 0 | H162: 0 | I162: 0 | J162: 50 | K162: 50 | L162: 0 | M162: 50 | N162: 0
A163: 158 | B163: 158 | C163: เพชรบุรี | D163: 1576064062 | E163: องค์การบริหารส่วนตำบลห้วยลึก อ. บ้านลาด จ. เพชรบุรี | F163: 12 | G163: 1 | H163: 0 | I163: 0 | J163: 13 | K163: 13 | L163: 0 | M163: 13 | N163: 0
A164: 159 | B164: 159 | C164: เพชรบุรี | D164: 1576064065 | E164: องค์การบริหารส่วนตำบลท่าคอย | F164: 7 | G164: 0 | H164: 0 | I164: 0 | J164: 7 | K164: 7 | L164: 0 | M164: 7 | N164: 0
A165: 160 | B165: 160 | C165: เพชรบุรี | D165: 1576064067 | E165: องค์การบริหารส่วนตำบลมาบปลาเค้า | F165: 79 | G165: 1 | H165: 0 | I165: 0 | J165: 80 | K165: 80 | L165: 0 | M165: 80 | N165: 0
A166: 161 | B166: 161 | C166: เพชรบูรณ์ | D166: 1567044083 | E166: เทศบาลเมืองเพชรบูรณ์ | F166: 54 | G166: 1 | H166: 0 | I166: 0 | J166: 55 | K166: 55 | L166: 0 | M166: 55 | N166: 0
A167: 162 | B167: 162 | C167: เพชรบูรณ์ | D167: 1567044099 | E167: เทศบาลเมืองวิเชียรบุรี | F167: 2 | G167: 0 | H167: 0 | I167: 0 | J167: 2 | K167: 2 | L167: 0 | M167: 2 | N167: 0
A168: 163 | B168: 163 | C168: เพชรบูรณ์ | D168: 1567054085 | E168: เทศบาลตำบลวังชมภู | F168: 0 | G168: 1 | H168: 0 | I168: 0 | J168: 1 | K168: 1 | L168: 0 | M168: 1 | N168: 0
A169: 164 | B169: 164 | C169: เพชรบูรณ์ | D169: 1567054094 | E169: เทศบาลตำบลบัววัฒนา | F169: 43 | G169: 0 | H169: 0 | I169: 0 | J169: 43 | K169: 43 | L169: 0 | M169: 43 | N169: 0
A170: 165 | B170: 165 | C170: เพชรบูรณ์ | D170: 1567054117 | E170: เทศบาลตำบลศาลาลาย | F170: 186 | G170: 3 | H170: 0 | I170: 0 | J170: 189 | K170: 189 | L170: 0 | M170: 189 | N170: 0
A171: 166 | B171: 166 | C171: เพชรบูรณ์ | D171: 1567064115 | E171: องค์การบริหารส่วนตำบลซับพุทรา | F171: 13 | G171: 0 | H171: 0 | I171: 0 | J171: 13 | K171: 13 | L171: 0 | M171: 13 | N171: 0
A172: 167 | B172: 167 | C172: เพชรบูรณ์ | D172: 1567064118 | E172: องค์การบริหารส่วนตำบลตะเบาะ | F172: 156 | G172: 0 | H172: 0 | I172: 0 | J172: 156 | K172: 156 | L172: 0 | M172: 156 | N172: 0
A173: 168 | B173: 168 | C173: เพชรบูรณ์ | D173: 1567064122 | E173: องค์การบริหารส่วนตำบลห้วยไร่ อ. หล่มสัก จ. เพชรบูรณ์ | F173: 7 | G173: 0 | H173: 0 | I173: 0 | J173: 7 | K173: 7 | L173: 0 | M173: 7 | N173: 0
A174: 169 | B174: 169 | C174: เพชรบูรณ์ | D174: 1567064127 | E174: องค์การบริหารส่วนตำบลบุ่งคล้า อ. หล่มสัก จ. เพชรบูรณ์ | F174: 3 | G174: 0 | H174: 0 | I174: 0 | J174: 3 | K174: 3 | L174: 0 | M174: 3 | N174: 0
A175: 170 | B175: 170 | C175: เพชรบูรณ์ | D175: 1567064129 | E175: องค์การบริหารส่วนตำบลซับน้อย | F175: 59 | G175: 0 | H175: 0 | I175: 0 | J175: 59 | K175: 59 | L175: 0 | M175: 59 | N175: 0
A176: 171 | B176: 171 | C176: เพชรบูรณ์ | D176: 1567064131 | E176: องค์การบริหารส่วนตำบลยางสาว | F176: 105 | G176: 3 | H176: 1 | I176: 0 | J176: 109 | K176: 109 | L176: 0 | M176: 109 | N176: 0
A177: 172 | B177: 172 | C177: เพชรบูรณ์ | D177: 1567064144 | E177: องค์การบริหารส่วนตำบลบึงสามพัน | F177: 1 | G177: 0 | H177: 0 | I177: 0 | J177: 1 | K177: 1 | L177: 0 | M177: 1 | N177: 0
A178: 173 | B178: 173 | C178: เพชรบูรณ์ | D178: 1567064148 | E178: องค์การบริหารส่วนตำบลหนองแม่นา | F178: 1 | G178: 0 | H178: 0 | I178: 0 | J178: 1 | K178: 1 | L178: 0 | M178: 1 | N178: 0
A179: 174 | B179: 174 | C179: เพชรบูรณ์ | D179: 1567064156 | E179: องค์การบริหารส่วนตำบลน้ำหนาว | F179: 86 | G179: 1 | H179: 0 | I179: 0 | J179: 87 | K179: 87 | L179: 0 | M179: 87 | N179: 0
A180: 175 | B180: 175 | C180: เพชรบูรณ์ | D180: 1567064158 | E180: องค์การบริหารส่วนตำบลวังกวาง | F180: 18 | G180: 0 | H180: 0 | I180: 0 | J180: 18 | K180: 18 | L180: 0 | M180: 18 | N180: 0
A181: 176 | B181: 176 | C181: เพชรบูรณ์ | D181: 1567064164 | E181: องค์การบริหารส่วนตำบลยางงาม | F181: 2 | G181: 0 | H181: 0 | I181: 0 | J181: 2 | K181: 2 | L181: 0 | M181: 2 | N181: 0
A182: 177 | B182: 177 | C182: เพชรบูรณ์ | D182: 1567064172 | E182: องค์การบริหารส่วนตำบลนาสนุ่น | F182: 168 | G182: 2 | H182: 0 | I182: 0 | J182: 170 | K182: 170 | L182: 0 | M182: 170 | N182: 0
A183: 178 | B183: 178 | C183: เพชรบูรณ์ | D183: 1567064173 | E183: องค์การบริหารส่วนตำบลหนองย่างทอย | F183: 3 | G183: 0 | H183: 0 | I183: 0 | J183: 3 | K183: 3 | L183: 0 | M183: 3 | N183: 0
A184: 179 | B184: 179 | C184: เพชรบูรณ์ | D184: 1567064175 | E184: องค์การบริหารส่วนตำบลคลองกระจัง | F184: 1 | G184: 0 | H184: 0 | I184: 0 | J184: 1 | K184: 0 | L184: 1 | M184: 1 | N184: 0 | O184: 1
A185: 180 | B185: 180 | C185: เพชรบูรณ์ | D185: 1567064177 | E185: องค์การบริหารส่วนตำบลสามแยก อ. วิเชียรบุรี จ. เพชรบูรณ์ | F185: 1 | G185: 0 | H185: 0 | I185: 0 | J185: 1 | K185: 1 | L185: 0 | M185: 1 | N185: 0
A186: 181 | B186: 181 | C186: เพชรบูรณ์ | D186: 1567064182 | E186: องค์การบริหารส่วนตำบลพุขาม | F186: 188 | G186: 2 | H186: 0 | I186: 0 | J186: 190 | K186: 189 | L186: 1 | M186: 190 | N186: 0 | O186: 1
A187: 182 | B187: 182 | C187: เพชรบูรณ์ | D187: 1567064183 | E187: องค์การบริหารส่วนตำบลภูน้ำหยด | F187: 27 | G187: 0 | H187: 0 | I187: 0 | J187: 27 | K187: 27 | L187: 0 | M187: 27 | N187: 0
A188: 183 | B188: 183 | C188: เพชรบูรณ์ | D188: 1567064194 | E188: องค์การบริหารส่วนตำบลท่าอิบุญ | F188: 32 | G188: 0 | H188: 0 | I188: 0 | J188: 32 | K188: 32 | L188: 0 | M188: 32 | N188: 0
A189: 184 | B189: 184 | C189: เพชรบูรณ์ | D189: 1567064201 | E189: องค์การบริหารส่วนตำบลชนแดน อ. ชนแดน จ. เพชรบูรณ์ | F189: 14 | G189: 0 | H189: 0 | I189: 0 | J189: 14 | K189: 14 | L189: 0 | M189: 14 | N189: 0
A190: 185 | B190: 185 | C190: เลย | D190: 1542055402 | E190: เทศบาลตำบลน้ำสวย | F190: 123 | G190: 3 | H190: 0 | I190: 0 | J190: 126
A191: 186 | B191: 186 | C191: เลย | D191: 1542055403 | E191: เทศบาลตำบลนาดินดำ | F191: 1 | G191: 0 | H191: 0 | I191: 0 | J191: 1
A192: 187 | B192: 187 | C192: เลย | D192: 1542055408 | E192: เทศบาลตำบลนาดอกคำ | F192: 157 | G192: 2 | H192: 0 | I192: 0 | J192: 159
A193: 188 | B193: 188 | C193: เลย | D193: 1542055410 | E193: เทศบาลตำบลโนนปอแดง | F193: 1 | G193: 0 | H193: 0 | I193: 0 | J193: 1
A194: 189 | B194: 189 | C194: เลย | D194: 1542055412 | E194: เทศบาลตำบลภูเรือ | F194: 1 | G194: 0 | H194: 0 | I194: 0 | J194: 1
A195: 190 | B195: 190 | C195: เลย | D195: 1542055414 | E195: เทศบาลตำบลเชียงคาน | F195: 1 | G195: 0 | H195: 0 | I195: 0 | J195: 1
A196: 191 | B196: 191 | C196: เลย | D196: 1542055415 | E196: เทศบาลตำบลธาตุ อ. เชียงคาน จ. เลย | F196: 339 | G196: 7 | H196: 1 | I196: 0 | J196: 347 | K196: 347 | L196: 0 | M196: =K196+L196 -> 347 | N196: =M196-J196 -> 0
A197: 192 | B197: 192 | C197: เลย | D197: 1542055416 | E197: เทศบาลตำบลเขาแก้ว | F197: 69 | G197: 1 | H197: 0 | I197: 0 | J197: 70
A198: 193 | B198: 193 | C198: เลย | D198: 1542055417 | E198: เทศบาลตำบลนาด้วง | F198: 5 | G198: 0 | H198: 0 | I198: 0 | J198: 5
A199: 194 | B199: 194 | C199: เลย | D199: 1542055418 | E199: เทศบาลตำบลหนองหิน อ. หนองหิน จ. เลย | F199: 7 | G199: 0 | H199: 0 | I199: 0 | J199: =F199+G199+H199+I199 -> 7
A200: 195 | B200: 195 | C200: เลย | D200: 1542055420 | E200: เทศบาลตำบลภูกระดึง | F200: 50 | G200: 1 | H200: 1 | I200: 0 | J200: 52
A201: 196 | B201: 196 | C201: เลย | D201: 1542055423 | E201: เทศบาลตำบลนาอ้อ | F201: 147 | G201: 1 | H201: 0 | I201: 0 | J201: 148
... 1795 more rows

Sheet 1.อปท. ที่ยังไม่ส่งรายงาน
A1: รายละเอียดการตรวจสอบรายงานผลการจ่ายเงินโครงการกระตุ้นเศรษฐกิจ ปี 2567 ผ่านคนพิการ ขององค์กรปกครองส่วนท้องถิ่น กรณีการจ่ายเป็นเงินสด
A2: 1. อปท. ที่ยังไม่ส่งรายงาน
A4: ลำดับ | B4: ชื่อจังหวัด | C4: รหัสหน่วยงาน | D4: ชื่อหน่วยงาน | E4: รายงาน บก. จ่ายเงิน (คน) | J4: รายงาน สถ. จ่ายเงิน (คน) | M4: ผลต่างรายงานของ | N4: จำนวนคน
E5: ครั้งที่ 1 | F5: ครั้งที่ 2 | G5: ครั้งที่ 3 | H5: ครั้งที่ 4 | I5: รวม | J5: จ่ายสำเร็จ | K5: จ่ายไม่สำเร็จ | L5: รวม | M5: บก. - สถ. (คน) | N5: คืนแล้ว | O5: ยังไม่คืน | P5: คืนไม่ครบ
A6: 1 | B6: เชียงใหม่ | C6: 1550051357 | D6: เทศบาลตำบลป่าแดด อ. เมืองเชียงใหม่ จ. เชียงใหม่ | E6: 2 | F6: 0 | G6: 0 | H6: 0 | I6: 2
A7: 2 | B7: เชียงใหม่ | C7: 1550051383 | D7: เทศบาลตำบลสะเมิงใต้ | E7: 120 | F7: 1 | G7: 1 | H7: 0 | I7: 122 | N7: 1
A8: 3 | B8: เชียงใหม่ | C8: 1550051384 | D8: เทศบาลตำบลแม่ริม | E8: 4 | F8: 0 | G8: 0 | H8: 0 | I8: 4
A9: 4 | B9: เชียงใหม่ | C9: 1550051385 | D9: เทศบาลตำบลสันมหาพน | E9: 33 | F9: 0 | G9: 0 | H9: 0 | I9: 33
A10: 5 | B10: เชียงใหม่ | C10: 1550051397 | D10: เทศบาลตำบลแม่ปั๋ง | E10: 13 | F10: 0 | G10: 0 | H10: 0 | I10: 13
A11: 6 | B11: เชียงใหม่ | C11: 1550051399 | D11: เทศบาลตำบลแม่วาง | E11: 4 | F11: 0 | G11: 0 | H11: 0 | I11: 4
A12: 7 | B12: เชียงใหม่ | C12: 1550051400 | D12: เทศบาลตำบลไชยปราการ | E12: 33 | F12: 3 | G12: 0 | H12: 0 | I12: 36
A13: 8 | B13: เชียงใหม่ | C13: 1550051411 | D13: เทศบาลตำบลหนองป่าครั่ง | E13: 1 | F13: 0 | G13: 0 | H13: 0 | I13: 1
A14: 9 | B14: เชียงใหม่ | C14: 1550051446 | D14: เทศบาลตำบลสองแคว | E14: 126 | F14: 0 | G14: 0 | H14: 0 | I14: 126
A15: 10 | B15: เชียงใหม่ | C15: 1550051447 | D15: เทศบาลตำบลยางคราม | E15: 210 | F15: 2 | G15: 0 | H15: 0 | I15: 212
A16: 11 | B16: เชียงใหม่ | C16: 1550051448 | D16: เทศบาลตำบลสันติสุข | E16: 129 | F16: 0 | G16: 0 | H16: 0 | I16: 129
A17: 12 | B17: เชียงใหม่ | C17: 1550051471 | D17: เทศบาลตำบลสันทรายมหาวงศ์ | E17: 218 | F17: 0 | G17: 2 | H17: 0 | I17: 220
A18: 13 | B18: เชียงใหม่ | C18: 1550051514 | D18: เทศบาลตำบลป่าไหน่ | E18: 30 | F18: 0 | G18: 0 | H18: 0 | I18: 30
A19: 14 | B19: เชียงใหม่ | C19: 1550051517 | D19: เทศบาลตำบลน้ำแพร่ | E19: 140 | F19: 0 | G19: 1 | H19: 0 | I19: 141
A20: 15 | B20: เชียงใหม่ | C20: 1550051559 | D20: เทศบาลตำบลท่าผา อ. แม่แจ่ม จ. เชียงใหม่ | E20: 89 | F20: 0 | G20: 0 | H20: 0 | I20: 89
A21: 16 | B21: เชียงใหม่ | C21: 1550061420 | D21: องค์การบริหารส่วนตำบลบ้านเป้า อ. แม่แตง จ. เชียงใหม่ | E21: 68 | F21: 2 | G21: 0 | H21: 0 | I21: 70 | N21: 1
A22: 17 | B22: เชียงใหม่ | C22: 1550061425 | D22: องค์การบริหารส่วนตำบลกื๊ดช้าง | E22: 53 | F22: 0 | G22: 1 | H22: 0 | I22: 54
A23: 18 | B23: เชียงใหม่ | C23: 1550061441 | D23: องค์การบริหารส่วนตำบลบ้านกลาง อ. สันป่าตอง จ. เชียงใหม่ | E23: 20 | F23: 0 | G23: 0 | H23: 0 | I23: 20
A24: 19 | B24: เชียงใหม่ | C24: 1550061455 | D24: องค์การบริหารส่วนตำบลบ้านกาด | E24: 42 | F24: 0 | G24: 0 | H24: 0 | I24: 42
A25: 20 | B25: เชียงใหม่ | C25: 1550061456 | D25: องค์การบริหารส่วนตำบลทุ่งปี้ | E25: 214 | F25: 0 | G25: 1 | H25: 0 | I25: 215
A26: 21 | B26: เชียงใหม่ | C26: 1550061457 | D26: องค์การบริหารส่วนตำบลทุ่งรวงทอง | E26: 55 | F26: 1 | G26: 0 | H26: 0 | I26: 56
A27: 22 | B27: เชียงใหม่ | C27: 1550061478 | D27: องค์การบริหารส่วนตำบลนาเกียน | E27: 1 | F27: 0 | G27: 0 | H27: 1 | I27: 2
A28: 23 | B28: เชียงใหม่ | C28: 1550061504 | D28: องค์การบริหารส่วนตำบลสันกำแพง | E28: 36 | F28: 0 | G28: 0 | H28: 0 | I28: 36
A29: 24 | B29: เชียงใหม่ | C29: 1550061518 | D29: องค์การบริหารส่วนตำบลเขื่อนผาก | E29: 82 | F29: 1 | G29: 0 | H29: 0 | I29: 83
A30: 25 | B30: เชียงใหม่ | C30: 1550061522 | D30: องค์การบริหารส่วนตำบลยั้งเมิน | E30: 166 | F30: 0 | G30: 0 | H30: 0 | I30: 166
A31: 26 | B31: เชียงใหม่ | C31: 1550061528 | D31: องค์การบริหารส่วนตำบลม่อนปิ่น | E31: 60 | F31: 0 | G31: 0 | H31: 0 | I31: 60
A32: 27 | B32: เชียงใหม่ | C32: 1550061529 | D32: องค์การบริหารส่วนตำบลแม่งอน | E32: 125 | F32: 0 | G32: 0 | H32: 0 | I32: 125
A33: 28 | B33: เชียงใหม่ | C33: 1550061532 | D33: องค์การบริหารส่วนตำบลแม่คะ | E33: 105 | F33: 2 | G33: 2 | H33: 0 | I33: 109
A34: 29 | B34: เชียงราย | C34: 1557051222 | D34: เทศบาลตำบลบ้านต้า | E34: 2 | F34: 0 | G34: 0 | H34: 0 | I34: 2
A35: 30 | B35: เชียงราย | C35: 1557051245 | D35: เทศบาลตำบลป่าซาง อ. แม่จัน จ. เชียงราย | E35: 8 | F35: 0 | G35: 0 | H35: 0 | I35: 8
A36: 31 | B36: เชียงราย | C36: 1557051254 | D36: เทศบาลตำบลสันทรายงาม | E36: 11 | F36: 0 | G36: 0 | H36: 0 | I36: 11
A37: 32 | B37: เชียงราย | C37: 1557051296 | D37: เทศบาลตำบลเวียงสรวย | E37: 273 | F37: 1 | G37: 0 | H37: 0 | I37: 274
A38: 33 | B38: เชียงราย | C38: 1557051323 | D38: เทศบาลตำบลห้วยซ้อ | E38: 3 | F38: 1 | G38: 0 | H38: 0 | I38: 4
A39: 34 | B39: เชียงราย | C39: 1557051326 | D39: เทศบาลตำบลป่างิ้ว | E39: 242 | F39: 1 | G39: 3 | H39: 0 | I39: 246
A40: 35 | B40: เชียงราย | C40: 1557051338 | D40: เทศบาลตำบลสันมะค่า | E40: 63 | F40: 0 | G40: 0 | H40: 0 | I40: 63
A41: 36 | B41: เชียงราย | C41: 1557051339 | D41: เทศบาลตำบลโรงช้าง อ. ป่าแดด จ. เชียงราย | E41: 161 | F41: 1 | G41: 0 | H41: 0 | I41: 162
A42: 37 | B42: เชียงราย | C42: 1557051350 | D42: เทศบาลตำบลดอยลาน | E42: 201 | F42: 2 | G42: 0 | H42: 0 | I42: 203
A43: 38 | B43: เชียงราย | C43: 1557061269 | D43: องค์การบริหารส่วนตำบลป่าก่อดำ | E43: 8 | F43: 1 | G43: 0 | H43: 0 | I43: 9
A44: 39 | B44: เชียงราย | C44: 1557061281 | D44: องค์การบริหารส่วนตำบลแม่สลองนอก | E44: 45 | F44: 0 | G44: 0 | H44: 0 | I44: 45
A45: 40 | B45: เชียงราย | C45: 1557061282 | D45: องค์การบริหารส่วนตำบลแม่ฟ้าหลวง | E45: 112 | F45: 0 | G45: 0 | H45: 0 | I45: 112
A46: 41 | B46: เชียงราย | C46: 1557061291 | D46: องค์การบริหารส่วนตำบลหนองป่าก่อ | E46: 43 | F46: 0 | G46: 0 | H46: 0 | I46: 43
A47: 42 | B47: เชียงราย | C47: 1557061297 | D47: องค์การบริหารส่วนตำบลป่าแดด | E47: 25 | F47: 0 | G47: 0 | H47: 0 | I47: 25
A48: 43 | B48: เชียงราย | C48: 1557061302 | D48: องค์การบริหารส่วนตำบลแม่พริก อ. แม่สรวย จ. เชียงราย | E48: 186 | F48: 2 | G48: 1 | H48: 0 | I48: 189
A49: 44 | B49: เชียงราย | C49: 1557061308 | D49: องค์การบริหารส่วนตำบลหัวง้ม | E49: 123 | F49: 0 | G49: 0 | H49: 0 | I49: 123
A50: 45 | B50: เชียงราย | C50: 1557061319 | D50: องค์การบริหารส่วนตำบลแม่เย็น | E50: 9 | F50: 0 | G50: 0 | H50: 0 | I50: 9
A51: 46 | B51: เชียงราย | C51: 1557061324 | D51: องค์การบริหารส่วนตำบลสันสลี | E51: 188 | F51: 3 | G51: 2 | H51: 0 | I51: 193
A52: 47 | B52: เชียงราย | C52: 1557061330 | D52: องค์การบริหารส่วนตำบลแม่เจดีย์ | E52: 3 | F52: 0 | G52: 0 | H52: 0 | I52: 3
A53: 48 | B53: เชียงราย | C53: 1557061333 | D53: องค์การบริหารส่วนตำบลโป่งผา | E53: 119 | F53: 1 | G53: 0 | H53: 0 | I53: 120
A54: 49 | B54: เชียงราย | C54: 1557061346 | D54: องค์การบริหารส่วนตำบลตับเต่า | E54: 246 | F54: 1 | G54: 0 | H54: 0 | I54: 247
A55: 50 | B55: เลย | C55: 1542055402 | D55: เทศบาลตำบลน้ำสวย | E55: 123 | F55: 3 | G55: 0 | H55: 0 | I55: 126
A56: 51 | B56: เลย | C56: 1542055403 | D56: เทศบาลตำบลนาดินดำ | E56: 1 | F56: 0 | G56: 0 | H56: 0 | I56: 1
A57: 52 | B57: เลย | C57: 1542055408 | D57: เทศบาลตำบลนาดอกคำ | E57: 157 | F57: 2 | G57: 0 | H57: 0 | I57: 159
A58: 53 | B58: เลย | C58: 1542055410 | D58: เทศบาลตำบลโนนปอแดง | E58: 1 | F58: 0 | G58: 0 | H58: 0 | I58: 1
A59: 54 | B59: เลย | C59: 1542055412 | D59: เทศบาลตำบลภูเรือ | E59: 1 | F59: 0 | G59: 0 | H59: 0 | I59: 1
A60: 55 | B60: เลย | C60: 1542055414 | D60: เทศบาลตำบลเชียงคาน | E60: 1 | F60: 0 | G60: 0 | H60: 0 | I60: 1
A61: 56 | B61: เลย | C61: 1542055416 | D61: เทศบาลตำบลเขาแก้ว | E61: 69 | F61: 1 | G61: 0 | H61: 0 | I61: 70
A62: 57 | B62: เลย | C62: 1542055417 | D62: เทศบาลตำบลนาด้วง | E62: 5 | F62: 0 | G62: 0 | H62: 0 | I62: 5
A63: 58 | B63: เลย | C63: 1542055418 | D63: เทศบาลตำบลหนองหิน อ. หนองหิน จ. เลย | E63: 7 | F63: 0 | G63: 0 | H63: 0 | I63: 7
A64: 59 | B64: เลย | C64: 1542055420 | D64: เทศบาลตำบลภูกระดึง | E64: 50 | F64: 1 | G64: 1 | H64: 0 | I64: 52
A65: 60 | B65: เลย | C65: 1542055423 | D65: เทศบาลตำบลนาอ้อ | E65: 147 | F65: 1 | G65: 0 | H65: 0 | I65: 148
A66: 61 | B66: เลย | C66: 1542055452 | D66: เทศบาลตำบลร่องจิก | E66: 2 | F66: 0 | G66: 0 | H66: 0 | I66: 2
A67: 62 | B67: เลย | C67: 1542065426 | D67: องค์การบริหารส่วนตำบลกกดู่ | E67: 7 | F67: 0 | G67: 0 | H67: 0 | I67: 7
A68: 63 | B68: เลย | C68: 1542065427 | D68: องค์การบริหารส่วนตำบลนาพึง | E68: 131 | F68: 2 | G68: 0 | H68: 0 | I68: 133
A69: 64 | B69: เลย | C69: 1542065428 | D69: องค์การบริหารส่วนตำบลนามาลา | E69: 144 | F69: 2 | G69: 2 | H69: 0 | I69: 148
A70: 65 | B70: เลย | C70: 1542065429 | D70: องค์การบริหารส่วนตำบลเหล่ากอหก | E70: 104 | F70: 1 | G70: 1 | H70: 0 | I70: 106
A71: 66 | B71: เลย | C71: 1542065430 | D71: องค์การบริหารส่วนตำบลนครหงษ์ | E71: 145 | F71: 5 | G71: 1 | H71: 0 | I71: 151
A72: 67 | B72: เลย | C72: 1542065432 | D72: องค์การบริหารส่วนตำบลหาดคัมภีร์ | E72: 60 | F72: 0 | G72: 0 | H72: 0 | I72: 60
A73: 68 | B73: เลย | C73: 1542065437 | D73: องค์การบริหารส่วนตำบลวังยาว อ. ด่านซ้าย จ. เลย | E73: 181 | F73: 1 | G73: 1 | H73: 0 | I73: 183
A74: 69 | B74: เลย | C74: 1542065443 | D74: องค์การบริหารส่วนตำบลจอมศรี อ. เชียงคาน จ. เลย | E74: 83 | F74: 0 | G74: 0 | H74: 0 | I74: 83 | N74: 1
A75: 70 | B75: เลย | C75: 1542065446 | D75: องค์การบริหารส่วนตำบลเขาหลวง | E75: 2 | F75: 1 | G75: 0 | H75: 1 | I75: 4
A76: 71 | B76: เลย | C76: 1542065450 | D76: องค์การบริหารส่วนตำบลหนองบัว อ. ภูเรือ จ. เลย | E76: 21 | F76: 0 | G76: 0 | H76: 0 | I76: 21
A77: 72 | B77: เลย | C77: 1542065451 | D77: องค์การบริหารส่วนตำบลท่าศาลา อ. ภูเรือ จ. เลย | E77: 275 | F77: 2 | G77: 1 | H77: 0 | I77: 278
A78: 73 | B78: เลย | C78: 1542065453 | D78: องค์การบริหารส่วนตำบลปลาบ่า | E78: 140 | F78: 1 | G78: 1 | H78: 0 | I78: 142 | N78: 1
A79: 74 | B79: เลย | C79: 1542065454 | D79: องค์การบริหารส่วนตำบลปวนพุ | E79: 623 | F79: 16 | G79: 0 | H79: 0 | I79: 639
A80: 75 | B80: เลย | C80: 1542065460 | D80: องค์การบริหารส่วนตำบลภูหอ | E80: 303 | F80: 1 | G80: 0 | H80: 0 | I80: 304
A81: 76 | B81: เลย | C81: 1542065461 | D81: องค์การบริหารส่วนตำบลหนองคัน | E81: 222 | F81: 1 | G81: 0 | H81: 0 | I81: 223
A82: 77 | B82: เลย | C82: 1542065462 | D82: องค์การบริหารส่วนตำบลห้วยสีเสียด | E82: 297 | F82: 2 | G82: 1 | H82: 0 | I82: 300
A83: 78 | B83: เลย | C83: 1542065463 | D83: องค์การบริหารส่วนตำบลแก่งศรีภูมิ | E83: 166 | F83: 1 | G83: 0 | H83: 0 | I83: 167
A84: 79 | B84: เลย | C84: 1542065464 | D84: องค์การบริหารส่วนตำบลเลยวังไสย์ | E84: 57 | F84: 0 | G84: 0 | H84: 0 | I84: 57
A85: 80 | B85: เลย | C85: 1542065466 | D85: องค์การบริหารส่วนตำบลทรายขาว อ. วังสะพุง จ. เลย | E85: 1 | F85: 0 | G85: 0 | H85: 0 | I85: 1
A86: 81 | B86: เลย | C86: 1542065470 | D86: องค์การบริหารส่วนตำบลสานตม | E86: 123 | F86: 2 | G86: 1 | H86: 0 | I86: 126
A87: 82 | B87: เลย | C87: 1542065473 | D87: องค์การบริหารส่วนตำบลปากหมัน | E87: 86 | F87: 0 | G87: 0 | H87: 0 | I87: 86
A88: 83 | B88: เลย | C88: 1542065475 | D88: องค์การบริหารส่วนตำบลโพนสูง อ. ด่านซ้าย จ. เลย | E88: 137 | F88: 3 | G88: 1 | H88: 0 | I88: 141
A89: 84 | B89: เลย | C89: 1542065476 | D89: องค์การบริหารส่วนตำบลอิปุ่ม | E89: 167 | F89: 3 | G89: 0 | H89: 0 | I89: 170
A90: 85 | B90: เลย | C90: 1542065477 | D90: องค์การบริหารส่วนตำบลกกสะทอน | E90: 185 | F90: 11 | G90: 1 | H90: 0 | I90: 197
A91: 86 | B91: เลย | C91: 1542065478 | D91: องค์การบริหารส่วนตำบลหาดทรายขาว | E91: 12 | F91: 0 | G91: 0 | H91: 0 | I91: 12
A92: 87 | B92: เลย | C92: 1542065483 | D92: องค์การบริหารส่วนตำบลผาสามยอด | E92: 87 | F92: 3 | G92: 1 | H92: 0 | I92: 91 | N92: 1
A93: 88 | B93: เลย | C93: 1542065484 | D93: องค์การบริหารส่วนตำบลศรีฐาน อ. ภูกระดึง จ. เลย | E93: 16 | F93: 0 | G93: 0 | H93: 0 | I93: 16
A94: 89 | B94: เลย | C94: 1542065487 | D94: องค์การบริหารส่วนตำบลผานกเค้า | E94: 12 | F94: 1 | G94: 3 | H94: 0 | I94: 16
A95: 90 | B95: เลย | C95: 1542065491 | D95: องค์การบริหารส่วนตำบลโคกใหญ่ อ. ท่าลี่ จ. เลย | E95: 144 | F95: 1 | G95: 0 | H95: 0 | I95: 145
A96: 91 | B96: เลย | C96: 1542065493 | D96: องค์การบริหารส่วนตำบลแสงภา | E96: 54 | F96: 0 | G96: 0 | H96: 0 | I96: 54
A97: 92 | B97: เลย | C97: 1542065498 | D97: องค์การบริหารส่วนตำบลนาแขม อ. เมืองเลย จ. เลย | E97: 231 | F97: 0 | G97: 0 | H97: 0 | I97: 231
A98: 93 | B98: เลย | C98: 1542065499 | D98: องค์การบริหารส่วนตำบลชัยพฤกษ์ | E98: 25 | F98: 0 | G98: 0 | H98: 0 | I98: 25
A99: 94 | B99: แพร่ | C99: 1554054218 | D99: เทศบาลตำบลป่าแมต | E99: 27 | F99: 0 | G99: 0 | H99: 0 | I99: 27
A100: 95 | B100: แพร่ | C100: 1554054226 | D100: เทศบาลตำบลช่อแฮ | E100: 3 | F100: 0 | G100: 0 | H100: 0 | I100: 3
A101: 96 | B101: แพร่ | C101: 1554054227 | D101: เทศบาลตำบลห้วยอ้อ | E101: 1 | F101: 0 | G101: 0 | H101: 0 | I101: 1
A102: 97 | B102: แพร่ | C102: 1554064230 | D102: องค์การบริหารส่วนตำบลสรอย | E102: 421 | F102: 1 | G102: 2 | H102: 0 | I102: 424
A103: 98 | B103: แพร่ | C103: 1554064245 | D103: องค์การบริหารส่วนตำบลน้ำชำ | E103: 3 | F103: 0 | G103: 0 | H103: 0 | I103: 3
A104: 99 | B104: แพร่ | C104: 1554064258 | D104: องค์การบริหารส่วนตำบลบ้านกลาง อ. สอง จ. แพร่ | E104: 13 | F104: 0 | G104: 0 | H104: 0 | I104: 13 | N104: 1
A105: 100 | B105: แพร่ | C105: 1554064266 | D105: องค์การบริหารส่วนตำบลพระหลวง | E105: 1 | F105: 0 | G105: 0 | H105: 0 | I105: 1
A106: 101 | B106: แพร่ | C106: 1554064274 | D106: องค์การบริหารส่วนตำบลป่าแดง อ. เมืองแพร่ จ. แพร่ | E106: 69 | F106: 2 | G106: 0 | H106: 0 | I106: 71
A107: 102 | B107: แพร่ | C107: 1554064284 | D107: องค์การบริหารส่วนตำบลท่าข้าม อ. เมืองแพร่ จ. แพร่ | E107: 23 | F107: 0 | G107: 0 | H107: 0 | I107: 23
A108: 103 | B108: กระบี่ | C108: 1581050010 | D108: เทศบาลตำบลลำทับ | E108: 1 | F108: 0 | G108: 0 | H108: 0 | I108: 1
A109: 104 | B109: กระบี่ | C109: 1581060024 | D109: องค์การบริหารส่วนตำบลเกาะลันตาน้อย | E109: 101 | F109: 1 | G109: 0 | H109: 0 | I109: 102
A110: 105 | B110: กระบี่ | C110: 1581060055 | D110: องค์การบริหารส่วนตำบลเกาะลันตาใหญ่ | E110: 1 | F110: 0 | G110: 0 | H110: 0 | I110: 1
A111: 106 | B111: กระบี่ | C111: 1581060060 | D111: องค์การบริหารส่วนตำบลเขาเขน | E111: 1 | F111: 0 | G111: 0 | H111: 0 | I111: 1
A112: 107 | B112: กาญจนบุรี | C112: 1571050092 | D112: เทศบาลตำบลพระแท่น | E112: 80 | F112: 0 | G112: 0 | H112: 0 | I112: 80
A113: 108 | B113: กาญจนบุรี | C113: 1571050115 | D113: เทศบาลตำบลสหกรณ์นิคม | E113: 4 | F113: 0 | G113: 0 | H113: 0 | I113: 4
A114: 109 | B114: กาญจนบุรี | C114: 1571050161 | D114: เทศบาลตำบลหนองลาน | E114: 26 | F114: 0 | G114: 0 | H114: 0 | I114: 26
A115: 110 | B115: กาญจนบุรี | C115: 1571060104 | D115: องค์การบริหารส่วนตำบลสิงห์ อ. ไทรโยค จ. กาญจนบุรี | E115: 93 | F115: 1 | G115: 0 | H115: 0 | I115: 94
A116: 111 | B116: กาญจนบุรี | C116: 1571060111 | D116: องค์การบริหารส่วนตำบลหินดาด อ. ทองผาภูมิ จ. กาญจนบุรี | E116: 1 | F116: 0 | G116: 0 | H116: 0 | I116: 1
A117: 112 | B117: กาญจนบุรี | C117: 1571060114 | D117: องค์การบริหารส่วนตำบลห้วยเขย่ง | E117: 3 | F117: 0 | G117: 0 | H117: 0 | I117: 3
A118: 113 | B118: กาญจนบุรี | C118: 1571060141 | D118: องค์การบริหารส่วนตำบลปรังเผล | E118: 56 | F118: 0 | G118: 0 | H118: 0 | I118: 56
A119: 114 | B119: กาญจนบุรี | C119: 1571060145 | D119: องค์การบริหารส่วนตำบลยางม่วง | E119: 2 | F119: 0 | G119: 0 | H119: 0 | I119: 2
A120: 115 | B120: กาญจนบุรี | C120: 1571060175 | D120: องค์การบริหารส่วนตำบลช่องด่าน | E120: 164 | F120: 1 | G120: 0 | H120: 0 | I120: 165
A121: 116 | B121: กาญจนบุรี | C121: 1571060181 | D121: องค์การบริหารส่วนตำบลช่องสะเดา | E121: 23 | F121: 0 | G121: 0 | H121: 0 | I121: 23
A122: 117 | B122: กาฬสินธุ์ | C122: 1546040198 | D122: เทศบาลเมืองกุฉินารายณ์ | E122: 161 | F122: 4 | G122: 0 | H122: 0 | I122: 165
A123: 118 | B123: กาฬสินธุ์ | C123: 1546050186 | D123: เทศบาลตำบลนาจารย์ | E123: 70 | F123: 0 | G123: 0 | H123: 0 | I123: 70
A124: 119 | B124: กาฬสินธุ์ | C124: 1546050192 | D124: เทศบาลตำบลโคกศรี | E124: 2 | F124: 1 | G124: 0 | H124: 0 | I124: 3
A125: 120 | B125: กาฬสินธุ์ | C125: 1546050197 | D125: เทศบาลตำบลสระพังทอง | E125: 19 | F125: 0 | G125: 0 | H125: 0 | I125: 19
A126: 121 | B126: กาฬสินธุ์ | C126: 1546050202 | D126: เทศบาลตำบลคำบง อ. ห้วยผึ้ง จ. กาฬสินธุ์ | E126: 7 | F126: 1 | G126: 0 | H126: 0 | I126: 8
A127: 122 | B127: กาฬสินธุ์ | C127: 1546050207 | D127: เทศบาลตำบลนาทัน | E127: 3 | F127: 0 | G127: 0 | H127: 0 | I127: 3
A128: 123 | B128: กาฬสินธุ์ | C128: 1546050209 | D128: เทศบาลตำบลนิคม | E128: 84 | F128: 3 | G128: 0 | H128: 0 | I128: 87
A129: 124 | B129: กาฬสินธุ์ | C129: 1546050212 | D129: เทศบาลตำบลห้วยเม็ก | E129: 1 | F129: 0 | G129: 0 | H129: 0 | I129: 1
A130: 125 | B130: กาฬสินธุ์ | C130: 1546050224 | D130: เทศบาลตำบลหลุบ | E130: 4 | F130: 0 | G130: 1 | H130: 0 | I130: 5
A131: 126 | B131: กาฬสินธุ์ | C131: 1546050268 | D131: เทศบาลตำบลม่วงนา | E131: 227 | F131: 9 | G131: 6 | H131: 0 | I131: 242
A132: 127 | B132: กาฬสินธุ์ | C132: 1546050280 | D132: เทศบาลตำบลกุงเก่า | E132: 124 | F132: 1 | G132: 0 | H132: 0 | I132: 125
A133: 128 | B133: กาฬสินธุ์ | C133: 1546050291 | D133: เทศบาลตำบลนามะเขือ | E133: 173 | F133: 5 | G133: 1 | H133: 0 | I133: 179
A134: 129 | B134: กาฬสินธุ์ | C134: 1546050304 | D134: เทศบาลตำบลอุ่มเม่า | E134: 30 | F134: 0 | G134: 0 | H134: 0 | I134: 30
A135: 130 | B135: กาฬสินธุ์ | C135: 1546060229 | D135: องค์การบริหารส่วนตำบลยอดแกง | E135: 4 | F135: 1 | G135: 0 | H135: 0 | I135: 5
A136: 131 | B136: กาฬสินธุ์ | C136: 1546060232 | D136: องค์การบริหารส่วนตำบลหลักเหลี่ยม | E136: 107 | F136: 0 | G136: 0 | H136: 0 | I136: 107
A137: 132 | B137: กาฬสินธุ์ | C137: 1546060241 | D137: องค์การบริหารส่วนตำบลโนนสะอาด อ. ห้วยเม็ก จ. กาฬสินธุ์ | E137: 10 | F137: 0 | G137: 0 | H137: 0 | I137: 10
A138: 133 | B138: กาฬสินธุ์ | C138: 1546060242 | D138: องค์การบริหารส่วนตำบลหนองตอกแป้น | E138: 1 | F138: 0 | G138: 0 | H138: 0 | I138: 1
A139: 134 | B139: กาฬสินธุ์ | C139: 1546060253 | D139: องค์การบริหารส่วนตำบลโนนนาจาน | E139: 85 | F139: 0 | G139: 0 | H139: 0 | I139: 85
A140: 135 | B140: กาฬสินธุ์ | C140: 1546060270 | D140: องค์การบริหารส่วนตำบลนาคู อ. นาคู จ. กาฬสินธุ์ | E140: 237 | F140: 9 | G140: 0 | H140: 0 | I140: 246
A141: 136 | B141: กาฬสินธุ์ | C141: 1546060278 | D141: องค์การบริหารส่วนตำบลศรีสมเด็จ | E141: 17 | F141: 0 | G141: 0 | H141: 0 | I141: 17
A142: 137 | B142: กาฬสินธุ์ | C142: 1546060285 | D142: องค์การบริหารส่วนตำบลทุ่งคลอง | E142: 13 | F142: 0 | G142: 0 | H142: 0 | I142: 13
A143: 138 | B143: กาฬสินธุ์ | C143: 1546060286 | D143: องค์การบริหารส่วนตำบลโพน | E143: 207 | F143: 0 | G143: 0 | H143: 0 | I143: 207
A144: 139 | B144: กาฬสินธุ์ | C144: 1546060287 | D144: องค์การบริหารส่วนตำบลนาบอน อ. คำม่วง จ. กาฬสินธุ์ | E144: 212 | F144: 1 | G144: 1 | H144: 0 | I144: 214
A145: 140 | B145: กาฬสินธุ์ | C145: 1546060288 | D145: องค์การบริหารส่วนตำบลเนินยาง | E145: 232 | F145: 2 | G145: 1 | H145: 0 | I145: 235
A146: 141 | B146: กาฬสินธุ์ | C146: 1546060289 | D146: องค์การบริหารส่วนตำบลดินจี่ | E146: 12 | F146: 0 | G146: 0 | H146: 0 | I146: 12
A147: 142 | B147: กาฬสินธุ์ | C147: 1546060306 | D147: องค์การบริหารส่วนตำบลนาเชือก อ. ยางตลาด จ. กาฬสินธุ์ | E147: 8 | F147: 1 | G147: 0 | H147: 0 | I147: 9
A148: 143 | B148: กาฬสินธุ์ | C148: 1546060307 | D148: องค์การบริหารส่วนตำบลคลองขาม | E148: 2 | F148: 0 | G148: 0 | H148: 0 | I148: 2
A149: 144 | B149: กาฬสินธุ์ | C149: 1546060310 | D149: องค์การบริหารส่วนตำบลบัวขาว | E149: 117 | F149: 3 | G149: 1 | H149: 0 | I149: 121
A150: 145 | B150: ขอนแก่น | C150: 1540040424 | D150: เทศบาลเมืองบ้านไผ่ | E150: 1 | F150: 0 | G150: 0 | H150: 0 | I150: 1
A151: 146 | B151: ขอนแก่น | C151: 1540040434 | D151: เทศบาลเมืองกระนวน | E151: 235 | F151: 6 | G151: 3 | H151: 1 | I151: 245
A152: 147 | B152: ขอนแก่น | C152: 1540040458 | D152: เทศบาลเมืองบ้านทุ่ม | E152: 2 | F152: 0 | G152: 0 | H152: 0 | I152: 2
A153: 148 | B153: ขอนแก่น | C153: 1540040598 | D153: เทศบาลเมืองศิลา | E153: 0 | F153: 1 | G153: 0 | H153: 0 | I153: 1
A154: 149 | B154: ขอนแก่น | C154: 1540050428 | D154: เทศบาลตำบลดอนโมง | E154: 8 | F154: 1 | G154: 1 | H154: 0 | I154: 10
A155: 150 | B155: ขอนแก่น | C155: 1540050429 | D155: เทศบาลตำบลม่วงหวาน | E155: 3 | F155: 0 | G155: 0 | H155: 0 | I155: 3
A156: 151 | B156: ขอนแก่น | C156: 1540050440 | D156: เทศบาลตำบลเขาสวนกวาง | E156: 6 | F156: 0 | G156: 0 | H156: 0 | I156: 6
A157: 152 | B157: ขอนแก่น | C157: 1540050441 | D157: เทศบาลตำบลภูเวียง | E157: 4 | F157: 0 | G157: 0 | H157: 0 | I157: 4
A158: 153 | B158: ขอนแก่น | C158: 1540050449 | D158: เทศบาลตำบลนาจาน อ. สีชมพู จ. ขอนแก่น | E158: 177 | F158: 3 | G158: 11 | H158: 1 | I158: 192
A159: 154 | B159: ขอนแก่น | C159: 1540050450 | D159: เทศบาลตำบลวังเพิ่ม | E159: 1 | F159: 0 | G159: 0 | H159: 0 | I159: 1
A160: 155 | B160: ขอนแก่น | C160: 1540050451 | D160: เทศบาลตำบลโคกสูงสัมพันธ์ | E160: 23 | F160: 1 | G160: 0 | H160: 0 | I160: 24
A161: 156 | B161: ขอนแก่น | C161: 1540050470 | D161: เทศบาลตำบลโคกงาม | E161: 79 | F161: 0 | G161: 0 | H161: 0 | I161: 79
A162: 157 | B162: ขอนแก่น | C162: 1540050472 | D162: เทศบาลตำบลป่ามะนาว | E162: 123 | F162: 5 | G162: 2 | H162: 0 | I162: 130
A163: 158 | B163: ขอนแก่น | C163: 1540050632 | D163: เทศบาลตำบลหนองโน | E163: 214 | F163: 1 | G163: 4 | H163: 1 | I163: 220
A164: 159 | B164: ขอนแก่น | C164: 1540050633 | D164: เทศบาลตำบลน้ำอ้อม | E164: 169 | F164: 4 | G164: 1 | H164: 3 | I164: 177
A165: 160 | B165: ขอนแก่น | C165: 1540050635 | D165: เทศบาลตำบลห้วยยาง อ. กระนวน จ. ขอนแก่น | E165: 158 | F165: 5 | G165: 1 | H165: 3 | I165: 167
A166: 161 | B166: ขอนแก่น | C166: 1540050638 | D166: เทศบาลตำบลสะอาด | E166: 282 | F166: 7 | G166: 0 | H166: 1 | I166: 290
A167: 162 | B167: ขอนแก่น | C167: 1540050642 | D167: เทศบาลตำบลโนนทอง อ. หนองเรือ จ. ขอนแก่น | E167: 22 | F167: 1 | G167: 2 | H167: 1 | I167: 26
A168: 163 | B168: ขอนแก่น | C168: 1540050644 | D168: เทศบาลตำบลบ้านผือ อ. หนองเรือ จ. ขอนแก่น | E168: 2 | F168: 0 | G168: 0 | H168: 0 | I168: 2
A169: 164 | B169: ขอนแก่น | C169: 1540050645 | D169: เทศบาลตำบลโนนสะอาด อ. หนองเรือ จ. ขอนแก่น | E169: 175 | F169: 0 | G169: 2 | H169: 1 | I169: 178
A170: 165 | B170: ขอนแก่น | C170: 1540060473 | D170: องค์การบริหารส่วนตำบลบ้านเหล่า อ. บ้านฝาง จ. ขอนแก่น | E170: 176 | F170: 1 | G170: 0 | H170: 0 | I170: 177
A171: 166 | B171: ขอนแก่น | C171: 1540060480 | D171: องค์การบริหารส่วนตำบลท่ากระเสริม | E171: 37 | F171: 0 | G171: 1 | H171: 1 | I171: 39
A172: 167 | B172: ขอนแก่น | C172: 1540060503 | D172: องค์การบริหารส่วนตำบลแดงใหญ่ อ. เมืองขอนแก่น จ. ขอนแก่น | E172: 39 | F172: 1 | G172: 0 | H172: 0 | I172: 40
A173: 168 | B173: ขอนแก่น | C173: 1540060510 | D173: องค์การบริหารส่วนตำบลบ้านใหม่ อ. สีชมพู จ. ขอนแก่น | E173: 1 | F173: 0 | G173: 0 | H173: 0 | I173: 1
A174: 169 | B174: ขอนแก่น | C174: 1540060526 | D174: องค์การบริหารส่วนตำบลห้วยม่วง อ. ภูผาม่าน จ. ขอนแก่น | E174: 1 | F174: 0 | G174: 0 | H174: 0 | I174: 1
A175: 170 | B175: ขอนแก่น | C175: 1540060528 | D175: องค์การบริหารส่วนตำบลนาฝาย อ. ภูผาม่าน จ. ขอนแก่น | E175: 85 | F175: 0 | G175: 1 | H175: 0 | I175: 86
A176: 171 | B176: ขอนแก่น | C176: 1540060533 | D176: องค์การบริหารส่วนตำบลศรีบุญเรือง อ. ชนบท จ. ขอนแก่น | E176: 1 | F176: 0 | G176: 0 | H176: 0 | I176: 1
A177: 172 | B177: ขอนแก่น | C177: 1540060534 | D177: องค์การบริหารส่วนตำบลโนนพะยอม | E177: 210 | F177: 3 | G177: 0 | H177: 0 | I177: 213
A178: 173 | B178: ขอนแก่น | C178: 1540060557 | D178: องค์การบริหารส่วนตำบลดอนฉิม | E178: 127 | F178: 5 | G178: 0 | H178: 4 | I178: 136
A179: 174 | B179: ขอนแก่น | C179: 1540060563 | D179: องค์การบริหารส่วนตำบลเก่างิ้ว | E179: 98 | F179: 0 | G179: 2 | H179: 0 | I179: 100
A180: 175 | B180: ขอนแก่น | C180: 1540060566 | D180: องค์การบริหารส่วนตำบลโคกสง่า | E180: 224 | F180: 7 | G180: 1 | H180: 0 | I180: 232
A181: 176 | B181: ขอนแก่น | C181: 1540060568 | D181: องค์การบริหารส่วนตำบลลอมคอม | E181: 270 | F181: 2 | G181: 2 | H181: 1 | I181: 275
A182: 177 | B182: ขอนแก่น | C182: 1540060571 | D182: องค์การบริหารส่วนตำบลหัวทุ่ง อ. พล จ. ขอนแก่น | E182: 167 | F182: 3 | G182: 0 | H182: 0 | I182: 170
A183: 178 | B183: ขอนแก่น | C183: 1540060579 | D183: องค์การบริหารส่วนตำบลหนองน้ำใส อ. บ้านไผ่ จ. ขอนแก่น | E183: 1 | F183: 0 | G183: 0 | H183: 0 | I183: 1
A184: 179 | B184: ขอนแก่น | C184: 1540060586 | D184: องค์การบริหารส่วนตำบลศรีสุขสำราญ | E184: 62 | F184: 2 | G184: 0 | H184: 0 | I184: 64
A185: 180 | B185: ขอนแก่น | C185: 1540060587 | D185: องค์การบริหารส่วนตำบลทุ่งโป่ง | E185: 41 | F185: 0 | G185: 0 | H185: 0 | I185: 41
A186: 181 | B186: ขอนแก่น | C186: 1540060615 | D186: องค์การบริหารส่วนตำบลคำม่วง | E186: 96 | F186: 4 | G186: 2 | H186: 2 | I186: 104
A187: 182 | B187: ขอนแก่น | C187: 1540060619 | D187: องค์การบริหารส่วนตำบลนาหว้า อ. ภูเวียง จ. ขอนแก่น | E187: 1 | F187: 0 | G187: 0 | H187: 0 | I187: 1
A188: 183 | B188: ขอนแก่น | C188: 1540060623 | D188: องค์การบริหารส่วนตำบลท่านางแนว | E188: 2 | F188: 0 | G188: 0 | H188: 0 | I188: 2
A189: 184 | B189: ขอนแก่น | C189: 1540060627 | D189: องค์การบริหารส่วนตำบลหนองโก อ. กระนวน จ. ขอนแก่น | E189: 340 | F189: 17 | G189: 5 | H189: 0 | I189: 362
A190: 185 | B190: ขอนแก่น | C190: 1540060630 | D190: องค์การบริหารส่วนตำบลบ้านฝาง อ. กระนวน จ. ขอนแก่น | E190: 363 | F190: 7 | G190: 1 | H190: 0 | I190: 371
A191: 186 | B191: ขอนแก่น | C191: 1540060631 | D191: องค์การบริหารส่วนตำบลดูนสาด | E191: 268 | F191: 2 | G191: 0 | H191: 2 | I191: 272
A192: 187 | B192: ขอนแก่น | C192: 1540060634 | D192: องค์การบริหารส่วนตำบลหัวนาคำ | E192: 93 | F192: 1 | G192: 0 | H192: 0 | I192: 94
A193: 188 | B193: ชัยภูมิ | C193: 1536050993 | D193: เทศบาลตำบลคอนสวรรค์ | E193: 172 | F193: 2 | G193: 1 | H193: 0 | I193: 175 | N193: 2
A194: 189 | B194: ชัยภูมิ | C194: 1536051002 | D194: เทศบาลตำบลเทพสถิต | E194: 49 | F194: 1 | G194: 0 | H194: 0 | I194: 50
A195: 190 | B195: ชัยภูมิ | C195: 1536051012 | D195: เทศบาลตำบลแก้งคร้อ | E195: 1 | F195: 0 | G195: 0 | H195: 0 | I195: 1
A196: 191 | B196: ชัยภูมิ | C196: 1536051013 | D196: เทศบาลตำบลนาหนองทุ่ม อ. แก้งคร้อ จ. ชัยภูมิ | E196: 2 | F196: 0 | G196: 0 | H196: 0 | I196: 2
A197: 192 | B197: ชัยภูมิ | C197: 1536051014 | D197: เทศบาลตำบลหนองสังข์ | E197: 4 | F197: 0 | G197: 0 | H197: 0 | I197: 4
A198: 193 | B198: ชัยภูมิ | C198: 1536051037 | D198: เทศบาลตำบลโคกสูง อ. เมืองชัยภูมิ จ. ชัยภูมิ | E198: 6 | F198: 1 | G198: 0 | H198: 0 | I198: 7
A199: 194 | B199: ชัยภูมิ | C199: 1536061017 | D199: องค์การบริหารส่วนตำบลห้วยไร่ อ. คอนสวรรค์ จ. ชัยภูมิ | E199: 148 | F199: 0 | G199: 0 | H199: 0 | I199: 148
A200: 195 | B200: ชัยภูมิ | C200: 1536061042 | D200: องค์การบริหารส่วนตำบลบ้านเป้า อ. เกษตรสมบูรณ์ จ. ชัยภูมิ | E200: 79 | F200: 10 | G200: 0 | H200: 0 | I200: 89
A201: 196 | B201: ชัยภูมิ | C201: 1536061049 | D201: องค์การบริหารส่วนตำบลโนนกอก | E201: 482 | F201: 13 | G201: 4 | H201: 0 | I201: 499
... 517 more rows

Sheet 1.1 มีรายการนำเงินส่งคืน บก. บา
A2: รายละเอียดการตรวจสอบรายงานผลการจ่ายเงินโครงการกระตุ้นเศรษฐกิจ ปี 2567 ผ่านคนพิการ ขององค์กรปกครองส่วนท้องถิ่น กรณีการจ่ายเป็นเงินสด
A3: 1.1 มีรายการนำเงินส่งคืน บก. บางส่วน ตามหนังสือที่ กค 0402.2/ว 151
A5: ลำดับ | B5: ชื่อจังหวัด | C5: รหัสหน่วยงาน | D5: ชื่อหน่วยงาน | E5: รายงาน บก. จ่ายเงิน (คน) | J5: รายงาน สถ. จ่ายเงิน (คน) | M5: ผลต่างรายงานของ | N5: จำนวนคน
E6: ครั้งที่ 1 | F6: ครั้งที่ 2 | G6: ครั้งที่ 3 | H6: ครั้งที่ 4 | I6: รวม | J6: จ่ายสำเร็จ | K6: จ่ายไม่สำเร็จ | L6: รวม | M6: บก. - สถ. (คน) | N6: คืนแล้ว | O6: ยังไม่คืน | P6: คืนไม่ครบ
A7: 1 | B7: เชียงใหม่ | C7: 1550051383 | D7: เทศบาลตำบลสะเมิงใต้ | E7: 120 | F7: 1 | G7: 1 | H7: 0 | I7: 122 | N7: 1
A8: 2 | B8: เชียงใหม่ | C8: 1550061420 | D8: องค์การบริหารส่วนตำบลบ้านเป้า อ. แม่แตง จ. เชียงใหม่ | E8: 68 | F8: 2 | G8: 0 | H8: 0 | I8: 70 | N8: 1
A9: 3 | B9: เลย | C9: 1542065443 | D9: องค์การบริหารส่วนตำบลจอมศรี อ. เชียงคาน จ. เลย | E9: 83 | F9: 0 | G9: 0 | H9: 0 | I9: 83 | N9: 1
A10: 4 | B10: เลย | C10: 1542065453 | D10: องค์การบริหารส่วนตำบลปลาบ่า | E10: 140 | F10: 1 | G10: 1 | H10: 0 | I10: 142 | N10: 1
A11: 5 | B11: เลย | C11: 1542065483 | D11: องค์การบริหารส่วนตำบลผาสามยอด | E11: 87 | F11: 3 | G11: 1 | H11: 0 | I11: 91 | N11: 1
A12: 6 | B12: แพร่ | C12: 1554064258 | D12: องค์การบริหารส่วนตำบลบ้านกลาง อ. สอง จ. แพร่ | E12: 13 | F12: 0 | G12: 0 | H12: 0 | I12: 13 | N12: 1
A13: 7 | B13: ชัยภูมิ | C13: 1536050993 | D13: เทศบาลตำบลคอนสวรรค์ | E13: 172 | F13: 2 | G13: 1 | H13: 0 | I13: 175 | N13: 2
A14: 8 | B14: นราธิวาส | C14: 1596062764 | D14: องค์การบริหารส่วนตำบลลุโบะบือซา | E14: 186 | F14: 0 | G14: 0 | H14: 0 | I14: 186 | N14: 2
A15: 9 | B15: บุรีรัมย์ | C15: 1531063006 | D15: องค์การบริหารส่วนตำบลโคกมะม่วง | E15: 276 | F15: 0 | G15: 0 | H15: 0 | I15: 276 | N15: 4
A16: 10 | B16: บุรีรัมย์ | C16: 1531063011 | D16: องค์การบริหารส่วนตำบลหนองกระทิง | E16: 259 | F16: 0 | G16: 1 | H16: 0 | I16: 260 | N16: 2
A17: 11 | B17: บุรีรัมย์ | C17: 1531063037 | D17: องค์การบริหารส่วนตำบลปะเคียบ | E17: 360 | F17: 0 | G17: 0 | H17: 0 | I17: 360 | N17: 1
A18: 12 | B18: บุรีรัมย์ | C18: 1531063041 | D18: องค์การบริหารส่วนตำบลตูมใหญ่ | E18: 516 | F18: 1 | G18: 0 | H18: 0 | I18: 517 | N18: 2
A19: 13 | B19: พิษณุโลก | C19: 1565063920 | D19: องค์การบริหารส่วนตำบลจอมทอง | E19: 68 | F19: 1 | G19: 0 | H19: 1 | I19: 70 | N19: 1
A20: 14 | B20: พิษณุโลก | C20: 1565063957 | D20: องค์การบริหารส่วนตำบลแม่ระกา | E20: 193 | F20: 2 | G20: 1 | H20: 0 | I20: 196 | N20: 1
A21: 15 | B21: พิษณุโลก | C21: 1565063958 | D21: องค์การบริหารส่วนตำบลบ้านกลาง อ. วังทอง จ. พิษณุโลก | E21: 393 | F21: 0 | G21: 0 | H21: 0 | I21: 393 | N21: 1
A22: 16 | B22: พิษณุโลก | C22: 1565063962 | D22: องค์การบริหารส่วนตำบลวังนกแอ่น | E22: 327 | F22: 0 | G22: 0 | H22: 0 | I22: 327 | N22: 1
A23: 17 | B23: มหาสารคาม | C23: 1544064439 | D23: องค์การบริหารส่วนตำบลหนองบัว อ. พยัคฆภูมิพิสัย จ. มหาสารคาม | E23: 119 | F23: 9 | G23: 1 | H23: 0 | I23: 129 | N23: 1
A24: 18 | B24: ลำพูน | C24: 1551055369 | D24: เทศบาลตำบลทาปลาดุก | E24: 203 | F24: 5 | G24: 0 | H24: 0 | I24: 208 | N24: 1
A25: 19 | B25: สมุทรสาคร | C25: 1574066151 | D25: องค์การบริหารส่วนตำบลบางโทรัด | E25: 1 | F25: 0 | G25: 0 | H25: 0 | I25: 1 | N25: 1
A26: 20 | B26: สระแก้ว | C26: 1527066207 | D26: องค์การบริหารส่วนตำบลหนองหมากฝ้าย | E26: 220 | F26: 2 | G26: 0 | H26: 0 | I26: 222 | N26: 1
A27: 21 | B27: สระแก้ว | C27: 1527066220 | D27: องค์การบริหารส่วนตำบลบ้านแก้ง อ. เมืองสระแก้ว จ. สระแก้ว | E27: 274 | F27: 8 | G27: 1 | H27: 1 | I27: 284 | N27: 1
A28: 22 | B28: สุรินทร์ | C28: 1532066823 | D28: องค์การบริหารส่วนตำบลระแงง | E28: 154 | F28: 1 | G28: 0 | H28: 0 | I28: 155 | N28: 1
A29: 23 | B29: สุรินทร์ | C29: 1532066827 | D29: องค์การบริหารส่วนตำบลแตล | E29: 310 | F29: 16 | G29: 12 | H29: 2 | I29: 340 | N29: 1
A30: 24 | B30: หนองบัวลำภู | C30: 1539067043 | D30: องค์การบริหารส่วนตำบลบ้านพร้าว อ. เมืองหนองบัวลำภู จ. หนองบัวลำภู | E30: 360 | F30: 5 | G30: 1 | H30: 0 | I30: 366 | N30: 1
A31: 25 | B31: หนองบัวลำภู | C31: 1539067047 | D31: องค์การบริหารส่วนตำบลนาสี | E31: 0 | F31: 1 | G31: 0 | H31: 0 | I31: 1 | N31: 1
A32: 26 | B32: หนองบัวลำภู | C32: 1539067088 | D32: องค์การบริหารส่วนตำบลกุดจิก อ. เมืองหนองบัวลำภู จ. หนองบัวลำภู | E32: 105 | F32: 1 | G32: 0 | H32: 0 | I32: 106 | N32: 1
A33: 27 | B33: อุดรธานี | C33: 1541057253 | D33: เทศบาลตำบลภูผาแดง อ. หนองวัวซอ จ. อุดรธานี | E33: 133 | F33: 2 | G33: 5 | H33: 1 | I33: 141 | N33: 1
A34: รวมจำนวน | E34: =SUM(E7:E33) -> 5,140 | F34: =SUM(F7:F33) -> 63 | G34: =SUM(G7:G33) -> 26 | H34: 5 | I34: 5,234 | J34: 0 | K34: 0 | L34: 0 | M34: 0 | N34: 34 | O34: 0 | P34: 0

Sheet 1.2 ไม่พบรายการนำเงินส่งคืน บก.
A1: รายละเอียดการตรวจสอบรายงานผลการจ่ายเงินโครงการกระตุ้นเศรษฐกิจ ปี 2567 ผ่านคนพิการ ขององค์กรปกครองส่วนท้องถิ่น กรณีการจ่ายเป็นเงินสด
A2: 1.2 ไม่พบรายการนำเงินส่งคืน บก. ตามหนังสือที่ กค 0402.2/ว 151
A3: ลำดับ | B3: ชื่อจังหวัด | C3: รหัสหน่วยงาน | D3: ชื่อหน่วยงาน | E3: รายงาน บก. จ่ายเงิน (คน) | J3: รายงาน สถ. จ่ายเงิน (คน) | M3: ผลต่างรายงานของ | N3: จำนวนคน
E4: ครั้งที่ 1 | F4: ครั้งที่ 2 | G4: ครั้งที่ 3 | H4: ครั้งที่ 4 | I4: รวม | J4: จ่ายสำเร็จ | K4: จ่ายไม่สำเร็จ | L4: รวม | M4: บก. - สถ. (คน) | N4: คืนแล้ว | O4: ยังไม่คืน | P4: คืนไม่ครบ
A5: 1 | B5: เชียงใหม่ | C5: 1550051357 | D5: เทศบาลตำบลป่าแดด อ. เมืองเชียงใหม่ จ. เชียงใหม่ | E5: 2 | F5: 0 | G5: 0 | H5: 0 | I5: 2
A6: 2 | B6: เชียงใหม่ | C6: 1550051384 | D6: เทศบาลตำบลแม่ริม | E6: 4 | F6: 0 | G6: 0 | H6: 0 | I6: 4
A7: 3 | B7: เชียงใหม่ | C7: 1550051385 | D7: เทศบาลตำบลสันมหาพน | E7: 33 | F7: 0 | G7: 0 | H7: 0 | I7: 33
A8: 4 | B8: เชียงใหม่ | C8: 1550051397 | D8: เทศบาลตำบลแม่ปั๋ง | E8: 13 | F8: 0 | G8: 0 | H8: 0 | I8: 13
A9: 5 | B9: เชียงใหม่ | C9: 1550051399 | D9: เทศบาลตำบลแม่วาง | E9: 4 | F9: 0 | G9: 0 | H9: 0 | I9: 4
A10: 6 | B10: เชียงใหม่ | C10: 1550051400 | D10: เทศบาลตำบลไชยปราการ | E10: 33 | F10: 3 | G10: 0 | H10: 0 | I10: 36
A11: 7 | B11: เชียงใหม่ | C11: 1550051411 | D11: เทศบาลตำบลหนองป่าครั่ง | E11: 1 | F11: 0 | G11: 0 | H11: 0 | I11: 1
A12: 8 | B12: เชียงใหม่ | C12: 1550051446 | D12: เทศบาลตำบลสองแคว | E12: 126 | F12: 0 | G12: 0 | H12: 0 | I12: 126
A13: 9 | B13: เชียงใหม่ | C13: 1550051447 | D13: เทศบาลตำบลยางคราม | E13: 210 | F13: 2 | G13: 0 | H13: 0 | I13: 212
A14: 10 | B14: เชียงใหม่ | C14: 1550051448 | D14: เทศบาลตำบลสันติสุข | E14: 129 | F14: 0 | G14: 0 | H14: 0 | I14: 129
A15: 11 | B15: เชียงใหม่ | C15: 1550051471 | D15: เทศบาลตำบลสันทรายมหาวงศ์ | E15: 218 | F15: 0 | G15: 2 | H15: 0 | I15: 220
A16: 12 | B16: เชียงใหม่ | C16: 1550051514 | D16: เทศบาลตำบลป่าไหน่ | E16: 30 | F16: 0 | G16: 0 | H16: 0 | I16: 30
A17: 13 | B17: เชียงใหม่ | C17: 1550051517 | D17: เทศบาลตำบลน้ำแพร่ | E17: 140 | F17: 0 | G17: 1 | H17: 0 | I17: 141
A18: 14 | B18: เชียงใหม่ | C18: 1550051559 | D18: เทศบาลตำบลท่าผา อ. แม่แจ่ม จ. เชียงใหม่ | E18: 89 | F18: 0 | G18: 0 | H18: 0 | I18: 89
A19: 15 | B19: เชียงใหม่ | C19: 1550061425 | D19: องค์การบริหารส่วนตำบลกื๊ดช้าง | E19: 53 | F19: 0 | G19: 1 | H19: 0 | I19: 54
A20: 16 | B20: เชียงใหม่ | C20: 1550061441 | D20: องค์การบริหารส่วนตำบลบ้านกลาง อ. สันป่าตอง จ. เชียงใหม่ | E20: 20 | F20: 0 | G20: 0 | H20: 0 | I20: 20
A21: 17 | B21: เชียงใหม่ | C21: 1550061455 | D21: องค์การบริหารส่วนตำบลบ้านกาด | E21: 42 | F21: 0 | G21: 0 | H21: 0 | I21: 42
A22: 18 | B22: เชียงใหม่ | C22: 1550061456 | D22: องค์การบริหารส่วนตำบลทุ่งปี้ | E22: 214 | F22: 0 | G22: 1 | H22: 0 | I22: 215
A23: 19 | B23: เชียงใหม่ | C23: 1550061457 | D23: องค์การบริหารส่วนตำบลทุ่งรวงทอง | E23: 55 | F23: 1 | G23: 0 | H23: 0 | I23: 56
A24: 20 | B24: เชียงใหม่ | C24: 1550061478 | D24: องค์การบริหารส่วนตำบลนาเกียน | E24: 1 | F24: 0 | G24: 0 | H24: 1 | I24: 2
A25: 21 | B25: เชียงใหม่ | C25: 1550061504 | D25: องค์การบริหารส่วนตำบลสันกำแพง | E25: 36 | F25: 0 | G25: 0 | H25: 0 | I25: 36
A26: 22 | B26: เชียงใหม่ | C26: 1550061518 | D26: องค์การบริหารส่วนตำบลเขื่อนผาก | E26: 82 | F26: 1 | G26: 0 | H26: 0 | I26: 83
A27: 23 | B27: เชียงใหม่ | C27: 1550061522 | D27: องค์การบริหารส่วนตำบลยั้งเมิน | E27: 166 | F27: 0 | G27: 0 | H27: 0 | I27: 166
A28: 24 | B28: เชียงใหม่ | C28: 1550061528 | D28: องค์การบริหารส่วนตำบลม่อนปิ่น | E28: 60 | F28: 0 | G28: 0 | H28: 0 | I28: 60
A29: 25 | B29: เชียงใหม่ | C29: 1550061529 | D29: องค์การบริหารส่วนตำบลแม่งอน | E29: 125 | F29: 0 | G29: 0 | H29: 0 | I29: 125
A30: 26 | B30: เชียงใหม่ | C30: 1550061532 | D30: องค์การบริหารส่วนตำบลแม่คะ | E30: 105 | F30: 2 | G30: 2 | H30: 0 | I30: 109
A31: 27 | B31: เชียงราย | C31: 1557051222 | D31: เทศบาลตำบลบ้านต้า | E31: 2 | F31: 0 | G31: 0 | H31: 0 | I31: 2
A32: 28 | B32: เชียงราย | C32: 1557051245 | D32: เทศบาลตำบลป่าซาง อ. แม่จัน จ. เชียงราย | E32: 8 | F32: 0 | G32: 0 | H32: 0 | I32: 8
A33: 29 | B33: เชียงราย | C33: 1557051254 | D33: เทศบาลตำบลสันทรายงาม | E33: 11 | F33: 0 | G33: 0 | H33: 0 | I33: 11
A34: 30 | B34: เชียงราย | C34: 1557051296 | E34: =SUM(E7:E33) -> 2006 | F34: =SUM(F7:F33) -> 9 | G34: =SUM(G7:G33) -> 7 | H34: 1 | I34: 2023 | J34: 0 | K34: 0 | L34: 0 | M34: 0 | N34: 0 | O34: 0 | P34: 0
A35: 31 | B35: เชียงราย | C35: 1557051323 | D35: เทศบาลตำบลห้วยซ้อ | E35: 3 | F35: 1 | G35: 0 | H35: 0 | I35: 4
A36: 32 | B36: เชียงราย | C36: 1557051326 | D36: เทศบาลตำบลป่างิ้ว | E36: 242 | F36: 1 | G36: 3 | H36: 0 | I36: 246
A37: 33 | B37: เชียงราย | C37: 1557051338 | D37: เทศบาลตำบลสันมะค่า | E37: 63 | F37: 0 | G37: 0 | H37: 0 | I37: 63
A38: 34 | B38: เชียงราย | C38: 1557051339 | D38: เทศบาลตำบลโรงช้าง อ. ป่าแดด จ. เชียงราย | E38: 161 | F38: 1 | G38: 0 | H38: 0 | I38: 162
A39: 35 | B39: เชียงราย | C39: 1557051350 | D39: เทศบาลตำบลดอยลาน | E39: 201 | F39: 2 | G39: 0 | H39: 0 | I39: 203
A40: 36 | B40: เชียงราย | C40: 1557061269 | D40: องค์การบริหารส่วนตำบลป่าก่อดำ | E40: 8 | F40: 1 | G40: 0 | H40: 0 | I40: 9
A41: 37 | B41: เชียงราย | C41: 1557061281 | D41: องค์การบริหารส่วนตำบลแม่สลองนอก | E41: 45 | F41: 0 | G41: 0 | H41: 0 | I41: 45
A42: 38 | B42: เชียงราย | C42: 1557061282 | D42: องค์การบริหารส่วนตำบลแม่ฟ้าหลวง | E42: 112 | F42: 0 | G42: 0 | H42: 0 | I42: 112
A43: 39 | B43: เชียงราย | C43: 1557061291 | D43: องค์การบริหารส่วนตำบลหนองป่าก่อ | E43: 43 | F43: 0 | G43: 0 | H43: 0 | I43: 43
A44: 40 | B44: เชียงราย | C44: 1557061297 | D44: องค์การบริหารส่วนตำบลป่าแดด | E44: 25 | F44: 0 | G44: 0 | H44: 0 | I44: 25
A45: 41 | B45: เชียงราย | C45: 1557061302 | D45: องค์การบริหารส่วนตำบลแม่พริก อ. แม่สรวย จ. เชียงราย | E45: 186 | F45: 2 | G45: 1 | H45: 0 | I45: 189
A46: 42 | B46: เชียงราย | C46: 1557061308 | D46: องค์การบริหารส่วนตำบลหัวง้ม | E46: 123 | F46: 0 | G46: 0 | H46: 0 | I46: 123
A47: 43 | B47: เชียงราย | C47: 1557061319 | D47: องค์การบริหารส่วนตำบลแม่เย็น | E47: 9 | F47: 0 | G47: 0 | H47: 0 | I47: 9
A48: 44 | B48: เชียงราย | C48: 1557061324 | D48: องค์การบริหารส่วนตำบลสันสลี | E48: 188 | F48: 3 | G48: 2 | H48: 0 | I48: 193
A49: 45 | B49: เชียงราย | C49: 1557061330 | D49: องค์การบริหารส่วนตำบลแม่เจดีย์ | E49: 3 | F49: 0 | G49: 0 | H49: 0 | I49: 3
A50: 46 | B50: เชียงราย | C50: 1557061333 | D50: องค์การบริหารส่วนตำบลโป่งผา | E50: 119 | F50: 1 | G50: 0 | H50: 0 | I50: 120
A51: 47 | B51: เชียงราย | C51: 1557061346 | D51: องค์การบริหารส่วนตำบลตับเต่า | E51: 246 | F51: 1 | G51: 0 | H51: 0 | I51: 247
A52: 48 | B52: เลย | C52: 1542055402 | D52: เทศบาลตำบลน้ำสวย | E52: 123 | F52: 3 | G52: 0 | H52: 0 | I52: 126
A53: 49 | B53: เลย | C53: 1542055403 | D53: เทศบาลตำบลนาดินดำ | E53: 1 | F53: 0 | G53: 0 | H53: 0 | I53: 1
A54: 50 | B54: เลย | C54: 1542055408 | D54: เทศบาลตำบลนาดอกคำ | E54: 157 | F54: 2 | G54: 0 | H54: 0 | I54: 159
A55: 51 | B55: เลย | C55: 1542055410 | D55: เทศบาลตำบลโนนปอแดง | E55: 1 | F55: 0 | G55: 0 | H55: 0 | I55: 1
A56: 52 | B56: เลย | C56: 1542055412 | D56: เทศบาลตำบลภูเรือ | E56: 1 | F56: 0 | G56: 0 | H56: 0 | I56: 1
A57: 53 | B57: เลย | C57: 1542055414 | D57: เทศบาลตำบลเชียงคาน | E57: 1 | F57: 0 | G57: 0 | H57: 0 | I57: 1
A58: 54 | B58: เลย | C58: 1542055416 | D58: เทศบาลตำบลเขาแก้ว | E58: 69 | F58: 1 | G58: 0 | H58: 0 | I58: 70
A59: 55 | B59: เลย | C59: 1542055417 | D59: เทศบาลตำบลนาด้วง | E59: 5 | F59: 0 | G59: 0 | H59: 0 | I59: 5
A60: 56 | B60: เลย | C60: 1542055418 | D60: เทศบาลตำบลหนองหิน อ. หนองหิน จ. เลย | E60: 7 | F60: 0 | G60: 0 | H60: 0 | I60: 7
A61: 57 | B61: เลย | C61: 1542055420 | D61: เทศบาลตำบลภูกระดึง | E61: 50 | F61: 1 | G61: 1 | H61: 0 | I61: 52
A62: 58 | B62: เลย | C62: 1542055423 | D62: เทศบาลตำบลนาอ้อ | E62: 147 | F62: 1 | G62: 0 | H62: 0 | I62: 148
A63: 59 | B63: เลย | C63: 1542055452 | D63: เทศบาลตำบลร่องจิก | E63: 2 | F63: 0 | G63: 0 | H63: 0 | I63: 2
A64: 60 | B64: เลย | C64: 1542065426 | D64: องค์การบริหารส่วนตำบลกกดู่ | E64: 7 | F64: 0 | G64: 0 | H64: 0 | I64: 7
A65: 61 | B65: เลย | C65: 1542065427 | D65: องค์การบริหารส่วนตำบลนาพึง | E65: 131 | F65: 2 | G65: 0 | H65: 0 | I65: 133
A66: 62 | B66: เลย | C66: 1542065428 | D66: องค์การบริหารส่วนตำบลนามาลา | E66: 144 | F66: 2 | G66: 2 | H66: 0 | I66: 148
A67: 63 | B67: เลย | C67: 1542065429 | D67: องค์การบริหารส่วนตำบลเหล่ากอหก | E67: 104 | F67: 1 | G67: 1 | H67: 0 | I67: 106
A68: 64 | B68: เลย | C68: 1542065430 | D68: องค์การบริหารส่วนตำบลนครหงษ์ | E68: 145 | F68: 5 | G68: 1 | H68: 0 | I68: 151
A69: 65 | B69: เลย | C69: 1542065432 | D69: องค์การบริหารส่วนตำบลหาดคัมภีร์ | E69: 60 | F69: 0 | G69: 0 | H69: 0 | I69: 60
A70: 66 | B70: เลย | C70: 1542065437 | D70: องค์การบริหารส่วนตำบลวังยาว อ. ด่านซ้าย จ. เลย | E70: 181 | F70: 1 | G70: 1 | H70: 0 | I70: 183
A71: 67 | B71: เลย | C71: 1542065446 | D71: องค์การบริหารส่วนตำบลเขาหลวง | E71: 2 | F71: 1 | G71: 0 | H71: 1 | I71: 4
A72: 68 | B72: เลย | C72: 1542065450 | D72: องค์การบริหารส่วนตำบลหนองบัว อ. ภูเรือ จ. เลย | E72: 21 | F72: 0 | G72: 0 | H72: 0 | I72: 21
A73: 69 | B73: เลย | C73: 1542065451 | D73: องค์การบริหารส่วนตำบลท่าศาลา อ. ภูเรือ จ. เลย | E73: 275 | F73: 2 | G73: 1 | H73: 0 | I73: 278
A74: 70 | B74: เลย | C74: 1542065454 | D74: องค์การบริหารส่วนตำบลปวนพุ | E74: 623 | F74: 16 | G74: 0 | H74: 0 | I74: 639
A75: 71 | B75: เลย | C75: 1542065460 | D75: องค์การบริหารส่วนตำบลภูหอ | E75: 303 | F75: 1 | G75: 0 | H75: 0 | I75: 304
A76: 72 | B76: เลย | C76: 1542065461 | D76: องค์การบริหารส่วนตำบลหนองคัน | E76: 222 | F76: 1 | G76: 0 | H76: 0 | I76: 223
A77: 73 | B77: เลย | C77: 1542065462 | D77: องค์การบริหารส่วนตำบลห้วยสีเสียด | E77: 297 | F77: 2 | G77: 1 | H77: 0 | I77: 300
A78: 74 | B78: เลย | C78: 1542065463 | D78: องค์การบริหารส่วนตำบลแก่งศรีภูมิ | E78: 166 | F78: 1 | G78: 0 | H78: 0 | I78: 167
A79: 75 | B79: เลย | C79: 1542065464 | D79: องค์การบริหารส่วนตำบลเลยวังไสย์ | E79: 57 | F79: 0 | G79: 0 | H79: 0 | I79: 57
A80: 76 | B80: เลย | C80: 1542065466 | D80: องค์การบริหารส่วนตำบลทรายขาว อ. วังสะพุง จ. เลย | E80: 1 | F80: 0 | G80: 0 | H80: 0 | I80: 1
A81: 77 | B81: เลย | C81: 1542065470 | D81: องค์การบริหารส่วนตำบลสานตม | E81: 123 | F81: 2 | G81: 1 | H81: 0 | I81: 126
A82: 78 | B82: เลย | C82: 1542065473 | D82: องค์การบริหารส่วนตำบลปากหมัน | E82: 86 | F82: 0 | G82: 0 | H82: 0 | I82: 86
A83: 79 | B83: เลย | C83: 1542065475 | D83: องค์การบริหารส่วนตำบลโพนสูง อ. ด่านซ้าย จ. เลย | E83: 137 | F83: 3 | G83: 1 | H83: 0 | I83: 141
A84: 80 | B84: เลย | C84: 1542065476 | D84: องค์การบริหารส่วนตำบลอิปุ่ม | E84: 167 | F84: 3 | G84: 0 | H84: 0 | I84: 170
A85: 81 | B85: เลย | C85: 1542065477 | D85: องค์การบริหารส่วนตำบลกกสะทอน | E85: 185 | F85: 11 | G85: 1 | H85: 0 | I85: 197
A86: 82 | B86: เลย | C86: 1542065478 | D86: องค์การบริหารส่วนตำบลหาดทรายขาว | E86: 12 | F86: 0 | G86: 0 | H86: 0 | I86: 12
A87: 83 | B87: เลย | C87: 1542065484 | D87: องค์การบริหารส่วนตำบลศรีฐาน อ. ภูกระดึง จ. เลย | E87: 16 | F87: 0 | G87: 0 | H87: 0 | I87: 16
A88: 84 | B88: เลย | C88: 1542065487 | D88: องค์การบริหารส่วนตำบลผานกเค้า | E88: 12 | F88: 1 | G88: 3 | H88: 0 | I88: 16
A89: 85 | B89: เลย | C89: 1542065491 | D89: องค์การบริหารส่วนตำบลโคกใหญ่ อ. ท่าลี่ จ. เลย | E89: 144 | F89: 1 | G89: 0 | H89: 0 | I89: 145
A90: 86 | B90: เลย | C90: 1542065493 | D90: องค์การบริหารส่วนตำบลแสงภา | E90: 54 | F90: 0 | G90: 0 | H90: 0 | I90: 54
A91: 87 | B91: เลย | C91: 1542065498 | D91: องค์การบริหารส่วนตำบลนาแขม อ. เมืองเลย จ. เลย | E91: 231 | F91: 0 | G91: 0 | H91: 0 | I91: 231
A92: 88 | B92: เลย | C92: 1542065499 | D92: องค์การบริหารส่วนตำบลชัยพฤกษ์ | E92: 25 | F92: 0 | G92: 0 | H92: 0 | I92: 25
A93: 89 | B93: แพร่ | C93: 1554054218 | D93: เทศบาลตำบลป่าแมต | E93: 27 | F93: 0 | G93: 0 | H93: 0 | I93: 27
A94: 90 | B94: แพร่ | C94: 1554054226 | D94: เทศบาลตำบลช่อแฮ | E94: 3 | F94: 0 | G94: 0 | H94: 0 | I94: 3
A95: 91 | B95: แพร่ | C95: 1554054227 | D95: เทศบาลตำบลห้วยอ้อ | E95: 1 | F95: 0 | G95: 0 | H95: 0 | I95: 1
A96: 92 | B96: แพร่ | C96: 1554064230 | D96: องค์การบริหารส่วนตำบลสรอย | E96: 421 | F96: 1 | G96: 2 | H96: 0 | I96: 424
A97: 93 | B97: แพร่ | C97: 1554064245 | D97: องค์การบริหารส่วนตำบลน้ำชำ | E97: 3 | F97: 0 | G97: 0 | H97: 0 | I97: 3
A98: 94 | B98: แพร่ | C98: 1554064266 | D98: องค์การบริหารส่วนตำบลพระหลวง | E98: 1 | F98: 0 | G98: 0 | H98: 0 | I98: 1
A99: 95 | B99: แพร่ | C99: 1554064274 | D99: องค์การบริหารส่วนตำบลป่าแดง อ. เมืองแพร่ จ. แพร่ | E99: 69 | F99: 2 | G99: 0 | H99: 0 | I99: 71
A100: 96 | B100: แพร่ | C100: 1554064284 | D100: องค์การบริหารส่วนตำบลท่าข้าม อ. เมืองแพร่ จ. แพร่ | E100: 23 | F100: 0 | G100: 0 | H100: 0 | I100: 23
A101: 97 | B101: กระบี่ | C101: 1581050010 | D101: เทศบาลตำบลลำทับ | E101: 1 | F101: 0 | G101: 0 | H101: 0 | I101: 1
A102: 98 | B102: กระบี่ | C102: 1581060024 | D102: องค์การบริหารส่วนตำบลเกาะลันตาน้อย | E102: 101 | F102: 1 | G102: 0 | H102: 0 | I102: 102
A103: 99 | B103: กระบี่ | C103: 1581060055 | D103: องค์การบริหารส่วนตำบลเกาะลันตาใหญ่ | E103: 1 | F103: 0 | G103: 0 | H103: 0 | I103: 1
A104: 100 | B104: กระบี่ | C104: 1581060060 | D104: องค์การบริหารส่วนตำบลเขาเขน | E104: 1 | F104: 0 | G104: 0 | H104: 0 | I104: 1
A105: 101 | B105: กาญจนบุรี | C105: 1571050092 | D105: เทศบาลตำบลพระแท่น | E105: 80 | F105: 0 | G105: 0 | H105: 0 | I105: 80
A106: 102 | B106: กาญจนบุรี | C106: 1571050115 | D106: เทศบาลตำบลสหกรณ์นิคม | E106: 4 | F106: 0 | G106: 0 | H106: 0 | I106: 4
A107: 103 | B107: กาญจนบุรี | C107: 1571050161 | D107: เทศบาลตำบลหนองลาน | E107: 26 | F107: 0 | G107: 0 | H107: 0 | I107: 26
A108: 104 | B108: กาญจนบุรี | C108: 1571060104 | D108: องค์การบริหารส่วนตำบลสิงห์ อ. ไทรโยค จ. กาญจนบุรี | E108: 93 | F108: 1 | G108: 0 | H108: 0 | I108: 94
A109: 105 | B109: กาญจนบุรี | C109: 1571060111 | D109: องค์การบริหารส่วนตำบลหินดาด อ. ทองผาภูมิ จ. กาญจนบุรี | E109: 1 | F109: 0 | G109: 0 | H109: 0 | I109: 1
A110: 106 | B110: กาญจนบุรี | C110: 1571060114 | D110: องค์การบริหารส่วนตำบลห้วยเขย่ง | E110: 3 | F110: 0 | G110: 0 | H110: 0 | I110: 3
A111: 107 | B111: กาญจนบุรี | C111: 1571060141 | D111: องค์การบริหารส่วนตำบลปรังเผล | E111: 56 | F111: 0 | G111: 0 | H111: 0 | I111: 56
A112: 108 | B112: กาญจนบุรี | C112: 1571060145 | D112: องค์การบริหารส่วนตำบลยางม่วง | E112: 2 | F112: 0 | G112: 0 | H112: 0 | I112: 2
A113: 109 | B113: กาญจนบุรี | C113: 1571060175 | D113: องค์การบริหารส่วนตำบลช่องด่าน | E113: 164 | F113: 1 | G113: 0 | H113: 0 | I113: 165
A114: 110 | B114: กาญจนบุรี | C114: 1571060181 | D114: องค์การบริหารส่วนตำบลช่องสะเดา | E114: 23 | F114: 0 | G114: 0 | H114: 0 | I114: 23
A115: 111 | B115: กาฬสินธุ์ | C115: 1546040198 | D115: เทศบาลเมืองกุฉินารายณ์ | E115: 161 | F115: 4 | G115: 0 | H115: 0 | I115: 165
A116: 112 | B116: กาฬสินธุ์ | C116: 1546050186 | D116: เทศบาลตำบลนาจารย์ | E116: 70 | F116: 0 | G116: 0 | H116: 0 | I116: 70
A117: 113 | B117: กาฬสินธุ์ | C117: 1546050192 | D117: เทศบาลตำบลโคกศรี | E117: 2 | F117: 1 | G117: 0 | H117: 0 | I117: 3
A118: 114 | B118: กาฬสินธุ์ | C118: 1546050197 | D118: เทศบาลตำบลสระพังทอง | E118: 19 | F118: 0 | G118: 0 | H118: 0 | I118: 19
A119: 115 | B119: กาฬสินธุ์ | C119: 1546050202 | D119: เทศบาลตำบลคำบง อ. ห้วยผึ้ง จ. กาฬสินธุ์ | E119: 7 | F119: 1 | G119: 0 | H119: 0 | I119: 8
A120: 116 | B120: กาฬสินธุ์ | C120: 1546050207 | D120: เทศบาลตำบลนาทัน | E120: 3 | F120: 0 | G120: 0 | H120: 0 | I120: 3
A121: 117 | B121: กาฬสินธุ์ | C121: 1546050209 | D121: เทศบาลตำบลนิคม | E121: 84 | F121: 3 | G121: 0 | H121: 0 | I121: 87
A122: 118 | B122: กาฬสินธุ์ | C122: 1546050212 | D122: เทศบาลตำบลห้วยเม็ก | E122: 1 | F122: 0 | G122: 0 | H122: 0 | I122: 1
A123: 119 | B123: กาฬสินธุ์ | C123: 1546050224 | D123: เทศบาลตำบลหลุบ | E123: 4 | F123: 0 | G123: 1 | H123: 0 | I123: 5
A124: 120 | B124: กาฬสินธุ์ | C124: 1546050268 | D124: เทศบาลตำบลม่วงนา | E124: 227 | F124: 9 | G124: 6 | H124: 0 | I124: 242
A125: 121 | B125: กาฬสินธุ์ | C125: 1546050280 | D125: เทศบาลตำบลกุงเก่า | E125: 124 | F125: 1 | G125: 0 | H125: 0 | I125: 125
A126: 122 | B126: กาฬสินธุ์ | C126: 1546050291 | D126: เทศบาลตำบลนามะเขือ | E126: 173 | F126: 5 | G126: 1 | H126: 0 | I126: 179
A127: 123 | B127: กาฬสินธุ์ | C127: 1546050304 | D127: เทศบาลตำบลอุ่มเม่า | E127: 30 | F127: 0 | G127: 0 | H127: 0 | I127: 30
A128: 124 | B128: กาฬสินธุ์ | C128: 1546060229 | D128: องค์การบริหารส่วนตำบลยอดแกง | E128: 4 | F128: 1 | G128: 0 | H128: 0 | I128: 5
A129: 125 | B129: กาฬสินธุ์ | C129: 1546060232 | D129: องค์การบริหารส่วนตำบลหลักเหลี่ยม | E129: 107 | F129: 0 | G129: 0 | H129: 0 | I129: 107
A130: 126 | B130: กาฬสินธุ์ | C130: 1546060241 | D130: องค์การบริหารส่วนตำบลโนนสะอาด อ. ห้วยเม็ก จ. กาฬสินธุ์ | E130: 10 | F130: 0 | G130: 0 | H130: 0 | I130: 10
A131: 127 | B131: กาฬสินธุ์ | C131: 1546060242 | D131: องค์การบริหารส่วนตำบลหนองตอกแป้น | E131: 1 | F131: 0 | G131: 0 | H131: 0 | I131: 1
A132: 128 | B132: กาฬสินธุ์ | C132: 1546060253 | D132: องค์การบริหารส่วนตำบลโนนนาจาน | E132: 85 | F132: 0 | G132: 0 | H132: 0 | I132: 85
A133: 129 | B133: กาฬสินธุ์ | C133: 1546060270 | D133: องค์การบริหารส่วนตำบลนาคู อ. นาคู จ. กาฬสินธุ์ | E133: 237 | F133: 9 | G133: 0 | H133: 0 | I133: 246
A134: 130 | B134: กาฬสินธุ์ | C134: 1546060278 | D134: องค์การบริหารส่วนตำบลศรีสมเด็จ | E134: 17 | F134: 0 | G134: 0 | H134: 0 | I134: 17
A135: 131 | B135: กาฬสินธุ์ | C135: 1546060285 | D135: องค์การบริหารส่วนตำบลทุ่งคลอง | E135: 13 | F135: 0 | G135: 0 | H135: 0 | I135: 13
A136: 132 | B136: กาฬสินธุ์ | C136: 1546060286 | D136: องค์การบริหารส่วนตำบลโพน | E136: 207 | F136: 0 | G136: 0 | H136: 0 | I136: 207
A137: 133 | B137: กาฬสินธุ์ | C137: 1546060287 | D137: องค์การบริหารส่วนตำบลนาบอน อ. คำม่วง จ. กาฬสินธุ์ | E137: 212 | F137: 1 | G137: 1 | H137: 0 | I137: 214
A138: 134 | B138: กาฬสินธุ์ | C138: 1546060288 | D138: องค์การบริหารส่วนตำบลเนินยาง | E138: 232 | F138: 2 | G138: 1 | H138: 0 | I138: 235
A139: 135 | B139: กาฬสินธุ์ | C139: 1546060289 | D139: องค์การบริหารส่วนตำบลดินจี่ | E139: 12 | F139: 0 | G139: 0 | H139: 0 | I139: 12
A140: 136 | B140: กาฬสินธุ์ | C140: 1546060306 | D140: องค์การบริหารส่วนตำบลนาเชือก อ. ยางตลาด จ. กาฬสินธุ์ | E140: 8 | F140: 1 | G140: 0 | H140: 0 | I140: 9
A141: 137 | B141: กาฬสินธุ์ | C141: 1546060307 | D141: องค์การบริหารส่วนตำบลคลองขาม | E141: 2 | F141: 0 | G141: 0 | H141: 0 | I141: 2
A142: 138 | B142: กาฬสินธุ์ | C142: 1546060310 | D142: องค์การบริหารส่วนตำบลบัวขาว | E142: 117 | F142: 3 | G142: 1 | H142: 0 | I142: 121
A143: 139 | B143: ขอนแก่น | C143: 1540040424 | D143: เทศบาลเมืองบ้านไผ่ | E143: 1 | F143: 0 | G143: 0 | H143: 0 | I143: 1
A144: 140 | B144: ขอนแก่น | C144: 1540040434 | D144: เทศบาลเมืองกระนวน | E144: 235 | F144: 6 | G144: 3 | H144: 1 | I144: 245
A145: 141 | B145: ขอนแก่น | C145: 1540040458 | D145: เทศบาลเมืองบ้านทุ่ม | E145: 2 | F145: 0 | G145: 0 | H145: 0 | I145: 2
A146: 142 | B146: ขอนแก่น | C146: 1540040598 | D146: เทศบาลเมืองศิลา | E146: 0 | F146: 1 | G146: 0 | H146: 0 | I146: 1
A147: 143 | B147: ขอนแก่น | C147: 1540050428 | D147: เทศบาลตำบลดอนโมง | E147: 8 | F147: 1 | G147: 1 | H147: 0 | I147: 10
A148: 144 | B148: ขอนแก่น | C148: 1540050429 | D148: เทศบาลตำบลม่วงหวาน | E148: 3 | F148: 0 | G148: 0 | H148: 0 | I148: 3
A149: 145 | B149: ขอนแก่น | C149: 1540050440 | D149: เทศบาลตำบลเขาสวนกวาง | E149: 6 | F149: 0 | G149: 0 | H149: 0 | I149: 6
A150: 146 | B150: ขอนแก่น | C150: 1540050441 | D150: เทศบาลตำบลภูเวียง | E150: 4 | F150: 0 | G150: 0 | H150: 0 | I150: 4
A151: 147 | B151: ขอนแก่น | C151: 1540050449 | D151: เทศบาลตำบลนาจาน อ. สีชมพู จ. ขอนแก่น | E151: 177 | F151: 3 | G151: 11 | H151: 1 | I151: 192
A152: 148 | B152: ขอนแก่น | C152: 1540050450 | D152: เทศบาลตำบลวังเพิ่ม | E152: 1 | F152: 0 | G152: 0 | H152: 0 | I152: 1
A153: 149 | B153: ขอนแก่น | C153: 1540050451 | D153: เทศบาลตำบลโคกสูงสัมพันธ์ | E153: 23 | F153: 1 | G153: 0 | H153: 0 | I153: 24
A154: 150 | B154: ขอนแก่น | C154: 1540050470 | D154: เทศบาลตำบลโคกงาม | E154: 79 | F154: 0 | G154: 0 | H154: 0 | I154: 79
A155: 151 | B155: ขอนแก่น | C155: 1540050472 | D155: เทศบาลตำบลป่ามะนาว | E155: 123 | F155: 5 | G155: 2 | H155: 0 | I155: 130
A156: 152 | B156: ขอนแก่น | C156: 1540050632 | D156: เทศบาลตำบลหนองโน | E156: 214 | F156: 1 | G156: 4 | H156: 1 | I156: 220
A157: 153 | B157: ขอนแก่น | C157: 1540050633 | D157: เทศบาลตำบลน้ำอ้อม | E157: 169 | F157: 4 | G157: 1 | H157: 3 | I157: 177
A158: 154 | B158: ขอนแก่น | C158: 1540050635 | D158: เทศบาลตำบลห้วยยาง อ. กระนวน จ. ขอนแก่น | E158: 158 | F158: 5 | G158: 1 | H158: 3 | I158: 167
A159: 155 | B159: ขอนแก่น | C159: 1540050638 | D159: เทศบาลตำบลสะอาด | E159: 282 | F159: 7 | G159: 0 | H159: 1 | I159: 290
A160: 156 | B160: ขอนแก่น | C160: 1540050642 | D160: เทศบาลตำบลโนนทอง อ. หนองเรือ จ. ขอนแก่น | E160: 22 | F160: 1 | G160: 2 | H160: 1 | I160: 26
A161: 157 | B161: ขอนแก่น | C161: 1540050644 | D161: เทศบาลตำบลบ้านผือ อ. หนองเรือ จ. ขอนแก่น | E161: 2 | F161: 0 | G161: 0 | H161: 0 | I161: 2
A162: 158 | B162: ขอนแก่น | C162: 1540050645 | D162: เทศบาลตำบลโนนสะอาด อ. หนองเรือ จ. ขอนแก่น | E162: 175 | F162: 0 | G162: 2 | H162: 1 | I162: 178
A163: 159 | B163: ขอนแก่น | C163: 1540060473 | D163: องค์การบริหารส่วนตำบลบ้านเหล่า อ. บ้านฝาง จ. ขอนแก่น | E163: 176 | F163: 1 | G163: 0 | H163: 0 | I163: 177
A164: 160 | B164: ขอนแก่น | C164: 1540060480 | D164: องค์การบริหารส่วนตำบลท่ากระเสริม | E164: 37 | F164: 0 | G164: 1 | H164: 1 | I164: 39
A165: 161 | B165: ขอนแก่น | C165: 1540060503 | D165: องค์การบริหารส่วนตำบลแดงใหญ่ อ. เมืองขอนแก่น จ. ขอนแก่น | E165: 39 | F165: 1 | G165: 0 | H165: 0 | I165: 40
A166: 162 | B166: ขอนแก่น | C166: 1540060510 | D166: องค์การบริหารส่วนตำบลบ้านใหม่ อ. สีชมพู จ. ขอนแก่น | E166: 1 | F166: 0 | G166: 0 | H166: 0 | I166: 1
A167: 163 | B167: ขอนแก่น | C167: 1540060526 | D167: องค์การบริหารส่วนตำบลห้วยม่วง อ. ภูผาม่าน จ. ขอนแก่น | E167: 1 | F167: 0 | G167: 0 | H167: 0 | I167: 1
A168: 164 | B168: ขอนแก่น | C168: 1540060528 | D168: องค์การบริหารส่วนตำบลนาฝาย อ. ภูผาม่าน จ. ขอนแก่น | E168: 85 | F168: 0 | G168: 1 | H168: 0 | I168: 86
A169: 165 | B169: ขอนแก่น | C169: 1540060533 | D169: องค์การบริหารส่วนตำบลศรีบุญเรือง อ. ชนบท จ. ขอนแก่น | E169: 1 | F169: 0 | G169: 0 | H169: 0 | I169: 1
A170: 166 | B170: ขอนแก่น | C170: 1540060534 | D170: องค์การบริหารส่วนตำบลโนนพะยอม | E170: 210 | F170: 3 | G170: 0 | H170: 0 | I170: 213
A171: 167 | B171: ขอนแก่น | C171: 1540060557 | D171: องค์การบริหารส่วนตำบลดอนฉิม | E171: 127 | F171: 5 | G171: 0 | H171: 4 | I171: 136
A172: 168 | B172: ขอนแก่น | C172: 1540060563 | D172: องค์การบริหารส่วนตำบลเก่างิ้ว | E172: 98 | F172: 0 | G172: 2 | H172: 0 | I172: 100
A173: 169 | B173: ขอนแก่น | C173: 1540060566 | D173: องค์การบริหารส่วนตำบลโคกสง่า | E173: 224 | F173: 7 | G173: 1 | H173: 0 | I173: 232
A174: 170 | B174: ขอนแก่น | C174: 1540060568 | D174: องค์การบริหารส่วนตำบลลอมคอม | E174: 270 | F174: 2 | G174: 2 | H174: 1 | I174: 275
A175: 171 | B175: ขอนแก่น | C175: 1540060571 | D175: องค์การบริหารส่วนตำบลหัวทุ่ง อ. พล จ. ขอนแก่น | E175: 167 | F175: 3 | G175: 0 | H175: 0 | I175: 170
A176: 172 | B176: ขอนแก่น | C176: 1540060579 | D176: องค์การบริหารส่วนตำบลหนองน้ำใส อ. บ้านไผ่ จ. ขอนแก่น | E176: 1 | F176: 0 | G176: 0 | H176: 0 | I176: 1
A177: 173 | B177: ขอนแก่น | C177: 1540060586 | D177: องค์การบริหารส่วนตำบลศรีสุขสำราญ | E177: 62 | F177: 2 | G177: 0 | H177: 0 | I177: 64
A178: 174 | B178: ขอนแก่น | C178: 1540060587 | D178: องค์การบริหารส่วนตำบลทุ่งโป่ง | E178: 41 | F178: 0 | G178: 0 | H178: 0 | I178: 41
A179: 175 | B179: ขอนแก่น | C179: 1540060615 | D179: องค์การบริหารส่วนตำบลคำม่วง | E179: 96 | F179: 4 | G179: 2 | H179: 2 | I179: 104
A180: 176 | B180: ขอนแก่น | C180: 1540060619 | D180: องค์การบริหารส่วนตำบลนาหว้า อ. ภูเวียง จ. ขอนแก่น | E180: 1 | F180: 0 | G180: 0 | H180: 0 | I180: 1
A181: 177 | B181: ขอนแก่น | C181: 1540060623 | D181: องค์การบริหารส่วนตำบลท่านางแนว | E181: 2 | F181: 0 | G181: 0 | H181: 0 | I181: 2
A182: 178 | B182: ขอนแก่น | C182: 1540060627 | D182: องค์การบริหารส่วนตำบลหนองโก อ. กระนวน จ. ขอนแก่น | E182: 340 | F182: 17 | G182: 5 | H182: 0 | I182: 362
A183: 179 | B183: ขอนแก่น | C183: 1540060630 | D183: องค์การบริหารส่วนตำบลบ้านฝาง อ. กระนวน จ. ขอนแก่น | E183: 363 | F183: 7 | G183: 1 | H183: 0 | I183: 371
A184: 180 | B184: ขอนแก่น | C184: 1540060631 | D184: องค์การบริหารส่วนตำบลดูนสาด | E184: 268 | F184: 2 | G184: 0 | H184: 2 | I184: 272
A185: 181 | B185: ขอนแก่น | C185: 1540060634 | D185: องค์การบริหารส่วนตำบลหัวนาคำ | E185: 93 | F185: 1 | G185: 0 | H185: 0 | I185: 94
A186: 182 | B186: ชัยภูมิ | C186: 1536051002 | D186: เทศบาลตำบลเทพสถิต | E186: 49 | F186: 1 | G186: 0 | H186: 0 | I186: 50
A187: 183 | B187: ชัยภูมิ | C187: 1536051012 | D187: เทศบาลตำบลแก้งคร้อ | E187: 1 | F187: 0 | G187: 0 | H187: 0 | I187: 1
A188: 184 | B188: ชัยภูมิ | C188: 1536051013 | D188: เทศบาลตำบลนาหนองทุ่ม อ. แก้งคร้อ จ. ชัยภูมิ | E188: 2 | F188: 0 | G188: 0 | H188: 0 | I188: 2
A189: 185 | B189: ชัยภูมิ | C189: 1536051014 | D189: เทศบาลตำบลหนองสังข์ | E189: 4 | F189: 0 | G189: 0 | H189: 0 | I189: 4
A190: 186 | B190: ชัยภูมิ | C190: 1536051037 | D190: เทศบาลตำบลโคกสูง อ. เมืองชัยภูมิ จ. ชัยภูมิ | E190: 6 | F190: 1 | G190: 0 | H190: 0 | I190: 7
A191: 187 | B191: ชัยภูมิ | C191: 1536061017 | D191: องค์การบริหารส่วนตำบลห้วยไร่ อ. คอนสวรรค์ จ. ชัยภูมิ | E191: 148 | F191: 0 | G191: 0 | H191: 0 | I191: 148
A192: 188 | B192: ชัยภูมิ | C192: 1536061042 | D192: องค์การบริหารส่วนตำบลบ้านเป้า อ. เกษตรสมบูรณ์ จ. ชัยภูมิ | E192: 79 | F192: 10 | G192: 0 | H192: 0 | I192: 89
A193: 189 | B193: ชัยภูมิ | C193: 1536061049 | D193: องค์การบริหารส่วนตำบลโนนกอก | E193: 482 | F193: 13 | G193: 4 | H193: 0 | I193: 499
A194: 190 | B194: ชัยภูมิ | C194: 1536061051 | D194: องค์การบริหารส่วนตำบลโป่งนก | E194: 215 | F194: 0 | G194: 0 | H194: 0 | I194: 215
A195: 191 | B195: ชัยภูมิ | C195: 1536061057 | D195: องค์การบริหารส่วนตำบลเกาะมะนาว | E195: 39 | F195: 0 | G195: 1 | H195: 0 | I195: 40
A196: 192 | B196: ชัยภูมิ | C196: 1536061064 | D196: องค์การบริหารส่วนตำบลบ้านแก้ง อ. แก้งคร้อ จ. ชัยภูมิ | E196: 37 | F196: 2 | G196: 0 | H196: 0 | I196: 39
A197: 193 | B197: ชัยภูมิ | C197: 1536061092 | D197: องค์การบริหารส่วนตำบลวะตะแบก | E197: 256 | F197: 8 | G197: 1 | H197: 0 | I197: 265
A198: 194 | B198: ชัยภูมิ | C198: 1536061095 | D198: องค์การบริหารส่วนตำบลบ้านไร่ อ. เทพสถิต จ. ชัยภูมิ | E198: 221 | F198: 1 | G198: 0 | H198: 0 | I198: 222
A199: 195 | B199: ชัยภูมิ | C199: 1536061110 | D199: องค์การบริหารส่วนตำบลโพนทอง อ. เมืองชัยภูมิ จ. ชัยภูมิ | E199: 325 | F199: 2 | G199: 0 | H199: 0 | I199: 327
A200: 196 | B200: ชัยภูมิ | C200: 1536061117 | D200: องค์การบริหารส่วนตำบลหนองนาแซง | E200: 379 | F200: 11 | G200: 0 | H200: 0 | I200: 390
... 490 more rows

Sheet 2. อปท.ส่งรายงานแล้ว
A1: รายละเอียดการตรวจสอบรายงานผลการจ่ายเงินโครงการกระตุ้นเศรษฐกิจ ปี 2567 ผ่านคนพิการ ขององค์กรปกครองส่วนท้องถิ่น กรณีการจ่ายเป็นเงินสด
A2: 2. อปท. ที่ส่งรายงานแล้ว
A4: ลำดับ | B4: ชื่อจังหวัด | C4: รหัสหน่วยงาน | D4: ชื่อหน่วยงาน | E4: รายงาน บก. จ่ายเงิน (คน) | J4: รายงาน สถ. จ่ายเงิน (คน) | M4: ผลต่างรายงานของ | N4: จำนวนคน
E5: ครั้งที่ 1 | F5: ครั้งที่ 2 | G5: ครั้งที่ 3 | H5: ครั้งที่ 4 | I5: รวม | J5: จ่ายสำเร็จ | K5: จ่ายไม่สำเร็จ | L5: รวม | M5: บก. - สถ. (คน) | N5: คืนแล้ว | O5: ยังไม่คืน | P5: คืนไม่ครบ
A6: 1 | B6: เชียงใหม่ | C6: 1550041356 | D6: เทศบาลเมืองเมืองแกนพัฒนา | E6: 44 | F6: 0 | G6: 0 | H6: 0 | I6: 44 | J6: 23 | K6: 0 | L6: 23 | M6: -21
A7: 2 | B7: เชียงใหม่ | C7: 1550051361 | D7: เทศบาลตำบลสุเทพ | E7: 4 | F7: 0 | G7: 0 | H7: 0 | I7: 4 | J7: 4 | K7: 0 | L7: 4 | M7: 0
A8: 3 | B8: เชียงใหม่ | C8: 1550051367 | D8: เทศบาลตำบลเมืองนะ | E8: 186 | F8: 0 | G8: 0 | H8: 0 | I8: 186 | J8: 185 | K8: 1 | L8: 186 | M8: 0 | N8: 1
A9: 4 | B9: เชียงใหม่ | C9: 1550051368 | D9: เทศบาลตำบลเมืองงาย | E9: 87 | F9: 0 | G9: 0 | H9: 0 | I9: 87 | J9: 87 | K9: 0 | L9: 87 | M9: 0
A10: 5 | B10: เชียงใหม่ | C10: 1550051369 | D10: เทศบาลตำบลพระธาตุปู่ก่ำ | E10: 29 | F10: 0 | G10: 0 | H10: 0 | I10: 29 | J10: 29 | K10: 0 | L10: 29 | M10: 0
A11: 6 | B11: เชียงใหม่ | C11: 1550051370 | D11: เทศบาลตำบลปิงโค้ง | E11: 154 | F11: 0 | G11: 0 | H11: 0 | I11: 154 | J11: 154 | K11: 0 | L11: 154 | M11: 0
A12: 7 | B12: เชียงใหม่ | C12: 1550051371 | D12: เทศบาลตำบลทุ่งข้าวพวง | E12: 99 | F12: 0 | G12: 0 | H12: 0 | I12: 99 | J12: 99 | K12: 0 | L12: 99 | M12: 0
A13: 8 | B13: เชียงใหม่ | C13: 1550051379 | D13: เทศบาลตำบลแม่ปูคา | E13: 110 | F13: 1 | G13: 0 | H13: 0 | I13: 111 | J13: 111 | K13: 0 | L13: 111 | M13: 0
A14: 9 | B14: เชียงใหม่ | C14: 1550051387 | D14: เทศบาลตำบลสง่าบ้าน | E14: 50 | F14: 0 | G14: 0 | H14: 0 | I14: 50 | J14: 50 | K14: 0 | L14: 50 | M14: 0
A15: 10 | B15: เชียงใหม่ | C15: 1550051394 | D15: เทศบาลตำบลบ้านกลาง อ. สันป่าตอง จ. เชียงใหม่ | E15: 151 | F15: 0 | G15: 0 | H15: 0 | I15: 151 | J15: 151 | K15: 0 | L15: 151 | M15: 0
A16: 11 | B16: เชียงใหม่ | C16: 1550051395 | D16: เทศบาลตำบลสันป่าตอง | E16: 33 | F16: 0 | G16: 0 | H16: 0 | I16: 33 | J16: 33 | K16: 0 | L16: 33 | M16: 0
A17: 12 | B17: เชียงใหม่ | C17: 1550051398 | D17: เทศบาลตำบลแม่อาย | E17: 75 | F17: 1 | G17: 1 | H17: 0 | I17: 77 | J17: 77 | K17: 0 | L17: 77 | M17: 0
A18: 13 | B18: เชียงใหม่ | C18: 1550051407 | D18: เทศบาลตำบลบ่อหลวง | E18: 2 | F18: 0 | G18: 0 | H18: 0 | I18: 2 | J18: 2 | K18: 0 | L18: 2 | M18: 0
A19: 14 | B19: เชียงใหม่ | C19: 1550051413 | D19: เทศบาลตำบลบ้านแปะ | E19: 445 | F19: 9 | G19: 4 | H19: 0 | I19: 458 | J19: 458 | K19: 0 | L19: 458 | M19: 0
A20: 15 | B20: เชียงใหม่ | C20: 1550051442 | D20: เทศบาลตำบลทุ่งสะโตก | E20: 21 | F20: 2 | G20: 0 | H20: 0 | I20: 23 | J20: 23 | K20: 0 | L20: 23 | M20: 0
A21: 16 | B21: เชียงใหม่ | C21: 1550051443 | D21: เทศบาลตำบลทุ่งต้อม | E21: 104 | F21: 2 | G21: 2 | H21: 0 | I21: 108 | J21: 107 | K21: 1 | L21: 108 | M21: 0 | N21: 1
A22: 17 | B22: เชียงใหม่ | C22: 1550051462 | D22: เทศบาลตำบลหนองบัว อ. ไชยปราการ จ. เชียงใหม่ | E22: 47 | F22: 0 | G22: 0 | H22: 0 | I22: 47 | J22: 47 | K22: 0 | L22: 47 | M22: 0
A23: 18 | B23: เชียงใหม่ | C23: 1550051468 | D23: เทศบาลตำบลท่ากว้าง | E23: 81 | F23: 0 | G23: 0 | H23: 0 | I23: 81 | J23: 81 | K23: 0 | L23: 81 | M23: 0
A24: 19 | B24: เชียงใหม่ | C24: 1550051473 | D24: เทศบาลตำบลขัวมุง | E24: 83 | F24: 1 | G24: 0 | H24: 0 | I24: 84 | J24: 43 | K24: 0 | L24: 43 | M24: -41
A25: 20 | B25: เชียงใหม่ | C25: 1550051508 | D25: เทศบาลตำบลห้วยทราย | E25: 124 | F25: 0 | G25: 0 | H25: 0 | I25: 124 | J25: 123 | K25: 1 | L25: 124 | M25: 0 | N25: 1
A26: 21 | B26: เชียงใหม่ | C26: 1550051509 | D26: เทศบาลตำบลสันกลาง | E26: 2 | F26: 0 | G26: 0 | H26: 0 | I26: 2 | J26: 2 | K26: 0 | L26: 2 | M26: 0
A27: 22 | B27: เชียงใหม่ | C27: 1550051511 | D27: เทศบาลตำบลบ้านแม | E27: 7 | F27: 0 | G27: 0 | H27: 0 | I27: 7 | J27: 7 | K27: 0 | L27: 7 | M27: 0
A28: 23 | B28: เชียงใหม่ | C28: 1550051516 | D28: เทศบาลตำบลบ้านโป่ง | E28: 147 | F28: 0 | G28: 0 | H28: 0 | I28: 147 | J28: 147 | K28: 0 | L28: 147 | M28: 0
A29: 24 | B29: เชียงใหม่ | C29: 1550051531 | D29: เทศบาลตำบลสันทราย อ. ฝาง จ. เชียงใหม่ | E29: 100 | F29: 0 | G29: 0 | H29: 0 | I29: 100 | J29: 100 | K29: 0 | L29: 100 | M29: 0
A30: 25 | B30: เชียงใหม่ | C30: 1550051533 | D30: เทศบาลตำบลแม่ข่า | E30: 41 | F30: 4 | G30: 1 | H30: 0 | I30: 46 | J30: 46 | K30: 0 | L30: 46 | M30: 0
A31: 26 | B31: เชียงใหม่ | C31: 1550051547 | D31: เทศบาลตำบลแม่ฮ้อยเงิน | E31: 44 | F31: 0 | G31: 0 | H31: 0 | I31: 44 | J31: 44 | K31: 0 | L31: 44 | M31: 0
A32: 27 | B32: เชียงใหม่ | C32: 1550051548 | D32: เทศบาลตำบลป่าเมี่ยง | E32: 80 | F32: 2 | G32: 0 | H32: 0 | I32: 82 | J32: 82 | K32: 0 | L32: 82 | M32: 0
A33: 28 | B33: เชียงใหม่ | C33: 1550051551 | D33: เทศบาลตำบลแม่นะ | E33: 99 | F33: 2 | G33: 1 | H33: 0 | I33: 102 | J33: 101 | K33: 0 | L33: 101 | M33: -1
A34: 29 | B34: เชียงใหม่ | C34: 1550061414 | E34: =SUM(E7:E33) -> 2405 | F34: =SUM(F7:F33) -> 24 | G34: =SUM(G7:G33) -> 9 | H34: 0 | I34: 2438 | J34: 2393 | K34: 3 | L34: 2396 | M34: -42 | N34: 3 | O34: 0 | P34: 0
A35: 30 | B35: เชียงใหม่ | C35: 1550061415 | D35: องค์การบริหารส่วนตำบลแม่แดด | E35: 14 | F35: 2 | G35: 0 | H35: 0 | I35: 16 | J35: 16 | K35: 0 | L35: 16 | M35: 0
A36: 31 | B36: เชียงใหม่ | C36: 1550061419 | D36: องค์การบริหารส่วนตำบลสบเปิง | E36: 70 | F36: 6 | G36: 0 | H36: 0 | I36: 76 | J36: 87 | K36: 1 | L36: 88 | M36: 12 | O36: 1
A37: 32 | B37: เชียงใหม่ | C37: 1550061423 | D37: องค์การบริหารส่วนตำบลเมืองก๋าย | E37: 38 | F37: 0 | G37: 0 | H37: 0 | I37: 38 | J37: 38 | K37: 0 | L37: 38 | M37: 0
A38: 33 | B38: เชียงใหม่ | C38: 1550061427 | D38: องค์การบริหารส่วนตำบลแม่แวน | E38: 124 | F38: 2 | G38: 0 | H38: 0 | I38: 126 | J38: 126 | K38: 0 | L38: 126 | M38: 0
A39: 34 | B39: เชียงใหม่ | C39: 1550061429 | D39: องค์การบริหารส่วนตำบลดอยลาง | E39: 55 | F39: 0 | G39: 0 | H39: 0 | I39: 55 | J39: 55 | K39: 0 | L39: 55 | M39: 0
A40: 35 | B40: เชียงใหม่ | C40: 1550061431 | D40: องค์การบริหารส่วนตำบลสันต้นหมื้อ | E40: 4 | F40: 0 | G40: 0 | H40: 0 | I40: 4 | J40: 4 | K40: 0 | L40: 4 | M40: 0
A41: 36 | B41: เชียงใหม่ | C41: 1550061433 | D41: องค์การบริหารส่วนตำบลท่าตอน | E41: 4 | F41: 0 | G41: 0 | H41: 0 | I41: 4 | J41: 4 | K41: 0 | L41: 4 | M41: 0
A42: 37 | B42: เชียงใหม่ | C42: 1550061435 | D42: องค์การบริหารส่วนตำบลโป่งน้ำร้อน อ. ฝาง จ. เชียงใหม่ | E42: 10 | F42: 0 | G42: 0 | H42: 0 | I42: 10 | J42: 10 | K42: 0 | L42: 10 | M42: 0
A43: 38 | B43: เชียงใหม่ | C43: 1550061437 | D43: องค์การบริหารส่วนตำบลสันกลาง อ. สันป่าตอง จ. เชียงใหม่ | E43: 70 | F43: 0 | G43: 0 | H43: 0 | I43: 70 | J43: 70 | K43: 0 | L43: 70 | M43: 0
A44: 39 | B44: เชียงใหม่ | C44: 1550061438 | D44: องค์การบริหารส่วนตำบลท่าวังพร้าว | E44: 64 | F44: 0 | G44: 0 | H44: 0 | I44: 64 | J44: 64 | K44: 0 | L44: 64 | M44: 0
A45: 40 | B45: เชียงใหม่ | C45: 1550061440 | D45: องค์การบริหารส่วนตำบลแม่ก๊า | E45: 191 | F45: 0 | G45: 0 | H45: 0 | I45: 191 | J45: 191 | K45: 0 | L45: 191 | M45: 0
A46: 41 | B46: เชียงใหม่ | C46: 1550061450 | D46: องค์การบริหารส่วนตำบลออนกลาง | E46: 2 | F46: 0 | G46: 0 | H46: 0 | I46: 2 | J46: 2 | K46: 0 | L46: 2 | M46: 0
A47: 42 | B47: เชียงใหม่ | C47: 1550061451 | D47: องค์การบริหารส่วนตำบลบ้านสหกรณ์ | E47: 78 | F47: 0 | G47: 0 | H47: 0 | I47: 78 | J47: 78 | K47: 0 | L47: 78 | M47: 0
A48: 43 | B48: เชียงใหม่ | C48: 1550061452 | D48: องค์การบริหารส่วนตำบลห้วยแก้ว อ. แม่ออน จ. เชียงใหม่ | E48: 71 | F48: 2 | G48: 0 | H48: 0 | I48: 73 | J48: 69 | K48: 0 | L48: 69 | M48: -4
A49: 44 | B49: เชียงใหม่ | C49: 1550061454 | D49: องค์การบริหารส่วนตำบลทาเหนือ | E49: 128 | F49: 0 | G49: 0 | H49: 0 | I49: 128 | J49: 128 | K49: 0 | L49: 128 | M49: 0
A50: 45 | B50: เชียงใหม่ | C50: 1550061458 | D50: องค์การบริหารส่วนตำบลแม่วิน | E50: 93 | F50: 2 | G50: 0 | H50: 0 | I50: 95 | J50: 95 | K50: 0 | L50: 95 | M50: 0
A51: 46 | B51: เชียงใหม่ | C51: 1550061461 | D51: องค์การบริหารส่วนตำบลแม่ทะลบ | E51: 137 | F51: 0 | G51: 5 | H51: 0 | I51: 142 | J51: 141 | K51: 1 | L51: 142 | M51: 0 | N51: 1
A52: 47 | B52: เชียงใหม่ | C52: 1550061481 | D52: องค์การบริหารส่วนตำบลท่าเดื่อ | E52: 4 | F52: 1 | G52: 0 | H52: 0 | I52: 5 | J52: 5 | K52: 0 | L52: 5 | M52: 0
A53: 48 | B53: เชียงใหม่ | C53: 1550061485 | D53: องค์การบริหารส่วนตำบลหางดง | E53: 73 | F53: 0 | G53: 0 | H53: 0 | I53: 73 | J53: 73 | K53: 0 | L53: 73 | M53: 0
A54: 49 | B54: เชียงใหม่ | C54: 1550061486 | D54: องค์การบริหารส่วนตำบลฮอด | E54: 122 | F54: 0 | G54: 3 | H54: 0 | I54: 125 | J54: 125 | K54: 0 | L54: 125 | M54: 0
A55: 50 | B55: เชียงใหม่ | C55: 1550061487 | D55: องค์การบริหารส่วนตำบลบ่อสลี | E55: 204 | F55: 0 | G55: 0 | H55: 2 | I55: 206 | J55: 206 | K55: 0 | L55: 206 | M55: 0
A56: 51 | B56: เชียงใหม่ | C56: 1550061488 | D56: องค์การบริหารส่วนตำบลนาคอเรือ | E56: 179 | F56: 0 | G56: 1 | H56: 0 | I56: 180 | J56: 180 | K56: 0 | L56: 180 | M56: 0
A57: 52 | B57: เชียงใหม่ | C57: 1550061510 | D57: องค์การบริหารส่วนตำบลแช่ช้าง | E57: 103 | F57: 0 | G57: 0 | H57: 0 | I57: 103 | J57: 103 | K57: 0 | L57: 103 | M57: 0
A58: 53 | B58: เชียงใหม่ | C58: 1550061515 | D58: องค์การบริหารส่วนตำบลสันทราย อ. พร้าว จ. เชียงใหม่ | E58: 138 | F58: 0 | G58: 0 | H58: 0 | I58: 138 | J58: 138 | K58: 0 | L58: 138 | M58: 0
A59: 54 | B59: เชียงใหม่ | C59: 1550061519 | D59: องค์การบริหารส่วนตำบลสะเมิงเหนือ | E59: 186 | F59: 1 | G59: 0 | H59: 0 | I59: 187 | J59: 187 | K59: 0 | L59: 187 | M59: 0
A60: 55 | B60: เชียงใหม่ | C60: 1550061520 | D60: องค์การบริหารส่วนตำบลแม่สาบ | E60: 203 | F60: 1 | G60: 0 | H60: 0 | I60: 204 | J60: 204 | K60: 0 | L60: 204 | M60: 0
A61: 56 | B61: เชียงใหม่ | C61: 1550061521 | D61: องค์การบริหารส่วนตำบลบ่อแก้ว อ. สะเมิง จ. เชียงใหม่ | E61: 184 | F61: 0 | G61: 0 | H61: 0 | I61: 184 | J61: 183 | K61: 1 | L61: 184 | M61: 0 | N61: 1
A62: 57 | B62: เชียงใหม่ | C62: 1550061526 | D62: องค์การบริหารส่วนตำบลสะลวง | E62: 118 | F62: 0 | G62: 0 | H62: 0 | I62: 118 | J62: 118 | K62: 0 | L62: 118 | M62: 0
A63: 58 | B63: เชียงใหม่ | C63: 1550061530 | D63: องค์การบริหารส่วนตำบลแม่สูน | E63: 136 | F63: 0 | G63: 2 | H63: 0 | I63: 138 | J63: 136 | K63: 0 | L63: 136 | M63: -2
A64: 59 | B64: เชียงใหม่ | C64: 1550061538 | D64: องค์การบริหารส่วนตำบลดอนแก้ว | E64: 42 | F64: 0 | G64: 0 | H64: 0 | I64: 42 | J64: 42 | K64: 0 | L64: 42 | M64: 0
A65: 60 | B65: เชียงใหม่ | C65: 1550061549 | D65: องค์การบริหารส่วนตำบลเทพเสด็จ | E65: 45 | F65: 0 | G65: 0 | H65: 0 | I65: 45 | J65: 45 | K65: 0 | L65: 45 | M65: 0
A66: 61 | B66: เชียงใหม่ | C66: 1550061550 | D66: องค์การบริหารส่วนตำบลเชียงดาว | E66: 63 | F66: 0 | G66: 0 | H66: 0 | I66: 63 | J66: 63 | K66: 0 | L66: 63 | M66: 0
A67: 62 | B67: เชียงราย | C67: 1557051232 | D67: เทศบาลตำบลเจดีย์หลวง | E67: 143 | F67: 0 | G67: 4 | H67: 0 | I67: 147 | J67: 147 | K67: 2 | L67: 149 | M67: 2 | N67: 2
A68: 63 | B68: เชียงราย | C68: 1557051234 | D68: เทศบาลตำบลสันทราย อ. แม่จัน จ. เชียงราย | E68: 3 | F68: 0 | G68: 0 | H68: 0 | I68: 3 | J68: 3 | K68: 0 | L68: 3 | M68: 0
A69: 64 | B69: เชียงราย | C69: 1557051235 | D69: เทศบาลตำบลแม่คำ | E69: 31 | F69: 0 | G69: 0 | H69: 0 | I69: 31 | J69: 31 | K69: 0 | L69: 31 | M69: 0
A70: 65 | B70: เชียงราย | C70: 1557051250 | D70: เทศบาลตำบลดอยฮาง | E70: 5 | F70: 0 | G70: 0 | H70: 0 | I70: 5 | J70: 5 | K70: 0 | L70: 5 | M70: 0
A71: 66 | B71: เชียงราย | C71: 1557051266 | D71: เทศบาลตำบลดงมะดะ | E71: 55 | F71: 0 | G71: 0 | H71: 0 | I71: 55 | J71: 55 | K71: 0 | L71: 55 | M71: 0
A72: 67 | B72: เชียงราย | C72: 1557051273 | D72: เทศบาลตำบลบ้านแซว | E72: 9 | F72: 0 | G72: 0 | H72: 0 | I72: 9 | J72: 9 | K72: 0 | L72: 9 | M72: 0
A73: 68 | B73: เชียงราย | C73: 1557051279 | D73: เทศบาลตำบลสายน้ำคำ | E73: 60 | F73: 0 | G73: 0 | H73: 0 | I73: 60 | J73: 60 | K73: 0 | L73: 60 | M73: 0
A74: 69 | B74: เชียงราย | C74: 1557051283 | D74: เทศบาลตำบลม่วงยาย | E74: 41 | F74: 0 | G74: 0 | H74: 0 | I74: 41 | J74: 41 | K74: 0 | L74: 41 | M74: 0
A75: 70 | B75: เชียงราย | C75: 1557051286 | D75: เทศบาลตำบลท่าข้าม อ. เวียงแก่น จ. เชียงราย | E75: 133 | F75: 1 | G75: 0 | H75: 0 | I75: 134 | J75: 134 | K75: 0 | L75: 134 | M75: 0
A76: 71 | B76: เชียงราย | C76: 1557051303 | D76: เทศบาลตำบลสันมะเค็ด | E76: 201 | F76: 4 | G76: 1 | H76: 0 | I76: 206 | J76: 201 | K76: 0 | L76: 201 | M76: -5
A77: 72 | B77: เชียงราย | C77: 1557051312 | D77: เทศบาลตำบลท่าข้าวเปลือก | E77: 138 | F77: 2 | G77: 0 | H77: 0 | I77: 140 | J77: 140 | K77: 0 | L77: 140 | M77: 0
A78: 73 | B78: เชียงราย | C78: 1557051340 | D78: เทศบาลตำบลศรีโพธิ์เงิน | E78: 52 | F78: 0 | G78: 0 | H78: 0 | I78: 52 | J78: 52 | K78: 0 | L78: 52 | M78: 0
A79: 74 | B79: เชียงราย | C79: 1557051348 | D79: เทศบาลตำบลสันทราย อ. เมืองเชียงราย จ. เชียงราย | E79: 18 | F79: 0 | G79: 0 | H79: 0 | I79: 18 | J79: 18 | K79: 0 | L79: 18 | M79: 0
A80: 75 | B80: เชียงราย | C80: 1557051352 | D80: เทศบาลตำบลท่าสุด | E80: 78 | F80: 2 | G80: 0 | H80: 0 | I80: 80 | J80: 80 | K80: 0 | L80: 80 | M80: 0
A81: 76 | B81: เชียงราย | C81: 1557061248 | D81: องค์การบริหารส่วนตำบลดงมหาวัน | E81: 95 | F81: 1 | G81: 0 | H81: 0 | I81: 96 | J81: 96 | K81: 0 | L81: 96 | M81: 0
A82: 77 | B82: เชียงราย | C82: 1557061255 | D82: องค์การบริหารส่วนตำบลศรีดอนไชย | E82: 132 | F82: 0 | G82: 0 | H82: 0 | I82: 132 | J82: 132 | K82: 0 | L82: 132 | M82: 0
A83: 78 | B83: เชียงราย | C83: 1557061256 | D83: องค์การบริหารส่วนตำบลหนองแรด | E83: 66 | F83: 1 | G83: 0 | H83: 0 | I83: 67 | J83: 67 | K83: 0 | L83: 67 | M83: 0
A84: 79 | B84: เชียงราย | C84: 1557061267 | D84: องค์การบริหารส่วนตำบลจอมหมอกแก้ว | E84: 10 | F84: 0 | G84: 0 | H84: 0 | I84: 10 | J84: 10 | K84: 0 | L84: 10 | M84: 0
A85: 80 | B85: เชียงราย | C85: 1557061271 | D85: องค์การบริหารส่วนตำบลต้า | E85: 236 | F85: 0 | G85: 0 | H85: 0 | I85: 236 | J85: 236 | K85: 0 | L85: 236 | M85: 0
A86: 81 | B86: เชียงราย | C86: 1557061278 | D86: องค์การบริหารส่วนตำบลแม่จัน | E86: 71 | F86: 1 | G86: 0 | H86: 0 | I86: 72 | J86: 71 | K86: 0 | L86: 71 | M86: -1
A87: 82 | B87: เชียงราย | C87: 1557061284 | D87: องค์การบริหารส่วนตำบลปอ | E87: 179 | F87: 0 | G87: 0 | H87: 0 | I87: 179 | J87: 179 | K87: 1 | L87: 180 | M87: 1 | N87: 1
A88: 83 | B88: เชียงราย | C88: 1557061292 | D88: องค์การบริหารส่วนตำบลโชคชัย อ. ดอยหลวง จ. เชียงราย | E88: 106 | F88: 1 | G88: 0 | H88: 0 | I88: 107 | J88: 106 | K88: 1 | L88: 107 | M88: 0 | N88: 1
A89: 84 | B89: เชียงราย | C89: 1557061298 | D89: องค์การบริหารส่วนตำบลศรีถ้อย | E89: 92 | F89: 1 | G89: 3 | H89: 0 | I89: 96 | J89: 96 | K89: 0 | L89: 96 | M89: 0
A90: 85 | B90: เชียงราย | C90: 1557061301 | D90: องค์การบริหารส่วนตำบลเจดีย์หลวง | E90: 36 | F90: 0 | G90: 0 | H90: 0 | I90: 36 | J90: 36 | K90: 0 | L90: 36 | M90: 0
A91: 86 | B91: เชียงราย | C91: 1557061304 | D91: องค์การบริหารส่วนตำบลแม่อ้อ | E91: 85 | F91: 1 | G91: 0 | H91: 0 | I91: 86 | J91: 86 | K91: 0 | L91: 86 | M91: 0
A92: 87 | B92: เชียงราย | C92: 1557061306 | D92: องค์การบริหารส่วนตำบลสันติสุข | E92: 60 | F92: 0 | G92: 0 | H92: 0 | I92: 60 | J92: 60 | K92: 0 | L92: 60 | M92: 0
A93: 88 | B93: เชียงราย | C93: 1557061309 | D93: องค์การบริหารส่วนตำบลเจริญเมือง | E93: 8 | F93: 0 | G93: 0 | H93: 0 | I93: 8 | J93: 8 | K93: 0 | L93: 8 | M93: 0
A94: 89 | B94: เชียงราย | C94: 1557061310 | D94: องค์การบริหารส่วนตำบลป่าหุ่ง | E94: 9 | F94: 0 | G94: 0 | H94: 0 | I94: 9 | J94: 9 | K94: 0 | L94: 9 | M94: 0
A95: 90 | B95: เชียงราย | C95: 1557061311 | D95: องค์การบริหารส่วนตำบลสันทราย อ. แม่จัน จ. เชียงราย | E95: 32 | F95: 0 | G95: 0 | H95: 0 | I95: 32 | J95: 32 | K95: 0 | L95: 32 | M95: 0
A96: 91 | B96: เชียงราย | C96: 1557061314 | D96: องค์การบริหารส่วนตำบลศรีค้ำ | E96: 137 | F96: 1 | G96: 0 | H96: 0 | I96: 138 | J96: 138 | K96: 1 | L96: 139 | M96: 1 | O96: 1
A97: 92 | B97: เชียงราย | C97: 1557061317 | D97: องค์การบริหารส่วนตำบลทรายขาว อ. พาน จ. เชียงราย | E97: 232 | F97: 5 | G97: 1 | H97: 0 | I97: 238 | J97: 238 | K97: 0 | L97: 238 | M97: 0
A98: 93 | B98: เชียงราย | C98: 1557061320 | D98: องค์การบริหารส่วนตำบลเมืองพาน อ. พาน จ. เชียงราย | E98: 113 | F98: 1 | G98: 0 | H98: 0 | I98: 114 | J98: 113 | K98: 1 | L98: 114 | M98: 0 | N98: 1
A99: 94 | B99: เชียงราย | C99: 1557061321 | D99: องค์การบริหารส่วนตำบลทานตะวัน | E99: 110 | F99: 0 | G99: 0 | H99: 0 | I99: 110 | J99: 108 | K99: 2 | L99: 110 | M99: 0 | O99: 2
A100: 95 | B100: เชียงราย | C100: 1557061329 | D100: องค์การบริหารส่วนตำบลเวียง อ. เวียงป่าเป้า จ. เชียงราย | E100: 260 | F100: 0 | G100: 0 | H100: 0 | I100: 260 | J100: 260 | K100: 0 | L100: 260 | M100: 0
A101: 96 | B101: เชียงราย | C101: 1557061335 | D101: องค์การบริหารส่วนตำบลโป่งงาม | E101: 152 | F101: 2 | G101: 0 | H101: 0 | I101: 154 | J101: 154 | K101: 0 | L101: 154 | M101: 0
A102: 97 | B102: เชียงราย | C102: 1557061337 | D102: องค์การบริหารส่วนตำบลศรีเมืองชุม | E102: 37 | F102: 0 | G102: 0 | H102: 0 | I102: 37 | J102: 37 | K102: 0 | L102: 37 | M102: 0
A103: 98 | B103: เชียงราย | C103: 1557061341 | D103: องค์การบริหารส่วนตำบลเวียง อ. เทิง จ. เชียงราย | E103: 201 | F103: 0 | G103: 1 | H103: 0 | I103: 202 | J103: 202 | K103: 0 | L103: 202 | M103: 0
A104: 99 | B104: เชียงราย | C104: 1557061354 | D104: องค์การบริหารส่วนตำบลทุ่งก่อ | E104: 38 | F104: 0 | G104: 0 | H104: 0 | I104: 38 | J104: 38 | K104: 0 | L104: 38 | M104: 0
A105: 100 | B105: เพชรบุรี | C105: 1576054033 | D105: เทศบาลตำบลบางเก่า | E105: 106 | F105: 2 | G105: 0 | H105: 1 | I105: 109 | J105: 109 | K105: 0 | L105: 109 | M105: 0
A106: 101 | B106: เพชรบุรี | C106: 1576064017 | D106: องค์การบริหารส่วนตำบลไร่ส้ม | E106: 9 | F106: 0 | G106: 0 | H106: 0 | I106: 9 | J106: 9 | K106: 0 | L106: 9 | M106: 0
A107: 102 | B107: เพชรบุรี | C107: 1576064034 | D107: องค์การบริหารส่วนตำบลหนองศาลา | E107: 59 | F107: 0 | G107: 0 | H107: 0 | I107: 59 | J107: 59 | K107: 0 | L107: 59 | M107: 0
A108: 103 | B108: เพชรบุรี | C108: 1576064035 | D108: องค์การบริหารส่วนตำบลห้วยทรายเหนือ | E108: 52 | F108: 1 | G108: 1 | H108: 0 | I108: 54 | J108: 54 | K108: 0 | L108: 54 | M108: 0
A109: 104 | B109: เพชรบุรี | C109: 1576064037 | D109: องค์การบริหารส่วนตำบลพุสวรรค์ | E109: 19 | F109: 2 | G109: 0 | H109: 0 | I109: 21 | J109: 21 | K109: 0 | L109: 21 | M109: 0
A110: 105 | B110: เพชรบุรี | C110: 1576064041 | D110: องค์การบริหารส่วนตำบลแหลมผักเบี้ย | E110: 43 | F110: 1 | G110: 0 | H110: 0 | I110: 44 | J110: 44 | K110: 0 | L110: 44 | M110: 0
A111: 106 | B111: เพชรบุรี | C111: 1576064046 | D111: องค์การบริหารส่วนตำบลสองพี่น้อง อ. แก่งกระจาน จ. เพชรบุรี | E111: 51 | F111: 1 | G111: 0 | H111: 0 | I111: 52 | J111: 51 | K111: 0 | L111: 51 | M111: -1
A112: 107 | B112: เพชรบุรี | C112: 1576064047 | D112: องค์การบริหารส่วนตำบลวังจันทร์ อ. แก่งกระจาน จ. เพชรบุรี | E112: 4 | F112: 0 | G112: 0 | H112: 0 | I112: 4 | J112: 4 | K112: 0 | L112: 4 | M112: 0
A113: 108 | B113: เพชรบุรี | C113: 1576064054 | D113: องค์การบริหารส่วนตำบลไร่โคก | E113: 50 | F113: 0 | G113: 0 | H113: 0 | I113: 50 | J113: 50 | K113: 0 | L113: 50 | M113: 0
A114: 109 | B114: เพชรบุรี | C114: 1576064062 | D114: องค์การบริหารส่วนตำบลห้วยลึก อ. บ้านลาด จ. เพชรบุรี | E114: 12 | F114: 1 | G114: 0 | H114: 0 | I114: 13 | J114: 13 | K114: 0 | L114: 13 | M114: 0
A115: 110 | B115: เพชรบุรี | C115: 1576064065 | D115: องค์การบริหารส่วนตำบลท่าคอย | E115: 7 | F115: 0 | G115: 0 | H115: 0 | I115: 7 | J115: 7 | K115: 0 | L115: 7 | M115: 0
A116: 111 | B116: เพชรบุรี | C116: 1576064067 | D116: องค์การบริหารส่วนตำบลมาบปลาเค้า | E116: 79 | F116: 1 | G116: 0 | H116: 0 | I116: 80 | J116: 80 | K116: 0 | L116: 80 | M116: 0
A117: 112 | B117: เพชรบูรณ์ | C117: 1567044083 | D117: เทศบาลเมืองเพชรบูรณ์ | E117: 54 | F117: 1 | G117: 0 | H117: 0 | I117: 55 | J117: 55 | K117: 0 | L117: 55 | M117: 0
A118: 113 | B118: เพชรบูรณ์ | C118: 1567044099 | D118: เทศบาลเมืองวิเชียรบุรี | E118: 2 | F118: 0 | G118: 0 | H118: 0 | I118: 2 | J118: 2 | K118: 0 | L118: 2 | M118: 0
A119: 114 | B119: เพชรบูรณ์ | C119: 1567054085 | D119: เทศบาลตำบลวังชมภู | E119: 0 | F119: 1 | G119: 0 | H119: 0 | I119: 1 | J119: 1 | K119: 0 | L119: 1 | M119: 0
A120: 115 | B120: เพชรบูรณ์ | C120: 1567054094 | D120: เทศบาลตำบลบัววัฒนา | E120: 43 | F120: 0 | G120: 0 | H120: 0 | I120: 43 | J120: 43 | K120: 0 | L120: 43 | M120: 0
A121: 116 | B121: เพชรบูรณ์ | C121: 1567054117 | D121: เทศบาลตำบลศาลาลาย | E121: 186 | F121: 3 | G121: 0 | H121: 0 | I121: 189 | J121: 189 | K121: 0 | L121: 189 | M121: 0
A122: 117 | B122: เพชรบูรณ์ | C122: 1567064115 | D122: องค์การบริหารส่วนตำบลซับพุทรา | E122: 13 | F122: 0 | G122: 0 | H122: 0 | I122: 13 | J122: 13 | K122: 0 | L122: 13 | M122: 0
A123: 118 | B123: เพชรบูรณ์ | C123: 1567064118 | D123: องค์การบริหารส่วนตำบลตะเบาะ | E123: 156 | F123: 0 | G123: 0 | H123: 0 | I123: 156 | J123: 156 | K123: 0 | L123: 156 | M123: 0
A124: 119 | B124: เพชรบูรณ์ | C124: 1567064122 | D124: องค์การบริหารส่วนตำบลห้วยไร่ อ. หล่มสัก จ. เพชรบูรณ์ | E124: 7 | F124: 0 | G124: 0 | H124: 0 | I124: 7 | J124: 7 | K124: 0 | L124: 7 | M124: 0
A125: 120 | B125: เพชรบูรณ์ | C125: 1567064127 | D125: องค์การบริหารส่วนตำบลบุ่งคล้า อ. หล่มสัก จ. เพชรบูรณ์ | E125: 3 | F125: 0 | G125: 0 | H125: 0 | I125: 3 | J125: 3 | K125: 0 | L125: 3 | M125: 0
A126: 121 | B126: เพชรบูรณ์ | C126: 1567064129 | D126: องค์การบริหารส่วนตำบลซับน้อย | E126: 59 | F126: 0 | G126: 0 | H126: 0 | I126: 59 | J126: 59 | K126: 0 | L126: 59 | M126: 0
A127: 122 | B127: เพชรบูรณ์ | C127: 1567064131 | D127: องค์การบริหารส่วนตำบลยางสาว | E127: 105 | F127: 3 | G127: 1 | H127: 0 | I127: 109 | J127: 109 | K127: 0 | L127: 109 | M127: 0
A128: 123 | B128: เพชรบูรณ์ | C128: 1567064144 | D128: องค์การบริหารส่วนตำบลบึงสามพัน | E128: 1 | F128: 0 | G128: 0 | H128: 0 | I128: 1 | J128: 1 | K128: 0 | L128: 1 | M128: 0
A129: 124 | B129: เพชรบูรณ์ | C129: 1567064148 | D129: องค์การบริหารส่วนตำบลหนองแม่นา | E129: 1 | F129: 0 | G129: 0 | H129: 0 | I129: 1 | J129: 1 | K129: 0 | L129: 1 | M129: 0
A130: 125 | B130: เพชรบูรณ์ | C130: 1567064156 | D130: องค์การบริหารส่วนตำบลน้ำหนาว | E130: 86 | F130: 1 | G130: 0 | H130: 0 | I130: 87 | J130: 87 | K130: 0 | L130: 87 | M130: 0
A131: 126 | B131: เพชรบูรณ์ | C131: 1567064158 | D131: องค์การบริหารส่วนตำบลวังกวาง | E131: 18 | F131: 0 | G131: 0 | H131: 0 | I131: 18 | J131: 18 | K131: 0 | L131: 18 | M131: 0
A132: 127 | B132: เพชรบูรณ์ | C132: 1567064164 | D132: องค์การบริหารส่วนตำบลยางงาม | E132: 2 | F132: 0 | G132: 0 | H132: 0 | I132: 2 | J132: 2 | K132: 0 | L132: 2 | M132: 0
A133: 128 | B133: เพชรบูรณ์ | C133: 1567064172 | D133: องค์การบริหารส่วนตำบลนาสนุ่น | E133: 168 | F133: 2 | G133: 0 | H133: 0 | I133: 170 | J133: 170 | K133: 0 | L133: 170 | M133: 0
A134: 129 | B134: เพชรบูรณ์ | C134: 1567064173 | D134: องค์การบริหารส่วนตำบลหนองย่างทอย | E134: 3 | F134: 0 | G134: 0 | H134: 0 | I134: 3 | J134: 3 | K134: 0 | L134: 3 | M134: 0
A135: 130 | B135: เพชรบูรณ์ | C135: 1567064175 | D135: องค์การบริหารส่วนตำบลคลองกระจัง | E135: 1 | F135: 0 | G135: 0 | H135: 0 | I135: 1 | J135: 0 | K135: 1 | L135: 1 | M135: 0 | N135: 1
A136: 131 | B136: เพชรบูรณ์ | C136: 1567064177 | D136: องค์การบริหารส่วนตำบลสามแยก อ. วิเชียรบุรี จ. เพชรบูรณ์ | E136: 1 | F136: 0 | G136: 0 | H136: 0 | I136: 1 | J136: 1 | K136: 0 | L136: 1 | M136: 0
A137: 132 | B137: เพชรบูรณ์ | C137: 1567064182 | D137: องค์การบริหารส่วนตำบลพุขาม | E137: 188 | F137: 2 | G137: 0 | H137: 0 | I137: 190 | J137: 189 | K137: 1 | L137: 190 | M137: 0 | N137: 1
A138: 133 | B138: เพชรบูรณ์ | C138: 1567064183 | D138: องค์การบริหารส่วนตำบลภูน้ำหยด | E138: 27 | F138: 0 | G138: 0 | H138: 0 | I138: 27 | J138: 27 | K138: 0 | L138: 27 | M138: 0
A139: 134 | B139: เพชรบูรณ์ | C139: 1567064194 | D139: องค์การบริหารส่วนตำบลท่าอิบุญ | E139: 32 | F139: 0 | G139: 0 | H139: 0 | I139: 32 | J139: 32 | K139: 0 | L139: 32 | M139: 0
A140: 135 | B140: เพชรบูรณ์ | C140: 1567064201 | D140: องค์การบริหารส่วนตำบลชนแดน อ. ชนแดน จ. เพชรบูรณ์ | E140: 14 | F140: 0 | G140: 0 | H140: 0 | I140: 14 | J140: 14 | K140: 0 | L140: 14 | M140: 0
A141: 136 | B141: เลย | C141: 1542055415 | D141: เทศบาลตำบลธาตุ อ. เชียงคาน จ. เลย | E141: 339 | F141: 7 | G141: 1 | H141: 0 | I141: 347 | J141: 347 | K141: 0 | L141: 347 | M141: 0
A142: 137 | B142: แพร่ | C142: 1554064257 | D142: องค์การบริหารส่วนตำบลบ้านหนุน | E142: 1 | F142: 0 | G142: 0 | H142: 0 | I142: 1 | J142: 1 | K142: 0 | L142: 1 | M142: 0
A143: 138 | B143: แม่ฮ่องสอน | C143: 1558054510 | D143: เทศบาลตำบลปาย | E143: 28 | F143: 0 | G143: 0 | H143: 0 | I143: 28 | J143: 28 | K143: 0 | L143: 28 | M143: 0
A144: 139 | B144: แม่ฮ่องสอน | C144: 1558054533 | D144: เทศบาลตำบลแม่ยวม | E144: 22 | F144: 0 | G144: 0 | H144: 0 | I144: 22 | J144: 22 | K144: 0 | L144: 22 | M144: 0
A145: 140 | B145: แม่ฮ่องสอน | C145: 1558064512 | D145: องค์การบริหารส่วนตำบลแม่เงา | E145: 124 | F145: 0 | G145: 0 | H145: 0 | I145: 124 | J145: 124 | K145: 0 | L145: 124 | M145: 0
A146: 141 | B146: แม่ฮ่องสอน | C146: 1558064514 | D146: องค์การบริหารส่วนตำบลแม่กิ๊ | E146: 84 | F146: 1 | G146: 0 | H146: 0 | I146: 85 | J146: 85 | K146: 0 | L146: 85 | M146: 0
A147: 142 | B147: แม่ฮ่องสอน | C147: 1558064515 | D147: องค์การบริหารส่วนตำบลขุนแม่ลาน้อย | E147: 41 | F147: 1 | G147: 0 | H147: 1 | I147: 43 | J147: 43 | K147: 0 | L147: 43 | M147: 0
A148: 143 | B148: แม่ฮ่องสอน | C148: 1558064516 | D148: องค์การบริหารส่วนตำบลแม่นาจาง | E148: 90 | F148: 3 | G148: 0 | H148: 0 | I148: 93 | J148: 93 | K148: 0 | L148: 93 | M148: 0
A149: 144 | B149: แม่ฮ่องสอน | C149: 1558064517 | D149: องค์การบริหารส่วนตำบลแม่โถ | E149: 81 | F149: 0 | G149: 0 | H149: 0 | I149: 81 | J149: 81 | K149: 0 | L149: 81 | M149: 0
A150: 145 | B150: แม่ฮ่องสอน | C150: 1558064520 | D150: องค์การบริหารส่วนตำบลหมอกจำแป่ | E150: 172 | F150: 1 | G150: 0 | H150: 1 | I150: 174 | J150: 174 | K150: 0 | L150: 174 | M150: 0
A151: 146 | B151: แม่ฮ่องสอน | C151: 1558064523 | D151: องค์การบริหารส่วนตำบลปางหมู | E151: 51 | F151: 1 | G151: 0 | H151: 0 | I151: 52 | J151: 52 | K151: 0 | L151: 52 | M151: 0
A152: 147 | B152: แม่ฮ่องสอน | C152: 1558064524 | D152: องค์การบริหารส่วนตำบลสบป่อง | E152: 1 | F152: 0 | G152: 0 | H152: 0 | I152: 1 | J152: 1 | K152: 0 | L152: 1 | M152: 0
A153: 148 | B153: แม่ฮ่องสอน | C153: 1558064528 | D153: องค์การบริหารส่วนตำบลป่าโปง | E153: 95 | F153: 0 | G153: 2 | H153: 0 | I153: 97 | J153: 97 | K153: 0 | L153: 97 | M153: 0
A154: 149 | B154: แม่ฮ่องสอน | C154: 1558064539 | D154: องค์การบริหารส่วนตำบลกองก๋อย | E154: 98 | F154: 8 | G154: 0 | H154: 0 | I154: 106 | J154: 113 | K154: 0 | L154: 113 | M154: 7
A155: 150 | B155: แม่ฮ่องสอน | C155: 1558064543 | D155: องค์การบริหารส่วนตำบลแม่ฮี้ | E155: 97 | F155: 2 | G155: 0 | H155: 0 | I155: 99 | J155: 99 | K155: 0 | L155: 99 | M155: 0
A156: 151 | B156: แม่ฮ่องสอน | C156: 1558064544 | D156: องค์การบริหารส่วนตำบลทุ่งยาว อ. ปาย จ. แม่ฮ่องสอน | E156: 13 | F156: 0 | G156: 0 | H156: 0 | I156: 13 | J156: 13 | K156: 0 | L156: 13 | M156: 0
A157: 152 | B157: แม่ฮ่องสอน | C157: 1558064545 | D157: องค์การบริหารส่วนตำบลเมืองแปง | E157: 93 | F157: 0 | G157: 0 | H157: 0 | I157: 93 | J157: 93 | K157: 0 | L157: 93 | M157: 0
A158: 153 | B158: แม่ฮ่องสอน | C158: 1558064548 | D158: องค์การบริหารส่วนตำบลห้วยโป่ง อ. เมืองแม่ฮ่องสอน จ. แม่ฮ่องสอน | E158: 9 | F158: 0 | G158: 0 | H158: 0 | I158: 9 | J158: 9 | K158: 0 | L158: 9 | M158: 0
A159: 154 | B159: แม่ฮ่องสอน | C159: 1558064549 | D159: องค์การบริหารส่วนตำบลแม่ลาน้อย | E159: 27 | F159: 1 | G159: 0 | H159: 0 | I159: 28 | J159: 28 | K159: 0 | L159: 28 | M159: 0
A160: 155 | B160: แม่ฮ่องสอน | C160: 1558064550 | D160: องค์การบริหารส่วนตำบลท่าผาปุ้ม | E160: 3 | F160: 0 | G160: 0 | H160: 0 | I160: 3 | J160: 3 | K160: 0 | L160: 3 | M160: 0
A161: 156 | B161: แม่ฮ่องสอน | C161: 1558064553 | D161: องค์การบริหารส่วนตำบลแม่ยวมน้อย | E161: 97 | F161: 0 | G161: 0 | H161: 0 | I161: 97 | J161: 97 | K161: 0 | L161: 97 | M161: 0
A162: 157 | B162: กระบี่ | C162: 1581050006 | D162: เทศบาลตำบลคลองพน | E162: 8 | F162: 0 | G162: 0 | H162: 0 | I162: 8 | J162: 8 | K162: 0 | L162: 8 | M162: 0
A163: 158 | B163: กระบี่ | C163: 1581060053 | D163: องค์การบริหารส่วนตำบลคลองท่อมใต้ | E163: 2 | F163: 0 | G163: 0 | H163: 0 | I163: 2 | J163: 2 | K163: 0 | L163: 2 | M163: 0
A164: 159 | B164: กาญจนบุรี | C164: 1571050066 | D164: เทศบาลตำบลหนองบัว อ. เมืองกาญจนบุรี จ. กาญจนบุรี | E164: 107 | F164: 0 | G164: 0 | H164: 0 | I164: 107 | J164: 107 | K164: 0 | L164: 107 | M164: 0
A165: 160 | B165: กาญจนบุรี | C165: 1571050095 | D165: เทศบาลตำบลวังโพธิ์ | E165: 29 | F165: 0 | G165: 0 | H165: 0 | I165: 29 | J165: 29 | K165: 0 | L165: 29 | M165: 0
A166: 161 | B166: กาญจนบุรี | C166: 1571050121 | D166: เทศบาลตำบลหนองปลาไหล อ. หนองปรือ จ. กาญจนบุรี | E166: 8 | F166: 0 | G166: 0 | H166: 0 | I166: 8 | J166: 8 | K166: 0 | L166: 8 | M166: 0
A167: 162 | B167: กาญจนบุรี | C167: 1571060172 | D167: องค์การบริหารส่วนตำบลบ่อพลอย อ. บ่อพลอย จ. กาญจนบุรี | E167: 145 | F167: 0 | G167: 0 | H167: 0 | I167: 145 | J167: 145 | K167: 0 | L167: 145 | M167: 0
A168: 163 | B168: กาฬสินธุ์ | C168: 1546050185 | D168: เทศบาลตำบลลำคลอง | E168: 2 | F168: 0 | G168: 0 | H168: 0 | I168: 2 | J168: 2 | K168: 0 | L168: 2 | M168: 0
A169: 164 | B169: กาฬสินธุ์ | C169: 1546050187 | D169: เทศบาลตำบลนามน | E169: 21 | F169: 0 | G169: 0 | H169: 0 | I169: 21 | J169: 21 | K169: 0 | L169: 21 | M169: 0
A170: 165 | B170: กาฬสินธุ์ | C170: 1546050188 | D170: เทศบาลตำบลธัญญา | E170: 25 | F170: 0 | G170: 0 | H170: 0 | I170: 25 | J170: 25 | K170: 0 | L170: 25 | M170: 0
A171: 166 | B171: กาฬสินธุ์ | C171: 1546050189 | D171: เทศบาลตำบลร่องคำ | E171: 99 | F171: 3 | G171: 1 | H171: 0 | I171: 103 | J171: 103 | K171: 0 | L171: 103 | M171: 0
A172: 167 | B172: กาฬสินธุ์ | C172: 1546050194 | D172: เทศบาลตำบลอิตื้อ | E172: 2 | F172: 0 | G172: 0 | H172: 0 | I172: 2 | J172: 2 | K172: 0 | L172: 2 | M172: 0
A173: 168 | B173: กาฬสินธุ์ | C173: 1546050210 | D173: เทศบาลตำบลโนนน้ำเกลี้ยง | E173: 146 | F173: 0 | G173: 0 | H173: 0 | I173: 146 | J173: 145 | K173: 1 | L173: 146 | M173: 0 | O173: 1
A174: 169 | B174: กาฬสินธุ์ | C174: 1546050217 | D174: เทศบาลตำบลนาขาม | E174: 120 | F174: 2 | G174: 0 | H174: 0 | I174: 122 | J174: 120 | K174: 0 | L174: 120 | M174: -2
A175: 170 | B175: กาฬสินธุ์ | C175: 1546050218 | D175: เทศบาลตำบลกมลาไสย | E175: 171 | F175: 1 | G175: 0 | H175: 0 | I175: 172 | J175: 171 | K175: 0 | L175: 171 | M175: -1
A176: 171 | B176: กาฬสินธุ์ | C176: 1546050223 | D176: เทศบาลตำบลบึงวิชัย | E176: 413 | F176: 10 | G176: 2 | H176: 0 | I176: 425 | J176: 413 | K176: 0 | L176: 413 | M176: -12
A177: 172 | B177: กาฬสินธุ์ | C177: 1546050230 | D177: เทศบาลตำบลสงเปลือย อ. นามน จ. กาฬสินธุ์ | E177: 97 | F177: 0 | G177: 0 | H177: 0 | I177: 97 | J177: 97 | K177: 0 | L177: 97 | M177: 0
A178: 173 | B178: กาฬสินธุ์ | C178: 1546050233 | D178: เทศบาลตำบลเหนือ | E178: 11 | F178: 0 | G178: 0 | H178: 0 | I178: 11 | J178: 11 | K178: 0 | L178: 11 | M178: 0
A179: 174 | B179: กาฬสินธุ์ | C179: 1546050244 | D179: เทศบาลตำบลลำห้วยหลัว | E179: 81 | F179: 1 | G179: 0 | H179: 0 | I179: 82 | J179: 82 | K179: 0 | L179: 82 | M179: 0
A180: 175 | B180: กาฬสินธุ์ | C180: 1546050251 | D180: เทศบาลตำบลหนองบัว อ. หนองกุงศรี จ. กาฬสินธุ์ | E180: 3 | F180: 0 | G180: 0 | H180: 0 | I180: 3 | J180: 3 | K180: 0 | L180: 3 | M180: 0
A181: 176 | B181: กาฬสินธุ์ | C181: 1546050275 | D181: เทศบาลตำบลมหาไชย | E181: 4 | F181: 0 | G181: 0 | H181: 0 | I181: 4 | J181: 4 | K181: 0 | L181: 4 | M181: 0
A182: 177 | B182: กาฬสินธุ์ | C182: 1546050277 | D182: เทศบาลตำบลผาเสวย | E182: 192 | F182: 0 | G182: 0 | H182: 0 | I182: 192 | J182: 192 | K182: 0 | L182: 192 | M182: 0
A183: 178 | B183: กาฬสินธุ์ | C183: 1546050284 | D183: เทศบาลตำบลกุดจิก อ. ท่าคันโท จ. กาฬสินธุ์ | E183: 128 | F183: 3 | G183: 0 | H183: 0 | I183: 131 | J183: 131 | K183: 0 | L183: 131 | M183: 0
A184: 179 | B184: กาฬสินธุ์ | C184: 1546050292 | D184: เทศบาลตำบลโนนศิลา อ. สหัสขันธ์ จ. กาฬสินธุ์ | E184: 6 | F184: 0 | G184: 0 | H184: 0 | I184: 6 | J184: 6 | K184: 0 | L184: 6 | M184: 0
A185: 180 | B185: กาฬสินธุ์ | C185: 1546050299 | D185: เทศบาลตำบลสงเปลือย อ. เขาวง จ. กาฬสินธุ์ | E185: 53 | F185: 0 | G185: 0 | H185: 0 | I185: 53 | J185: 53 | K185: 0 | L185: 53 | M185: 0
A186: 181 | B186: กาฬสินธุ์ | C186: 1546050328 | D186: เทศบาลตำบลภูปอ | E186: 183 | F186: 2 | G186: 0 | H186: 0 | I186: 185 | J186: 183 | K186: 0 | L186: 183 | M186: -2
A187: 182 | B187: กาฬสินธุ์ | C187: 1546060266 | D187: องค์การบริหารส่วนตำบลสะอาดไชยศรี | E187: 9 | F187: 0 | G187: 0 | H187: 0 | I187: 9 | J187: 9 | K187: 0 | L187: 9 | M187: 0
A188: 183 | B188: กาฬสินธุ์ | C188: 1546060267 | D188: องค์การบริหารส่วนตำบลดงพยุง | E188: 218 | F188: 4 | G188: 3 | H188: 0 | I188: 225 | J188: 225 | K188: 0 | L188: 225 | M188: 0
A189: 184 | B189: กาฬสินธุ์ | C189: 1546060273 | D189: องค์การบริหารส่วนตำบลสมเด็จ | E189: 2 | F189: 0 | G189: 0 | H189: 0 | I189: 2 | J189: 2 | K189: 0 | L189: 2 | M189: 0
A190: 185 | B190: กาฬสินธุ์ | C190: 1546060274 | D190: องค์การบริหารส่วนตำบลหนองแวง อ. สมเด็จ จ. กาฬสินธุ์ | E190: 3 | F190: 1 | G190: 0 | H190: 0 | I190: 4 | J190: 4 | K190: 0 | L190: 4 | M190: 0
A191: 186 | B191: กาฬสินธุ์ | C191: 1546060276 | D191: องค์การบริหารส่วนตำบลหมูม่น อ. สมเด็จ จ. กาฬสินธุ์ | E191: 7 | F191: 0 | G191: 1 | H191: 0 | I191: 8 | J191: 13 | K191: 0 | L191: 13 | M191: 5
A192: 187 | B192: กาฬสินธุ์ | C192: 1546060300 | D192: องค์การบริหารส่วนตำบลหนองผือ อ. เขาวง จ. กาฬสินธุ์ | E192: 72 | F192: 0 | G192: 0 | H192: 0 | I192: 72 | J192: 72 | K192: 0 | L192: 72 | M192: 0
A193: 188 | B193: กาฬสินธุ์ | C193: 1546060302 | D193: องค์การบริหารส่วนตำบลคุ้มเก่า | E193: 125 | F193: 3 | G193: 0 | H193: 0 | I193: 128 | J193: 128 | K193: 0 | L193: 128 | M193: 0
A194: 189 | B194: กาฬสินธุ์ | C194: 1546060315 | D194: องค์การบริหารส่วนตำบลนาโก | E194: 37 | F194: 0 | G194: 0 | H194: 0 | I194: 37 | J194: 37 | K194: 0 | L194: 37 | M194: 0
A195: 190 | B195: กาฬสินธุ์ | C195: 1546060322 | D195: องค์การบริหารส่วนตำบลกมลาไสย | E195: 148 | F195: 3 | G195: 0 | H195: 0 | I195: 151 | J195: 151 | K195: 0 | L195: 151 | M195: 0
A196: 191 | B196: กาฬสินธุ์ | C196: 1546060325 | D196: องค์การบริหารส่วนตำบลธัญญา | E196: 10 | F196: 0 | G196: 0 | H196: 0 | I196: 10 | J196: 10 | K196: 0 | L196: 10 | M196: 0
A197: 192 | B197: กำแพงเพชร | C197: 1562050335 | D197: เทศบาลตำบลนิคมทุ่งโพธิ์ทะเล | E197: 174 | F197: 5 | G197: 1 | H197: 0 | I197: 180 | J197: 190 | K197: 0 | L197: 190 | M197: 10
A198: 193 | B198: กำแพงเพชร | C198: 1562050341 | D198: เทศบาลตำบลขาณุวรลักษบุรี | E198: 181 | F198: 0 | G198: 0 | H198: 0 | I198: 181 | J198: 181 | K198: 0 | L198: 181 | M198: 0
A199: 194 | B199: กำแพงเพชร | C199: 1562050345 | D199: เทศบาลตำบลช่องลม | E199: 7 | F199: 0 | G199: 0 | H199: 0 | I199: 7 | J199: 7 | K199: 0 | L199: 7 | M199: 0
A200: 195 | B200: กำแพงเพชร | C200: 1562050348 | D200: เทศบาลตำบลคลองพิไกร | E200: 74 | F200: 4 | G200: 0 | H200: 0 | I200: 78 | J200: 78 | K200: 0 | L200: 78 | M200: 0
A201: 196 | B201: กำแพงเพชร | C201: 1562050353 | D201: เทศบาลตำบลคลองลานพัฒนา | E201: 128 | F201: 3 | G201: 0 | H201: 0 | I201: 131 | J201: 128 | K201: 0 | L201: 128 | M201: -3
... 1083 more rows

Sheet 2.1 อปท. ส่งรายงานข้อมูลถูกต้อง
A1: รายละเอียดการตรวจสอบรายงานผลการจ่ายเงินโครงการกระตุ้นเศรษฐกิจ ปี 2567 ผ่านคนพิการ ขององค์กรปกครองส่วนท้องถิ่น กรณีการจ่ายเป็นเงินสด
A2: 2.1 อปท. ที่ส่งรายงานและรายงานข้อมูลผู้มีสิทธิถูกต้อง
A4: ลำดับ | B4: ชื่อจังหวัด | C4: รหัสหน่วยงาน | D4: ชื่อหน่วยงาน | E4: รายงาน บก. จ่ายเงิน (คน) | J4: รายงาน สถ. จ่ายเงิน (คน) | M4: ผลต่างรายงานของ | N4: จำนวนคน
E5: ครั้งที่ 1 | F5: ครั้งที่ 2 | G5: ครั้งที่ 3 | H5: ครั้งที่ 4 | I5: รวม | J5: จ่ายสำเร็จ | K5: จ่ายไม่สำเร็จ | L5: รวม | M5: บก. - สถ. (คน) | N5: คืนแล้ว | O5: ยังไม่คืน | P5: คืนไม่ครบ
A6: 1 | B6: เชียงใหม่ | C6: 1550051361 | D6: เทศบาลตำบลสุเทพ | E6: 4 | F6: 0 | G6: 0 | H6: 0 | I6: 4 | J6: 4 | K6: 0 | L6: 4 | M6: 0
A7: 2 | B7: เชียงใหม่ | C7: 1550051367 | D7: เทศบาลตำบลเมืองนะ | E7: 186 | F7: 0 | G7: 0 | H7: 0 | I7: 186 | J7: 185 | K7: 1 | L7: 186 | M7: 0 | N7: 1
A8: 3 | B8: เชียงใหม่ | C8: 1550051368 | D8: เทศบาลตำบลเมืองงาย | E8: 87 | F8: 0 | G8: 0 | H8: 0 | I8: 87 | J8: 87 | K8: 0 | L8: 87 | M8: 0
A9: 4 | B9: เชียงใหม่ | C9: 1550051369 | D9: เทศบาลตำบลพระธาตุปู่ก่ำ | E9: 29 | F9: 0 | G9: 0 | H9: 0 | I9: 29 | J9: 29 | K9: 0 | L9: 29 | M9: 0
A10: 5 | B10: เชียงใหม่ | C10: 1550051370 | D10: เทศบาลตำบลปิงโค้ง | E10: 154 | F10: 0 | G10: 0 | H10: 0 | I10: 154 | J10: 154 | K10: 0 | L10: 154 | M10: 0
A11: 6 | B11: เชียงใหม่ | C11: 1550051371 | D11: เทศบาลตำบลทุ่งข้าวพวง | E11: 99 | F11: 0 | G11: 0 | H11: 0 | I11: 99 | J11: 99 | K11: 0 | L11: 99 | M11: 0
A12: 7 | B12: เชียงใหม่ | C12: 1550051379 | D12: เทศบาลตำบลแม่ปูคา | E12: 110 | F12: 1 | G12: 0 | H12: 0 | I12: 111 | J12: 111 | K12: 0 | L12: 111 | M12: 0
A13: 8 | B13: เชียงใหม่ | C13: 1550051387 | D13: เทศบาลตำบลสง่าบ้าน | E13: 50 | F13: 0 | G13: 0 | H13: 0 | I13: 50 | J13: 50 | K13: 0 | L13: 50 | M13: 0
A14: 9 | B14: เชียงใหม่ | C14: 1550051394 | D14: เทศบาลตำบลบ้านกลาง อ. สันป่าตอง จ. เชียงใหม่ | E14: 151 | F14: 0 | G14: 0 | H14: 0 | I14: 151 | J14: 151 | K14: 0 | L14: 151 | M14: 0
A15: 10 | B15: เชียงใหม่ | C15: 1550051395 | D15: เทศบาลตำบลสันป่าตอง | E15: 33 | F15: 0 | G15: 0 | H15: 0 | I15: 33 | J15: 33 | K15: 0 | L15: 33 | M15: 0
A16: 11 | B16: เชียงใหม่ | C16: 1550051398 | D16: เทศบาลตำบลแม่อาย | E16: 75 | F16: 1 | G16: 1 | H16: 0 | I16: 77 | J16: 77 | K16: 0 | L16: 77 | M16: 0
A17: 12 | B17: เชียงใหม่ | C17: 1550051407 | D17: เทศบาลตำบลบ่อหลวง | E17: 2 | F17: 0 | G17: 0 | H17: 0 | I17: 2 | J17: 2 | K17: 0 | L17: 2 | M17: 0
A18: 13 | B18: เชียงใหม่ | C18: 1550051413 | D18: เทศบาลตำบลบ้านแปะ | E18: 445 | F18: 9 | G18: 4 | H18: 0 | I18: 458 | J18: 458 | K18: 0 | L18: 458 | M18: 0
A19: 14 | B19: เชียงใหม่ | C19: 1550051442 | D19: เทศบาลตำบลทุ่งสะโตก | E19: 21 | F19: 2 | G19: 0 | H19: 0 | I19: 23 | J19: 23 | K19: 0 | L19: 23 | M19: 0
A20: 15 | B20: เชียงใหม่ | C20: 1550051443 | D20: เทศบาลตำบลทุ่งต้อม | E20: 104 | F20: 2 | G20: 2 | H20: 0 | I20: 108 | J20: 107 | K20: 1 | L20: 108 | M20: 0 | N20: 1
A21: 16 | B21: เชียงใหม่ | C21: 1550051462 | D21: เทศบาลตำบลหนองบัว อ. ไชยปราการ จ. เชียงใหม่ | E21: 47 | F21: 0 | G21: 0 | H21: 0 | I21: 47 | J21: 47 | K21: 0 | L21: 47 | M21: 0
A22: 17 | B22: เชียงใหม่ | C22: 1550051468 | D22: เทศบาลตำบลท่ากว้าง | E22: 81 | F22: 0 | G22: 0 | H22: 0 | I22: 81 | J22: 81 | K22: 0 | L22: 81 | M22: 0
A23: 18 | B23: เชียงใหม่ | C23: 1550051508 | D23: เทศบาลตำบลห้วยทราย | E23: 124 | F23: 0 | G23: 0 | H23: 0 | I23: 124 | J23: 123 | K23: 1 | L23: 124 | M23: 0 | N23: 1
A24: 19 | B24: เชียงใหม่ | C24: 1550051509 | D24: เทศบาลตำบลสันกลาง | E24: 2 | F24: 0 | G24: 0 | H24: 0 | I24: 2 | J24: 2 | K24: 0 | L24: 2 | M24: 0
A25: 20 | B25: เชียงใหม่ | C25: 1550051511 | D25: เทศบาลตำบลบ้านแม | E25: 7 | F25: 0 | G25: 0 | H25: 0 | I25: 7 | J25: 7 | K25: 0 | L25: 7 | M25: 0
A26: 21 | B26: เชียงใหม่ | C26: 1550051516 | D26: เทศบาลตำบลบ้านโป่ง | E26: 147 | F26: 0 | G26: 0 | H26: 0 | I26: 147 | J26: 147 | K26: 0 | L26: 147 | M26: 0
A27: 22 | B27: เชียงใหม่ | C27: 1550051531 | D27: เทศบาลตำบลสันทราย อ. ฝาง จ. เชียงใหม่ | E27: 100 | F27: 0 | G27: 0 | H27: 0 | I27: 100 | J27: 100 | K27: 0 | L27: 100 | M27: 0
A28: 23 | B28: เชียงใหม่ | C28: 1550051533 | D28: เทศบาลตำบลแม่ข่า | E28: 41 | F28: 4 | G28: 1 | H28: 0 | I28: 46 | J28: 46 | K28: 0 | L28: 46 | M28: 0
A29: 24 | B29: เชียงใหม่ | C29: 1550051547 | D29: เทศบาลตำบลแม่ฮ้อยเงิน | E29: 44 | F29: 0 | G29: 0 | H29: 0 | I29: 44 | J29: 44 | K29: 0 | L29: 44 | M29: 0
A30: 25 | B30: เชียงใหม่ | C30: 1550051548 | D30: เทศบาลตำบลป่าเมี่ยง | E30: 80 | F30: 2 | G30: 0 | H30: 0 | I30: 82 | J30: 82 | K30: 0 | L30: 82 | M30: 0
A31: 26 | B31: เชียงใหม่ | C31: 1550061414 | D31: องค์การบริหารส่วนตำบลข่วงเปา | E31: 160 | F31: 0 | G31: 1 | H31: 0 | I31: 161 | J31: 161 | K31: 0 | L31: 161 | M31: 0
A32: 27 | B32: เชียงใหม่ | C32: 1550061415 | D32: องค์การบริหารส่วนตำบลแม่แดด | E32: 14 | F32: 2 | G32: 0 | H32: 0 | I32: 16 | J32: 16 | K32: 0 | L32: 16 | M32: 0
A33: 28 | B33: เชียงใหม่ | C33: 1550061423 | D33: องค์การบริหารส่วนตำบลเมืองก๋าย | E33: 38 | F33: 0 | G33: 0 | H33: 0 | I33: 38 | J33: 38 | K33: 0 | L33: 38 | M33: 0
A34: 29 | B34: เชียงใหม่ | C34: 1550061427 | D34: องค์การบริหารส่วนตำบลแม่แวน | E34: 124 | F34: 2 | G34: 0 | H34: 0 | I34: 126 | J34: 126 | K34: 0 | L34: 126 | M34: 0
A35: 30 | B35: เชียงใหม่ | C35: 1550061429 | D35: องค์การบริหารส่วนตำบลดอยลาง | E35: 55 | F35: 0 | G35: 0 | H35: 0 | I35: 55 | J35: 55 | K35: 0 | L35: 55 | M35: 0
A36: 31 | B36: เชียงใหม่ | C36: 1550061431 | D36: องค์การบริหารส่วนตำบลสันต้นหมื้อ | E36: 4 | F36: 0 | G36: 0 | H36: 0 | I36: 4 | J36: 4 | K36: 0 | L36: 4 | M36: 0
A37: 32 | B37: เชียงใหม่ | C37: 1550061433 | D37: องค์การบริหารส่วนตำบลท่าตอน | E37: 4 | F37: 0 | G37: 0 | H37: 0 | I37: 4 | J37: 4 | K37: 0 | L37: 4 | M37: 0
A38: 33 | B38: เชียงใหม่ | C38: 1550061435 | D38: องค์การบริหารส่วนตำบลโป่งน้ำร้อน อ. ฝาง จ. เชียงใหม่ | E38: 10 | F38: 0 | G38: 0 | H38: 0 | I38: 10 | J38: 10 | K38: 0 | L38: 10 | M38: 0
A39: 34 | B39: เชียงใหม่ | C39: 1550061437 | D39: องค์การบริหารส่วนตำบลสันกลาง อ. สันป่าตอง จ. เชียงใหม่ | E39: 70 | F39: 0 | G39: 0 | H39: 0 | I39: 70 | J39: 70 | K39: 0 | L39: 70 | M39: 0
A40: 35 | B40: เชียงใหม่ | C40: 1550061438 | D40: องค์การบริหารส่วนตำบลท่าวังพร้าว | E40: 64 | F40: 0 | G40: 0 | H40: 0 | I40: 64 | J40: 64 | K40: 0 | L40: 64 | M40: 0
A41: 36 | B41: เชียงใหม่ | C41: 1550061440 | D41: องค์การบริหารส่วนตำบลแม่ก๊า | E41: 191 | F41: 0 | G41: 0 | H41: 0 | I41: 191 | J41: 191 | K41: 0 | L41: 191 | M41: 0
A42: 37 | B42: เชียงใหม่ | C42: 1550061450 | D42: องค์การบริหารส่วนตำบลออนกลาง | E42: 2 | F42: 0 | G42: 0 | H42: 0 | I42: 2 | J42: 2 | K42: 0 | L42: 2 | M42: 0
A43: 38 | B43: เชียงใหม่ | C43: 1550061451 | D43: องค์การบริหารส่วนตำบลบ้านสหกรณ์ | E43: 78 | F43: 0 | G43: 0 | H43: 0 | I43: 78 | J43: 78 | K43: 0 | L43: 78 | M43: 0
A44: 39 | B44: เชียงใหม่ | C44: 1550061454 | D44: องค์การบริหารส่วนตำบลทาเหนือ | E44: 128 | F44: 0 | G44: 0 | H44: 0 | I44: 128 | J44: 128 | K44: 0 | L44: 128 | M44: 0
A45: 40 | B45: เชียงใหม่ | C45: 1550061458 | D45: องค์การบริหารส่วนตำบลแม่วิน | E45: 93 | F45: 2 | G45: 0 | H45: 0 | I45: 95 | J45: 95 | K45: 0 | L45: 95 | M45: 0
A46: 41 | B46: เชียงใหม่ | C46: 1550061461 | D46: องค์การบริหารส่วนตำบลแม่ทะลบ | E46: 137 | F46: 0 | G46: 5 | H46: 0 | I46: 142 | J46: 141 | K46: 1 | L46: 142 | M46: 0 | N46: 1
A47: 42 | B47: เชียงใหม่ | C47: 1550061481 | D47: องค์การบริหารส่วนตำบลท่าเดื่อ | E47: 4 | F47: 1 | G47: 0 | H47: 0 | I47: 5 | J47: 5 | K47: 0 | L47: 5 | M47: 0
A48: 43 | B48: เชียงใหม่ | C48: 1550061485 | D48: องค์การบริหารส่วนตำบลหางดง | E48: 73 | F48: 0 | G48: 0 | H48: 0 | I48: 73 | J48: 73 | K48: 0 | L48: 73 | M48: 0
A49: 44 | B49: เชียงใหม่ | C49: 1550061486 | D49: องค์การบริหารส่วนตำบลฮอด | E49: 122 | F49: 0 | G49: 3 | H49: 0 | I49: 125 | J49: 125 | K49: 0 | L49: 125 | M49: 0
A50: 45 | B50: เชียงใหม่ | C50: 1550061487 | D50: องค์การบริหารส่วนตำบลบ่อสลี | E50: 204 | F50: 0 | G50: 0 | H50: 2 | I50: 206 | J50: 206 | K50: 0 | L50: 206 | M50: 0
A51: 46 | B51: เชียงใหม่ | C51: 1550061488 | D51: องค์การบริหารส่วนตำบลนาคอเรือ | E51: 179 | F51: 0 | G51: 1 | H51: 0 | I51: 180 | J51: 180 | K51: 0 | L51: 180 | M51: 0
A52: 47 | B52: เชียงใหม่ | C52: 1550061510 | D52: องค์การบริหารส่วนตำบลแช่ช้าง | E52: 103 | F52: 0 | G52: 0 | H52: 0 | I52: 103 | J52: 103 | K52: 0 | L52: 103 | M52: 0
A53: 48 | B53: เชียงใหม่ | C53: 1550061515 | D53: องค์การบริหารส่วนตำบลสันทราย อ. พร้าว จ. เชียงใหม่ | E53: 138 | F53: 0 | G53: 0 | H53: 0 | I53: 138 | J53: 138 | K53: 0 | L53: 138 | M53: 0
A54: 49 | B54: เชียงใหม่ | C54: 1550061519 | D54: องค์การบริหารส่วนตำบลสะเมิงเหนือ | E54: 186 | F54: 1 | G54: 0 | H54: 0 | I54: 187 | J54: 187 | K54: 0 | L54: 187 | M54: 0
A55: 50 | B55: เชียงใหม่ | C55: 1550061520 | D55: องค์การบริหารส่วนตำบลแม่สาบ | E55: 203 | F55: 1 | G55: 0 | H55: 0 | I55: 204 | J55: 204 | K55: 0 | L55: 204 | M55: 0
A56: 51 | B56: เชียงใหม่ | C56: 1550061521 | D56: องค์การบริหารส่วนตำบลบ่อแก้ว อ. สะเมิง จ. เชียงใหม่ | E56: 184 | F56: 0 | G56: 0 | H56: 0 | I56: 184 | J56: 183 | K56: 1 | L56: 184 | M56: 0 | N56: 1
A57: 52 | B57: เชียงใหม่ | C57: 1550061526 | D57: องค์การบริหารส่วนตำบลสะลวง | E57: 118 | F57: 0 | G57: 0 | H57: 0 | I57: 118 | J57: 118 | K57: 0 | L57: 118 | M57: 0
A58: 53 | B58: เชียงใหม่ | C58: 1550061538 | D58: องค์การบริหารส่วนตำบลดอนแก้ว | E58: 42 | F58: 0 | G58: 0 | H58: 0 | I58: 42 | J58: 42 | K58: 0 | L58: 42 | M58: 0
A59: 54 | B59: เชียงใหม่ | C59: 1550061549 | D59: องค์การบริหารส่วนตำบลเทพเสด็จ | E59: 45 | F59: 0 | G59: 0 | H59: 0 | I59: 45 | J59: 45 | K59: 0 | L59: 45 | M59: 0
A60: 55 | B60: เชียงใหม่ | C60: 1550061550 | D60: องค์การบริหารส่วนตำบลเชียงดาว | E60: 63 | F60: 0 | G60: 0 | H60: 0 | I60: 63 | J60: 63 | K60: 0 | L60: 63 | M60: 0
A61: 56 | B61: เชียงราย | C61: 1557051234 | D61: เทศบาลตำบลสันทราย อ. แม่จัน จ. เชียงราย | E61: 3 | F61: 0 | G61: 0 | H61: 0 | I61: 3 | J61: 3 | K61: 0 | L61: 3 | M61: 0
A62: 57 | B62: เชียงราย | C62: 1557051235 | D62: เทศบาลตำบลแม่คำ | E62: 31 | F62: 0 | G62: 0 | H62: 0 | I62: 31 | J62: 31 | K62: 0 | L62: 31 | M62: 0
A63: 58 | B63: เชียงราย | C63: 1557051250 | D63: เทศบาลตำบลดอยฮาง | E63: 5 | F63: 0 | G63: 0 | H63: 0 | I63: 5 | J63: 5 | K63: 0 | L63: 5 | M63: 0
A64: 59 | B64: เชียงราย | C64: 1557051266 | D64: เทศบาลตำบลดงมะดะ | E64: 55 | F64: 0 | G64: 0 | H64: 0 | I64: 55 | J64: 55 | K64: 0 | L64: 55 | M64: 0
A65: 60 | B65: เชียงราย | C65: 1557051273 | D65: เทศบาลตำบลบ้านแซว | E65: 9 | F65: 0 | G65: 0 | H65: 0 | I65: 9 | J65: 9 | K65: 0 | L65: 9 | M65: 0
A66: 61 | B66: เชียงราย | C66: 1557051279 | D66: เทศบาลตำบลสายน้ำคำ | E66: 60 | F66: 0 | G66: 0 | H66: 0 | I66: 60 | J66: 60 | K66: 0 | L66: 60 | M66: 0
A67: 62 | B67: เชียงราย | C67: 1557051283 | D67: เทศบาลตำบลม่วงยาย | E67: 41 | F67: 0 | G67: 0 | H67: 0 | I67: 41 | J67: 41 | K67: 0 | L67: 41 | M67: 0
A68: 63 | B68: เชียงราย | C68: 1557051286 | D68: เทศบาลตำบลท่าข้าม อ. เวียงแก่น จ. เชียงราย | E68: 133 | F68: 1 | G68: 0 | H68: 0 | I68: 134 | J68: 134 | K68: 0 | L68: 134 | M68: 0
A69: 64 | B69: เชียงราย | C69: 1557051312 | D69: เทศบาลตำบลท่าข้าวเปลือก | E69: 138 | F69: 2 | G69: 0 | H69: 0 | I69: 140 | J69: 140 | K69: 0 | L69: 140 | M69: 0
A70: 65 | B70: เชียงราย | C70: 1557051340 | D70: เทศบาลตำบลศรีโพธิ์เงิน | E70: 52 | F70: 0 | G70: 0 | H70: 0 | I70: 52 | J70: 52 | K70: 0 | L70: 52 | M70: 0
A71: 66 | B71: เชียงราย | C71: 1557051348 | D71: เทศบาลตำบลสันทราย อ. เมืองเชียงราย จ. เชียงราย | E71: 18 | F71: 0 | G71: 0 | H71: 0 | I71: 18 | J71: 18 | K71: 0 | L71: 18 | M71: 0
A72: 67 | B72: เชียงราย | C72: 1557051352 | D72: เทศบาลตำบลท่าสุด | E72: 78 | F72: 2 | G72: 0 | H72: 0 | I72: 80 | J72: 80 | K72: 0 | L72: 80 | M72: 0
A73: 68 | B73: เชียงราย | C73: 1557061248 | D73: องค์การบริหารส่วนตำบลดงมหาวัน | E73: 95 | F73: 1 | G73: 0 | H73: 0 | I73: 96 | J73: 96 | K73: 0 | L73: 96 | M73: 0
A74: 69 | B74: เชียงราย | C74: 1557061255 | D74: องค์การบริหารส่วนตำบลศรีดอนไชย | E74: 132 | F74: 0 | G74: 0 | H74: 0 | I74: 132 | J74: 132 | K74: 0 | L74: 132 | M74: 0
A75: 70 | B75: เชียงราย | C75: 1557061256 | D75: องค์การบริหารส่วนตำบลหนองแรด | E75: 66 | F75: 1 | G75: 0 | H75: 0 | I75: 67 | J75: 67 | K75: 0 | L75: 67 | M75: 0
A76: 71 | B76: เชียงราย | C76: 1557061267 | D76: องค์การบริหารส่วนตำบลจอมหมอกแก้ว | E76: 10 | F76: 0 | G76: 0 | H76: 0 | I76: 10 | J76: 10 | K76: 0 | L76: 10 | M76: 0
A77: 72 | B77: เชียงราย | C77: 1557061271 | D77: องค์การบริหารส่วนตำบลต้า | E77: 236 | F77: 0 | G77: 0 | H77: 0 | I77: 236 | J77: 236 | K77: 0 | L77: 236 | M77: 0
A78: 73 | B78: เชียงราย | C78: 1557061292 | D78: องค์การบริหารส่วนตำบลโชคชัย อ. ดอยหลวง จ. เชียงราย | E78: 106 | F78: 1 | G78: 0 | H78: 0 | I78: 107 | J78: 106 | K78: 1 | L78: 107 | M78: 0 | N78: 1
A79: 74 | B79: เชียงราย | C79: 1557061298 | D79: องค์การบริหารส่วนตำบลศรีถ้อย | E79: 92 | F79: 1 | G79: 3 | H79: 0 | I79: 96 | J79: 96 | K79: 0 | L79: 96 | M79: 0
A80: 75 | B80: เชียงราย | C80: 1557061301 | D80: องค์การบริหารส่วนตำบลเจดีย์หลวง | E80: 36 | F80: 0 | G80: 0 | H80: 0 | I80: 36 | J80: 36 | K80: 0 | L80: 36 | M80: 0
A81: 76 | B81: เชียงราย | C81: 1557061304 | D81: องค์การบริหารส่วนตำบลแม่อ้อ | E81: 85 | F81: 1 | G81: 0 | H81: 0 | I81: 86 | J81: 86 | K81: 0 | L81: 86 | M81: 0
A82: 77 | B82: เชียงราย | C82: 1557061306 | D82: องค์การบริหารส่วนตำบลสันติสุข | E82: 60 | F82: 0 | G82: 0 | H82: 0 | I82: 60 | J82: 60 | K82: 0 | L82: 60 | M82: 0
A83: 78 | B83: เชียงราย | C83: 1557061309 | D83: องค์การบริหารส่วนตำบลเจริญเมือง | E83: 8 | F83: 0 | G83: 0 | H83: 0 | I83: 8 | J83: 8 | K83: 0 | L83: 8 | M83: 0
A84: 79 | B84: เชียงราย | C84: 1557061310 | D84: องค์การบริหารส่วนตำบลป่าหุ่ง | E84: 9 | F84: 0 | G84: 0 | H84: 0 | I84: 9 | J84: 9 | K84: 0 | L84: 9 | M84: 0
A85: 80 | B85: เชียงราย | C85: 1557061311 | D85: องค์การบริหารส่วนตำบลสันทราย อ. แม่จัน จ. เชียงราย | E85: 32 | F85: 0 | G85: 0 | H85: 0 | I85: 32 | J85: 32 | K85: 0 | L85: 32 | M85: 0
A86: 81 | B86: เชียงราย | C86: 1557061317 | D86: องค์การบริหารส่วนตำบลทรายขาว อ. พาน จ. เชียงราย | E86: 232 | F86: 5 | G86: 1 | H86: 0 | I86: 238 | J86: 238 | K86: 0 | L86: 238 | M86: 0
A87: 82 | B87: เชียงราย | C87: 1557061320 | D87: องค์การบริหารส่วนตำบลเมืองพาน อ. พาน จ. เชียงราย | E87: 113 | F87: 1 | G87: 0 | H87: 0 | I87: 114 | J87: 113 | K87: 1 | L87: 114 | M87: 0 | N87: 1
A88: 83 | B88: เชียงราย | C88: 1557061321 | D88: องค์การบริหารส่วนตำบลทานตะวัน | E88: 110 | F88: 0 | G88: 0 | H88: 0 | I88: 110 | J88: 108 | K88: 2 | L88: 110 | M88: 0 | O88: 2
A89: 84 | B89: เชียงราย | C89: 1557061329 | D89: องค์การบริหารส่วนตำบลเวียง อ. เวียงป่าเป้า จ. เชียงราย | E89: 260 | F89: 0 | G89: 0 | H89: 0 | I89: 260 | J89: 260 | K89: 0 | L89: 260 | M89: 0
A90: 85 | B90: เชียงราย | C90: 1557061335 | D90: องค์การบริหารส่วนตำบลโป่งงาม | E90: 152 | F90: 2 | G90: 0 | H90: 0 | I90: 154 | J90: 154 | K90: 0 | L90: 154 | M90: 0
A91: 86 | B91: เชียงราย | C91: 1557061337 | D91: องค์การบริหารส่วนตำบลศรีเมืองชุม | E91: 37 | F91: 0 | G91: 0 | H91: 0 | I91: 37 | J91: 37 | K91: 0 | L91: 37 | M91: 0
A92: 87 | B92: เชียงราย | C92: 1557061341 | D92: องค์การบริหารส่วนตำบลเวียง อ. เทิง จ. เชียงราย | E92: 201 | F92: 0 | G92: 1 | H92: 0 | I92: 202 | J92: 202 | K92: 0 | L92: 202 | M92: 0
A93: 88 | B93: เชียงราย | C93: 1557061354 | D93: องค์การบริหารส่วนตำบลทุ่งก่อ | E93: 38 | F93: 0 | G93: 0 | H93: 0 | I93: 38 | J93: 38 | K93: 0 | L93: 38 | M93: 0
A94: 89 | B94: เพชรบุรี | C94: 1576054033 | D94: เทศบาลตำบลบางเก่า | E94: 106 | F94: 2 | G94: 0 | H94: 1 | I94: 109 | J94: 109 | K94: 0 | L94: 109 | M94: 0
A95: 90 | B95: เพชรบุรี | C95: 1576064017 | D95: องค์การบริหารส่วนตำบลไร่ส้ม | E95: 9 | F95: 0 | G95: 0 | H95: 0 | I95: 9 | J95: 9 | K95: 0 | L95: 9 | M95: 0
A96: 91 | B96: เพชรบุรี | C96: 1576064034 | D96: องค์การบริหารส่วนตำบลหนองศาลา | E96: 59 | F96: 0 | G96: 0 | H96: 0 | I96: 59 | J96: 59 | K96: 0 | L96: 59 | M96: 0
A97: 92 | B97: เพชรบุรี | C97: 1576064035 | D97: องค์การบริหารส่วนตำบลห้วยทรายเหนือ | E97: 52 | F97: 1 | G97: 1 | H97: 0 | I97: 54 | J97: 54 | K97: 0 | L97: 54 | M97: 0
A98: 93 | B98: เพชรบุรี | C98: 1576064037 | D98: องค์การบริหารส่วนตำบลพุสวรรค์ | E98: 19 | F98: 2 | G98: 0 | H98: 0 | I98: 21 | J98: 21 | K98: 0 | L98: 21 | M98: 0
A99: 94 | B99: เพชรบุรี | C99: 1576064041 | D99: องค์การบริหารส่วนตำบลแหลมผักเบี้ย | E99: 43 | F99: 1 | G99: 0 | H99: 0 | I99: 44 | J99: 44 | K99: 0 | L99: 44 | M99: 0
A100: 95 | B100: เพชรบุรี | C100: 1576064047 | D100: องค์การบริหารส่วนตำบลวังจันทร์ อ. แก่งกระจาน จ. เพชรบุรี | E100: 4 | F100: 0 | G100: 0 | H100: 0 | I100: 4 | J100: 4 | K100: 0 | L100: 4 | M100: 0
A101: 96 | B101: เพชรบุรี | C101: 1576064054 | D101: องค์การบริหารส่วนตำบลไร่โคก | E101: 50 | F101: 0 | G101: 0 | H101: 0 | I101: 50 | J101: 50 | K101: 0 | L101: 50 | M101: 0
A102: 97 | B102: เพชรบุรี | C102: 1576064062 | D102: องค์การบริหารส่วนตำบลห้วยลึก อ. บ้านลาด จ. เพชรบุรี | E102: 12 | F102: 1 | G102: 0 | H102: 0 | I102: 13 | J102: 13 | K102: 0 | L102: 13 | M102: 0
A103: 98 | B103: เพชรบุรี | C103: 1576064065 | D103: องค์การบริหารส่วนตำบลท่าคอย | E103: 7 | F103: 0 | G103: 0 | H103: 0 | I103: 7 | J103: 7 | K103: 0 | L103: 7 | M103: 0
A104: 99 | B104: เพชรบุรี | C104: 1576064067 | D104: องค์การบริหารส่วนตำบลมาบปลาเค้า | E104: 79 | F104: 1 | G104: 0 | H104: 0 | I104: 80 | J104: 80 | K104: 0 | L104: 80 | M104: 0
A105: 100 | B105: เพชรบูรณ์ | C105: 1567044083 | D105: เทศบาลเมืองเพชรบูรณ์ | E105: 54 | F105: 1 | G105: 0 | H105: 0 | I105: 55 | J105: 55 | K105: 0 | L105: 55 | M105: 0
A106: 101 | B106: เพชรบูรณ์ | C106: 1567044099 | D106: เทศบาลเมืองวิเชียรบุรี | E106: 2 | F106: 0 | G106: 0 | H106: 0 | I106: 2 | J106: 2 | K106: 0 | L106: 2 | M106: 0
A107: 102 | B107: เพชรบูรณ์ | C107: 1567054085 | D107: เทศบาลตำบลวังชมภู | E107: 0 | F107: 1 | G107: 0 | H107: 0 | I107: 1 | J107: 1 | K107: 0 | L107: 1 | M107: 0
A108: 103 | B108: เพชรบูรณ์ | C108: 1567054094 | D108: เทศบาลตำบลบัววัฒนา | E108: 43 | F108: 0 | G108: 0 | H108: 0 | I108: 43 | J108: 43 | K108: 0 | L108: 43 | M108: 0
A109: 104 | B109: เพชรบูรณ์ | C109: 1567054117 | D109: เทศบาลตำบลศาลาลาย | E109: 186 | F109: 3 | G109: 0 | H109: 0 | I109: 189 | J109: 189 | K109: 0 | L109: 189 | M109: 0
A110: 105 | B110: เพชรบูรณ์ | C110: 1567064115 | D110: องค์การบริหารส่วนตำบลซับพุทรา | E110: 13 | F110: 0 | G110: 0 | H110: 0 | I110: 13 | J110: 13 | K110: 0 | L110: 13 | M110: 0
A111: 106 | B111: เพชรบูรณ์ | C111: 1567064118 | D111: องค์การบริหารส่วนตำบลตะเบาะ | E111: 156 | F111: 0 | G111: 0 | H111: 0 | I111: 156 | J111: 156 | K111: 0 | L111: 156 | M111: 0
A112: 107 | B112: เพชรบูรณ์ | C112: 1567064122 | D112: องค์การบริหารส่วนตำบลห้วยไร่ อ. หล่มสัก จ. เพชรบูรณ์ | E112: 7 | F112: 0 | G112: 0 | H112: 0 | I112: 7 | J112: 7 | K112: 0 | L112: 7 | M112: 0
A113: 108 | B113: เพชรบูรณ์ | C113: 1567064127 | D113: องค์การบริหารส่วนตำบลบุ่งคล้า อ. หล่มสัก จ. เพชรบูรณ์ | E113: 3 | F113: 0 | G113: 0 | H113: 0 | I113: 3 | J113: 3 | K113: 0 | L113: 3 | M113: 0
A114: 109 | B114: เพชรบูรณ์ | C114: 1567064129 | D114: องค์การบริหารส่วนตำบลซับน้อย | E114: 59 | F114: 0 | G114: 0 | H114: 0 | I114: 59 | J114: 59 | K114: 0 | L114: 59 | M114: 0
A115: 110 | B115: เพชรบูรณ์ | C115: 1567064131 | D115: องค์การบริหารส่วนตำบลยางสาว | E115: 105 | F115: 3 | G115: 1 | H115: 0 | I115: 109 | J115: 109 | K115: 0 | L115: 109 | M115: 0
A116: 111 | B116: เพชรบูรณ์ | C116: 1567064144 | D116: องค์การบริหารส่วนตำบลบึงสามพัน | E116: 1 | F116: 0 | G116: 0 | H116: 0 | I116: 1 | J116: 1 | K116: 0 | L116: 1 | M116: 0
A117: 112 | B117: เพชรบูรณ์ | C117: 1567064148 | D117: องค์การบริหารส่วนตำบลหนองแม่นา | E117: 1 | F117: 0 | G117: 0 | H117: 0 | I117: 1 | J117: 1 | K117: 0 | L117: 1 | M117: 0
A118: 113 | B118: เพชรบูรณ์ | C118: 1567064156 | D118: องค์การบริหารส่วนตำบลน้ำหนาว | E118: 86 | F118: 1 | G118: 0 | H118: 0 | I118: 87 | J118: 87 | K118: 0 | L118: 87 | M118: 0
A119: 114 | B119: เพชรบูรณ์ | C119: 1567064158 | D119: องค์การบริหารส่วนตำบลวังกวาง | E119: 18 | F119: 0 | G119: 0 | H119: 0 | I119: 18 | J119: 18 | K119: 0 | L119: 18 | M119: 0
A120: 115 | B120: เพชรบูรณ์ | C120: 1567064164 | D120: องค์การบริหารส่วนตำบลยางงาม | E120: 2 | F120: 0 | G120: 0 | H120: 0 | I120: 2 | J120: 2 | K120: 0 | L120: 2 | M120: 0
A121: 116 | B121: เพชรบูรณ์ | C121: 1567064172 | D121: องค์การบริหารส่วนตำบลนาสนุ่น | E121: 168 | F121: 2 | G121: 0 | H121: 0 | I121: 170 | J121: 170 | K121: 0 | L121: 170 | M121: 0
A122: 117 | B122: เพชรบูรณ์ | C122: 1567064173 | D122: องค์การบริหารส่วนตำบลหนองย่างทอย | E122: 3 | F122: 0 | G122: 0 | H122: 0 | I122: 3 | J122: 3 | K122: 0 | L122: 3 | M122: 0
A123: 118 | B123: เพชรบูรณ์ | C123: 1567064175 | D123: องค์การบริหารส่วนตำบลคลองกระจัง | E123: 1 | F123: 0 | G123: 0 | H123: 0 | I123: 1 | J123: 0 | K123: 1 | L123: 1 | M123: 0 | N123: 1
A124: 119 | B124: เพชรบูรณ์ | C124: 1567064177 | D124: องค์การบริหารส่วนตำบลสามแยก อ. วิเชียรบุรี จ. เพชรบูรณ์ | E124: 1 | F124: 0 | G124: 0 | H124: 0 | I124: 1 | J124: 1 | K124: 0 | L124: 1 | M124: 0
A125: 120 | B125: เพชรบูรณ์ | C125: 1567064182 | D125: องค์การบริหารส่วนตำบลพุขาม | E125: 188 | F125: 2 | G125: 0 | H125: 0 | I125: 190 | J125: 189 | K125: 1 | L125: 190 | M125: 0 | N125: 1
A126: 121 | B126: เพชรบูรณ์ | C126: 1567064183 | D126: องค์การบริหารส่วนตำบลภูน้ำหยด | E126: 27 | F126: 0 | G126: 0 | H126: 0 | I126: 27 | J126: 27 | K126: 0 | L126: 27 | M126: 0
A127: 122 | B127: เพชรบูรณ์ | C127: 1567064194 | D127: องค์การบริหารส่วนตำบลท่าอิบุญ | E127: 32 | F127: 0 | G127: 0 | H127: 0 | I127: 32 | J127: 32 | K127: 0 | L127: 32 | M127: 0
A128: 123 | B128: เพชรบูรณ์ | C128: 1567064201 | D128: องค์การบริหารส่วนตำบลชนแดน อ. ชนแดน จ. เพชรบูรณ์ | E128: 14 | F128: 0 | G128: 0 | H128: 0 | I128: 14 | J128: 14 | K128: 0 | L128: 14 | M128: 0
A129: 124 | B129: เลย | C129: 1542055415 | D129: เทศบาลตำบลธาตุ อ. เชียงคาน จ. เลย | E129: 339 | F129: 7 | G129: 1 | H129: 0 | I129: 347 | J129: 347 | K129: 0 | L129: 347 | M129: 0
A130: 125 | B130: แพร่ | C130: 1554064257 | D130: องค์การบริหารส่วนตำบลบ้านหนุน | E130: 1 | F130: 0 | G130: 0 | H130: 0 | I130: 1 | J130: 1 | K130: 0 | L130: 1 | M130: 0
A131: 126 | B131: แม่ฮ่องสอน | C131: 1558054510 | D131: เทศบาลตำบลปาย | E131: 28 | F131: 0 | G131: 0 | H131: 0 | I131: 28 | J131: 28 | K131: 0 | L131: 28 | M131: 0
A132: 127 | B132: แม่ฮ่องสอน | C132: 1558054533 | D132: เทศบาลตำบลแม่ยวม | E132: 22 | F132: 0 | G132: 0 | H132: 0 | I132: 22 | J132: 22 | K132: 0 | L132: 22 | M132: 0
A133: 128 | B133: แม่ฮ่องสอน | C133: 1558064512 | D133: องค์การบริหารส่วนตำบลแม่เงา | E133: 124 | F133: 0 | G133: 0 | H133: 0 | I133: 124 | J133: 124 | K133: 0 | L133: 124 | M133: 0
A134: 129 | B134: แม่ฮ่องสอน | C134: 1558064514 | D134: องค์การบริหารส่วนตำบลแม่กิ๊ | E134: 84 | F134: 1 | G134: 0 | H134: 0 | I134: 85 | J134: 85 | K134: 0 | L134: 85 | M134: 0
A135: 130 | B135: แม่ฮ่องสอน | C135: 1558064515 | D135: องค์การบริหารส่วนตำบลขุนแม่ลาน้อย | E135: 41 | F135: 1 | G135: 0 | H135: 1 | I135: 43 | J135: 43 | K135: 0 | L135: 43 | M135: 0
A136: 131 | B136: แม่ฮ่องสอน | C136: 1558064516 | D136: องค์การบริหารส่วนตำบลแม่นาจาง | E136: 90 | F136: 3 | G136: 0 | H136: 0 | I136: 93 | J136: 93 | K136: 0 | L136: 93 | M136: 0
A137: 132 | B137: แม่ฮ่องสอน | C137: 1558064517 | D137: องค์การบริหารส่วนตำบลแม่โถ | E137: 81 | F137: 0 | G137: 0 | H137: 0 | I137: 81 | J137: 81 | K137: 0 | L137: 81 | M137: 0
A138: 133 | B138: แม่ฮ่องสอน | C138: 1558064520 | D138: องค์การบริหารส่วนตำบลหมอกจำแป่ | E138: 172 | F138: 1 | G138: 0 | H138: 1 | I138: 174 | J138: 174 | K138: 0 | L138: 174 | M138: 0
A139: 134 | B139: แม่ฮ่องสอน | C139: 1558064523 | D139: องค์การบริหารส่วนตำบลปางหมู | E139: 51 | F139: 1 | G139: 0 | H139: 0 | I139: 52 | J139: 52 | K139: 0 | L139: 52 | M139: 0
A140: 135 | B140: แม่ฮ่องสอน | C140: 1558064524 | D140: องค์การบริหารส่วนตำบลสบป่อง | E140: 1 | F140: 0 | G140: 0 | H140: 0 | I140: 1 | J140: 1 | K140: 0 | L140: 1 | M140: 0
A141: 136 | B141: แม่ฮ่องสอน | C141: 1558064528 | D141: องค์การบริหารส่วนตำบลป่าโปง | E141: 95 | F141: 0 | G141: 2 | H141: 0 | I141: 97 | J141: 97 | K141: 0 | L141: 97 | M141: 0
A142: 137 | B142: แม่ฮ่องสอน | C142: 1558064543 | D142: องค์การบริหารส่วนตำบลแม่ฮี้ | E142: 97 | F142: 2 | G142: 0 | H142: 0 | I142: 99 | J142: 99 | K142: 0 | L142: 99 | M142: 0
A143: 138 | B143: แม่ฮ่องสอน | C143: 1558064544 | D143: องค์การบริหารส่วนตำบลทุ่งยาว อ. ปาย จ. แม่ฮ่องสอน | E143: 13 | F143: 0 | G143: 0 | H143: 0 | I143: 13 | J143: 13 | K143: 0 | L143: 13 | M143: 0
A144: 139 | B144: แม่ฮ่องสอน | C144: 1558064545 | D144: องค์การบริหารส่วนตำบลเมืองแปง | E144: 93 | F144: 0 | G144: 0 | H144: 0 | I144: 93 | J144: 93 | K144: 0 | L144: 93 | M144: 0
A145: 140 | B145: แม่ฮ่องสอน | C145: 1558064548 | D145: องค์การบริหารส่วนตำบลห้วยโป่ง อ. เมืองแม่ฮ่องสอน จ. แม่ฮ่องสอน | E145: 9 | F145: 0 | G145: 0 | H145: 0 | I145: 9 | J145: 9 | K145: 0 | L145: 9 | M145: 0
A146: 141 | B146: แม่ฮ่องสอน | C146: 1558064549 | D146: องค์การบริหารส่วนตำบลแม่ลาน้อย | E146: 27 | F146: 1 | G146: 0 | H146: 0 | I146: 28 | J146: 28 | K146: 0 | L146: 28 | M146: 0
A147: 142 | B147: แม่ฮ่องสอน | C147: 1558064550 | D147: องค์การบริหารส่วนตำบลท่าผาปุ้ม | E147: 3 | F147: 0 | G147: 0 | H147: 0 | I147: 3 | J147: 3 | K147: 0 | L147: 3 | M147: 0
A148: 143 | B148: แม่ฮ่องสอน | C148: 1558064553 | D148: องค์การบริหารส่วนตำบลแม่ยวมน้อย | E148: 97 | F148: 0 | G148: 0 | H148: 0 | I148: 97 | J148: 97 | K148: 0 | L148: 97 | M148: 0
A149: 144 | B149: กระบี่ | C149: 1581050006 | D149: เทศบาลตำบลคลองพน | E149: 8 | F149: 0 | G149: 0 | H149: 0 | I149: 8 | J149: 8 | K149: 0 | L149: 8 | M149: 0
A150: 145 | B150: กระบี่ | C150: 1581060053 | D150: องค์การบริหารส่วนตำบลคลองท่อมใต้ | E150: 2 | F150: 0 | G150: 0 | H150: 0 | I150: 2 | J150: 2 | K150: 0 | L150: 2 | M150: 0
A151: 146 | B151: กาญจนบุรี | C151: 1571050066 | D151: เทศบาลตำบลหนองบัว อ. เมืองกาญจนบุรี จ. กาญจนบุรี | E151: 107 | F151: 0 | G151: 0 | H151: 0 | I151: 107 | J151: 107 | K151: 0 | L151: 107 | M151: 0
A152: 147 | B152: กาญจนบุรี | C152: 1571050095 | D152: เทศบาลตำบลวังโพธิ์ | E152: 29 | F152: 0 | G152: 0 | H152: 0 | I152: 29 | J152: 29 | K152: 0 | L152: 29 | M152: 0
A153: 148 | B153: กาญจนบุรี | C153: 1571050121 | D153: เทศบาลตำบลหนองปลาไหล อ. หนองปรือ จ. กาญจนบุรี | E153: 8 | F153: 0 | G153: 0 | H153: 0 | I153: 8 | J153: 8 | K153: 0 | L153: 8 | M153: 0
A154: 149 | B154: กาญจนบุรี | C154: 1571060172 | D154: องค์การบริหารส่วนตำบลบ่อพลอย อ. บ่อพลอย จ. กาญจนบุรี | E154: 145 | F154: 0 | G154: 0 | H154: 0 | I154: 145 | J154: 145 | K154: 0 | L154: 145 | M154: 0
A155: 150 | B155: กาฬสินธุ์ | C155: 1546050185 | D155: เทศบาลตำบลลำคลอง | E155: 2 | F155: 0 | G155: 0 | H155: 0 | I155: 2 | J155: 2 | K155: 0 | L155: 2 | M155: 0
A156: 151 | B156: กาฬสินธุ์ | C156: 1546050187 | D156: เทศบาลตำบลนามน | E156: 21 | F156: 0 | G156: 0 | H156: 0 | I156: 21 | J156: 21 | K156: 0 | L156: 21 | M156: 0
A157: 152 | B157: กาฬสินธุ์ | C157: 1546050188 | D157: เทศบาลตำบลธัญญา | E157: 25 | F157: 0 | G157: 0 | H157: 0 | I157: 25 | J157: 25 | K157: 0 | L157: 25 | M157: 0
A158: 153 | B158: กาฬสินธุ์ | C158: 1546050189 | D158: เทศบาลตำบลร่องคำ | E158: 99 | F158: 3 | G158: 1 | H158: 0 | I158: 103 | J158: 103 | K158: 0 | L158: 103 | M158: 0
A159: 154 | B159: กาฬสินธุ์ | C159: 1546050194 | D159: เทศบาลตำบลอิตื้อ | E159: 2 | F159: 0 | G159: 0 | H159: 0 | I159: 2 | J159: 2 | K159: 0 | L159: 2 | M159: 0
A160: 155 | B160: กาฬสินธุ์ | C160: 1546050210 | D160: เทศบาลตำบลโนนน้ำเกลี้ยง | E160: 146 | F160: 0 | G160: 0 | H160: 0 | I160: 146 | J160: 145 | K160: 1 | L160: 146 | M160: 0 | O160: 1
A161: 156 | B161: กาฬสินธุ์ | C161: 1546050230 | D161: เทศบาลตำบลสงเปลือย อ. นามน จ. กาฬสินธุ์ | E161: 97 | F161: 0 | G161: 0 | H161: 0 | I161: 97 | J161: 97 | K161: 0 | L161: 97 | M161: 0
A162: 157 | B162: กาฬสินธุ์ | C162: 1546050233 | D162: เทศบาลตำบลเหนือ | E162: 11 | F162: 0 | G162: 0 | H162: 0 | I162: 11 | J162: 11 | K162: 0 | L162: 11 | M162: 0
A163: 158 | B163: กาฬสินธุ์ | C163: 1546050244 | D163: เทศบาลตำบลลำห้วยหลัว | E163: 81 | F163: 1 | G163: 0 | H163: 0 | I163: 82 | J163: 82 | K163: 0 | L163: 82 | M163: 0
A164: 159 | B164: กาฬสินธุ์ | C164: 1546050251 | D164: เทศบาลตำบลหนองบัว อ. หนองกุงศรี จ. กาฬสินธุ์ | E164: 3 | F164: 0 | G164: 0 | H164: 0 | I164: 3 | J164: 3 | K164: 0 | L164: 3 | M164: 0
A165: 160 | B165: กาฬสินธุ์ | C165: 1546050275 | D165: เทศบาลตำบลมหาไชย | E165: 4 | F165: 0 | G165: 0 | H165: 0 | I165: 4 | J165: 4 | K165: 0 | L165: 4 | M165: 0
A166: 161 | B166: กาฬสินธุ์ | C166: 1546050277 | D166: เทศบาลตำบลผาเสวย | E166: 192 | F166: 0 | G166: 0 | H166: 0 | I166: 192 | J166: 192 | K166: 0 | L166: 192 | M166: 0
A167: 162 | B167: กาฬสินธุ์ | C167: 1546050284 | D167: เทศบาลตำบลกุดจิก อ. ท่าคันโท จ. กาฬสินธุ์ | E167: 128 | F167: 3 | G167: 0 | H167: 0 | I167: 131 | J167: 131 | K167: 0 | L167: 131 | M167: 0
A168: 163 | B168: กาฬสินธุ์ | C168: 1546050292 | D168: เทศบาลตำบลโนนศิลา อ. สหัสขันธ์ จ. กาฬสินธุ์ | E168: 6 | F168: 0 | G168: 0 | H168: 0 | I168: 6 | J168: 6 | K168: 0 | L168: 6 | M168: 0
A169: 164 | B169: กาฬสินธุ์ | C169: 1546050299 | D169: เทศบาลตำบลสงเปลือย อ. เขาวง จ. กาฬสินธุ์ | E169: 53 | F169: 0 | G169: 0 | H169: 0 | I169: 53 | J169: 53 | K169: 0 | L169: 53 | M169: 0
A170: 165 | B170: กาฬสินธุ์ | C170: 1546060266 | D170: องค์การบริหารส่วนตำบลสะอาดไชยศรี | E170: 9 | F170: 0 | G170: 0 | H170: 0 | I170: 9 | J170: 9 | K170: 0 | L170: 9 | M170: 0
A171: 166 | B171: กาฬสินธุ์ | C171: 1546060267 | D171: องค์การบริหารส่วนตำบลดงพยุง | E171: 218 | F171: 4 | G171: 3 | H171: 0 | I171: 225 | J171: 225 | K171: 0 | L171: 225 | M171: 0
A172: 167 | B172: กาฬสินธุ์ | C172: 1546060273 | D172: องค์การบริหารส่วนตำบลสมเด็จ | E172: 2 | F172: 0 | G172: 0 | H172: 0 | I172: 2 | J172: 2 | K172: 0 | L172: 2 | M172: 0
A173: 168 | B173: กาฬสินธุ์ | C173: 1546060274 | D173: องค์การบริหารส่วนตำบลหนองแวง อ. สมเด็จ จ. กาฬสินธุ์ | E173: 3 | F173: 1 | G173: 0 | H173: 0 | I173: 4 | J173: 4 | K173: 0 | L173: 4 | M173: 0
A174: 169 | B174: กาฬสินธุ์ | C174: 1546060300 | D174: องค์การบริหารส่วนตำบลหนองผือ อ. เขาวง จ. กาฬสินธุ์ | E174: 72 | F174: 0 | G174: 0 | H174: 0 | I174: 72 | J174: 72 | K174: 0 | L174: 72 | M174: 0
A175: 170 | B175: กาฬสินธุ์ | C175: 1546060302 | D175: องค์การบริหารส่วนตำบลคุ้มเก่า | E175: 125 | F175: 3 | G175: 0 | H175: 0 | I175: 128 | J175: 128 | K175: 0 | L175: 128 | M175: 0
A176: 171 | B176: กาฬสินธุ์ | C176: 1546060315 | D176: องค์การบริหารส่วนตำบลนาโก | E176: 37 | F176: 0 | G176: 0 | H176: 0 | I176: 37 | J176: 37 | K176: 0 | L176: 37 | M176: 0
A177: 172 | B177: กาฬสินธุ์ | C177: 1546060322 | D177: องค์การบริหารส่วนตำบลกมลาไสย | E177: 148 | F177: 3 | G177: 0 | H177: 0 | I177: 151 | J177: 151 | K177: 0 | L177: 151 | M177: 0
A178: 173 | B178: กาฬสินธุ์ | C178: 1546060325 | D178: องค์การบริหารส่วนตำบลธัญญา | E178: 10 | F178: 0 | G178: 0 | H178: 0 | I178: 10 | J178: 10 | K178: 0 | L178: 10 | M178: 0
A179: 174 | B179: กำแพงเพชร | C179: 1562050341 | D179: เทศบาลตำบลขาณุวรลักษบุรี | E179: 181 | F179: 0 | G179: 0 | H179: 0 | I179: 181 | J179: 181 | K179: 0 | L179: 181 | M179: 0
A180: 175 | B180: กำแพงเพชร | C180: 1562050345 | D180: เทศบาลตำบลช่องลม | E180: 7 | F180: 0 | G180: 0 | H180: 0 | I180: 7 | J180: 7 | K180: 0 | L180: 7 | M180: 0
A181: 176 | B181: กำแพงเพชร | C181: 1562050348 | D181: เทศบาลตำบลคลองพิไกร | E181: 74 | F181: 4 | G181: 0 | H181: 0 | I181: 78 | J181: 78 | K181: 0 | L181: 78 | M181: 0
A182: 177 | B182: กำแพงเพชร | C182: 1562050401 | D182: เทศบาลตำบลประชาสุขสันต์ | E182: 48 | F182: 2 | G182: 0 | H182: 0 | I182: 50 | J182: 50 | K182: 0 | L182: 50 | M182: 0
A183: 178 | B183: กำแพงเพชร | C183: 1562060357 | D183: องค์การบริหารส่วนตำบลคณฑี | E183: 1 | F183: 0 | G183: 0 | H183: 0 | I183: 1 | J183: 1 | K183: 0 | L183: 1 | M183: 0
A184: 179 | B184: กำแพงเพชร | C184: 1562060360 | D184: องค์การบริหารส่วนตำบลหนองหัววัว | E184: 37 | F184: 0 | G184: 0 | H184: 0 | I184: 37 | J184: 37 | K184: 0 | L184: 37 | M184: 0
A185: 180 | B185: กำแพงเพชร | C185: 1562060361 | D185: องค์การบริหารส่วนตำบลท่าไม้ อ. พรานกระต่าย จ. กำแพงเพชร | E185: 252 | F185: 2 | G185: 0 | H185: 0 | I185: 254 | J185: 254 | K185: 0 | L185: 254 | M185: 0
A186: 181 | B186: กำแพงเพชร | C186: 1562060362 | D186: องค์การบริหารส่วนตำบลวังควง | E186: 318 | F186: 1 | G186: 0 | H186: 0 | I186: 319 | J186: 319 | K186: 0 | L186: 319 | M186: 0
A187: 182 | B187: กำแพงเพชร | C187: 1562060367 | D187: องค์การบริหารส่วนตำบลห้วยยั้ง | E187: 93 | F187: 3 | G187: 0 | H187: 0 | I187: 96 | J187: 96 | K187: 0 | L187: 96 | M187: 0
A188: 183 | B188: กำแพงเพชร | C188: 1562060368 | D188: องค์การบริหารส่วนตำบลแม่ลาด | E188: 93 | F188: 0 | G188: 0 | H188: 0 | I188: 93 | J188: 93 | K188: 0 | L188: 93 | M188: 0
A189: 184 | B189: กำแพงเพชร | C189: 1562060374 | D189: องค์การบริหารส่วนตำบลทุ่งทอง อ. ทรายทองวัฒนา จ. กำแพงเพชร | E189: 70 | F189: 0 | G189: 0 | H189: 0 | I189: 70 | J189: 70 | K189: 0 | L189: 70 | M189: 0
A190: 185 | B190: กำแพงเพชร | C190: 1562060379 | D190: องค์การบริหารส่วนตำบลหนองคล้า | E190: 1 | F190: 0 | G190: 0 | H190: 0 | I190: 1 | J190: 1 | K190: 0 | L190: 1 | M190: 0
A191: 186 | B191: กำแพงเพชร | C191: 1562060380 | D191: องค์การบริหารส่วนตำบลหนองทอง | E191: 45 | F191: 0 | G191: 0 | H191: 0 | I191: 45 | J191: 45 | K191: 0 | L191: 45 | M191: 0
A192: 187 | B192: กำแพงเพชร | C192: 1562060395 | D192: องค์การบริหารส่วนตำบลวังชะพลู | E192: 6 | F192: 0 | G192: 0 | H192: 0 | I192: 6 | J192: 6 | K192: 0 | L192: 6 | M192: 0
A193: 188 | B193: กำแพงเพชร | C193: 1562060396 | D193: องค์การบริหารส่วนตำบลหินดาต | E193: 72 | F193: 1 | G193: 0 | H193: 0 | I193: 73 | J193: 73 | K193: 0 | L193: 73 | M193: 0
A194: 189 | B194: กำแพงเพชร | C194: 1562060397 | D194: องค์การบริหารส่วนตำบลปางตาไว | E194: 143 | F194: 0 | G194: 0 | H194: 0 | I194: 143 | J194: 143 | K194: 0 | L194: 143 | M194: 0
A195: 190 | B195: กำแพงเพชร | C195: 1562060399 | D195: องค์การบริหารส่วนตำบลหนองหลวง อ. ลานกระบือ จ. กำแพงเพชร | E195: 87 | F195: 0 | G195: 1 | H195: 0 | I195: 88 | J195: 88 | K195: 0 | L195: 88 | M195: 0
A196: 191 | B196: กำแพงเพชร | C196: 1562060402 | D196: องค์การบริหารส่วนตำบลบึงทับแรต | E196: 102 | F196: 6 | G196: 1 | H196: 0 | I196: 109 | J196: 109 | K196: 0 | L196: 109 | M196: 0
A197: 192 | B197: กำแพงเพชร | C197: 1562060403 | D197: องค์การบริหารส่วนตำบลจันทิมา | E197: 12 | F197: 1 | G197: 0 | H197: 0 | I197: 13 | J197: 13 | K197: 0 | L197: 13 | M197: 0
A198: 193 | B198: กำแพงเพชร | C198: 1562060411 | D198: องค์การบริหารส่วนตำบลโป่งน้ำร้อน อ. คลองลาน จ. กำแพงเพชร | E198: 37 | F198: 0 | G198: 0 | H198: 0 | I198: 37 | J198: 37 | K198: 0 | L198: 37 | M198: 0
A199: 194 | B199: กำแพงเพชร | C199: 1562060412 | D199: องค์การบริหารส่วนตำบลคลองขลุง | E199: 106 | F199: 0 | G199: 0 | H199: 0 | I199: 106 | J199: 106 | K199: 0 | L199: 106 | M199: 0
A200: 195 | B200: กำแพงเพชร | C200: 1562060415 | D200: องค์การบริหารส่วนตำบลนาบ่อคำ | E200: 453 | F200: 9 | G200: 4 | H200: 0 | I200: 466 | J200: 466 | K200: 0 | L200: 466 | M200: 0
A201: 196 | B201: กำแพงเพชร | C201: 1562060418 | D201: องค์การบริหารส่วนตำบลสระแก้ว อ. เมืองกำแพงเพชร จ. กำแพงเพชร | E201: 100 | F201: 0 | G201: 0 | H201: 0 | I201: 100 | J201: 100 | K201: 0 | L201: 100 | M201: 0
... 954 more rows

Sheet 2.1.1 อปท. จ่ายสำเร็จทุกราย
A1: รายละเอียดการตรวจสอบรายงานผลการจ่ายเงินโครงการกระตุ้นเศรษฐกิจ ปี 2567 ผ่านคนพิการ ขององค์กรปกครองส่วนท้องถิ่น กรณีการจ่ายเป็นเงินสด
A2: 2.1.1 อปท. ที่จ่ายเงินสดให้ผู้มีสิทธิสำเร็จทุกราย
A4: ลำดับ | B4: ชื่อจังหวัด | C4: รหัสหน่วยงาน | D4: ชื่อหน่วยงาน | E4: รายงาน บก. จ่ายเงิน (คน) | J4: รายงาน สถ. จ่ายเงิน (คน) | M4: ผลต่างรายงานของ | N4: จำนวนคน
E5: ครั้งที่ 1 | F5: ครั้งที่ 2 | G5: ครั้งที่ 3 | H5: ครั้งที่ 4 | I5: รวม | J5: จ่ายสำเร็จ | K5: จ่ายไม่สำเร็จ | L5: รวม | M5: บก. - สถ. (คน) | N5: คืนแล้ว | O5: ยังไม่คืน | P5: คืนไม่ครบ
A6: 1 | B6: เชียงใหม่ | C6: 1550051361 | D6: เทศบาลตำบลสุเทพ | E6: 4 | F6: 0 | G6: 0 | H6: 0 | I6: 4 | J6: 4 | K6: 0 | L6: 4 | M6: 0
A7: 2 | B7: เชียงใหม่ | C7: 1550051368 | D7: เทศบาลตำบลเมืองงาย | E7: 87 | F7: 0 | G7: 0 | H7: 0 | I7: 87 | J7: 87 | K7: 0 | L7: 87 | M7: 0
A8: 3 | B8: เชียงใหม่ | C8: 1550051369 | D8: เทศบาลตำบลพระธาตุปู่ก่ำ | E8: 29 | F8: 0 | G8: 0 | H8: 0 | I8: 29 | J8: 29 | K8: 0 | L8: 29 | M8: 0
A9: 4 | B9: เชียงใหม่ | C9: 1550051370 | D9: เทศบาลตำบลปิงโค้ง | E9: 154 | F9: 0 | G9: 0 | H9: 0 | I9: 154 | J9: 154 | K9: 0 | L9: 154 | M9: 0
A10: 5 | B10: เชียงใหม่ | C10: 1550051371 | D10: เทศบาลตำบลทุ่งข้าวพวง | E10: 99 | F10: 0 | G10: 0 | H10: 0 | I10: 99 | J10: 99 | K10: 0 | L10: 99 | M10: 0
A11: 6 | B11: เชียงใหม่ | C11: 1550051379 | D11: เทศบาลตำบลแม่ปูคา | E11: 110 | F11: 1 | G11: 0 | H11: 0 | I11: 111 | J11: 111 | K11: 0 | L11: 111 | M11: 0
A12: 7 | B12: เชียงใหม่ | C12: 1550051387 | D12: เทศบาลตำบลสง่าบ้าน | E12: 50 | F12: 0 | G12: 0 | H12: 0 | I12: 50 | J12: 50 | K12: 0 | L12: 50 | M12: 0
A13: 8 | B13: เชียงใหม่ | C13: 1550051394 | D13: เทศบาลตำบลบ้านกลาง อ. สันป่าตอง จ. เชียงใหม่ | E13: 151 | F13: 0 | G13: 0 | H13: 0 | I13: 151 | J13: 151 | K13: 0 | L13: 151 | M13: 0
A14: 9 | B14: เชียงใหม่ | C14: 1550051395 | D14: เทศบาลตำบลสันป่าตอง | E14: 33 | F14: 0 | G14: 0 | H14: 0 | I14: 33 | J14: 33 | K14: 0 | L14: 33 | M14: 0
A15: 10 | B15: เชียงใหม่ | C15: 1550051398 | D15: เทศบาลตำบลแม่อาย | E15: 75 | F15: 1 | G15: 1 | H15: 0 | I15: 77 | J15: 77 | K15: 0 | L15: 77 | M15: 0
A16: 11 | B16: เชียงใหม่ | C16: 1550051407 | D16: เทศบาลตำบลบ่อหลวง | E16: 2 | F16: 0 | G16: 0 | H16: 0 | I16: 2 | J16: 2 | K16: 0 | L16: 2 | M16: 0
A17: 12 | B17: เชียงใหม่ | C17: 1550051413 | D17: เทศบาลตำบลบ้านแปะ | E17: 445 | F17: 9 | G17: 4 | H17: 0 | I17: 458 | J17: 458 | K17: 0 | L17: 458 | M17: 0
A18: 13 | B18: เชียงใหม่ | C18: 1550051442 | D18: เทศบาลตำบลทุ่งสะโตก | E18: 21 | F18: 2 | G18: 0 | H18: 0 | I18: 23 | J18: 23 | K18: 0 | L18: 23 | M18: 0
A19: 14 | B19: เชียงใหม่ | C19: 1550051462 | D19: เทศบาลตำบลหนองบัว อ. ไชยปราการ จ. เชียงใหม่ | E19: 47 | F19: 0 | G19: 0 | H19: 0 | I19: 47 | J19: 47 | K19: 0 | L19: 47 | M19: 0
A20: 15 | B20: เชียงใหม่ | C20: 1550051468 | D20: เทศบาลตำบลท่ากว้าง | E20: 81 | F20: 0 | G20: 0 | H20: 0 | I20: 81 | J20: 81 | K20: 0 | L20: 81 | M20: 0
A21: 16 | B21: เชียงใหม่ | C21: 1550051509 | D21: เทศบาลตำบลสันกลาง | E21: 2 | F21: 0 | G21: 0 | H21: 0 | I21: 2 | J21: 2 | K21: 0 | L21: 2 | M21: 0
A22: 17 | B22: เชียงใหม่ | C22: 1550051511 | D22: เทศบาลตำบลบ้านแม | E22: 7 | F22: 0 | G22: 0 | H22: 0 | I22: 7 | J22: 7 | K22: 0 | L22: 7 | M22: 0
A23: 18 | B23: เชียงใหม่ | C23: 1550051516 | D23: เทศบาลตำบลบ้านโป่ง | E23: 147 | F23: 0 | G23: 0 | H23: 0 | I23: 147 | J23: 147 | K23: 0 | L23: 147 | M23: 0
A24: 19 | B24: เชียงใหม่ | C24: 1550051531 | D24: เทศบาลตำบลสันทราย อ. ฝาง จ. เชียงใหม่ | E24: 100 | F24: 0 | G24: 0 | H24: 0 | I24: 100 | J24: 100 | K24: 0 | L24: 100 | M24: 0
A25: 20 | B25: เชียงใหม่ | C25: 1550051533 | D25: เทศบาลตำบลแม่ข่า | E25: 41 | F25: 4 | G25: 1 | H25: 0 | I25: 46 | J25: 46 | K25: 0 | L25: 46 | M25: 0
A26: 21 | B26: เชียงใหม่ | C26: 1550051547 | D26: เทศบาลตำบลแม่ฮ้อยเงิน | E26: 44 | F26: 0 | G26: 0 | H26: 0 | I26: 44 | J26: 44 | K26: 0 | L26: 44 | M26: 0
A27: 22 | B27: เชียงใหม่ | C27: 1550051548 | D27: เทศบาลตำบลป่าเมี่ยง | E27: 80 | F27: 2 | G27: 0 | H27: 0 | I27: 82 | J27: 82 | K27: 0 | L27: 82 | M27: 0
A28: 23 | B28: เชียงใหม่ | C28: 1550061414 | D28: องค์การบริหารส่วนตำบลข่วงเปา | E28: 160 | F28: 0 | G28: 1 | H28: 0 | I28: 161 | J28: 161 | K28: 0 | L28: 161 | M28: 0
A29: 24 | B29: เชียงใหม่ | C29: 1550061415 | D29: องค์การบริหารส่วนตำบลแม่แดด | E29: 14 | F29: 2 | G29: 0 | H29: 0 | I29: 16 | J29: 16 | K29: 0 | L29: 16 | M29: 0
A30: 25 | B30: เชียงใหม่ | C30: 1550061423 | D30: องค์การบริหารส่วนตำบลเมืองก๋าย | E30: 38 | F30: 0 | G30: 0 | H30: 0 | I30: 38 | J30: 38 | K30: 0 | L30: 38 | M30: 0
A31: 26 | B31: เชียงใหม่ | C31: 1550061427 | D31: องค์การบริหารส่วนตำบลแม่แวน | E31: 124 | F31: 2 | G31: 0 | H31: 0 | I31: 126 | J31: 126 | K31: 0 | L31: 126 | M31: 0
A32: 27 | B32: เชียงใหม่ | C32: 1550061429 | D32: องค์การบริหารส่วนตำบลดอยลาง | E32: 55 | F32: 0 | G32: 0 | H32: 0 | I32: 55 | J32: 55 | K32: 0 | L32: 55 | M32: 0
A33: 28 | B33: เชียงใหม่ | C33: 1550061431 | D33: องค์การบริหารส่วนตำบลสันต้นหมื้อ | E33: 4 | F33: 0 | G33: 0 | H33: 0 | I33: 4 | J33: 4 | K33: 0 | L33: 4 | M33: 0
A34: 29 | B34: เชียงใหม่ | C34: 1550061433 | D34: องค์การบริหารส่วนตำบลท่าตอน | E34: 4 | F34: 0 | G34: 0 | H34: 0 | I34: 4 | J34: 4 | K34: 0 | L34: 4 | M34: 0
A35: 30 | B35: เชียงใหม่ | C35: 1550061435 | D35: องค์การบริหารส่วนตำบลโป่งน้ำร้อน อ. ฝาง จ. เชียงใหม่ | E35: 10 | F35: 0 | G35: 0 | H35: 0 | I35: 10 | J35: 10 | K35: 0 | L35: 10 | M35: 0
A36: 31 | B36: เชียงใหม่ | C36: 1550061437 | D36: องค์การบริหารส่วนตำบลสันกลาง อ. สันป่าตอง จ. เชียงใหม่ | E36: 70 | F36: 0 | G36: 0 | H36: 0 | I36: 70 | J36: 70 | K36: 0 | L36: 70 | M36: 0
A37: 32 | B37: เชียงใหม่ | C37: 1550061438 | D37: องค์การบริหารส่วนตำบลท่าวังพร้าว | E37: 64 | F37: 0 | G37: 0 | H37: 0 | I37: 64 | J37: 64 | K37: 0 | L37: 64 | M37: 0
A38: 33 | B38: เชียงใหม่ | C38: 1550061440 | D38: องค์การบริหารส่วนตำบลแม่ก๊า | E38: 191 | F38: 0 | G38: 0 | H38: 0 | I38: 191 | J38: 191 | K38: 0 | L38: 191 | M38: 0
A39: 34 | B39: เชียงใหม่ | C39: 1550061450 | D39: องค์การบริหารส่วนตำบลออนกลาง | E39: 2 | F39: 0 | G39: 0 | H39: 0 | I39: 2 | J39: 2 | K39: 0 | L39: 2 | M39: 0
A40: 35 | B40: เชียงใหม่ | C40: 1550061451 | D40: องค์การบริหารส่วนตำบลบ้านสหกรณ์ | E40: 78 | F40: 0 | G40: 0 | H40: 0 | I40: 78 | J40: 78 | K40: 0 | L40: 78 | M40: 0
A41: 36 | B41: เชียงใหม่ | C41: 1550061454 | D41: องค์การบริหารส่วนตำบลทาเหนือ | E41: 128 | F41: 0 | G41: 0 | H41: 0 | I41: 128 | J41: 128 | K41: 0 | L41: 128 | M41: 0
A42: 37 | B42: เชียงใหม่ | C42: 1550061458 | D42: องค์การบริหารส่วนตำบลแม่วิน | E42: 93 | F42: 2 | G42: 0 | H42: 0 | I42: 95 | J42: 95 | K42: 0 | L42: 95 | M42: 0
A43: 38 | B43: เชียงใหม่ | C43: 1550061481 | D43: องค์การบริหารส่วนตำบลท่าเดื่อ | E43: 4 | F43: 1 | G43: 0 | H43: 0 | I43: 5 | J43: 5 | K43: 0 | L43: 5 | M43: 0
A44: 39 | B44: เชียงใหม่ | C44: 1550061485 | D44: องค์การบริหารส่วนตำบลหางดง | E44: 73 | F44: 0 | G44: 0 | H44: 0 | I44: 73 | J44: 73 | K44: 0 | L44: 73 | M44: 0
A45: 40 | B45: เชียงใหม่ | C45: 1550061486 | D45: องค์การบริหารส่วนตำบลฮอด | E45: 122 | F45: 0 | G45: 3 | H45: 0 | I45: 125 | J45: 125 | K45: 0 | L45: 125 | M45: 0
A46: 41 | B46: เชียงใหม่ | C46: 1550061487 | D46: องค์การบริหารส่วนตำบลบ่อสลี | E46: 204 | F46: 0 | G46: 0 | H46: 2 | I46: 206 | J46: 206 | K46: 0 | L46: 206 | M46: 0
A47: 42 | B47: เชียงใหม่ | C47: 1550061488 | D47: องค์การบริหารส่วนตำบลนาคอเรือ | E47: 179 | F47: 0 | G47: 1 | H47: 0 | I47: 180 | J47: 180 | K47: 0 | L47: 180 | M47: 0
A48: 43 | B48: เชียงใหม่ | C48: 1550061510 | D48: องค์การบริหารส่วนตำบลแช่ช้าง | E48: 103 | F48: 0 | G48: 0 | H48: 0 | I48: 103 | J48: 103 | K48: 0 | L48: 103 | M48: 0
A49: 44 | B49: เชียงใหม่ | C49: 1550061515 | D49: องค์การบริหารส่วนตำบลสันทราย อ. พร้าว จ. เชียงใหม่ | E49: 138 | F49: 0 | G49: 0 | H49: 0 | I49: 138 | J49: 138 | K49: 0 | L49: 138 | M49: 0
A50: 45 | B50: เชียงใหม่ | C50: 1550061519 | D50: องค์การบริหารส่วนตำบลสะเมิงเหนือ | E50: 186 | F50: 1 | G50: 0 | H50: 0 | I50: 187 | J50: 187 | K50: 0 | L50: 187 | M50: 0
A51: 46 | B51: เชียงใหม่ | C51: 1550061520 | D51: องค์การบริหารส่วนตำบลแม่สาบ | E51: 203 | F51: 1 | G51: 0 | H51: 0 | I51: 204 | J51: 204 | K51: 0 | L51: 204 | M51: 0
A52: 47 | B52: เชียงใหม่ | C52: 1550061526 | D52: องค์การบริหารส่วนตำบลสะลวง | E52: 118 | F52: 0 | G52: 0 | H52: 0 | I52: 118 | J52: 118 | K52: 0 | L52: 118 | M52: 0
A53: 48 | B53: เชียงใหม่ | C53: 1550061538 | D53: องค์การบริหารส่วนตำบลดอนแก้ว | E53: 42 | F53: 0 | G53: 0 | H53: 0 | I53: 42 | J53: 42 | K53: 0 | L53: 42 | M53: 0
A54: 49 | B54: เชียงใหม่ | C54: 1550061549 | D54: องค์การบริหารส่วนตำบลเทพเสด็จ | E54: 45 | F54: 0 | G54: 0 | H54: 0 | I54: 45 | J54: 45 | K54: 0 | L54: 45 | M54: 0
A55: 50 | B55: เชียงใหม่ | C55: 1550061550 | D55: องค์การบริหารส่วนตำบลเชียงดาว | E55: 63 | F55: 0 | G55: 0 | H55: 0 | I55: 63 | J55: 63 | K55: 0 | L55: 63 | M55: 0
A56: 51 | B56: เชียงราย | C56: 1557051234 | D56: เทศบาลตำบลสันทราย อ. แม่จัน จ. เชียงราย | E56: 3 | F56: 0 | G56: 0 | H56: 0 | I56: 3 | J56: 3 | K56: 0 | L56: 3 | M56: 0
A57: 52 | B57: เชียงราย | C57: 1557051235 | D57: เทศบาลตำบลแม่คำ | E57: 31 | F57: 0 | G57: 0 | H57: 0 | I57: 31 | J57: 31 | K57: 0 | L57: 31 | M57: 0
A58: 53 | B58: เชียงราย | C58: 1557051250 | D58: เทศบาลตำบลดอยฮาง | E58: 5 | F58: 0 | G58: 0 | H58: 0 | I58: 5 | J58: 5 | K58: 0 | L58: 5 | M58: 0
A59: 54 | B59: เชียงราย | C59: 1557051266 | D59: เทศบาลตำบลดงมะดะ | E59: 55 | F59: 0 | G59: 0 | H59: 0 | I59: 55 | J59: 55 | K59: 0 | L59: 55 | M59: 0
A60: 55 | B60: เชียงราย | C60: 1557051273 | D60: เทศบาลตำบลบ้านแซว | E60: 9 | F60: 0 | G60: 0 | H60: 0 | I60: 9 | J60: 9 | K60: 0 | L60: 9 | M60: 0
A61: 56 | B61: เชียงราย | C61: 1557051279 | D61: เทศบาลตำบลสายน้ำคำ | E61: 60 | F61: 0 | G61: 0 | H61: 0 | I61: 60 | J61: 60 | K61: 0 | L61: 60 | M61: 0
A62: 57 | B62: เชียงราย | C62: 1557051283 | D62: เทศบาลตำบลม่วงยาย | E62: 41 | F62: 0 | G62: 0 | H62: 0 | I62: 41 | J62: 41 | K62: 0 | L62: 41 | M62: 0
A63: 58 | B63: เชียงราย | C63: 1557051286 | D63: เทศบาลตำบลท่าข้าม อ. เวียงแก่น จ. เชียงราย | E63: 133 | F63: 1 | G63: 0 | H63: 0 | I63: 134 | J63: 134 | K63: 0 | L63: 134 | M63: 0
A64: 59 | B64: เชียงราย | C64: 1557051312 | D64: เทศบาลตำบลท่าข้าวเปลือก | E64: 138 | F64: 2 | G64: 0 | H64: 0 | I64: 140 | J64: 140 | K64: 0 | L64: 140 | M64: 0
A65: 60 | B65: เชียงราย | C65: 1557051340 | D65: เทศบาลตำบลศรีโพธิ์เงิน | E65: 52 | F65: 0 | G65: 0 | H65: 0 | I65: 52 | J65: 52 | K65: 0 | L65: 52 | M65: 0
A66: 61 | B66: เชียงราย | C66: 1557051348 | D66: เทศบาลตำบลสันทราย อ. เมืองเชียงราย จ. เชียงราย | E66: 18 | F66: 0 | G66: 0 | H66: 0 | I66: 18 | J66: 18 | K66: 0 | L66: 18 | M66: 0
A67: 62 | B67: เชียงราย | C67: 1557051352 | D67: เทศบาลตำบลท่าสุด | E67: 78 | F67: 2 | G67: 0 | H67: 0 | I67: 80 | J67: 80 | K67: 0 | L67: 80 | M67: 0
A68: 63 | B68: เชียงราย | C68: 1557061248 | D68: องค์การบริหารส่วนตำบลดงมหาวัน | E68: 95 | F68: 1 | G68: 0 | H68: 0 | I68: 96 | J68: 96 | K68: 0 | L68: 96 | M68: 0
A69: 64 | B69: เชียงราย | C69: 1557061255 | D69: องค์การบริหารส่วนตำบลศรีดอนไชย | E69: 132 | F69: 0 | G69: 0 | H69: 0 | I69: 132 | J69: 132 | K69: 0 | L69: 132 | M69: 0
A70: 65 | B70: เชียงราย | C70: 1557061256 | D70: องค์การบริหารส่วนตำบลหนองแรด | E70: 66 | F70: 1 | G70: 0 | H70: 0 | I70: 67 | J70: 67 | K70: 0 | L70: 67 | M70: 0
A71: 66 | B71: เชียงราย | C71: 1557061267 | D71: องค์การบริหารส่วนตำบลจอมหมอกแก้ว | E71: 10 | F71: 0 | G71: 0 | H71: 0 | I71: 10 | J71: 10 | K71: 0 | L71: 10 | M71: 0
A72: 67 | B72: เชียงราย | C72: 1557061271 | D72: องค์การบริหารส่วนตำบลต้า | E72: 236 | F72: 0 | G72: 0 | H72: 0 | I72: 236 | J72: 236 | K72: 0 | L72: 236 | M72: 0
A73: 68 | B73: เชียงราย | C73: 1557061298 | D73: องค์การบริหารส่วนตำบลศรีถ้อย | E73: 92 | F73: 1 | G73: 3 | H73: 0 | I73: 96 | J73: 96 | K73: 0 | L73: 96 | M73: 0
A74: 69 | B74: เชียงราย | C74: 1557061301 | D74: องค์การบริหารส่วนตำบลเจดีย์หลวง | E74: 36 | F74: 0 | G74: 0 | H74: 0 | I74: 36 | J74: 36 | K74: 0 | L74: 36 | M74: 0
A75: 70 | B75: เชียงราย | C75: 1557061304 | D75: องค์การบริหารส่วนตำบลแม่อ้อ | E75: 85 | F75: 1 | G75: 0 | H75: 0 | I75: 86 | J75: 86 | K75: 0 | L75: 86 | M75: 0
A76: 71 | B76: เชียงราย | C76: 1557061306 | D76: องค์การบริหารส่วนตำบลสันติสุข | E76: 60 | F76: 0 | G76: 0 | H76: 0 | I76: 60 | J76: 60 | K76: 0 | L76: 60 | M76: 0
A77: 72 | B77: เชียงราย | C77: 1557061309 | D77: องค์การบริหารส่วนตำบลเจริญเมือง | E77: 8 | F77: 0 | G77: 0 | H77: 0 | I77: 8 | J77: 8 | K77: 0 | L77: 8 | M77: 0
A78: 73 | B78: เชียงราย | C78: 1557061310 | D78: องค์การบริหารส่วนตำบลป่าหุ่ง | E78: 9 | F78: 0 | G78: 0 | H78: 0 | I78: 9 | J78: 9 | K78: 0 | L78: 9 | M78: 0
A79: 74 | B79: เชียงราย | C79: 1557061311 | D79: องค์การบริหารส่วนตำบลสันทราย อ. แม่จัน จ. เชียงราย | E79: 32 | F79: 0 | G79: 0 | H79: 0 | I79: 32 | J79: 32 | K79: 0 | L79: 32 | M79: 0
A80: 75 | B80: เชียงราย | C80: 1557061317 | D80: องค์การบริหารส่วนตำบลทรายขาว อ. พาน จ. เชียงราย | E80: 232 | F80: 5 | G80: 1 | H80: 0 | I80: 238 | J80: 238 | K80: 0 | L80: 238 | M80: 0
A81: 76 | B81: เชียงราย | C81: 1557061329 | D81: องค์การบริหารส่วนตำบลเวียง อ. เวียงป่าเป้า จ. เชียงราย | E81: 260 | F81: 0 | G81: 0 | H81: 0 | I81: 260 | J81: 260 | K81: 0 | L81: 260 | M81: 0
A82: 77 | B82: เชียงราย | C82: 1557061335 | D82: องค์การบริหารส่วนตำบลโป่งงาม | E82: 152 | F82: 2 | G82: 0 | H82: 0 | I82: 154 | J82: 154 | K82: 0 | L82: 154 | M82: 0
A83: 78 | B83: เชียงราย | C83: 1557061337 | D83: องค์การบริหารส่วนตำบลศรีเมืองชุม | E83: 37 | F83: 0 | G83: 0 | H83: 0 | I83: 37 | J83: 37 | K83: 0 | L83: 37 | M83: 0
A84: 79 | B84: เชียงราย | C84: 1557061341 | D84: องค์การบริหารส่วนตำบลเวียง อ. เทิง จ. เชียงราย | E84: 201 | F84: 0 | G84: 1 | H84: 0 | I84: 202 | J84: 202 | K84: 0 | L84: 202 | M84: 0
A85: 80 | B85: เชียงราย | C85: 1557061354 | D85: องค์การบริหารส่วนตำบลทุ่งก่อ | E85: 38 | F85: 0 | G85: 0 | H85: 0 | I85: 38 | J85: 38 | K85: 0 | L85: 38 | M85: 0
A86: 81 | B86: เพชรบุรี | C86: 1576054033 | D86: เทศบาลตำบลบางเก่า | E86: 106 | F86: 2 | G86: 0 | H86: 1 | I86: 109 | J86: 109 | K86: 0 | L86: 109 | M86: 0
A87: 82 | B87: เพชรบุรี | C87: 1576064017 | D87: องค์การบริหารส่วนตำบลไร่ส้ม | E87: 9 | F87: 0 | G87: 0 | H87: 0 | I87: 9 | J87: 9 | K87: 0 | L87: 9 | M87: 0
A88: 83 | B88: เพชรบุรี | C88: 1576064034 | D88: องค์การบริหารส่วนตำบลหนองศาลา | E88: 59 | F88: 0 | G88: 0 | H88: 0 | I88: 59 | J88: 59 | K88: 0 | L88: 59 | M88: 0
A89: 84 | B89: เพชรบุรี | C89: 1576064035 | D89: องค์การบริหารส่วนตำบลห้วยทรายเหนือ | E89: 52 | F89: 1 | G89: 1 | H89: 0 | I89: 54 | J89: 54 | K89: 0 | L89: 54 | M89: 0
A90: 85 | B90: เพชรบุรี | C90: 1576064037 | D90: องค์การบริหารส่วนตำบลพุสวรรค์ | E90: 19 | F90: 2 | G90: 0 | H90: 0 | I90: 21 | J90: 21 | K90: 0 | L90: 21 | M90: 0
A91: 86 | B91: เพชรบุรี | C91: 1576064041 | D91: องค์การบริหารส่วนตำบลแหลมผักเบี้ย | E91: 43 | F91: 1 | G91: 0 | H91: 0 | I91: 44 | J91: 44 | K91: 0 | L91: 44 | M91: 0
A92: 87 | B92: เพชรบุรี | C92: 1576064047 | D92: องค์การบริหารส่วนตำบลวังจันทร์ อ. แก่งกระจาน จ. เพชรบุรี | E92: 4 | F92: 0 | G92: 0 | H92: 0 | I92: 4 | J92: 4 | K92: 0 | L92: 4 | M92: 0
A93: 88 | B93: เพชรบุรี | C93: 1576064054 | D93: องค์การบริหารส่วนตำบลไร่โคก | E93: 50 | F93: 0 | G93: 0 | H93: 0 | I93: 50 | J93: 50 | K93: 0 | L93: 50 | M93: 0
A94: 89 | B94: เพชรบุรี | C94: 1576064062 | D94: องค์การบริหารส่วนตำบลห้วยลึก อ. บ้านลาด จ. เพชรบุรี | E94: 12 | F94: 1 | G94: 0 | H94: 0 | I94: 13 | J94: 13 | K94: 0 | L94: 13 | M94: 0
A95: 90 | B95: เพชรบุรี | C95: 1576064065 | D95: องค์การบริหารส่วนตำบลท่าคอย | E95: 7 | F95: 0 | G95: 0 | H95: 0 | I95: 7 | J95: 7 | K95: 0 | L95: 7 | M95: 0
A96: 91 | B96: เพชรบุรี | C96: 1576064067 | D96: องค์การบริหารส่วนตำบลมาบปลาเค้า | E96: 79 | F96: 1 | G96: 0 | H96: 0 | I96: 80 | J96: 80 | K96: 0 | L96: 80 | M96: 0
A97: 92 | B97: เพชรบูรณ์ | C97: 1567044083 | D97: เทศบาลเมืองเพชรบูรณ์ | E97: 54 | F97: 1 | G97: 0 | H97: 0 | I97: 55 | J97: 55 | K97: 0 | L97: 55 | M97: 0
A98: 93 | B98: เพชรบูรณ์ | C98: 1567044099 | D98: เทศบาลเมืองวิเชียรบุรี | E98: 2 | F98: 0 | G98: 0 | H98: 0 | I98: 2 | J98: 2 | K98: 0 | L98: 2 | M98: 0
A99: 94 | B99: เพชรบูรณ์ | C99: 1567054085 | D99: เทศบาลตำบลวังชมภู | E99: 0 | F99: 1 | G99: 0 | H99: 0 | I99: 1 | J99: 1 | K99: 0 | L99: 1 | M99: 0
A100: 95 | B100: เพชรบูรณ์ | C100: 1567054094 | D100: เทศบาลตำบลบัววัฒนา | E100: 43 | F100: 0 | G100: 0 | H100: 0 | I100: 43 | J100: 43 | K100: 0 | L100: 43 | M100: 0
A101: 96 | B101: เพชรบูรณ์ | C101: 1567054117 | D101: เทศบาลตำบลศาลาลาย | E101: 186 | F101: 3 | G101: 0 | H101: 0 | I101: 189 | J101: 189 | K101: 0 | L101: 189 | M101: 0
A102: 97 | B102: เพชรบูรณ์ | C102: 1567064115 | D102: องค์การบริหารส่วนตำบลซับพุทรา | E102: 13 | F102: 0 | G102: 0 | H102: 0 | I102: 13 | J102: 13 | K102: 0 | L102: 13 | M102: 0
A103: 98 | B103: เพชรบูรณ์ | C103: 1567064118 | D103: องค์การบริหารส่วนตำบลตะเบาะ | E103: 156 | F103: 0 | G103: 0 | H103: 0 | I103: 156 | J103: 156 | K103: 0 | L103: 156 | M103: 0
A104: 99 | B104: เพชรบูรณ์ | C104: 1567064122 | D104: องค์การบริหารส่วนตำบลห้วยไร่ อ. หล่มสัก จ. เพชรบูรณ์ | E104: 7 | F104: 0 | G104: 0 | H104: 0 | I104: 7 | J104: 7 | K104: 0 | L104: 7 | M104: 0
A105: 100 | B105: เพชรบูรณ์ | C105: 1567064127 | D105: องค์การบริหารส่วนตำบลบุ่งคล้า อ. หล่มสัก จ. เพชรบูรณ์ | E105: 3 | F105: 0 | G105: 0 | H105: 0 | I105: 3 | J105: 3 | K105: 0 | L105: 3 | M105: 0
A106: 101 | B106: เพชรบูรณ์ | C106: 1567064129 | D106: องค์การบริหารส่วนตำบลซับน้อย | E106: 59 | F106: 0 | G106: 0 | H106: 0 | I106: 59 | J106: 59 | K106: 0 | L106: 59 | M106: 0
A107: 102 | B107: เพชรบูรณ์ | C107: 1567064131 | D107: องค์การบริหารส่วนตำบลยางสาว | E107: 105 | F107: 3 | G107: 1 | H107: 0 | I107: 109 | J107: 109 | K107: 0 | L107: 109 | M107: 0
A108: 103 | B108: เพชรบูรณ์ | C108: 1567064144 | D108: องค์การบริหารส่วนตำบลบึงสามพัน | E108: 1 | F108: 0 | G108: 0 | H108: 0 | I108: 1 | J108: 1 | K108: 0 | L108: 1 | M108: 0
A109: 104 | B109: เพชรบูรณ์ | C109: 1567064148 | D109: องค์การบริหารส่วนตำบลหนองแม่นา | E109: 1 | F109: 0 | G109: 0 | H109: 0 | I109: 1 | J109: 1 | K109: 0 | L109: 1 | M109: 0
A110: 105 | B110: เพชรบูรณ์ | C110: 1567064156 | D110: องค์การบริหารส่วนตำบลน้ำหนาว | E110: 86 | F110: 1 | G110: 0 | H110: 0 | I110: 87 | J110: 87 | K110: 0 | L110: 87 | M110: 0
A111: 106 | B111: เพชรบูรณ์ | C111: 1567064158 | D111: องค์การบริหารส่วนตำบลวังกวาง | E111: 18 | F111: 0 | G111: 0 | H111: 0 | I111: 18 | J111: 18 | K111: 0 | L111: 18 | M111: 0
A112: 107 | B112: เพชรบูรณ์ | C112: 1567064164 | D112: องค์การบริหารส่วนตำบลยางงาม | E112: 2 | F112: 0 | G112: 0 | H112: 0 | I112: 2 | J112: 2 | K112: 0 | L112: 2 | M112: 0
A113: 108 | B113: เพชรบูรณ์ | C113: 1567064172 | D113: องค์การบริหารส่วนตำบลนาสนุ่น | E113: 168 | F113: 2 | G113: 0 | H113: 0 | I113: 170 | J113: 170 | K113: 0 | L113: 170 | M113: 0
A114: 109 | B114: เพชรบูรณ์ | C114: 1567064173 | D114: องค์การบริหารส่วนตำบลหนองย่างทอย | E114: 3 | F114: 0 | G114: 0 | H114: 0 | I114: 3 | J114: 3 | K114: 0 | L114: 3 | M114: 0
A115: 110 | B115: เพชรบูรณ์ | C115: 1567064177 | D115: องค์การบริหารส่วนตำบลสามแยก อ. วิเชียรบุรี จ. เพชรบูรณ์ | E115: 1 | F115: 0 | G115: 0 | H115: 0 | I115: 1 | J115: 1 | K115: 0 | L115: 1 | M115: 0
A116: 111 | B116: เพชรบูรณ์ | C116: 1567064183 | D116: องค์การบริหารส่วนตำบลภูน้ำหยด | E116: 27 | F116: 0 | G116: 0 | H116: 0 | I116: 27 | J116: 27 | K116: 0 | L116: 27 | M116: 0
A117: 112 | B117: เพชรบูรณ์ | C117: 1567064194 | D117: องค์การบริหารส่วนตำบลท่าอิบุญ | E117: 32 | F117: 0 | G117: 0 | H117: 0 | I117: 32 | J117: 32 | K117: 0 | L117: 32 | M117: 0
A118: 113 | B118: เพชรบูรณ์ | C118: 1567064201 | D118: องค์การบริหารส่วนตำบลชนแดน อ. ชนแดน จ. เพชรบูรณ์ | E118: 14 | F118: 0 | G118: 0 | H118: 0 | I118: 14 | J118: 14 | K118: 0 | L118: 14 | M118: 0
A119: 114 | B119: เลย | C119: 1542055415 | D119: เทศบาลตำบลธาตุ อ. เชียงคาน จ. เลย | E119: 339 | F119: 7 | G119: 1 | H119: 0 | I119: 347 | J119: 347 | K119: 0 | L119: 347 | M119: 0
A120: 115 | B120: แพร่ | C120: 1554064257 | D120: องค์การบริหารส่วนตำบลบ้านหนุน | E120: 1 | F120: 0 | G120: 0 | H120: 0 | I120: 1 | J120: 1 | K120: 0 | L120: 1 | M120: 0
A121: 116 | B121: แม่ฮ่องสอน | C121: 1558054510 | D121: เทศบาลตำบลปาย | E121: 28 | F121: 0 | G121: 0 | H121: 0 | I121: 28 | J121: 28 | K121: 0 | L121: 28 | M121: 0
A122: 117 | B122: แม่ฮ่องสอน | C122: 1558054533 | D122: เทศบาลตำบลแม่ยวม | E122: 22 | F122: 0 | G122: 0 | H122: 0 | I122: 22 | J122: 22 | K122: 0 | L122: 22 | M122: 0
A123: 118 | B123: แม่ฮ่องสอน | C123: 1558064512 | D123: องค์การบริหารส่วนตำบลแม่เงา | E123: 124 | F123: 0 | G123: 0 | H123: 0 | I123: 124 | J123: 124 | K123: 0 | L123: 124 | M123: 0
A124: 119 | B124: แม่ฮ่องสอน | C124: 1558064514 | D124: องค์การบริหารส่วนตำบลแม่กิ๊ | E124: 84 | F124: 1 | G124: 0 | H124: 0 | I124: 85 | J124: 85 | K124: 0 | L124: 85 | M124: 0
A125: 120 | B125: แม่ฮ่องสอน | C125: 1558064515 | D125: องค์การบริหารส่วนตำบลขุนแม่ลาน้อย | E125: 41 | F125: 1 | G125: 0 | H125: 1 | I125: 43 | J125: 43 | K125: 0 | L125: 43 | M125: 0
A126: 121 | B126: แม่ฮ่องสอน | C126: 1558064516 | D126: องค์การบริหารส่วนตำบลแม่นาจาง | E126: 90 | F126: 3 | G126: 0 | H126: 0 | I126: 93 | J126: 93 | K126: 0 | L126: 93 | M126: 0
A127: 122 | B127: แม่ฮ่องสอน | C127: 1558064517 | D127: องค์การบริหารส่วนตำบลแม่โถ | E127: 81 | F127: 0 | G127: 0 | H127: 0 | I127: 81 | J127: 81 | K127: 0 | L127: 81 | M127: 0
A128: 123 | B128: แม่ฮ่องสอน | C128: 1558064520 | D128: องค์การบริหารส่วนตำบลหมอกจำแป่ | E128: 172 | F128: 1 | G128: 0 | H128: 1 | I128: 174 | J128: 174 | K128: 0 | L128: 174 | M128: 0
A129: 124 | B129: แม่ฮ่องสอน | C129: 1558064523 | D129: องค์การบริหารส่วนตำบลปางหมู | E129: 51 | F129: 1 | G129: 0 | H129: 0 | I129: 52 | J129: 52 | K129: 0 | L129: 52 | M129: 0
A130: 125 | B130: แม่ฮ่องสอน | C130: 1558064524 | D130: องค์การบริหารส่วนตำบลสบป่อง | E130: 1 | F130: 0 | G130: 0 | H130: 0 | I130: 1 | J130: 1 | K130: 0 | L130: 1 | M130: 0
A131: 126 | B131: แม่ฮ่องสอน | C131: 1558064528 | D131: องค์การบริหารส่วนตำบลป่าโปง | E131: 95 | F131: 0 | G131: 2 | H131: 0 | I131: 97 | J131: 97 | K131: 0 | L131: 97 | M131: 0
A132: 127 | B132: แม่ฮ่องสอน | C132: 1558064543 | D132: องค์การบริหารส่วนตำบลแม่ฮี้ | E132: 97 | F132: 2 | G132: 0 | H132: 0 | I132: 99 | J132: 99 | K132: 0 | L132: 99 | M132: 0
A133: 128 | B133: แม่ฮ่องสอน | C133: 1558064544 | D133: องค์การบริหารส่วนตำบลทุ่งยาว อ. ปาย จ. แม่ฮ่องสอน | E133: 13 | F133: 0 | G133: 0 | H133: 0 | I133: 13 | J133: 13 | K133: 0 | L133: 13 | M133: 0
A134: 129 | B134: แม่ฮ่องสอน | C134: 1558064545 | D134: องค์การบริหารส่วนตำบลเมืองแปง | E134: 93 | F134: 0 | G134: 0 | H134: 0 | I134: 93 | J134: 93 | K134: 0 | L134: 93 | M134: 0
A135: 130 | B135: แม่ฮ่องสอน | C135: 1558064548 | D135: องค์การบริหารส่วนตำบลห้วยโป่ง อ. เมืองแม่ฮ่องสอน จ. แม่ฮ่องสอน | E135: 9 | F135: 0 | G135: 0 | H135: 0 | I135: 9 | J135: 9 | K135: 0 | L135: 9 | M135: 0
A136: 131 | B136: แม่ฮ่องสอน | C136: 1558064549 | D136: องค์การบริหารส่วนตำบลแม่ลาน้อย | E136: 27 | F136: 1 | G136: 0 | H136: 0 | I136: 28 | J136: 28 | K136: 0 | L136: 28 | M136: 0
A137: 132 | B137: แม่ฮ่องสอน | C137: 1558064550 | D137: องค์การบริหารส่วนตำบลท่าผาปุ้ม | E137: 3 | F137: 0 | G137: 0 | H137: 0 | I137: 3 | J137: 3 | K137: 0 | L137: 3 | M137: 0
A138: 133 | B138: แม่ฮ่องสอน | C138: 1558064553 | D138: องค์การบริหารส่วนตำบลแม่ยวมน้อย | E138: 97 | F138: 0 | G138: 0 | H138: 0 | I138: 97 | J138: 97 | K138: 0 | L138: 97 | M138: 0
A139: 134 | B139: กระบี่ | C139: 1581050006 | D139: เทศบาลตำบลคลองพน | E139: 8 | F139: 0 | G139: 0 | H139: 0 | I139: 8 | J139: 8 | K139: 0 | L139: 8 | M139: 0
A140: 135 | B140: กระบี่ | C140: 1581060053 | D140: องค์การบริหารส่วนตำบลคลองท่อมใต้ | E140: 2 | F140: 0 | G140: 0 | H140: 0 | I140: 2 | J140: 2 | K140: 0 | L140: 2 | M140: 0
A141: 136 | B141: กาญจนบุรี | C141: 1571050066 | D141: เทศบาลตำบลหนองบัว อ. เมืองกาญจนบุรี จ. กาญจนบุรี | E141: 107 | F141: 0 | G141: 0 | H141: 0 | I141: 107 | J141: 107 | K141: 0 | L141: 107 | M141: 0
A142: 137 | B142: กาญจนบุรี | C142: 1571050095 | D142: เทศบาลตำบลวังโพธิ์ | E142: 29 | F142: 0 | G142: 0 | H142: 0 | I142: 29 | J142: 29 | K142: 0 | L142: 29 | M142: 0
A143: 138 | B143: กาญจนบุรี | C143: 1571050121 | D143: เทศบาลตำบลหนองปลาไหล อ. หนองปรือ จ. กาญจนบุรี | E143: 8 | F143: 0 | G143: 0 | H143: 0 | I143: 8 | J143: 8 | K143: 0 | L143: 8 | M143: 0
A144: 139 | B144: กาญจนบุรี | C144: 1571060172 | D144: องค์การบริหารส่วนตำบลบ่อพลอย อ. บ่อพลอย จ. กาญจนบุรี | E144: 145 | F144: 0 | G144: 0 | H144: 0 | I144: 145 | J144: 145 | K144: 0 | L144: 145 | M144: 0
A145: 140 | B145: กาฬสินธุ์ | C145: 1546050185 | D145: เทศบาลตำบลลำคลอง | E145: 2 | F145: 0 | G145: 0 | H145: 0 | I145: 2 | J145: 2 | K145: 0 | L145: 2 | M145: 0
A146: 141 | B146: กาฬสินธุ์ | C146: 1546050187 | D146: เทศบาลตำบลนามน | E146: 21 | F146: 0 | G146: 0 | H146: 0 | I146: 21 | J146: 21 | K146: 0 | L146: 21 | M146: 0
A147: 142 | B147: กาฬสินธุ์ | C147: 1546050188 | D147: เทศบาลตำบลธัญญา | E147: 25 | F147: 0 | G147: 0 | H147: 0 | I147: 25 | J147: 25 | K147: 0 | L147: 25 | M147: 0
A148: 143 | B148: กาฬสินธุ์ | C148: 1546050189 | D148: เทศบาลตำบลร่องคำ | E148: 99 | F148: 3 | G148: 1 | H148: 0 | I148: 103 | J148: 103 | K148: 0 | L148: 103 | M148: 0
A149: 144 | B149: กาฬสินธุ์ | C149: 1546050194 | D149: เทศบาลตำบลอิตื้อ | E149: 2 | F149: 0 | G149: 0 | H149: 0 | I149: 2 | J149: 2 | K149: 0 | L149: 2 | M149: 0
A150: 145 | B150: กาฬสินธุ์ | C150: 1546050230 | D150: เทศบาลตำบลสงเปลือย อ. นามน จ. กาฬสินธุ์ | E150: 97 | F150: 0 | G150: 0 | H150: 0 | I150: 97 | J150: 97 | K150: 0 | L150: 97 | M150: 0
A151: 146 | B151: กาฬสินธุ์ | C151: 1546050233 | D151: เทศบาลตำบลเหนือ | E151: 11 | F151: 0 | G151: 0 | H151: 0 | I151: 11 | J151: 11 | K151: 0 | L151: 11 | M151: 0
A152: 147 | B152: กาฬสินธุ์ | C152: 1546050244 | D152: เทศบาลตำบลลำห้วยหลัว | E152: 81 | F152: 1 | G152: 0 | H152: 0 | I152: 82 | J152: 82 | K152: 0 | L152: 82 | M152: 0
A153: 148 | B153: กาฬสินธุ์ | C153: 1546050251 | D153: เทศบาลตำบลหนองบัว อ. หนองกุงศรี จ. กาฬสินธุ์ | E153: 3 | F153: 0 | G153: 0 | H153: 0 | I153: 3 | J153: 3 | K153: 0 | L153: 3 | M153: 0
A154: 149 | B154: กาฬสินธุ์ | C154: 1546050275 | D154: เทศบาลตำบลมหาไชย | E154: 4 | F154: 0 | G154: 0 | H154: 0 | I154: 4 | J154: 4 | K154: 0 | L154: 4 | M154: 0
A155: 150 | B155: กาฬสินธุ์ | C155: 1546050277 | D155: เทศบาลตำบลผาเสวย | E155: 192 | F155: 0 | G155: 0 | H155: 0 | I155: 192 | J155: 192 | K155: 0 | L155: 192 | M155: 0
A156: 151 | B156: กาฬสินธุ์ | C156: 1546050284 | D156: เทศบาลตำบลกุดจิก อ. ท่าคันโท จ. กาฬสินธุ์ | E156: 128 | F156: 3 | G156: 0 | H156: 0 | I156: 131 | J156: 131 | K156: 0 | L156: 131 | M156: 0
A157: 152 | B157: กาฬสินธุ์ | C157: 1546050292 | D157: เทศบาลตำบลโนนศิลา อ. สหัสขันธ์ จ. กาฬสินธุ์ | E157: 6 | F157: 0 | G157: 0 | H157: 0 | I157: 6 | J157: 6 | K157: 0 | L157: 6 | M157: 0
A158: 153 | B158: กาฬสินธุ์ | C158: 1546050299 | D158: เทศบาลตำบลสงเปลือย อ. เขาวง จ. กาฬสินธุ์ | E158: 53 | F158: 0 | G158: 0 | H158: 0 | I158: 53 | J158: 53 | K158: 0 | L158: 53 | M158: 0
A159: 154 | B159: กาฬสินธุ์ | C159: 1546060266 | D159: องค์การบริหารส่วนตำบลสะอาดไชยศรี | E159: 9 | F159: 0 | G159: 0 | H159: 0 | I159: 9 | J159: 9 | K159: 0 | L159: 9 | M159: 0
A160: 155 | B160: กาฬสินธุ์ | C160: 1546060267 | D160: องค์การบริหารส่วนตำบลดงพยุง | E160: 218 | F160: 4 | G160: 3 | H160: 0 | I160: 225 | J160: 225 | K160: 0 | L160: 225 | M160: 0
A161: 156 | B161: กาฬสินธุ์ | C161: 1546060273 | D161: องค์การบริหารส่วนตำบลสมเด็จ | E161: 2 | F161: 0 | G161: 0 | H161: 0 | I161: 2 | J161: 2 | K161: 0 | L161: 2 | M161: 0
A162: 157 | B162: กาฬสินธุ์ | C162: 1546060274 | D162: องค์การบริหารส่วนตำบลหนองแวง อ. สมเด็จ จ. กาฬสินธุ์ | E162: 3 | F162: 1 | G162: 0 | H162: 0 | I162: 4 | J162: 4 | K162: 0 | L162: 4 | M162: 0
A163: 158 | B163: กาฬสินธุ์ | C163: 1546060300 | D163: องค์การบริหารส่วนตำบลหนองผือ อ. เขาวง จ. กาฬสินธุ์ | E163: 72 | F163: 0 | G163: 0 | H163: 0 | I163: 72 | J163: 72 | K163: 0 | L163: 72 | M163: 0
A164: 159 | B164: กาฬสินธุ์ | C164: 1546060302 | D164: องค์การบริหารส่วนตำบลคุ้มเก่า | E164: 125 | F164: 3 | G164: 0 | H164: 0 | I164: 128 | J164: 128 | K164: 0 | L164: 128 | M164: 0
A165: 160 | B165: กาฬสินธุ์ | C165: 1546060315 | D165: องค์การบริหารส่วนตำบลนาโก | E165: 37 | F165: 0 | G165: 0 | H165: 0 | I165: 37 | J165: 37 | K165: 0 | L165: 37 | M165: 0
A166: 161 | B166: กาฬสินธุ์ | C166: 1546060322 | D166: องค์การบริหารส่วนตำบลกมลาไสย | E166: 148 | F166: 3 | G166: 0 | H166: 0 | I166: 151 | J166: 151 | K166: 0 | L166: 151 | M166: 0
A167: 162 | B167: กาฬสินธุ์ | C167: 1546060325 | D167: องค์การบริหารส่วนตำบลธัญญา | E167: 10 | F167: 0 | G167: 0 | H167: 0 | I167: 10 | J167: 10 | K167: 0 | L167: 10 | M167: 0
A168: 163 | B168: กำแพงเพชร | C168: 1562050341 | D168: เทศบาลตำบลขาณุวรลักษบุรี | E168: 181 | F168: 0 | G168: 0 | H168: 0 | I168: 181 | J168: 181 | K168: 0 | L168: 181 | M168: 0
A169: 164 | B169: กำแพงเพชร | C169: 1562050345 | D169: เทศบาลตำบลช่องลม | E169: 7 | F169: 0 | G169: 0 | H169: 0 | I169: 7 | J169: 7 | K169: 0 | L169: 7 | M169: 0
A170: 165 | B170: กำแพงเพชร | C170: 1562050348 | D170: เทศบาลตำบลคลองพิไกร | E170: 74 | F170: 4 | G170: 0 | H170: 0 | I170: 78 | J170: 78 | K170: 0 | L170: 78 | M170: 0
A171: 166 | B171: กำแพงเพชร | C171: 1562050401 | D171: เทศบาลตำบลประชาสุขสันต์ | E171: 48 | F171: 2 | G171: 0 | H171: 0 | I171: 50 | J171: 50 | K171: 0 | L171: 50 | M171: 0
A172: 167 | B172: กำแพงเพชร | C172: 1562060357 | D172: องค์การบริหารส่วนตำบลคณฑี | E172: 1 | F172: 0 | G172: 0 | H172: 0 | I172: 1 | J172: 1 | K172: 0 | L172: 1 | M172: 0
A173: 168 | B173: กำแพงเพชร | C173: 1562060360 | D173: องค์การบริหารส่วนตำบลหนองหัววัว | E173: 37 | F173: 0 | G173: 0 | H173: 0 | I173: 37 | J173: 37 | K173: 0 | L173: 37 | M173: 0
A174: 169 | B174: กำแพงเพชร | C174: 1562060361 | D174: องค์การบริหารส่วนตำบลท่าไม้ อ. พรานกระต่าย จ. กำแพงเพชร | E174: 252 | F174: 2 | G174: 0 | H174: 0 | I174: 254 | J174: 254 | K174: 0 | L174: 254 | M174: 0
A175: 170 | B175: กำแพงเพชร | C175: 1562060362 | D175: องค์การบริหารส่วนตำบลวังควง | E175: 318 | F175: 1 | G175: 0 | H175: 0 | I175: 319 | J175: 319 | K175: 0 | L175: 319 | M175: 0
A176: 171 | B176: กำแพงเพชร | C176: 1562060367 | D176: องค์การบริหารส่วนตำบลห้วยยั้ง | E176: 93 | F176: 3 | G176: 0 | H176: 0 | I176: 96 | J176: 96 | K176: 0 | L176: 96 | M176: 0
A177: 172 | B177: กำแพงเพชร | C177: 1562060368 | D177: องค์การบริหารส่วนตำบลแม่ลาด | E177: 93 | F177: 0 | G177: 0 | H177: 0 | I177: 93 | J177: 93 | K177: 0 | L177: 93 | M177: 0
A178: 173 | B178: กำแพงเพชร | C178: 1562060374 | D178: องค์การบริหารส่วนตำบลทุ่งทอง อ. ทรายทองวัฒนา จ. กำแพงเพชร | E178: 70 | F178: 0 | G178: 0 | H178: 0 | I178: 70 | J178: 70 | K178: 0 | L178: 70 | M178: 0
A179: 174 | B179: กำแพงเพชร | C179: 1562060379 | D179: องค์การบริหารส่วนตำบลหนองคล้า | E179: 1 | F179: 0 | G179: 0 | H179: 0 | I179: 1 | J179: 1 | K179: 0 | L179: 1 | M179: 0
A180: 175 | B180: กำแพงเพชร | C180: 1562060380 | D180: องค์การบริหารส่วนตำบลหนองทอง | E180: 45 | F180: 0 | G180: 0 | H180: 0 | I180: 45 | J180: 45 | K180: 0 | L180: 45 | M180: 0
A181: 176 | B181: กำแพงเพชร | C181: 1562060395 | D181: องค์การบริหารส่วนตำบลวังชะพลู | E181: 6 | F181: 0 | G181: 0 | H181: 0 | I181: 6 | J181: 6 | K181: 0 | L181: 6 | M181: 0
A182: 177 | B182: กำแพงเพชร | C182: 1562060396 | D182: องค์การบริหารส่วนตำบลหินดาต | E182: 72 | F182: 1 | G182: 0 | H182: 0 | I182: 73 | J182: 73 | K182: 0 | L182: 73 | M182: 0
A183: 178 | B183: กำแพงเพชร | C183: 1562060397 | D183: องค์การบริหารส่วนตำบลปางตาไว | E183: 143 | F183: 0 | G183: 0 | H183: 0 | I183: 143 | J183: 143 | K183: 0 | L183: 143 | M183: 0
A184: 179 | B184: กำแพงเพชร | C184: 1562060399 | D184: องค์การบริหารส่วนตำบลหนองหลวง อ. ลานกระบือ จ. กำแพงเพชร | E184: 87 | F184: 0 | G184: 1 | H184: 0 | I184: 88 | J184: 88 | K184: 0 | L184: 88 | M184: 0
A185: 180 | B185: กำแพงเพชร | C185: 1562060402 | D185: องค์การบริหารส่วนตำบลบึงทับแรต | E185: 102 | F185: 6 | G185: 1 | H185: 0 | I185: 109 | J185: 109 | K185: 0 | L185: 109 | M185: 0
A186: 181 | B186: กำแพงเพชร | C186: 1562060403 | D186: องค์การบริหารส่วนตำบลจันทิมา | E186: 12 | F186: 1 | G186: 0 | H186: 0 | I186: 13 | J186: 13 | K186: 0 | L186: 13 | M186: 0
A187: 182 | B187: กำแพงเพชร | C187: 1562060411 | D187: องค์การบริหารส่วนตำบลโป่งน้ำร้อน อ. คลองลาน จ. กำแพงเพชร | E187: 37 | F187: 0 | G187: 0 | H187: 0 | I187: 37 | J187: 37 | K187: 0 | L187: 37 | M187: 0
A188: 183 | B188: กำแพงเพชร | C188: 1562060412 | D188: องค์การบริหารส่วนตำบลคลองขลุง | E188: 106 | F188: 0 | G188: 0 | H188: 0 | I188: 106 | J188: 106 | K188: 0 | L188: 106 | M188: 0
A189: 184 | B189: กำแพงเพชร | C189: 1562060415 | D189: องค์การบริหารส่วนตำบลนาบ่อคำ | E189: 453 | F189: 9 | G189: 4 | H189: 0 | I189: 466 | J189: 466 | K189: 0 | L189: 466 | M189: 0
A190: 185 | B190: กำแพงเพชร | C190: 1562060418 | D190: องค์การบริหารส่วนตำบลสระแก้ว อ. เมืองกำแพงเพชร จ. กำแพงเพชร | E190: 100 | F190: 0 | G190: 0 | H190: 0 | I190: 100 | J190: 100 | K190: 0 | L190: 100 | M190: 0
A191: 186 | B191: กำแพงเพชร | C191: 1562060419 | D191: องค์การบริหารส่วนตำบลคลองแม่ลาย | E191: 85 | F191: 2 | G191: 0 | H191: 0 | I191: 87 | J191: 87 | K191: 0 | L191: 87 | M191: 0
A192: 187 | B192: ขอนแก่น | C192: 1540030422 | D192: เทศบาลนครขอนแก่น | E192: 13 | F192: 0 | G192: 0 | H192: 0 | I192: 13 | J192: 13 | K192: 0 | L192: 13 | M192: 0
A193: 188 | B193: ขอนแก่น | C193: 1540050433 | D193: เทศบาลตำบลลำน้ำพอง | E193: 141 | F193: 0 | G193: 0 | H193: 0 | I193: 141 | J193: 141 | K193: 0 | L193: 141 | M193: 0
A194: 189 | B194: ขอนแก่น | C194: 1540050446 | D194: เทศบาลตำบลแวงใหญ่ | E194: 53 | F194: 0 | G194: 0 | H194: 0 | I194: 53 | J194: 53 | K194: 0 | L194: 53 | M194: 0
A195: 190 | B195: ขอนแก่น | C195: 1540050454 | D195: เทศบาลตำบลซำสูง | E195: 3 | F195: 0 | G195: 0 | H195: 0 | I195: 3 | J195: 3 | K195: 0 | L195: 3 | M195: 0
A196: 191 | B196: ขอนแก่น | C196: 1540050456 | D196: เทศบาลตำบลชนบท | E196: 30 | F196: 0 | G196: 0 | H196: 0 | I196: 30 | J196: 30 | K196: 0 | L196: 30 | M196: 0
A197: 192 | B197: ขอนแก่น | C197: 1540050471 | D197: เทศบาลตำบลแก่นฝาง | E197: 14 | F197: 0 | G197: 0 | H197: 0 | I197: 14 | J197: 14 | K197: 0 | L197: 14 | M197: 0
A198: 193 | B198: ขอนแก่น | C198: 1540050542 | D198: เทศบาลตำบลนาข่า อ. มัญจาคีรี จ. ขอนแก่น | E198: 11 | F198: 0 | G198: 0 | H198: 0 | I198: 11 | J198: 11 | K198: 0 | L198: 11 | M198: 0
A199: 194 | B199: ขอนแก่น | C199: 1540060478 | D199: องค์การบริหารส่วนตำบลบัวเงิน | E199: 7 | F199: 0 | G199: 0 | H199: 0 | I199: 7 | J199: 7 | K199: 0 | L199: 7 | M199: 0
A200: 195 | B200: ขอนแก่น | C200: 1540060483 | D200: องค์การบริหารส่วนตำบลหนองเรือ อ. หนองเรือ จ. ขอนแก่น | E200: 64 | F200: 0 | G200: 0 | H200: 0 | I200: 64 | J200: 64 | K200: 0 | L200: 64 | M200: 0
A201: 196 | B201: ขอนแก่น | C201: 1540060484 | D201: องค์การบริหารส่วนตำบลบ้านกง | E201: 1 | F201: 0 | G201: 0 | H201: 0 | I201: 1 | J201: 1 | K201: 0 | L201: 1 | M201: 0
... 878 more rows

Sheet 2.1.2 อปท. ที่จ่ายไม่สำเร็จบางร
A1: รายละเอียดการตรวจสอบรายงานผลการจ่ายเงินโครงการกระตุ้นเศรษฐกิจ ปี 2567 ผ่านคนพิการ ขององค์กรปกครองส่วนท้องถิ่น กรณีการจ่ายเป็นเงินสด
A2: 2.1.2 อปท. ที่จ่ายเงินสดให้ผู้มีสิทธิไม่สำเร็จบางราย
A4: ลำดับ | B4: ชื่อจังหวัด | C4: รหัสหน่วยงาน | D4: ชื่อหน่วยงาน | E4: รายงาน บก. จ่ายเงิน (คน) | J4: รายงาน สถ. จ่ายเงิน (คน) | M4: ผลต่างรายงานของ | N4: จำนวนคน
E5: ครั้งที่ 1 | F5: ครั้งที่ 2 | G5: ครั้งที่ 3 | H5: ครั้งที่ 4 | I5: รวม | J5: จ่ายสำเร็จ | K5: จ่ายไม่สำเร็จ | L5: รวม | M5: บก. - สถ. (คน) | N5: คืนแล้ว | O5: ยังไม่คืน | P5: คืนไม่ครบ
A6: 1 | B6: เชียงใหม่ | C6: 1550051367 | D6: เทศบาลตำบลเมืองนะ | E6: 186 | F6: 0 | G6: 0 | H6: 0 | I6: 186 | J6: 185 | K6: 1 | L6: 186 | M6: 0 | N6: 1
A7: 2 | B7: เชียงใหม่ | C7: 1550051443 | D7: เทศบาลตำบลทุ่งต้อม | E7: 104 | F7: 2 | G7: 2 | H7: 0 | I7: 108 | J7: 107 | K7: 1 | L7: 108 | M7: 0 | N7: 1
A8: 3 | B8: เชียงใหม่ | C8: 1550051508 | D8: เทศบาลตำบลห้วยทราย | E8: 124 | F8: 0 | G8: 0 | H8: 0 | I8: 124 | J8: 123 | K8: 1 | L8: 124 | M8: 0 | N8: 1
A9: 4 | B9: เชียงใหม่ | C9: 1550061461 | D9: องค์การบริหารส่วนตำบลแม่ทะลบ | E9: 137 | F9: 0 | G9: 5 | H9: 0 | I9: 142 | J9: 141 | K9: 1 | L9: 142 | M9: 0 | N9: 1
A10: 5 | B10: เชียงใหม่ | C10: 1550061521 | D10: องค์การบริหารส่วนตำบลบ่อแก้ว อ. สะเมิง จ. เชียงใหม่ | E10: 184 | F10: 0 | G10: 0 | H10: 0 | I10: 184 | J10: 183 | K10: 1 | L10: 184 | M10: 0 | N10: 1
A11: 6 | B11: เชียงราย | C11: 1557061292 | D11: องค์การบริหารส่วนตำบลโชคชัย อ. ดอยหลวง จ. เชียงราย | E11: 106 | F11: 1 | G11: 0 | H11: 0 | I11: 107 | J11: 106 | K11: 1 | L11: 107 | M11: 0 | N11: 1
A12: 7 | B12: เชียงราย | C12: 1557061320 | D12: องค์การบริหารส่วนตำบลเมืองพาน อ. พาน จ. เชียงราย | E12: 113 | F12: 1 | G12: 0 | H12: 0 | I12: 114 | J12: 113 | K12: 1 | L12: 114 | M12: 0 | N12: 1
A13: 8 | B13: เชียงราย | C13: 1557061321 | D13: องค์การบริหารส่วนตำบลทานตะวัน | E13: 110 | F13: 0 | G13: 0 | H13: 0 | I13: 110 | J13: 108 | K13: 2 | L13: 110 | M13: 0 | O13: 2
A14: 9 | B14: เพชรบูรณ์ | C14: 1567064175 | D14: องค์การบริหารส่วนตำบลคลองกระจัง | E14: 1 | F14: 0 | G14: 0 | H14: 0 | I14: 1 | J14: 0 | K14: 1 | L14: 1 | M14: 0 | N14: 1
A15: 10 | B15: เพชรบูรณ์ | C15: 1567064182 | D15: องค์การบริหารส่วนตำบลพุขาม | E15: 188 | F15: 2 | G15: 0 | H15: 0 | I15: 190 | J15: 189 | K15: 1 | L15: 190 | M15: 0 | N15: 1
A16: 11 | B16: กาฬสินธุ์ | C16: 1546050210 | D16: เทศบาลตำบลโนนน้ำเกลี้ยง | E16: 146 | F16: 0 | G16: 0 | H16: 0 | I16: 146 | J16: 145 | K16: 1 | L16: 146 | M16: 0 | O16: 1
A17: 12 | B17: ขอนแก่น | C17: 1540050496 | D17: เทศบาลตำบลโนนสะอาด อ. ชุมแพ จ. ขอนแก่น | E17: 113 | F17: 0 | G17: 0 | H17: 0 | I17: 113 | J17: 112 | K17: 1 | L17: 113 | M17: 0 | O17: 1
A18: 13 | B18: ขอนแก่น | C18: 1540060541 | D18: องค์การบริหารส่วนตำบลคำแคน | E18: 156 | F18: 5 | G18: 1 | H18: 0 | I18: 162 | J18: 161 | K18: 1 | L18: 162 | M18: 0 | O18: 1
A19: 14 | B19: ขอนแก่น | C19: 1540060601 | D19: องค์การบริหารส่วนตำบลเขาน้อย อ. เวียงเก่า จ. ขอนแก่น | E19: 32 | F19: 0 | G19: 0 | H19: 0 | I19: 32 | J19: 31 | K19: 1 | L19: 32 | M19: 0 | N19: 1
A20: 15 | B20: จันทบุรี | C20: 1522050663 | D20: เทศบาลตำบลทับช้าง | E20: 1 | F20: 0 | G20: 0 | H20: 1 | I20: 2 | J20: 1 | K20: 1 | L20: 2 | M20: 0 | N20: 1
A21: 16 | B21: ชัยภูมิ | C21: 1536061027 | D21: องค์การบริหารส่วนตำบลวังตะเฆ่ | E21: 1 | F21: 0 | G21: 0 | H21: 0 | I21: 1 | J21: 0 | K21: 1 | L21: 1 | M21: 0 | N21: 1
A22: 17 | B22: ชัยภูมิ | C22: 1536061050 | D22: องค์การบริหารส่วนตำบลโนนทอง อ. เกษตรสมบูรณ์ จ. ชัยภูมิ | E22: 271 | F22: 1 | G22: 0 | H22: 0 | I22: 272 | J22: 271 | K22: 1 | L22: 272 | M22: 0 | N22: 1
A23: 18 | B23: ชัยภูมิ | C23: 1536061062 | D23: องค์การบริหารส่วนตำบลหนองขาม อ. แก้งคร้อ จ. ชัยภูมิ | E23: 274 | F23: 6 | G23: 2 | H23: 1 | I23: 283 | J23: 281 | K23: 2 | L23: 283 | M23: 0 | N23: 2
A24: 19 | B24: ตาก | C24: 1563051714 | D24: เทศบาลตำบลแม่จัน อ. อุ้มผาง จ. ตาก | E24: 22 | F24: 0 | G24: 0 | H24: 0 | I24: 22 | J24: 20 | K24: 2 | L24: 22 | M24: 0 | N24: 2
A25: 20 | B25: ตาก | C25: 1563061763 | D25: องค์การบริหารส่วนตำบลตลุกกลางทุ่ง | E25: 177 | F25: 0 | G25: 0 | H25: 0 | I25: 177 | J25: 176 | K25: 1 | L25: 177 | M25: 0 | N25: 1
A26: 21 | B26: นครปฐม | C26: 1573061886 | D26: องค์การบริหารส่วนตำบลบางหลวง อ. บางเลน จ. นครปฐม | E26: 48 | F26: 0 | G26: 0 | H26: 0 | I26: 48 | J26: 47 | K26: 1 | L26: 48 | M26: 0 | O26: 1
A27: 22 | B27: นครปฐม | C27: 1573061917 | D27: องค์การบริหารส่วนตำบลคลองใหม่ อ. สามพราน จ. นครปฐม | E27: 2 | F27: 0 | G27: 0 | H27: 0 | I27: 2 | J27: 0 | K27: 2 | L27: 2 | M27: 0 | N27: 2
A28: 23 | B28: นครราชสีมา | C28: 1530052076 | D28: เทศบาลตำบลท่าเยี่ยม | E28: 99 | F28: 0 | G28: 0 | H28: 0 | I28: 99 | J28: 98 | K28: 1 | L28: 99 | M28: 0 | N28: 1
A29: 24 | B29: นครราชสีมา | C29: 1530052086 | D29: เทศบาลตำบลเมืองยาง | E29: 331 | F29: 1 | G29: 8 | H29: 1 | I29: 341 | J29: 339 | K29: 2 | L29: 341 | M29: 0 | O29: 2
A30: 25 | B30: นครราชสีมา | C30: 1530052098 | D30: เทศบาลตำบลพระทองคำ | E30: 49 | F30: 1 | G30: 0 | H30: 0 | I30: 50 | J30: 49 | K30: 1 | L30: 50 | M30: 0 | N30: 1
A31: 26 | B31: นครราชสีมา | C31: 1530062149 | D31: องค์การบริหารส่วนตำบลหนองระเวียง อ. เมืองนครราชสีมา จ. นครราชสีมา | E31: 193 | F31: 0 | G31: 0 | H31: 0 | I31: 193 | J31: 192 | K31: 1 | L31: 193 | M31: 0 | N31: 1
A32: 27 | B32: นครราชสีมา | C32: 1530062277 | D32: องค์การบริหารส่วนตำบลมะเกลือเก่า | E32: 269 | F32: 0 | G32: 1 | H32: 0 | I32: 270 | J32: 269 | K32: 1 | L32: 270 | M32: 0 | N32: 1
A33: 28 | B33: นครราชสีมา | C33: 1530062283 | D33: องค์การบริหารส่วนตำบลประสุข | E33: 294 | F33: 0 | G33: 0 | H33: 0 | I33: 294 | J33: 293 | K33: 1 | L33: 294 | M33: 0 | N33: 1
A34: 29 | B34: นครราชสีมา | C34: 1530062329 | D34: องค์การบริหารส่วนตำบลไทยเจริญ อ. หนองบุญมาก จ. นครราชสีมา | E34: 51 | F34: 0 | G34: 0 | H34: 0 | I34: 51 | J34: 50 | K34: 1 | L34: 51 | M34: 0 | N34: 1
A35: 30 | B35: นครศรีธรรมราช | C35: 1580052381 | D35: เทศบาลตำบลเขาพระ อ. พิปูน จ. นครศรีธรรมราช | E35: 89 | F35: 12 | G35: 2 | H35: 0 | I35: 103 | J35: 102 | K35: 1 | L35: 103 | M35: 0 | N35: 1
A36: 31 | B36: นครศรีธรรมราช | C36: 1580052436 | D36: เทศบาลตำบลชะมาย | E36: 7 | F36: 0 | G36: 0 | H36: 0 | I36: 7 | J36: 6 | K36: 1 | L36: 7 | M36: 0 | N36: 1
A37: 32 | B37: นครศรีธรรมราช | C37: 1580062503 | D37: องค์การบริหารส่วนตำบลคลองน้อย อ. ปากพนัง จ. นครศรีธรรมราช | E37: 377 | F37: 0 | G37: 0 | H37: 0 | I37: 377 | J37: 376 | K37: 1 | L37: 377 | M37: 0 | N37: 1
A38: 33 | B38: นครศรีธรรมราช | C38: 1580062522 | D38: องค์การบริหารส่วนตำบลกลาย | E38: 167 | F38: 1 | G38: 1 | H38: 0 | I38: 169 | J38: 168 | K38: 1 | L38: 169 | M38: 0 | N38: 1
A39: 34 | B39: นครสวรรค์ | C39: 1560052563 | D39: เทศบาลตำบลบางประมุง | E39: 61 | F39: 0 | G39: 0 | H39: 0 | I39: 61 | J39: 60 | K39: 1 | L39: 61 | M39: 0 | N39: 1
A40: 35 | B40: นครสวรรค์ | C40: 1560062666 | D40: องค์การบริหารส่วนตำบลธารทหาร | E40: 99 | F40: 2 | G40: 1 | H40: 0 | I40: 102 | J40: 101 | K40: 1 | L40: 102 | M40: 0 | N40: 1
A41: 36 | B41: นราธิวาส | C41: 1596062768 | D41: องค์การบริหารส่วนตำบลกาเยาะมาตี | E41: 230 | F41: 6 | G41: 3 | H41: 0 | I41: 239 | J41: 237 | K41: 2 | L41: 239 | M41: 0 | N41: 2
A42: 37 | B42: บุรีรัมย์ | C42: 1531053076 | D42: เทศบาลตำบลสามแวง | E42: 142 | F42: 3 | G42: 0 | H42: 0 | I42: 145 | J42: 144 | K42: 1 | L42: 145 | M42: 0 | N42: 1
A43: 38 | B43: บุรีรัมย์ | C43: 1531053080 | D43: เทศบาลตำบลโคกเหล็ก | E43: 117 | F43: 0 | G43: 0 | H43: 0 | I43: 117 | J43: 116 | K43: 1 | L43: 117 | M43: 0 | N43: 1
A44: 39 | B44: ปราจีนบุรี | C44: 1525063309 | D44: องค์การบริหารส่วนตำบลคำโตนด | E44: 187 | F44: 4 | G44: 0 | H44: 0 | I44: 191 | J44: 190 | K44: 1 | L44: 191 | M44: 0 | N44: 1
A45: 40 | B45: ปัตตานี | C45: 1594063418 | D45: องค์การบริหารส่วนตำบลกะดุนง | E45: 180 | F45: 2 | G45: 0 | H45: 0 | I45: 182 | J45: 181 | K45: 1 | L45: 182 | M45: 0 | O45: 1
A46: 41 | B46: ปัตตานี | C46: 1594063424 | D46: องค์การบริหารส่วนตำบลปะโด | E46: 4 | F46: 0 | G46: 0 | H46: 0 | I46: 4 | J46: 3 | K46: 1 | L46: 4 | M46: 0 | N46: 1
A47: 42 | B47: พัทลุง | C47: 1593053727 | D47: เทศบาลตำบลชะรัด | E47: 246 | F47: 3 | G47: 0 | H47: 0 | I47: 249 | J47: 248 | K47: 1 | L47: 249 | M47: 0 | O47: 1
A48: 43 | B48: พัทลุง | C48: 1593063773 | D48: องค์การบริหารส่วนตำบลทุ่งนารี | E48: 80 | F48: 0 | G48: 0 | H48: 0 | I48: 80 | J48: 79 | K48: 1 | L48: 80 | M48: 0 | N48: 1
A49: 44 | B49: พิษณุโลก | C49: 1565063982 | D49: องค์การบริหารส่วนตำบลวังอิทก | E49: 227 | F49: 1 | G49: 0 | H49: 0 | I49: 228 | J49: 227 | K49: 1 | L49: 228 | M49: 0 | O49: 1
A50: 45 | B50: พิษณุโลก | C50: 1565063988 | D50: องค์การบริหารส่วนตำบลหนองกะท้าว | E50: 497 | F50: 1 | G50: 0 | H50: 0 | I50: 498 | J50: 497 | K50: 1 | L50: 498 | M50: 0 | N50: 1
A51: 46 | B51: มุกดาหาร | C51: 1549064481 | D51: องค์การบริหารส่วนตำบลบ้านเหล่า อ. คำชะอี จ. มุกดาหาร | E51: 1 | F51: 0 | G51: 0 | H51: 0 | I51: 1 | J51: 0 | K51: 1 | L51: 1 | M51: 0 | N51: 1
A52: 47 | B52: ยะลา | C52: 1595034643 | D52: เทศบาลนครยะลา | E52: 1 | F52: 0 | G52: 0 | H52: 0 | I52: 1 | J52: 0 | K52: 1 | L52: 1 | M52: 0 | N52: 1
A53: 48 | B53: ยะลา | C53: 1595064655 | D53: องค์การบริหารส่วนตำบลยะลา | E53: 63 | F53: 1 | G53: 0 | H53: 0 | I53: 64 | J53: 63 | K53: 1 | L53: 64 | M53: 0 | N53: 1
A54: 49 | B54: ยะลา | C54: 1595064660 | D54: องค์การบริหารส่วนตำบลถ้ำทะลุ | E54: 1 | F54: 0 | G54: 0 | H54: 0 | I54: 1 | J54: 0 | K54: 1 | L54: 1 | M54: 0 | N54: 1
A55: 50 | B55: ร้อยเอ็ด | C55: 1545064760 | D55: องค์การบริหารส่วนตำบลหนองแคน | E55: 357 | F55: 1 | G55: 2 | H55: 0 | I55: 360 | J55: 359 | K55: 1 | L55: 360 | M55: 0 | N55: 1
A56: 51 | B56: ร้อยเอ็ด | C56: 1545064776 | D56: องค์การบริหารส่วนตำบลวารีสวัสดิ์ | E56: 102 | F56: 3 | G56: 0 | H56: 0 | I56: 105 | J56: 104 | K56: 1 | L56: 105 | M56: 0 | O56: 1
A57: 52 | B57: ร้อยเอ็ด | C57: 1545064847 | D57: องค์การบริหารส่วนตำบลนางาม อ. เสลภูมิ จ. ร้อยเอ็ด | E57: 228 | F57: 1 | G57: 0 | H57: 0 | I57: 229 | J57: 228 | K57: 1 | L57: 229 | M57: 0 | N57: 1
A58: 53 | B58: ร้อยเอ็ด | C58: 1545064870 | D58: องค์การบริหารส่วนตำบลธวัชบุรี | E58: 228 | F58: 0 | G58: 0 | H58: 0 | I58: 228 | J58: 226 | K58: 2 | L58: 228 | M58: 0 | N58: 2
A59: 54 | B59: ลพบุรี | C59: 1516065162 | D59: องค์การบริหารส่วนตำบลม่วงค่อม | E59: 1 | F59: 0 | G59: 0 | H59: 0 | I59: 1 | J59: 0 | K59: 1 | L59: 1 | M59: 0 | N59: 1
A60: 55 | B60: ลำปาง | C60: 1552065299 | D60: องค์การบริหารส่วนตำบลหัวเมือง อ. เมืองปาน จ. ลำปาง | E60: 117 | F60: 0 | G60: 0 | H60: 0 | I60: 117 | J60: 116 | K60: 1 | L60: 117 | M60: 0 | N60: 1
A61: 56 | B61: ศรีสะเกษ | C61: 1533065639 | D61: องค์การบริหารส่วนตำบลห้วยทับทัน | E61: 61 | F61: 0 | G61: 1 | H61: 0 | I61: 62 | J61: 61 | K61: 1 | L61: 62 | M61: 0 | O61: 1
A62: 57 | B62: สกลนคร | C62: 1547055736 | D62: เทศบาลตำบลส่องดาว | E62: 11 | F62: 1 | G62: 0 | H62: 0 | I62: 12 | J62: 11 | K62: 1 | L62: 12 | M62: 0 | N62: 1
A63: 58 | B63: สงขลา | C63: 1590065977 | D63: องค์การบริหารส่วนตำบลเกาะสะบ้า | E63: 112 | F63: 0 | G63: 2 | H63: 2 | I63: 116 | J63: 115 | K63: 1 | L63: 116 | M63: 0 | N63: 1
A64: 59 | B64: สมุทรปราการ | C64: 1511066066 | D64: องค์การบริหารส่วนตำบลศีรษะจรเข้น้อย | E64: 11 | F64: 0 | G64: 0 | H64: 0 | I64: 11 | J64: 10 | K64: 1 | L64: 11 | M64: 0 | N64: 1
A65: 60 | B65: สระบุรี | C65: 1519056243 | D65: เทศบาลตำบลหน้าพระลาน | E65: 268 | F65: 6 | G65: 1 | H65: 0 | I65: 275 | J65: 273 | K65: 2 | L65: 275 | M65: 0 | N65: 2
A66: 61 | B66: สระบุรี | C66: 1519066262 | D66: องค์การบริหารส่วนตำบลวิหารแดง | E66: 1 | F66: 0 | G66: 0 | H66: 0 | I66: 1 | J66: 0 | K66: 1 | L66: 1 | M66: 0 | O66: 1
A67: 62 | B67: สุพรรณบุรี | C67: 1572066537 | D67: องค์การบริหารส่วนตำบลหนองโอ่ง | E67: 59 | F67: 0 | G67: 0 | H67: 0 | I67: 59 | J67: 58 | K67: 1 | L67: 59 | M67: 0 | O67: 1
A68: 63 | B68: สุพรรณบุรี | C68: 1572066543 | D68: องค์การบริหารส่วนตำบลบางตะเคียน | E68: 115 | F68: 2 | G68: 3 | H68: 4 | I68: 124 | J68: 117 | K68: 7 | L68: 124 | M68: 0 | O68: 7
A69: 64 | B69: สุรินทร์ | C69: 1532056863 | D69: เทศบาลตำบลสระขุด | E69: 149 | F69: 0 | G69: 0 | H69: 0 | I69: 149 | J69: 148 | K69: 1 | L69: 149 | M69: 0 | N69: 1
A70: 65 | B70: หนองคาย | C70: 1543066938 | D70: องค์การบริหารส่วนตำบลหนองหลวง อ. เฝ้าไร่ จ. หนองคาย | E70: 325 | F70: 8 | G70: 1 | H70: 4 | I70: 338 | J70: 337 | K70: 1 | L70: 338 | M70: 0 | N70: 1
A71: 66 | B71: อ่างทอง | C71: 1515057131 | D71: เทศบาลตำบลไผ่ดำพัฒนา | E71: 72 | F71: 1 | G71: 0 | H71: 0 | I71: 73 | J71: 72 | K71: 1 | L71: 73 | M71: 0 | O71: 1
A72: 67 | B72: อ่างทอง | C72: 1515067124 | D72: องค์การบริหารส่วนตำบลคลองขนาก | E72: 67 | F72: 4 | G72: 0 | H72: 0 | I72: 71 | J72: 67 | K72: 4 | L72: 71 | M72: 0 | O72: 4
A73: 68 | B73: อ่างทอง | C73: 1515067125 | D73: องค์การบริหารส่วนตำบลไผ่วง | E73: 51 | F73: 1 | G73: 0 | H73: 0 | I73: 52 | J73: 50 | K73: 2 | L73: 52 | M73: 0 | O73: 2
A74: 69 | B74: อ่างทอง | C74: 1515067127 | D74: องค์การบริหารส่วนตำบลหลักแก้ว | E74: 84 | F74: 3 | G74: 0 | H74: 0 | I74: 87 | J74: 85 | K74: 2 | L74: 87 | M74: 0 | N74: 2
A75: 70 | B75: อำนาจเจริญ | C75: 1537067184 | D75: องค์การบริหารส่วนตำบลชานุมาน | E75: 85 | F75: 0 | G75: 0 | H75: 0 | I75: 85 | J75: 84 | K75: 1 | L75: 85 | M75: 0 | N75: 1
A76: 71 | B76: อำนาจเจริญ | C76: 1537067205 | D76: องค์การบริหารส่วนตำบลเหล่าพรวน | E76: 66 | F76: 1 | G76: 0 | H76: 0 | I76: 67 | J76: 66 | K76: 1 | L76: 67 | M76: 0 | O76: 1
A77: 72 | B77: อุตรดิตถ์ | C77: 1553057413 | D77: เทศบาลตำบลจริม | E77: 324 | F77: 0 | G77: 1 | H77: 0 | I77: 325 | J77: 324 | K77: 1 | L77: 325 | M77: 0 | N77: 1
A78: 73 | B78: อุตรดิตถ์ | C78: 1553067434 | D78: องค์การบริหารส่วนตำบลน้ำหมัน | E78: 286 | F78: 0 | G78: 0 | H78: 0 | I78: 286 | J78: 285 | K78: 1 | L78: 286 | M78: 0 | N78: 1
A79: 74 | B79: อุตรดิตถ์ | C79: 1553067442 | D79: องค์การบริหารส่วนตำบลด่านแม่คำมัน | E79: 89 | F79: 1 | G79: 0 | H79: 0 | I79: 90 | J79: 89 | K79: 1 | L79: 90 | M79: 0 | O79: 1
A80: 75 | B80: อุตรดิตถ์ | C80: 1553067445 | D80: องค์การบริหารส่วนตำบลท่าสัก | E80: 226 | F80: 5 | G80: 0 | H80: 0 | I80: 231 | J80: 230 | K80: 1 | L80: 231 | M80: 0 | N80: 1
A81: 76 | B81: อุทัยธานี | C81: 1561067505 | D81: องค์การบริหารส่วนตำบลลานสัก | E81: 217 | F81: 1 | G81: 0 | H81: 0 | I81: 218 | J81: 217 | K81: 1 | L81: 218 | M81: 0 | N81: 1
A82: รวมจำนวน | E82: =SUM(E6:E81) -> 10,270 | F82: =SUM(F6:F81) -> 95 | G82: 37 | H82: 13 | I82: 10,415 | J82: 10,320 | K82: 95 | L82: 10,415 | M82: 0 | N82: 64 | O82: 31 | P82: 0

Sheet (2.1) พบรายการนำส่งคืน บก.
A1: รายละเอียดการตรวจสอบรายงานผลการจ่ายเงินโครงการกระตุ้นเศรษฐกิจ ปี 2567 ผ่านคนพิการ ขององค์กรปกครองส่วนท้องถิ่น กรณีการจ่ายเป็นเงินสด
A2: (2.1) พบรายการนำเงินส่งคืน บก.แล้ว ตามหนังสือ กค 0402.2/ว 151
A4: ลำดับ | B4: ชื่อจังหวัด | C4: รหัสหน่วยงาน | D4: ชื่อหน่วยงาน | E4: รายงาน บก. จ่ายเงิน (คน) | J4: รายงาน สถ. จ่ายเงิน (คน) | M4: ผลต่างรายงานของ | N4: จำนวนคน
E5: ครั้งที่ 1 | F5: ครั้งที่ 2 | G5: ครั้งที่ 3 | H5: ครั้งที่ 4 | I5: รวม | J5: จ่ายสำเร็จ | K5: จ่ายไม่สำเร็จ | L5: รวม | M5: บก. - สถ. (คน) | N5: คืนแล้ว | O5: ยังไม่คืน | P5: คืนไม่ครบ
A6: 1 | B6: เชียงใหม่ | C6: 1550051367 | D6: เทศบาลตำบลเมืองนะ | E6: 186 | F6: 0 | G6: 0 | H6: 0 | I6: 186 | J6: 185 | K6: 1 | L6: 186 | M6: 0 | N6: 1
A7: 2 | B7: เชียงใหม่ | C7: 1550051443 | D7: เทศบาลตำบลทุ่งต้อม | E7: 104 | F7: 2 | G7: 2 | H7: 0 | I7: 108 | J7: 107 | K7: 1 | L7: 108 | M7: 0 | N7: 1
A8: 3 | B8: เชียงใหม่ | C8: 1550051508 | D8: เทศบาลตำบลห้วยทราย | E8: 124 | F8: 0 | G8: 0 | H8: 0 | I8: 124 | J8: 123 | K8: 1 | L8: 124 | M8: 0 | N8: 1
A9: 4 | B9: เชียงใหม่ | C9: 1550061461 | D9: องค์การบริหารส่วนตำบลแม่ทะลบ | E9: 137 | F9: 0 | G9: 5 | H9: 0 | I9: 142 | J9: 141 | K9: 1 | L9: 142 | M9: 0 | N9: 1
A10: 5 | B10: เชียงใหม่ | C10: 1550061521 | D10: องค์การบริหารส่วนตำบลบ่อแก้ว อ. สะเมิง จ. เชียงใหม่ | E10: 184 | F10: 0 | G10: 0 | H10: 0 | I10: 184 | J10: 183 | K10: 1 | L10: 184 | M10: 0 | N10: 1
A11: 6 | B11: เชียงราย | C11: 1557061292 | D11: องค์การบริหารส่วนตำบลโชคชัย อ. ดอยหลวง จ. เชียงราย | E11: 106 | F11: 1 | G11: 0 | H11: 0 | I11: 107 | J11: 106 | K11: 1 | L11: 107 | M11: 0 | N11: 1
A12: 7 | B12: เชียงราย | C12: 1557061320 | D12: องค์การบริหารส่วนตำบลเมืองพาน อ. พาน จ. เชียงราย | E12: 113 | F12: 1 | G12: 0 | H12: 0 | I12: 114 | J12: 113 | K12: 1 | L12: 114 | M12: 0 | N12: 1
A13: 8 | B13: เพชรบูรณ์ | C13: 1567064175 | D13: องค์การบริหารส่วนตำบลคลองกระจัง | E13: 1 | F13: 0 | G13: 0 | H13: 0 | I13: 1 | J13: 0 | K13: 1 | L13: 1 | M13: 0 | N13: 1
A14: 9 | B14: เพชรบูรณ์ | C14: 1567064182 | D14: องค์การบริหารส่วนตำบลพุขาม | E14: 188 | F14: 2 | G14: 0 | H14: 0 | I14: 190 | J14: 189 | K14: 1 | L14: 190 | M14: 0 | N14: 1
A15: 10 | B15: ขอนแก่น | C15: 1540060601 | D15: องค์การบริหารส่วนตำบลเขาน้อย อ. เวียงเก่า จ. ขอนแก่น | E15: 32 | F15: 0 | G15: 0 | H15: 0 | I15: 32 | J15: 31 | K15: 1 | L15: 32 | M15: 0 | N15: 1
A16: 11 | B16: จันทบุรี | C16: 1522050663 | D16: เทศบาลตำบลทับช้าง | E16: 1 | F16: 0 | G16: 0 | H16: 1 | I16: 2 | J16: 1 | K16: 1 | L16: 2 | M16: 0 | N16: 1
A17: 12 | B17: ชัยภูมิ | C17: 1536061027 | D17: องค์การบริหารส่วนตำบลวังตะเฆ่ | E17: 1 | F17: 0 | G17: 0 | H17: 0 | I17: 1 | J17: 0 | K17: 1 | L17: 1 | M17: 0 | N17: 1
A18: 13 | B18: ชัยภูมิ | C18: 1536061050 | D18: องค์การบริหารส่วนตำบลโนนทอง อ. เกษตรสมบูรณ์ จ. ชัยภูมิ | E18: 271 | F18: 1 | G18: 0 | H18: 0 | I18: 272 | J18: 271 | K18: 1 | L18: 272 | M18: 0 | N18: 1
A19: 14 | B19: ชัยภูมิ | C19: 1536061062 | D19: องค์การบริหารส่วนตำบลหนองขาม อ. แก้งคร้อ จ. ชัยภูมิ | E19: 274 | F19: 6 | G19: 2 | H19: 1 | I19: 283 | J19: 281 | K19: 2 | L19: 283 | M19: 0 | N19: 2
A20: 15 | B20: ตาก | C20: 1563051714 | D20: เทศบาลตำบลแม่จัน อ. อุ้มผาง จ. ตาก | E20: 22 | F20: 0 | G20: 0 | H20: 0 | I20: 22 | J20: 20 | K20: 2 | L20: 22 | M20: 0 | N20: 2
A21: 16 | B21: ตาก | C21: 1563061763 | D21: องค์การบริหารส่วนตำบลตลุกกลางทุ่ง | E21: 177 | F21: 0 | G21: 0 | H21: 0 | I21: 177 | J21: 176 | K21: 1 | L21: 177 | M21: 0 | N21: 1
A22: 17 | B22: นครปฐม | C22: 1573061917 | D22: องค์การบริหารส่วนตำบลคลองใหม่ อ. สามพราน จ. นครปฐม | E22: 2 | F22: 0 | G22: 0 | H22: 0 | I22: 2 | J22: 0 | K22: 2 | L22: 2 | M22: 0 | N22: 2
A23: 18 | B23: นครราชสีมา | C23: 1530052076 | D23: เทศบาลตำบลท่าเยี่ยม | E23: 99 | F23: 0 | G23: 0 | H23: 0 | I23: 99 | J23: 98 | K23: 1 | L23: 99 | M23: 0 | N23: 1
A24: 19 | B24: นครราชสีมา | C24: 1530052098 | D24: เทศบาลตำบลพระทองคำ | E24: 49 | F24: 1 | G24: 0 | H24: 0 | I24: 50 | J24: 49 | K24: 1 | L24: 50 | M24: 0 | N24: 1
A25: 20 | B25: นครราชสีมา | C25: 1530062149 | D25: องค์การบริหารส่วนตำบลหนองระเวียง อ. เมืองนครราชสีมา จ. นครราชสีมา | E25: 193 | F25: 0 | G25: 0 | H25: 0 | I25: 193 | J25: 192 | K25: 1 | L25: 193 | M25: 0 | N25: 1
A26: 21 | B26: นครราชสีมา | C26: 1530062277 | D26: องค์การบริหารส่วนตำบลมะเกลือเก่า | E26: 269 | F26: 0 | G26: 1 | H26: 0 | I26: 270 | J26: 269 | K26: 1 | L26: 270 | M26: 0 | N26: 1
A27: 22 | B27: นครราชสีมา | C27: 1530062283 | D27: องค์การบริหารส่วนตำบลประสุข | E27: 294 | F27: 0 | G27: 0 | H27: 0 | I27: 294 | J27: 293 | K27: 1 | L27: 294 | M27: 0 | N27: 1
A28: 23 | B28: นครราชสีมา | C28: 1530062329 | D28: องค์การบริหารส่วนตำบลไทยเจริญ อ. หนองบุญมาก จ. นครราชสีมา | E28: 51 | F28: 0 | G28: 0 | H28: 0 | I28: 51 | J28: 50 | K28: 1 | L28: 51 | M28: 0 | N28: 1
A29: 24 | B29: นครศรีธรรมราช | C29: 1580052381 | D29: เทศบาลตำบลเขาพระ อ. พิปูน จ. นครศรีธรรมราช | E29: 89 | F29: 12 | G29: 2 | H29: 0 | I29: 103 | J29: 102 | K29: 1 | L29: 103 | M29: 0 | N29: 1
A30: 25 | B30: นครศรีธรรมราช | C30: 1580052436 | D30: เทศบาลตำบลชะมาย | E30: 7 | F30: 0 | G30: 0 | H30: 0 | I30: 7 | J30: 6 | K30: 1 | L30: 7 | M30: 0 | N30: 1
A31: 26 | B31: นครศรีธรรมราช | C31: 1580062503 | D31: องค์การบริหารส่วนตำบลคลองน้อย อ. ปากพนัง จ. นครศรีธรรมราช | E31: 377 | F31: 0 | G31: 0 | H31: 0 | I31: 377 | J31: 376 | K31: 1 | L31: 377 | M31: 0 | N31: 1
A32: 27 | B32: นครศรีธรรมราช | C32: 1580062522 | D32: องค์การบริหารส่วนตำบลกลาย | E32: 167 | F32: 1 | G32: 1 | H32: 0 | I32: 169 | J32: 168 | K32: 1 | L32: 169 | M32: 0 | N32: 1
A33: 28 | B33: นครสวรรค์ | C33: 1560052563 | D33: เทศบาลตำบลบางประมุง | E33: 61 | F33: 0 | G33: 0 | H33: 0 | I33: 61 | J33: 60 | K33: 1 | L33: 61 | M33: 0 | N33: 1
A34: 29 | B34: นครสวรรค์ | C34: 1560062666 | D34: องค์การบริหารส่วนตำบลธารทหาร | E34: 99 | F34: 2 | G34: 1 | H34: 0 | I34: 102 | J34: 101 | K34: 1 | L34: 102 | M34: 0 | N34: 1
A35: 30 | B35: นราธิวาส | C35: 1596062768 | D35: องค์การบริหารส่วนตำบลกาเยาะมาตี | E35: 230 | F35: 6 | G35: 3 | H35: 0 | I35: 239 | J35: 237 | K35: 2 | L35: 239 | M35: 0 | N35: 2
A36: 31 | B36: บุรีรัมย์ | C36: 1531053076 | D36: เทศบาลตำบลสามแวง | E36: 142 | F36: 3 | G36: 0 | H36: 0 | I36: 145 | J36: 144 | K36: 1 | L36: 145 | M36: 0 | N36: 1
A37: 32 | B37: บุรีรัมย์ | C37: 1531053080 | D37: เทศบาลตำบลโคกเหล็ก | E37: 117 | F37: 0 | G37: 0 | H37: 0 | I37: 117 | J37: 116 | K37: 1 | L37: 117 | M37: 0 | N37: 1
A38: 33 | B38: ปราจีนบุรี | C38: 1525063309 | D38: องค์การบริหารส่วนตำบลคำโตนด | E38: 187 | F38: 4 | G38: 0 | H38: 0 | I38: 191 | J38: 190 | K38: 1 | L38: 191 | M38: 0 | N38: 1
A39: 34 | B39: ปัตตานี | C39: 1594063424 | D39: องค์การบริหารส่วนตำบลปะโด | E39: 4 | F39: 0 | G39: 0 | H39: 0 | I39: 4 | J39: 3 | K39: 1 | L39: 4 | M39: 0 | N39: 1
A40: 35 | B40: พัทลุง | C40: 1593063773 | D40: องค์การบริหารส่วนตำบลทุ่งนารี | E40: 80 | F40: 0 | G40: 0 | H40: 0 | I40: 80 | J40: 79 | K40: 1 | L40: 80 | M40: 0 | N40: 1
A41: 36 | B41: พิษณุโลก | C41: 1565063988 | D41: องค์การบริหารส่วนตำบลหนองกะท้าว | E41: 497 | F41: 1 | G41: 0 | H41: 0 | I41: 498 | J41: 497 | K41: 1 | L41: 498 | M41: 0 | N41: 1
A42: 37 | B42: มุกดาหาร | C42: 1549064481 | D42: องค์การบริหารส่วนตำบลบ้านเหล่า อ. คำชะอี จ. มุกดาหาร | E42: 1 | F42: 0 | G42: 0 | H42: 0 | I42: 1 | J42: 0 | K42: 1 | L42: 1 | M42: 0 | N42: 1
A43: 38 | B43: ยะลา | C43: 1595034643 | D43: เทศบาลนครยะลา | E43: 1 | F43: 0 | G43: 0 | H43: 0 | I43: 1 | J43: 0 | K43: 1 | L43: 1 | M43: 0 | N43: 1
A44: 39 | B44: ยะลา | C44: 1595064655 | D44: องค์การบริหารส่วนตำบลยะลา | E44: 63 | F44: 1 | G44: 0 | H44: 0 | I44: 64 | J44: 63 | K44: 1 | L44: 64 | M44: 0 | N44: 1
A45: 40 | B45: ยะลา | C45: 1595064660 | D45: องค์การบริหารส่วนตำบลถ้ำทะลุ | E45: 1 | F45: 0 | G45: 0 | H45: 0 | I45: 1 | J45: 0 | K45: 1 | L45: 1 | M45: 0 | N45: 1
A46: 41 | B46: ร้อยเอ็ด | C46: 1545064760 | D46: องค์การบริหารส่วนตำบลหนองแคน | E46: 357 | F46: 1 | G46: 2 | H46: 0 | I46: 360 | J46: 359 | K46: 1 | L46: 360 | M46: 0 | N46: 1
A47: 42 | B47: ร้อยเอ็ด | C47: 1545064847 | D47: องค์การบริหารส่วนตำบลนางาม อ. เสลภูมิ จ. ร้อยเอ็ด | E47: 228 | F47: 1 | G47: 0 | H47: 0 | I47: 229 | J47: 228 | K47: 1 | L47: 229 | M47: 0 | N47: 1
A48: 43 | B48: ร้อยเอ็ด | C48: 1545064870 | D48: องค์การบริหารส่วนตำบลธวัชบุรี | E48: 228 | F48: 0 | G48: 0 | H48: 0 | I48: 228 | J48: 226 | K48: 2 | L48: 228 | M48: 0 | N48: 2
A49: 44 | B49: ลพบุรี | C49: 1516065162 | D49: องค์การบริหารส่วนตำบลม่วงค่อม | E49: 1 | F49: 0 | G49: 0 | H49: 0 | I49: 1 | J49: 0 | K49: 1 | L49: 1 | M49: 0 | N49: 1
A50: 45 | B50: ลำปาง | C50: 1552065299 | D50: องค์การบริหารส่วนตำบลหัวเมือง อ. เมืองปาน จ. ลำปาง | E50: 117 | F50: 0 | G50: 0 | H50: 0 | I50: 117 | J50: 116 | K50: 1 | L50: 117 | M50: 0 | N50: 1
A51: 46 | B51: สกลนคร | C51: 1547055736 | D51: เทศบาลตำบลส่องดาว | E51: 11 | F51: 1 | G51: 0 | H51: 0 | I51: 12 | J51: 11 | K51: 1 | L51: 12 | M51: 0 | N51: 1
A52: 47 | B52: สงขลา | C52: 1590065977 | D52: องค์การบริหารส่วนตำบลเกาะสะบ้า | E52: 112 | F52: 0 | G52: 2 | H52: 2 | I52: 116 | J52: 115 | K52: 1 | L52: 116 | M52: 0 | N52: 1
A53: 48 | B53: สมุทรปราการ | C53: 1511066066 | D53: องค์การบริหารส่วนตำบลศีรษะจรเข้น้อย | E53: 11 | F53: 0 | G53: 0 | H53: 0 | I53: 11 | J53: 10 | K53: 1 | L53: 11 | M53: 0 | N53: 1
A54: 49 | B54: สระบุรี | C54: 1519056243 | D54: เทศบาลตำบลหน้าพระลาน | E54: 268 | F54: 6 | G54: 1 | H54: 0 | I54: 275 | J54: 273 | K54: 2 | L54: 275 | M54: 0 | N54: 2
A55: 50 | B55: สุรินทร์ | C55: 1532056863 | D55: เทศบาลตำบลสระขุด | E55: 149 | F55: 0 | G55: 0 | H55: 0 | I55: 149 | J55: 148 | K55: 1 | L55: 149 | M55: 0 | N55: 1
A56: 51 | B56: หนองคาย | C56: 1543066938 | D56: องค์การบริหารส่วนตำบลหนองหลวง อ. เฝ้าไร่ จ. หนองคาย | E56: 325 | F56: 8 | G56: 1 | H56: 4 | I56: 338 | J56: 337 | K56: 1 | L56: 338 | M56: 0 | N56: 1
A57: 52 | B57: อ่างทอง | C57: 1515067127 | D57: องค์การบริหารส่วนตำบลหลักแก้ว | E57: 84 | F57: 3 | G57: 0 | H57: 0 | I57: 87 | J57: 85 | K57: 2 | L57: 87 | M57: 0 | N57: 2
A58: 53 | B58: อำนาจเจริญ | C58: 1537067184 | D58: องค์การบริหารส่วนตำบลชานุมาน | E58: 85 | F58: 0 | G58: 0 | H58: 0 | I58: 85 | J58: 84 | K58: 1 | L58: 85 | M58: 0 | N58: 1
A59: 54 | B59: อุตรดิตถ์ | C59: 1553057413 | D59: เทศบาลตำบลจริม | E59: 324 | F59: 0 | G59: 1 | H59: 0 | I59: 325 | J59: 324 | K59: 1 | L59: 325 | M59: 0 | N59: 1
A60: 55 | B60: อุตรดิตถ์ | C60: 1553067434 | D60: องค์การบริหารส่วนตำบลน้ำหมัน | E60: 286 | F60: 0 | G60: 0 | H60: 0 | I60: 286 | J60: 285 | K60: 1 | L60: 286 | M60: 0 | N60: 1
A61: 56 | B61: อุตรดิตถ์ | C61: 1553067445 | D61: องค์การบริหารส่วนตำบลท่าสัก | E61: 226 | F61: 5 | G61: 0 | H61: 0 | I61: 231 | J61: 230 | K61: 1 | L61: 231 | M61: 0 | N61: 1
A62: 57 | B62: อุทัยธานี | C62: 1561067505 | D62: องค์การบริหารส่วนตำบลลานสัก | E62: 217 | F62: 1 | G62: 0 | H62: 0 | I62: 218 | J62: 217 | K62: 1 | L62: 218 | M62: 0 | N62: 1
A63: รวมจำนวน | E63: =SUM(E6:E62) -> 8,030 | F63: =SUM(F6:F62) -> 70 | G63: 24 | H63: 8 | I63: 8,132 | J63: 8,068 | K63: 64 | L63: 8,132 | M63: 0 | N63: 64 | O63: 0 | P63: 0

Sheet (2.2) ไม่พบรายการนำเงินส่งคืน
A1: รายละเอียดการตรวจสอบรายงานผลการจ่ายเงินโครงการกระตุ้นเศรษฐกิจ ปี 2567 ผ่านคนพิการ ขององค์กรปกครองส่วนท้องถิ่น กรณีการจ่ายเป็นเงินสด
A2: (2.2) ไม่พบรายการนำเงินส่งคืน บก. ตามหนังสือที่ กค 0402.2/ว 151
A4: ลำดับ | B4: ชื่อจังหวัด | C4: รหัสหน่วยงาน | D4: ชื่อหน่วยงาน | E4: รายงาน บก. จ่ายเงิน (คน) | J4: รายงาน สถ. จ่ายเงิน (คน) | M4: ผลต่างรายงานของ | N4: จำนวนคน
E5: ครั้งที่ 1 | F5: ครั้งที่ 2 | G5: ครั้งที่ 3 | H5: ครั้งที่ 4 | I5: รวม | J5: จ่ายสำเร็จ | K5: จ่ายไม่สำเร็จ | L5: รวม | M5: บก. - สถ. (คน) | N5: คืนแล้ว | O5: ยังไม่คืน | P5: คืนไม่ครบ
A6: 1 | B6: เชียงราย | C6: 1557061321 | D6: องค์การบริหารส่วนตำบลทานตะวัน | E6: 110 | F6: 0 | G6: 0 | H6: 0 | I6: 110 | J6: 108 | K6: 2 | L6: 110 | M6: 0 | O6: 2
A7: 2 | B7: กาฬสินธุ์ | C7: 1546050210 | D7: เทศบาลตำบลโนนน้ำเกลี้ยง | E7: 146 | F7: 0 | G7: 0 | H7: 0 | I7: 146 | J7: 145 | K7: 1 | L7: 146 | M7: 0 | O7: 1
A8: 3 | B8: ขอนแก่น | C8: 1540050496 | D8: เทศบาลตำบลโนนสะอาด อ. ชุมแพ จ. ขอนแก่น | E8: 113 | F8: 0 | G8: 0 | H8: 0 | I8: 113 | J8: 112 | K8: 1 | L8: 113 | M8: 0 | O8: 1
A9: 4 | B9: ขอนแก่น | C9: 1540060541 | D9: องค์การบริหารส่วนตำบลคำแคน | E9: 156 | F9: 5 | G9: 1 | H9: 0 | I9: 162 | J9: 161 | K9: 1 | L9: 162 | M9: 0 | O9: 1
A10: 5 | B10: นครปฐม | C10: 1573061886 | D10: องค์การบริหารส่วนตำบลบางหลวง อ. บางเลน จ. นครปฐม | E10: 48 | F10: 0 | G10: 0 | H10: 0 | I10: 48 | J10: 47 | K10: 1 | L10: 48 | M10: 0 | O10: 1
A11: 6 | B11: นครราชสีมา | C11: 1530052086 | D11: เทศบาลตำบลเมืองยาง | E11: 331 | F11: 1 | G11: 8 | H11: 1 | I11: 341 | J11: 339 | K11: 2 | L11: 341 | M11: 0 | O11: 2
A12: 7 | B12: ปัตตานี | C12: 1594063418 | D12: องค์การบริหารส่วนตำบลกะดุนง | E12: 180 | F12: 2 | G12: 0 | H12: 0 | I12: 182 | J12: 181 | K12: 1 | L12: 182 | M12: 0 | O12: 1
A13: 8 | B13: พัทลุง | C13: 1593053727 | D13: เทศบาลตำบลชะรัด | E13: 246 | F13: 3 | G13: 0 | H13: 0 | I13: 249 | J13: 248 | K13: 1 | L13: 249 | M13: 0 | O13: 1
A14: 9 | B14: พิษณุโลก | C14: 1565063982 | D14: องค์การบริหารส่วนตำบลวังอิทก | E14: 227 | F14: 1 | G14: 0 | H14: 0 | I14: 228 | J14: 227 | K14: 1 | L14: 228 | M14: 0 | O14: 1
A15: 10 | B15: ร้อยเอ็ด | C15: 1545064776 | D15: องค์การบริหารส่วนตำบลวารีสวัสดิ์ | E15: 102 | F15: 3 | G15: 0 | H15: 0 | I15: 105 | J15: 104 | K15: 1 | L15: 105 | M15: 0 | O15: 1
A16: 11 | B16: ศรีสะเกษ | C16: 1533065639 | D16: องค์การบริหารส่วนตำบลห้วยทับทัน | E16: 61 | F16: 0 | G16: 1 | H16: 0 | I16: 62 | J16: 61 | K16: 1 | L16: 62 | M16: 0 | O16: 1
A17: 12 | B17: สระบุรี | C17: 1519066262 | D17: องค์การบริหารส่วนตำบลวิหารแดง | E17: 1 | F17: 0 | G17: 0 | H17: 0 | I17: 1 | J17: 0 | K17: 1 | L17: 1 | M17: 0 | O17: 1
A18: 13 | B18: สุพรรณบุรี | C18: 1572066537 | D18: องค์การบริหารส่วนตำบลหนองโอ่ง | E18: 59 | F18: 0 | G18: 0 | H18: 0 | I18: 59 | J18: 58 | K18: 1 | L18: 59 | M18: 0 | O18: 1
A19: 14 | B19: สุพรรณบุรี | C19: 1572066543 | D19: องค์การบริหารส่วนตำบลบางตะเคียน | E19: 115 | F19: 2 | G19: 3 | H19: 4 | I19: 124 | J19: 117 | K19: 7 | L19: 124 | M19: 0 | O19: 7
A20: 15 | B20: อ่างทอง | C20: 1515057131 | D20: เทศบาลตำบลไผ่ดำพัฒนา | E20: 72 | F20: 1 | G20: 0 | H20: 0 | I20: 73 | J20: 72 | K20: 1 | L20: 73 | M20: 0 | O20: 1
A21: 16 | B21: อ่างทอง | C21: 1515067124 | D21: องค์การบริหารส่วนตำบลคลองขนาก | E21: 67 | F21: 4 | G21: 0 | H21: 0 | I21: 71 | J21: 67 | K21: 4 | L21: 71 | M21: 0 | O21: 4
A22: 17 | B22: อ่างทอง | C22: 1515067125 | D22: องค์การบริหารส่วนตำบลไผ่วง | E22: 51 | F22: 1 | G22: 0 | H22: 0 | I22: 52 | J22: 50 | K22: 2 | L22: 52 | M22: 0 | O22: 2
A23: 18 | B23: อำนาจเจริญ | C23: 1537067205 | D23: องค์การบริหารส่วนตำบลเหล่าพรวน | E23: 66 | F23: 1 | G23: 0 | H23: 0 | I23: 67 | J23: 66 | K23: 1 | L23: 67 | M23: 0 | O23: 1
A24: 19 | B24: อุตรดิตถ์ | C24: 1553067442 | D24: องค์การบริหารส่วนตำบลด่านแม่คำมัน | E24: 89 | F24: 1 | G24: 0 | H24: 0 | I24: 90 | J24: 89 | K24: 1 | L24: 90 | M24: 0 | O24: 1
A25: รวมจำนวน | E25: =SUM(E6:E24) -> 2,240 | F25: =SUM(F6:F24) -> 25 | G25: 13 | H25: 5 | I25: 2,283 | J25: 2,252 | K25: 31 | L25: 2,283 | M25: 0 | N25: 0 | O25: 31 | P25: 0

Sheet 2.2 อปท.ส่งรายงานข้อมูลไม่ถูกต้
A1: รายละเอียดการตรวจสอบรายงานผลการจ่ายเงินโครงการกระตุ้นเศรษฐกิจ ปี 2567 ผ่านคนพิการ ขององค์กรปกครองส่วนท้องถิ่น กรณีการจ่ายเป็นเงินสด
A2: 2.2 อปท.ที่ส่งรายงานและรายงานข้อมูลผู้มีสิทธิไม่ถูกต้อง
A4: ลำดับ | B4: ชื่อจังหวัด | C4: รหัสหน่วยงาน | D4: ชื่อหน่วยงาน | E4: รายงาน บก. จ่ายเงิน (คน) | J4: รายงาน สถ. จ่ายเงิน (คน) | M4: ผลต่างรายงานของ | N4: จำนวนคน
E5: ครั้งที่ 1 | F5: ครั้งที่ 2 | G5: ครั้งที่ 3 | H5: ครั้งที่ 4 | I5: รวม | J5: จ่ายสำเร็จ | K5: จ่ายไม่สำเร็จ | L5: รวม | M5: บก. - สถ. (คน) | N5: คืนแล้ว | O5: ยังไม่คืน | P5: คืนไม่ครบ
A6: 1 | B6: เชียงใหม่ | C6: 1550041356 | D6: เทศบาลเมืองเมืองแกนพัฒนา | E6: 44 | F6: 0 | G6: 0 | H6: 0 | I6: 44 | J6: 23 | K6: 0 | L6: 23 | M6: -21
A7: 2 | B7: เชียงใหม่ | C7: 1550051473 | D7: เทศบาลตำบลขัวมุง | E7: 83 | F7: 1 | G7: 0 | H7: 0 | I7: 84 | J7: 43 | K7: 0 | L7: 43 | M7: -41
A8: 3 | B8: เชียงใหม่ | C8: 1550051551 | D8: เทศบาลตำบลแม่นะ | E8: 99 | F8: 2 | G8: 1 | H8: 0 | I8: 102 | J8: 101 | K8: 0 | L8: 101 | M8: -1
A9: 4 | B9: เชียงใหม่ | C9: 1550061419 | D9: องค์การบริหารส่วนตำบลสบเปิง | E9: 70 | F9: 6 | G9: 0 | H9: 0 | I9: 76 | J9: 87 | K9: 1 | L9: 88 | M9: 12 | O9: 1
A10: 5 | B10: เชียงใหม่ | C10: 1550061452 | D10: องค์การบริหารส่วนตำบลห้วยแก้ว อ. แม่ออน จ. เชียงใหม่ | E10: 71 | F10: 2 | G10: 0 | H10: 0 | I10: 73 | J10: 69 | K10: 0 | L10: 69 | M10: -4
A11: 6 | B11: เชียงใหม่ | C11: 1550061530 | D11: องค์การบริหารส่วนตำบลแม่สูน | E11: 136 | F11: 0 | G11: 2 | H11: 0 | I11: 138 | J11: 136 | K11: 0 | L11: 136 | M11: -2
A12: 7 | B12: เชียงราย | C12: 1557051232 | D12: เทศบาลตำบลเจดีย์หลวง | E12: 143 | F12: 0 | G12: 4 | H12: 0 | I12: 147 | J12: 147 | K12: 2 | L12: 149 | M12: 2 | N12: 2
A13: 8 | B13: เชียงราย | C13: 1557051303 | D13: เทศบาลตำบลสันมะเค็ด | E13: 201 | F13: 4 | G13: 1 | H13: 0 | I13: 206 | J13: 201 | K13: 0 | L13: 201 | M13: -5
A14: 9 | B14: เชียงราย | C14: 1557061278 | D14: องค์การบริหารส่วนตำบลแม่จัน | E14: 71 | F14: 1 | G14: 0 | H14: 0 | I14: 72 | J14: 71 | K14: 0 | L14: 71 | M14: -1
A15: 10 | B15: เชียงราย | C15: 1557061284 | D15: องค์การบริหารส่วนตำบลปอ | E15: 179 | F15: 0 | G15: 0 | H15: 0 | I15: 179 | J15: 179 | K15: 1 | L15: 180 | M15: 1 | N15: 1
A16: 11 | B16: เชียงราย | C16: 1557061314 | D16: องค์การบริหารส่วนตำบลศรีค้ำ | E16: 137 | F16: 1 | G16: 0 | H16: 0 | I16: 138 | J16: 138 | K16: 1 | L16: 139 | M16: 1 | O16: 1
A17: 12 | B17: เพชรบุรี | C17: 1576064046 | D17: องค์การบริหารส่วนตำบลสองพี่น้อง อ. แก่งกระจาน จ. เพชรบุรี | E17: 51 | F17: 1 | G17: 0 | H17: 0 | I17: 52 | J17: 51 | K17: 0 | L17: 51 | M17: -1
A18: 13 | B18: แม่ฮ่องสอน | C18: 1558064539 | D18: องค์การบริหารส่วนตำบลกองก๋อย | E18: 98 | F18: 8 | G18: 0 | H18: 0 | I18: 106 | J18: 113 | K18: 0 | L18: 113 | M18: 7
A19: 14 | B19: กาฬสินธุ์ | C19: 1546050217 | D19: เทศบาลตำบลนาขาม | E19: 120 | F19: 2 | G19: 0 | H19: 0 | I19: 122 | J19: 120 | K19: 0 | L19: 120 | M19: -2
A20: 15 | B20: กาฬสินธุ์ | C20: 1546050218 | D20: เทศบาลตำบลกมลาไสย | E20: 171 | F20: 1 | G20: 0 | H20: 0 | I20: 172 | J20: 171 | K20: 0 | L20: 171 | M20: -1
A21: 16 | B21: กาฬสินธุ์ | C21: 1546050223 | D21: เทศบาลตำบลบึงวิชัย | E21: 413 | F21: 10 | G21: 2 | H21: 0 | I21: 425 | J21: 413 | K21: 0 | L21: 413 | M21: -12
A22: 17 | B22: กาฬสินธุ์ | C22: 1546050328 | D22: เทศบาลตำบลภูปอ | E22: 183 | F22: 2 | G22: 0 | H22: 0 | I22: 185 | J22: 183 | K22: 0 | L22: 183 | M22: -2
A23: 18 | B23: กาฬสินธุ์ | C23: 1546060276 | D23: องค์การบริหารส่วนตำบลหมูม่น อ. สมเด็จ จ. กาฬสินธุ์ | E23: 7 | F23: 0 | G23: 1 | H23: 0 | I23: 8 | J23: 13 | K23: 0 | L23: 13 | M23: 5
A24: 19 | B24: กำแพงเพชร | C24: 1562050335 | D24: เทศบาลตำบลนิคมทุ่งโพธิ์ทะเล | E24: 174 | F24: 5 | G24: 1 | H24: 0 | I24: 180 | J24: 190 | K24: 0 | L24: 190 | M24: 10
A25: 20 | B25: กำแพงเพชร | C25: 1562050353 | D25: เทศบาลตำบลคลองลานพัฒนา | E25: 128 | F25: 3 | G25: 0 | H25: 0 | I25: 131 | J25: 128 | K25: 0 | L25: 128 | M25: -3
A26: 21 | B26: ขอนแก่น | C26: 1540050430 | D26: เทศบาลตำบลวังชัย | E26: 25 | F26: 1 | G26: 1 | H26: 0 | I26: 27 | J26: 25 | K26: 0 | L26: 25 | M26: -2
A27: 22 | B27: ขอนแก่น | C27: 1540050431 | D27: เทศบาลตำบลกุดน้ำใส | E27: 220 | F27: 1 | G27: 1 | H27: 2 | I27: 224 | J27: 220 | K27: 0 | L27: 220 | M27: -4
A28: 23 | B28: ขอนแก่น | C28: 1540050592 | D28: เทศบาลตำบลหนองไผ่ อ. ชุมแพ จ. ขอนแก่น | E28: 161 | F28: 2 | G28: 1 | H28: 3 | I28: 167 | J28: 159 | K28: 2 | L28: 161 | M28: -6 | O28: 2
A29: 24 | B29: ขอนแก่น | C29: 1540050614 | D29: เทศบาลตำบลโนนสมบูรณ์ อ. เขาสวนกวาง จ. ขอนแก่น | E29: 152 | F29: 3 | G29: 2 | H29: 3 | I29: 160 | J29: 82 | K29: 0 | L29: 82 | M29: -78
A30: 25 | B30: ขอนแก่น | C30: 1540060479 | D30: องค์การบริหารส่วนตำบลทรายมูล อ. น้ำพอง จ. ขอนแก่น | E30: 143 | F30: 1 | G30: 10 | H30: 1 | I30: 155 | J30: 143 | K30: 0 | L30: 143 | M30: -12
A31: 26 | B31: ขอนแก่น | C31: 1540060482 | D31: องค์การบริหารส่วนตำบลหนองกุง อ. น้ำพอง จ. ขอนแก่น | E31: 139 | F31: 0 | G31: 1 | H31: 0 | I31: 140 | J31: 139 | K31: 0 | L31: 139 | M31: -1
A32: 27 | B32: ขอนแก่น | C32: 1540060495 | D32: องค์การบริหารส่วนตำบลหนองเขียด | E32: 80 | F32: 1 | G32: 0 | H32: 0 | I32: 81 | J32: 80 | K32: 0 | L32: 80 | M32: -1
A33: 28 | B33: ขอนแก่น | C33: 1540060613 | D33: องค์การบริหารส่วนตำบลนางิ้ว อ. เขาสวนกวาง จ. ขอนแก่น | E33: 149 | F33: 5 | G33: 3 | H33: 0 | I33: 157 | J33: 155 | K33: 0 | L33: 155 | M33: -2
A34: 29 | B34: ขอนแก่น | C34: 1540060628 | D34: องค์การบริหารส่วนตำบลหนองกุงใหญ่ | E34: 413 | F34: 8 | G34: 1 | H34: 0 | I34: 422 | J34: 413 | K34: 0 | L34: 413 | M34: -9
A35: 30 | B35: ขอนแก่น | C35: 1540060629 | D35: องค์การบริหารส่วนตำบลห้วยโจด อ. กระนวน จ. ขอนแก่น | E35: 292 | F35: 1 | G35: 4 | H35: 0 | I35: 297 | J35: 291 | K35: 2 | L35: 293 | M35: -4 | O35: 2
A36: 31 | B36: จันทบุรี | C36: 1522050674 | D36: เทศบาลตำบลคลองใหญ่ อ. โป่งน้ำร้อน จ. จันทบุรี | E36: 52 | F36: 1 | G36: 0 | H36: 0 | I36: 53 | J36: 52 | K36: 0 | L36: 52 | M36: -1
A37: 32 | B37: ชลบุรี | C37: 1520060921 | D37: องค์การบริหารส่วนตำบลนาวังหิน | E37: 146 | F37: 1 | G37: 0 | H37: 0 | I37: 147 | J37: 149 | K37: 0 | L37: 149 | M37: 2
A38: 33 | B38: ชัยนาท | C38: 1518050935 | D38: เทศบาลตำบลเสือโฮก | E38: 242 | F38: 1 | G38: 0 | H38: 0 | I38: 243 | J38: 242 | K38: 0 | L38: 242 | M38: -1
A39: 34 | B39: ชัยนาท | C39: 1518050955 | D39: เทศบาลตำบลธรรมามูล | E39: 12 | F39: 1 | G39: 0 | H39: 0 | I39: 13 | J39: 11 | K39: 1 | L39: 12 | M39: -1 | O39: 1
A40: 35 | B40: ชัยนาท | C40: 1518050966 | D40: เทศบาลตำบลดอนกำ | E40: 37 | F40: 0 | G40: 0 | H40: 0 | I40: 37 | J40: 38 | K40: 0 | L40: 38 | M40: 1
A41: 36 | B41: ชัยภูมิ | C41: 1536051076 | D41: เทศบาลตำบลห้วยยาง อ. คอนสาร จ. ชัยภูมิ | E41: 13 | F41: 1 | G41: 1 | H41: 0 | I41: 15 | J41: 13 | K41: 0 | L41: 13 | M41: -2
A42: 37 | B42: ชัยภูมิ | C42: 1536061055 | D42: องค์การบริหารส่วนตำบลหัวทะเล | E42: 445 | F42: 4 | G42: 8 | H42: 1 | I42: 458 | J42: 456 | K42: 0 | L42: 456 | M42: -2
A43: 38 | B43: ชัยภูมิ | C43: 1536061058 | D43: องค์การบริหารส่วนตำบลโคกเพชรพัฒนา | E43: 199 | F43: 0 | G43: 1 | H43: 1 | I43: 201 | J43: 199 | K43: 0 | L43: 199 | M43: -2
A44: 39 | B44: ชัยภูมิ | C44: 1536061060 | D44: องค์การบริหารส่วนตำบลดงกลาง อ. คอนสาร จ. ชัยภูมิ | E44: 266 | F44: 0 | G44: 1 | H44: 0 | I44: 267 | J44: 266 | K44: 0 | L44: 266 | M44: -1
A45: 40 | B45: ชัยภูมิ | C45: 1536061103 | D45: องค์การบริหารส่วนตำบลบ้านหัน อ. เกษตรสมบูรณ์ จ. ชัยภูมิ | E45: 5 | F45: 1 | G45: 0 | H45: 0 | I45: 6 | J45: 5 | K45: 0 | L45: 5 | M45: -1
A46: 41 | B46: ตาก | C46: 1563061772 | D46: องค์การบริหารส่วนตำบลแม่หละ | E46: 219 | F46: 0 | G46: 3 | H46: 1 | I46: 223 | J46: 219 | K46: 0 | L46: 219 | M46: -4
A47: 42 | B47: นครนายก | C47: 1526061781 | D47: องค์การบริหารส่วนตำบลนาหินลาด | E47: 118 | F47: 2 | G47: 0 | H47: 0 | I47: 120 | J47: 117 | K47: 1 | L47: 118 | M47: -2 | N47: 1
A48: 43 | B48: นครปฐม | C48: 1573061888 | D48: องค์การบริหารส่วนตำบลบางระกำ อ. บางเลน จ. นครปฐม | E48: 133 | F48: 1 | G48: 2 | H48: 0 | I48: 136 | J48: 136 | K48: 1 | L48: 137 | M48: 1 | O48: 1
A49: 44 | B49: นครปฐม | C49: 1573061895 | D49: องค์การบริหารส่วนตำบลคลองนกกระทุง | E49: 10 | F49: 1 | G49: 0 | H49: 0 | I49: 11 | J49: 1 | K49: 1 | L49: 2 | M49: -9 | O49: 1
A50: 45 | B50: นครปฐม | C50: 1573061905 | D50: องค์การบริหารส่วนตำบลกระตีบ | E50: 83 | F50: 4 | G50: 1 | H50: 0 | I50: 88 | J50: 88 | K50: 1 | L50: 89 | M50: 1 | O50: 1
A51: 46 | B51: นครปฐม | C51: 1573061909 | D51: องค์การบริหารส่วนตำบลทุ่งบัว | E51: 78 | F51: 0 | G51: 0 | H51: 0 | I51: 78 | J51: 78 | K51: 2 | L51: 80 | M51: 2 | O51: 2
A52: 47 | B52: นครราชสีมา | C52: 1530052328 | D52: เทศบาลตำบลช่องแมว | E52: 341 | F52: 2 | G52: 1 | H52: 0 | I52: 344 | J52: 343 | K52: 0 | L52: 343 | M52: -1
A53: 48 | B53: นครราชสีมา | C53: 1530062135 | D53: องค์การบริหารส่วนตำบลละหานปลาค้าว | E53: 371 | F53: 0 | G53: 1 | H53: 7 | I53: 379 | J53: 371 | K53: 0 | L53: 371 | M53: -8
A54: 49 | B54: นครราชสีมา | C54: 1530062138 | D54: องค์การบริหารส่วนตำบลโนนตาเถร | E54: 101 | F54: 0 | G54: 0 | H54: 4 | I54: 105 | J54: 101 | K54: 0 | L54: 101 | M54: -4
A55: 50 | B55: นครราชสีมา | C55: 1530062157 | D55: องค์การบริหารส่วนตำบลหนองพลวง อ. ประทาย จ. นครราชสีมา | E55: 168 | F55: 1 | G55: 2 | H55: 10 | I55: 181 | J55: 179 | K55: 0 | L55: 179 | M55: -2
A56: 51 | B56: นครราชสีมา | C56: 1530062166 | D56: องค์การบริหารส่วนตำบลนางรำ | E56: 169 | F56: 1 | G56: 0 | H56: 0 | I56: 170 | J56: 171 | K56: 0 | L56: 171 | M56: 1
A57: 52 | B57: นครราชสีมา | C57: 1530062225 | D57: องค์การบริหารส่วนตำบลโนนประดู่ | E57: 71 | F57: 0 | G57: 0 | H57: 2 | I57: 73 | J57: 70 | K57: 0 | L57: 70 | M57: -3
A58: 53 | B58: นครราชสีมา | C58: 1530062229 | D58: องค์การบริหารส่วนตำบลโนนจาน | E58: 211 | F58: 3 | G58: 0 | H58: 2 | I58: 216 | J58: 219 | K58: 0 | L58: 219 | M58: 3
A59: 54 | B59: นครราชสีมา | C59: 1530062276 | D59: องค์การบริหารส่วนตำบลโค้งยาง | E59: 17 | F59: 0 | G59: 1 | H59: 0 | I59: 18 | J59: 17 | K59: 0 | L59: 17 | M59: -1
A60: 55 | B60: นครราชสีมา | C60: 1530062337 | D60: องค์การบริหารส่วนตำบลดอนยาวใหญ่ | E60: 76 | F60: 1 | G60: 3 | H60: 0 | I60: 80 | J60: 77 | K60: 0 | L60: 77 | M60: -3
A61: 56 | B61: นครสวรรค์ | C61: 1560052645 | D61: เทศบาลตำบลอุดมธัญญา | E61: 142 | F61: 1 | G61: 0 | H61: 1 | I61: 144 | J61: 148 | K61: 0 | L61: 148 | M61: 4
A62: 57 | B62: นครสวรรค์ | C62: 1560062584 | D62: องค์การบริหารส่วนตำบลสระแก้ว อ. ลาดยาว จ. นครสวรรค์ | E62: 133 | F62: 3 | G62: 4 | H62: 0 | I62: 140 | J62: 133 | K62: 0 | L62: 133 | M62: -7
A63: 58 | B63: นครสวรรค์ | C63: 1560062600 | D63: องค์การบริหารส่วนตำบลนากลาง อ. โกรกพระ จ. นครสวรรค์ | E63: 48 | F63: 2 | G63: 0 | H63: 0 | I63: 50 | J63: 48 | K63: 0 | L63: 48 | M63: -2
A64: 59 | B64: นครสวรรค์ | C64: 1560062668 | D64: องค์การบริหารส่วนตำบลห้วยถั่วใต้ | E64: 36 | F64: 0 | G64: 0 | H64: 0 | I64: 36 | J64: 37 | K64: 0 | L64: 37 | M64: 1
A65: 60 | B65: นครสวรรค์ | C65: 1560062685 | D65: องค์การบริหารส่วนตำบลวังม้า | E65: 180 | F65: 3 | G65: 2 | H65: 1 | I65: 186 | J65: 188 | K65: 0 | L65: 188 | M65: 2
A66: 61 | B66: นครสวรรค์ | C66: 1560062687 | D66: องค์การบริหารส่วนตำบลสร้อยละคร | E66: 10 | F66: 1 | G66: 0 | H66: 0 | I66: 11 | J66: 10 | K66: 0 | L66: 10 | M66: -1
A67: 62 | B67: บุรีรัมย์ | C67: 1531052954 | D67: เทศบาลตำบลอิสาณ | E67: 268 | F67: 16 | G67: 3 | H67: 0 | I67: 287 | J67: 284 | K67: 0 | L67: 284 | M67: -3
A68: 63 | B68: บุรีรัมย์ | C68: 1531062994 | D68: องค์การบริหารส่วนตำบลป่าชัน | E68: 96 | F68: 0 | G68: 2 | H68: 0 | I68: 98 | J68: 96 | K68: 0 | L68: 96 | M68: -2
A69: 64 | B69: บุรีรัมย์ | C69: 1531063077 | D69: องค์การบริหารส่วนตำบลตาเสา | E69: 210 | F69: 2 | G69: 1 | H69: 0 | I69: 213 | J69: 210 | K69: 0 | L69: 210 | M69: -3
A70: 65 | B70: บุรีรัมย์ | C70: 1531063122 | D70: องค์การบริหารส่วนตำบลนิคม | E70: 419 | F70: 4 | G70: 0 | H70: 0 | I70: 423 | J70: 425 | K70: 2 | L70: 427 | M70: 4 | N70: 2
A71: 66 | B71: ประจวบคีรีขันธ์ | C71: 1577063232 | D71: องค์การบริหารส่วนตำบลศาลาลัย | E71: 40 | F71: 4 | G71: 0 | H71: 0 | I71: 44 | J71: 40 | K71: 0 | L71: 40 | M71: -4
A72: 67 | B72: พระนครศรีอยุธยา | C72: 1514063499 | D72: องค์การบริหารส่วนตำบลกระจิว | E72: 52 | F72: 1 | G72: 0 | H72: 0 | I72: 53 | J72: 52 | K72: 0 | L72: 52 | M72: -1
A73: 68 | B73: พระนครศรีอยุธยา | C73: 1514063574 | D73: องค์การบริหารส่วนตำบลเกาะเรียน | E73: 145 | F73: 1 | G73: 0 | H73: 0 | I73: 146 | J73: 149 | K73: 0 | L73: 149 | M73: 3
A74: 69 | B74: พระนครศรีอยุธยา | C74: 1514063588 | D74: องค์การบริหารส่วนตำบลบางเดื่อ | E74: 34 | F74: 3 | G74: 0 | H74: 0 | I74: 37 | J74: 34 | K74: 0 | L74: 34 | M74: -3
A75: 70 | B75: พระนครศรีอยุธยา | C75: 1514063590 | D75: องค์การบริหารส่วนตำบลหันสัง | E75: 111 | F75: 0 | G75: 0 | H75: 0 | I75: 111 | J75: 112 | K75: 0 | L75: 112 | M75: 1
A76: 71 | B76: พะเยา | C76: 1556063637 | D76: องค์การบริหารส่วนตำบลป่าสัก อ. ภูซาง จ. พะเยา | E76: 129 | F76: 1 | G76: 0 | H76: 0 | I76: 130 | J76: 129 | K76: 0 | L76: 129 | M76: -1
A77: 72 | B77: พะเยา | C77: 1556063638 | D77: องค์การบริหารส่วนตำบลทุ่งกล้วย | E77: 321 | F77: 0 | G77: 1 | H77: 0 | I77: 322 | J77: 321 | K77: 0 | L77: 321 | M77: -1
A78: 73 | B78: พัทลุง | C78: 1593053786 | D78: เทศบาลตำบลสมหวัง | E78: 162 | F78: 0 | G78: 0 | H78: 0 | I78: 162 | J78: 117 | K78: 0 | L78: 117 | M78: -45
A79: 74 | B79: พิษณุโลก | C79: 1565053901 | D79: เทศบาลตำบลบ้านแยง | E79: 83 | F79: 0 | G79: 0 | H79: 0 | I79: 83 | J79: 83 | K79: 1 | L79: 84 | M79: 1 | O79: 1
A80: 75 | B80: พิษณุโลก | C80: 1565063918 | D80: องค์การบริหารส่วนตำบลไผ่ขอดอน | E80: 135 | F80: 1 | G80: 0 | H80: 0 | I80: 136 | J80: 135 | K80: 0 | L80: 135 | M80: -1
A81: 76 | B81: พิษณุโลก | C81: 1565063985 | D81: องค์การบริหารส่วนตำบลบ่อภาค | E81: 310 | F81: 0 | G81: 2 | H81: 0 | I81: 312 | J81: 310 | K81: 0 | L81: 310 | M81: -2
A82: 77 | B82: มหาสารคาม | C82: 1544064345 | D82: องค์การบริหารส่วนตำบลเวียงสะอาด | E82: 143 | F82: 5 | G82: 0 | H82: 0 | I82: 148 | J82: 164 | K82: 0 | L82: 164 | M82: 16
A83: 78 | B83: มหาสารคาม | C83: 1544064407 | D83: องค์การบริหารส่วนตำบลสันป่าตอง | E83: 22 | F83: 0 | G83: 0 | H83: 0 | I83: 22 | J83: 0 | K83: 1 | L83: 1 | M83: -21 | N83: 1
A84: 79 | B84: มหาสารคาม | C84: 1544064434 | D84: องค์การบริหารส่วนตำบลบ้านกู่ | E84: 152 | F84: 4 | G84: 0 | H84: 0 | I84: 156 | J84: 169 | K84: 0 | L84: 169 | M84: 13
A85: 80 | B85: มหาสารคาม | C85: 1544064444 | D85: องค์การบริหารส่วนตำบลเหล่าบัวบาน | E85: 8 | F85: 1 | G85: 0 | H85: 0 | I85: 9 | J85: 8 | K85: 0 | L85: 8 | M85: -1
A86: 81 | B86: มุกดาหาร | C86: 1549064469 | D86: องค์การบริหารส่วนตำบลเหล่าหมี | E86: 225 | F86: 2 | G86: 0 | H86: 0 | I86: 227 | J86: 225 | K86: 0 | L86: 225 | M86: -2
A87: 82 | B87: ยโสธร | C87: 1535064621 | D87: องค์การบริหารส่วนตำบลกำแมด | E87: 251 | F87: 2 | G87: 6 | H87: 0 | I87: 259 | J87: 253 | K87: 0 | L87: 253 | M87: -6
A88: 83 | B88: ร้อยเอ็ด | C88: 1545054765 | D88: เทศบาลตำบลโนนสวรรค์ | E88: 164 | F88: 5 | G88: 0 | H88: 0 | I88: 169 | J88: 170 | K88: 0 | L88: 170 | M88: 1
A89: 84 | B89: ร้อยเอ็ด | C89: 1545064831 | D89: องค์การบริหารส่วนตำบลท่าหาดยาว | E89: 105 | F89: 0 | G89: 1 | H89: 0 | I89: 106 | J89: 105 | K89: 0 | L89: 105 | M89: -1
A90: 85 | B90: ร้อยเอ็ด | C90: 1545064875 | D90: องค์การบริหารส่วนตำบลหนองพอก อ. ธวัชบุรี จ. ร้อยเอ็ด | E90: 60 | F90: 2 | G90: 0 | H90: 0 | I90: 62 | J90: 60 | K90: 0 | L90: 60 | M90: -2
A91: 86 | B91: ลำพูน | C91: 1551055351 | D91: เทศบาลตำบลแม่แรง | E91: 252 | F91: 3 | G91: 1 | H91: 0 | I91: 256 | J91: 81 | K91: 0 | L91: 81 | M91: -175
A92: 87 | B92: ลำพูน | C92: 1551055353 | D92: เทศบาลตำบลหนองล่อง | E92: 486 | F92: 5 | G92: 2 | H92: 0 | I92: 493 | J92: 486 | K92: 0 | L92: 486 | M92: -7
A93: 88 | B93: ลำพูน | C93: 1551065372 | D93: องค์การบริหารส่วนตำบลเวียงแก้ว | E93: 323 | F93: 1 | G93: 5 | H93: 3 | I93: 332 | J93: 323 | K93: 1 | L93: 324 | M93: -8 | N93: 1
A94: 89 | B94: ลำพูน | C94: 1551065398 | D94: องค์การบริหารส่วนตำบลทาแม่ลอบ | E94: 198 | F94: 1 | G94: 6 | H94: 0 | I94: 205 | J94: 206 | K94: 3 | L94: 209 | M94: 4 | O94: 3
A95: 90 | B95: ศรีสะเกษ | C95: 1533065568 | D95: องค์การบริหารส่วนตำบลกู่ | E95: 18 | F95: 0 | G95: 1 | H95: 0 | I95: 19 | J95: 1 | K95: 0 | L95: 1 | M95: -18
A96: 91 | B96: ศรีสะเกษ | C96: 1533065614 | D96: องค์การบริหารส่วนตำบลเสียว อ. เบญจลักษ์ จ. ศรีสะเกษ | E96: 21 | F96: 0 | G96: 1 | H96: 0 | I96: 22 | J96: 21 | K96: 0 | L96: 21 | M96: -1
A97: 92 | B97: ศรีสะเกษ | C97: 1533065617 | D97: องค์การบริหารส่วนตำบลหนองฮาง อ. เบญจลักษ์ จ. ศรีสะเกษ | E97: 149 | F97: 3 | G97: 2 | H97: 0 | I97: 154 | J97: 149 | K97: 0 | L97: 149 | M97: -5
A98: 93 | B98: สกลนคร | C98: 1547055729 | D98: เทศบาลตำบลสามัคคีพัฒนา | E98: 45 | F98: 1 | G98: 0 | H98: 0 | I98: 46 | J98: 45 | K98: 0 | L98: 45 | M98: -1
A99: 94 | B99: สกลนคร | C99: 1547055759 | D99: เทศบาลตำบลแร่ | E99: 168 | F99: 2 | G99: 0 | H99: 0 | I99: 170 | J99: 168 | K99: 0 | L99: 168 | M99: -2
A100: 95 | B100: สกลนคร | C100: 1547055785 | D100: เทศบาลตำบลเชียงสือ | E100: 6 | F100: 1 | G100: 0 | H100: 0 | I100: 7 | J100: 295 | K100: 0 | L100: 295 | M100: 288
A101: 96 | B101: สกลนคร | C101: 1547065779 | D101: องค์การบริหารส่วนตำบลโพนสูง อ. สว่างแดนดิน จ. สกลนคร | E101: 98 | F101: 0 | G101: 0 | H101: 0 | I101: 98 | J101: 99 | K101: 0 | L101: 99 | M101: 1
A102: 97 | B102: สกลนคร | C102: 1547065798 | D102: องค์การบริหารส่วนตำบลแมดนาท่ม | E102: 142 | F102: 2 | G102: 0 | H102: 0 | I102: 144 | J102: 142 | K102: 0 | L102: 142 | M102: -2
A103: 98 | B103: สกลนคร | C103: 1547065799 | D103: องค์การบริหารส่วนตำบลด่านม่วงคำ | E103: 126 | F103: 0 | G103: 1 | H103: 0 | I103: 127 | J103: 156 | K103: 0 | L103: 156 | M103: 29
A104: 99 | B104: สกลนคร | C104: 1547065831 | D104: องค์การบริหารส่วนตำบลเดื่อศรีคันไชย | E104: 8 | F104: 0 | G104: 1 | H104: 0 | I104: 9 | J104: 8 | K104: 0 | L104: 8 | M104: -1
A105: 100 | B105: สตูล | C105: 1591066035 | D105: องค์การบริหารส่วนตำบลตันหยงโป | E105: 109 | F105: 0 | G105: 0 | H105: 0 | I105: 109 | J105: 28 | K105: 0 | L105: 28 | M105: -81
A106: 101 | B106: สมุทรสาคร | C106: 1574066140 | D106: เทศบาลเมืองคลองมะเดื่อ | E106: 17 | F106: 2 | G106: 0 | H106: 0 | I106: 19 | J106: 2 | K106: 0 | L106: 2 | M106: -17
A107: 102 | B107: สระแก้ว | C107: 1527066185 | D107: องค์การบริหารส่วนตำบลทัพราช | E107: 396 | F107: 12 | G107: 8 | H107: 0 | I107: 416 | J107: 396 | K107: 0 | L107: 396 | M107: -20
A108: 103 | B108: สุพรรณบุรี | C108: 1572056468 | D108: เทศบาลตำบลปากน้ำ อ. เดิมบางนางบวช จ. สุพรรณบุรี | E108: 63 | F108: 1 | G108: 0 | H108: 0 | I108: 64 | J108: 81 | K108: 0 | L108: 81 | M108: 17
A109: 104 | B109: สุพรรณบุรี | C109: 1572056481 | D109: เทศบาลตำบลด่านช้าง | E109: 32 | F109: 0 | G109: 1 | H109: 0 | I109: 33 | J109: 32 | K109: 0 | L109: 32 | M109: -1
A110: 105 | B110: สุพรรณบุรี | C110: 1572066515 | D110: องค์การบริหารส่วนตำบลองค์พระ | E110: 52 | F110: 2 | G110: 2 | H110: 1 | I110: 57 | J110: 54 | K110: 2 | L110: 56 | M110: -1 | O110: 2
A111: 106 | B111: สุพรรณบุรี | C111: 1572066542 | D111: องค์การบริหารส่วนตำบลบางเลน อ. สองพี่น้อง จ. สุพรรณบุรี | E111: 71 | F111: 4 | G111: 5 | H111: 0 | I111: 80 | J111: 71 | K111: 0 | L111: 71 | M111: -9
A112: 107 | B112: สุพรรณบุรี | C112: 1572066554 | D112: องค์การบริหารส่วนตำบลกฤษณา อ. บางปลาม้า จ. สุพรรณบุรี | E112: 63 | F112: 0 | G112: 2 | H112: 0 | I112: 65 | J112: 62 | K112: 1 | L112: 63 | M112: -2 | O112: 1
A113: 108 | B113: สุพรรณบุรี | C113: 1572066587 | D113: องค์การบริหารส่วนตำบลยางนอน | E113: 72 | F113: 0 | G113: 0 | H113: 0 | I113: 72 | J113: 72 | K113: 1 | L113: 73 | M113: 1 | N113: 1
A114: 109 | B114: สุราษฎร์ธานี | C114: 1584066643 | D114: องค์การบริหารส่วนตำบลควนสุบรรณ | E114: 37 | F114: 1 | G114: 1 | H114: 0 | I114: 39 | J114: 40 | K114: 0 | L114: 40 | M114: 1
A115: 110 | B115: หนองคาย | C115: 1543066955 | D115: องค์การบริหารส่วนตำบลสังคม | E115: 75 | F115: 1 | G115: 0 | H115: 0 | I115: 76 | J115: 75 | K115: 0 | L115: 75 | M115: -1
A116: 111 | B116: หนองบัวลำภู | C116: 1539057050 | D116: เทศบาลตำบลบุญทัน | E116: 114 | F116: 2 | G116: 1 | H116: 0 | I116: 117 | J116: 114 | K116: 0 | L116: 114 | M116: -3
A117: 112 | B117: อ่างทอง | C117: 1515067107 | D117: องค์การบริหารส่วนตำบลนรสิงห์ | E117: 48 | F117: 0 | G117: 1 | H117: 0 | I117: 49 | J117: 48 | K117: 0 | L117: 48 | M117: -1
A118: 113 | B118: อ่างทอง | C118: 1515067108 | D118: องค์การบริหารส่วนตำบลศรีพราน | E118: 46 | F118: 2 | G118: 0 | H118: 0 | I118: 48 | J118: 46 | K118: 0 | L118: 46 | M118: -2
A119: 114 | B119: อ่างทอง | C119: 1515067140 | D119: องค์การบริหารส่วนตำบลบางเจ้าฉ่า | E119: 64 | F119: 1 | G119: 1 | H119: 0 | I119: 66 | J119: 68 | K119: 3 | L119: 71 | M119: 5 | O119: 3
A120: 115 | B120: อ่างทอง | C120: 1515067151 | D120: องค์การบริหารส่วนตำบลจำลอง | E120: 69 | F120: 1 | G120: 0 | H120: 0 | I120: 70 | J120: 69 | K120: 0 | L120: 69 | M120: -1
A121: 116 | B121: อำนาจเจริญ | C121: 1537057160 | D121: เทศบาลตำบลนายม | E121: 162 | F121: 7 | G121: 0 | H121: 0 | I121: 169 | J121: 162 | K121: 0 | L121: 162 | M121: -7
A122: 117 | B122: อำนาจเจริญ | C122: 1537057179 | D122: เทศบาลตำบลนาหมอม้า | E122: 51 | F122: 0 | G122: 0 | H122: 0 | I122: 51 | J122: 54 | K122: 0 | L122: 54 | M122: 3
A123: 118 | B123: อำนาจเจริญ | C123: 1537057186 | D123: เทศบาลตำบลโคกก่ง | E123: 230 | F123: 1 | G123: 0 | H123: 0 | I123: 231 | J123: 230 | K123: 0 | L123: 230 | M123: -1
A124: 119 | B124: อำนาจเจริญ | C124: 1537067165 | D124: องค์การบริหารส่วนตำบลคำโพน | E124: 196 | F124: 4 | G124: 0 | H124: 0 | I124: 200 | J124: 205 | K124: 0 | L124: 205 | M124: 5
A125: 120 | B125: อำนาจเจริญ | C125: 1537067171 | D125: องค์การบริหารส่วนตำบลคำพระ | E125: 241 | F125: 12 | G125: 0 | H125: 0 | I125: 253 | J125: 241 | K125: 0 | L125: 241 | M125: -12
A126: 121 | B126: อำนาจเจริญ | C126: 1537067216 | D126: องค์การบริหารส่วนตำบลโนนงาม | E126: 3 | F126: 0 | G126: 0 | H126: 0 | I126: 3 | J126: 1 | K126: 0 | L126: 1 | M126: -2
A127: 122 | B127: อุทัยธานี | C127: 1561067510 | D127: องค์การบริหารส่วนตำบลระบำ | E127: 113 | F127: 3 | G127: 0 | H127: 1 | I127: 117 | J127: 120 | K127: 0 | L127: 120 | M127: 3
A128: 123 | B128: อุบลราชธานี | C128: 1534067574 | D128: องค์การบริหารส่วนตำบลนาดี อ. นาเยีย จ. อุบลราชธานี | E128: 147 | F128: 1 | G128: 1 | H128: 0 | I128: 149 | J128: 1 | K128: 0 | L128: 1 | M128: -148
A129: 124 | B129: อุบลราชธานี | C129: 1534067622 | D129: องค์การบริหารส่วนตำบลดุมใหญ่ | E129: 92 | F129: 0 | G129: 0 | H129: 0 | I129: 92 | J129: 92 | K129: 1 | L129: 93 | M129: 1 | N129: 1
A130: 125 | B130: อุบลราชธานี | C130: 1534067649 | D130: องค์การบริหารส่วนตำบลหนองกินเพล | E130: 110 | F130: 5 | G130: 1 | H130: 0 | I130: 116 | J130: 126 | K130: 0 | L130: 126 | M130: 10
A131: 126 | B131: อุบลราชธานี | C131: 1534067660 | D131: องค์การบริหารส่วนตำบลนาพิน | E131: 156 | F131: 0 | G131: 4 | H131: 3 | I131: 163 | J131: 156 | K131: 0 | L131: 156 | M131: -7
A132: 127 | B132: อุบลราชธานี | C132: 1534067671 | D132: องค์การบริหารส่วนตำบลบ้านแดง อ. ตระการพืชผล จ. อุบลราชธานี | E132: 59 | F132: 1 | G132: 0 | H132: 0 | I132: 60 | J132: 1 | K132: 0 | L132: 1 | M132: -59
A133: 128 | B133: อุบลราชธานี | C133: 1534067714 | D133: องค์การบริหารส่วนตำบลเหล่าแดง | E133: 58 | F133: 0 | G133: 0 | H133: 0 | I133: 58 | J133: 59 | K133: 0 | L133: 59 | M133: 1
A134: 129 | B134: อุบลราชธานี | C134: 1534067737 | D134: องค์การบริหารส่วนตำบลหนองฮาง อ. ม่วงสามสิบ จ. อุบลราชธานี | E134: 147 | F134: 2 | G134: 1 | H134: 0 | I134: 150 | J134: 1 | K134: 0 | L134: 1 | M134: -149
A135: รวมทั้งหมด | E135: =SUM(E6:E134) -> 17,263 | F135: =SUM(F6:F134) -> 246 | G135: 132 | H135: 47 | I135: 17,688 | J135: 17,004 | K135: 32 | L135: 17,036 | M135: -652 | N135: 10 | O135: 22 | P135: 0

Sheet 2.2.1 รายงานข้อมูลสูงกว่า บก.
A1: รายละเอียดการตรวจสอบรายงานผลการจ่ายเงินโครงการกระตุ้นเศรษฐกิจ ปี 2567 ผ่านคนพิการ ขององค์กรปกครองส่วนท้องถิ่น กรณีการจ่ายเป็นเงินสด
A2: 2.2.1 อปท.รายงานจำนวนผู้มีสิทธิสูงกว่ากรมบัญชีกลาง
A4: ลำดับ | B4: ชื่อจังหวัด | C4: รหัสหน่วยงาน | D4: ชื่อหน่วยงาน | E4: รายงาน บก. จ่ายเงิน (คน) | J4: รายงาน สถ. จ่ายเงิน (คน) | M4: ผลต่างรายงานของ | N4: จำนวนคน
E5: ครั้งที่ 1 | F5: ครั้งที่ 2 | G5: ครั้งที่ 3 | H5: ครั้งที่ 4 | I5: รวม | J5: จ่ายสำเร็จ | K5: จ่ายไม่สำเร็จ | L5: รวม | M5: บก. - สถ. (คน) | N5: คืนแล้ว | O5: ยังไม่คืน | P5: คืนไม่ครบ
A6: 1 | B6: เชียงใหม่ | C6: 1550061419 | D6: องค์การบริหารส่วนตำบลสบเปิง | E6: 70 | F6: 6 | G6: 0 | H6: 0 | I6: 76 | J6: 87 | K6: 1 | L6: 88 | M6: 12 | O6: 1
A7: 2 | B7: เชียงราย | C7: 1557051232 | D7: เทศบาลตำบลเจดีย์หลวง | E7: 143 | F7: 0 | G7: 4 | H7: 0 | I7: 147 | J7: 147 | K7: 2 | L7: 149 | M7: 2 | N7: 2
A8: 3 | B8: เชียงราย | C8: 1557061284 | D8: องค์การบริหารส่วนตำบลปอ | E8: 179 | F8: 0 | G8: 0 | H8: 0 | I8: 179 | J8: 179 | K8: 1 | L8: 180 | M8: 1 | N8: 1
A9: 4 | B9: เชียงราย | C9: 1557061314 | D9: องค์การบริหารส่วนตำบลศรีค้ำ | E9: 137 | F9: 1 | G9: 0 | H9: 0 | I9: 138 | J9: 138 | K9: 1 | L9: 139 | M9: 1 | O9: 1
A10: 5 | B10: แม่ฮ่องสอน | C10: 1558064539 | D10: องค์การบริหารส่วนตำบลกองก๋อย | E10: 98 | F10: 8 | G10: 0 | H10: 0 | I10: 106 | J10: 113 | K10: 0 | L10: 113 | M10: 7
A11: 6 | B11: กาฬสินธุ์ | C11: 1546060276 | D11: องค์การบริหารส่วนตำบลหมูม่น อ. สมเด็จ จ. กาฬสินธุ์ | E11: 7 | F11: 0 | G11: 1 | H11: 0 | I11: 8 | J11: 13 | K11: 0 | L11: 13 | M11: 5
A12: 7 | B12: กำแพงเพชร | C12: 1562050335 | D12: เทศบาลตำบลนิคมทุ่งโพธิ์ทะเล | E12: 174 | F12: 5 | G12: 1 | H12: 0 | I12: 180 | J12: 190 | K12: 0 | L12: 190 | M12: 10
A13: 8 | B13: ชลบุรี | C13: 1520060921 | D13: องค์การบริหารส่วนตำบลนาวังหิน | E13: 146 | F13: 1 | G13: 0 | H13: 0 | I13: 147 | J13: 149 | K13: 0 | L13: 149 | M13: 2
A14: 9 | B14: ชัยนาท | C14: 1518050966 | D14: เทศบาลตำบลดอนกำ | E14: 37 | F14: 0 | G14: 0 | H14: 0 | I14: 37 | J14: 38 | K14: 0 | L14: 38 | M14: 1
A15: 10 | B15: นครปฐม | C15: 1573061888 | D15: องค์การบริหารส่วนตำบลบางระกำ อ. บางเลน จ. นครปฐม | E15: 133 | F15: 1 | G15: 2 | H15: 0 | I15: 136 | J15: 136 | K15: 1 | L15: 137 | M15: 1 | O15: 1
A16: 11 | B16: นครปฐม | C16: 1573061905 | D16: องค์การบริหารส่วนตำบลกระตีบ | E16: 83 | F16: 4 | G16: 1 | H16: 0 | I16: 88 | J16: 88 | K16: 1 | L16: 89 | M16: 1 | O16: 1
A17: 12 | B17: นครปฐม | C17: 1573061909 | D17: องค์การบริหารส่วนตำบลทุ่งบัว | E17: 78 | F17: 0 | G17: 0 | H17: 0 | I17: 78 | J17: 78 | K17: 2 | L17: 80 | M17: 2 | O17: 2
A18: 13 | B18: นครราชสีมา | C18: 1530062166 | D18: องค์การบริหารส่วนตำบลนางรำ | E18: 169 | F18: 1 | G18: 0 | H18: 0 | I18: 170 | J18: 171 | K18: 0 | L18: 171 | M18: 1
A19: 14 | B19: นครราชสีมา | C19: 1530062229 | D19: องค์การบริหารส่วนตำบลโนนจาน | E19: 211 | F19: 3 | G19: 0 | H19: 2 | I19: 216 | J19: 219 | K19: 0 | L19: 219 | M19: 3
A20: 15 | B20: นครสวรรค์ | C20: 1560052645 | D20: เทศบาลตำบลอุดมธัญญา | E20: 142 | F20: 1 | G20: 0 | H20: 1 | I20: 144 | J20: 148 | K20: 0 | L20: 148 | M20: 4
A21: 16 | B21: นครสวรรค์ | C21: 1560062668 | D21: องค์การบริหารส่วนตำบลห้วยถั่วใต้ | E21: 36 | F21: 0 | G21: 0 | H21: 0 | I21: 36 | J21: 37 | K21: 0 | L21: 37 | M21: 1
A22: 17 | B22: นครสวรรค์ | C22: 1560062685 | D22: องค์การบริหารส่วนตำบลวังม้า | E22: 180 | F22: 3 | G22: 2 | H22: 1 | I22: 186 | J22: 188 | K22: 0 | L22: 188 | M22: 2
A23: 18 | B23: บุรีรัมย์ | C23: 1531063122 | D23: องค์การบริหารส่วนตำบลนิคม | E23: 419 | F23: 4 | G23: 0 | H23: 0 | I23: 423 | J23: 425 | K23: 2 | L23: 427 | M23: 4 | N23: 2
A24: 19 | B24: พระนครศรีอยุธยา | C24: 1514063574 | D24: องค์การบริหารส่วนตำบลเกาะเรียน | E24: 145 | F24: 1 | G24: 0 | H24: 0 | I24: 146 | J24: 149 | K24: 0 | L24: 149 | M24: 3
A25: 20 | B25: พระนครศรีอยุธยา | C25: 1514063590 | D25: องค์การบริหารส่วนตำบลหันสัง | E25: 111 | F25: 0 | G25: 0 | H25: 0 | I25: 111 | J25: 112 | K25: 0 | L25: 112 | M25: 1
A26: 21 | B26: พิษณุโลก | C26: 1565053901 | D26: เทศบาลตำบลบ้านแยง | E26: 83 | F26: 0 | G26: 0 | H26: 0 | I26: 83 | J26: 83 | K26: 1 | L26: 84 | M26: 1 | O26: 1
A27: 22 | B27: มหาสารคาม | C27: 1544064345 | D27: องค์การบริหารส่วนตำบลเวียงสะอาด | E27: 143 | F27: 5 | G27: 0 | H27: 0 | I27: 148 | J27: 164 | K27: 0 | L27: 164 | M27: 16
A28: 23 | B28: มหาสารคาม | C28: 1544064434 | D28: องค์การบริหารส่วนตำบลบ้านกู่ | E28: 152 | F28: 4 | G28: 0 | H28: 0 | I28: 156 | J28: 169 | K28: 0 | L28: 169 | M28: 13
A29: 24 | B29: ร้อยเอ็ด | C29: 1545054765 | D29: เทศบาลตำบลโนนสวรรค์ | E29: 164 | F29: 5 | G29: 0 | H29: 0 | I29: 169 | J29: 170 | K29: 0 | L29: 170 | M29: 1
A30: 25 | B30: ลำพูน | C30: 1551065398 | D30: องค์การบริหารส่วนตำบลทาแม่ลอบ | E30: 198 | F30: 1 | G30: 6 | H30: 0 | I30: 205 | J30: 206 | K30: 3 | L30: 209 | M30: 4 | O30: 3
A31: 26 | B31: สกลนคร | C31: 1547055785 | D31: เทศบาลตำบลเชียงสือ | E31: 6 | F31: 1 | G31: 0 | H31: 0 | I31: 7 | J31: 295 | K31: 0 | L31: 295 | M31: 288
A32: 27 | B32: สกลนคร | C32: 1547065779 | D32: องค์การบริหารส่วนตำบลโพนสูง อ. สว่างแดนดิน จ. สกลนคร | E32: 98 | F32: 0 | G32: 0 | H32: 0 | I32: 98 | J32: 99 | K32: 0 | L32: 99 | M32: 1
A33: 28 | B33: สกลนคร | C33: 1547065799 | D33: องค์การบริหารส่วนตำบลด่านม่วงคำ | E33: 126 | F33: 0 | G33: 1 | H33: 0 | I33: 127 | J33: 156 | K33: 0 | L33: 156 | M33: 29
A34: 29 | B34: สุพรรณบุรี | C34: 1572056468 | D34: เทศบาลตำบลปากน้ำ อ. เดิมบางนางบวช จ. สุพรรณบุรี | E34: 63 | F34: 1 | G34: 0 | H34: 0 | I34: 64 | J34: 81 | K34: 0 | L34: 81 | M34: 17
A35: 30 | B35: สุพรรณบุรี | C35: 1572066587 | D35: องค์การบริหารส่วนตำบลยางนอน | E35: 72 | F35: 0 | G35: 0 | H35: 0 | I35: 72 | J35: 72 | K35: 1 | L35: 73 | M35: 1 | N35: 1
A36: 31 | B36: สุราษฎร์ธานี | C36: 1584066643 | D36: องค์การบริหารส่วนตำบลควนสุบรรณ | E36: 37 | F36: 1 | G36: 1 | H36: 0 | I36: 39 | J36: 40 | K36: 0 | L36: 40 | M36: 1
A37: 32 | B37: อ่างทอง | C37: 1515067140 | D37: องค์การบริหารส่วนตำบลบางเจ้าฉ่า | E37: 64 | F37: 1 | G37: 1 | H37: 0 | I37: 66 | J37: 68 | K37: 3 | L37: 71 | M37: 5 | O37: 3
A38: 33 | B38: อำนาจเจริญ | C38: 1537057179 | D38: เทศบาลตำบลนาหมอม้า | E38: 51 | F38: 0 | G38: 0 | H38: 0 | I38: 51 | J38: 54 | K38: 0 | L38: 54 | M38: 3
A39: 34 | B39: อำนาจเจริญ | C39: 1537067165 | D39: องค์การบริหารส่วนตำบลคำโพน | E39: 196 | F39: 4 | G39: 0 | H39: 0 | I39: 200 | J39: 205 | K39: 0 | L39: 205 | M39: 5
A40: 35 | B40: อุทัยธานี | C40: 1561067510 | D40: องค์การบริหารส่วนตำบลระบำ | E40: 113 | F40: 3 | G40: 0 | H40: 1 | I40: 117 | J40: 120 | K40: 0 | L40: 120 | M40: 3
A41: 36 | B41: อุบลราชธานี | C41: 1534067622 | D41: องค์การบริหารส่วนตำบลดุมใหญ่ | E41: 92 | F41: 0 | G41: 0 | H41: 0 | I41: 92 | J41: 92 | K41: 1 | L41: 93 | M41: 1 | N41: 1
A42: 37 | B42: อุบลราชธานี | C42: 1534067649 | D42: องค์การบริหารส่วนตำบลหนองกินเพล | E42: 110 | F42: 5 | G42: 1 | H42: 0 | I42: 116 | J42: 126 | K42: 0 | L42: 126 | M42: 10
A43: 38 | B43: อุบลราชธานี | C43: 1534067714 | D43: องค์การบริหารส่วนตำบลเหล่าแดง | E43: 58 | F43: 0 | G43: 0 | H43: 0 | I43: 58 | J43: 59 | K43: 0 | L43: 59 | M43: 1
A44: รวมทั้งหมด | E44: =SUM(E6:E43) -> 4,524 | F44: =SUM(F6:F43) -> 70 | G44: 21 | H44: 5 | I44: 4,620 | J44: 5,064 | K44: 20 | L44: 5,084 | M44: 464 | N44: 7 | O44: 13 | P44: 0

Sheet (1) อปท. จ่ายสำเร็จทุกรายการ
A1: รายละเอียดการตรวจสอบรายงานผลการจ่ายเงินโครงการกระตุ้นเศรษฐกิจ ปี 2567 ผ่านคนพิการ ขององค์กรปกครองส่วนท้องถิ่น กรณีการจ่ายเป็นเงินสด
A2: (1) อปท.ที่จ่ายเงินสดให้ผู้มีสิทธิสำเร็จทุกราย
A4: ลำดับ | B4: ชื่อจังหวัด | C4: รหัสหน่วยงาน | D4: ชื่อหน่วยงาน | E4: รายงาน บก. จ่ายเงิน (คน) | J4: รายงาน สถ. จ่ายเงิน (คน) | M4: ผลต่างรายงานของ | N4: จำนวนคน
E5: ครั้งที่ 1 | F5: ครั้งที่ 2 | G5: ครั้งที่ 3 | H5: ครั้งที่ 4 | I5: รวม | J5: จ่ายสำเร็จ | K5: จ่ายไม่สำเร็จ | L5: รวม | M5: บก. - สถ. (คน) | N5: คืนแล้ว | O5: ยังไม่คืน | P5: คืนไม่ครบ
A6: 251 | B6: แม่ฮ่องสอน | C6: 1558064539 | D6: องค์การบริหารส่วนตำบลกองก๋อย | E6: 98 | F6: 8 | G6: 0 | H6: 0 | I6: 106 | J6: 113 | K6: 0 | L6: 113 | M6: 7
A7: 1 | B7: กาฬสินธุ์ | C7: 1546060276 | D7: องค์การบริหารส่วนตำบลหมูม่น อ. สมเด็จ จ. กาฬสินธุ์ | E7: 7 | F7: 0 | G7: 1 | H7: 0 | I7: 8 | J7: 13 | K7: 0 | L7: 13 | M7: 5
A8: 2 | B8: กำแพงเพชร | C8: 1562050335 | D8: เทศบาลตำบลนิคมทุ่งโพธิ์ทะเล | E8: 174 | F8: 5 | G8: 1 | H8: 0 | I8: 180 | J8: 190 | K8: 0 | L8: 190 | M8: 10
A9: 3 | B9: ชลบุรี | C9: 1520060921 | D9: องค์การบริหารส่วนตำบลนาวังหิน | E9: 146 | F9: 1 | G9: 0 | H9: 0 | I9: 147 | J9: 149 | K9: 0 | L9: 149 | M9: 2
A10: 4 | B10: ชัยนาท | C10: 1518050966 | D10: เทศบาลตำบลดอนกำ | E10: 37 | F10: 0 | G10: 0 | H10: 0 | I10: 37 | J10: 38 | K10: 0 | L10: 38 | M10: 1
A11: 5 | B11: นครราชสีมา | C11: 1530062166 | D11: องค์การบริหารส่วนตำบลนางรำ | E11: 169 | F11: 1 | G11: 0 | H11: 0 | I11: 170 | J11: 171 | K11: 0 | L11: 171 | M11: 1
A12: 6 | B12: นครราชสีมา | C12: 1530062229 | D12: องค์การบริหารส่วนตำบลโนนจาน | E12: 211 | F12: 3 | G12: 0 | H12: 2 | I12: 216 | J12: 219 | K12: 0 | L12: 219 | M12: 3
A13: 7 | B13: นครสวรรค์ | C13: 1560052645 | D13: เทศบาลตำบลอุดมธัญญา | E13: 142 | F13: 1 | G13: 0 | H13: 1 | I13: 144 | J13: 148 | K13: 0 | L13: 148 | M13: 4
A14: 8 | B14: นครสวรรค์ | C14: 1560062668 | D14: องค์การบริหารส่วนตำบลห้วยถั่วใต้ | E14: 36 | F14: 0 | G14: 0 | H14: 0 | I14: 36 | J14: 37 | K14: 0 | L14: 37 | M14: 1
A15: 9 | B15: นครสวรรค์ | C15: 1560062685 | D15: องค์การบริหารส่วนตำบลวังม้า | E15: 180 | F15: 3 | G15: 2 | H15: 1 | I15: 186 | J15: 188 | K15: 0 | L15: 188 | M15: 2
A16: 10 | B16: พระนครศรีอยุธยา | C16: 1514063574 | D16: องค์การบริหารส่วนตำบลเกาะเรียน | E16: 145 | F16: 1 | G16: 0 | H16: 0 | I16: 146 | J16: 149 | K16: 0 | L16: 149 | M16: 3
A17: 11 | B17: พระนครศรีอยุธยา | C17: 1514063590 | D17: องค์การบริหารส่วนตำบลหันสัง | E17: 111 | F17: 0 | G17: 0 | H17: 0 | I17: 111 | J17: 112 | K17: 0 | L17: 112 | M17: 1
A18: 12 | B18: มหาสารคาม | C18: 1544064345 | D18: องค์การบริหารส่วนตำบลเวียงสะอาด | E18: 143 | F18: 5 | G18: 0 | H18: 0 | I18: 148 | J18: 164 | K18: 0 | L18: 164 | M18: 16
A19: 13 | B19: มหาสารคาม | C19: 1544064434 | D19: องค์การบริหารส่วนตำบลบ้านกู่ | E19: 152 | F19: 4 | G19: 0 | H19: 0 | I19: 156 | J19: 169 | K19: 0 | L19: 169 | M19: 13
A20: 14 | B20: ร้อยเอ็ด | C20: 1545054765 | D20: เทศบาลตำบลโนนสวรรค์ | E20: 164 | F20: 5 | G20: 0 | H20: 0 | I20: 169 | J20: 170 | K20: 0 | L20: 170 | M20: 1
A21: 15 | B21: สกลนคร | C21: 1547055785 | D21: เทศบาลตำบลเชียงสือ | E21: 6 | F21: 1 | G21: 0 | H21: 0 | I21: 7 | J21: 295 | K21: 0 | L21: 295 | M21: 288
A22: 16 | B22: สกลนคร | C22: 1547065779 | D22: องค์การบริหารส่วนตำบลโพนสูง อ. สว่างแดนดิน จ. สกลนคร | E22: 98 | F22: 0 | G22: 0 | H22: 0 | I22: 98 | J22: 99 | K22: 0 | L22: 99 | M22: 1
A23: 17 | B23: สกลนคร | C23: 1547065799 | D23: องค์การบริหารส่วนตำบลด่านม่วงคำ | E23: 126 | F23: 0 | G23: 1 | H23: 0 | I23: 127 | J23: 156 | K23: 0 | L23: 156 | M23: 29
A24: 18 | B24: สุพรรณบุรี | C24: 1572056468 | D24: เทศบาลตำบลปากน้ำ อ. เดิมบางนางบวช จ. สุพรรณบุรี | E24: 63 | F24: 1 | G24: 0 | H24: 0 | I24: 64 | J24: 81 | K24: 0 | L24: 81 | M24: 17
A25: 19 | B25: สุราษฎร์ธานี | C25: 1584066643 | D25: องค์การบริหารส่วนตำบลควนสุบรรณ | E25: 37 | F25: 1 | G25: 1 | H25: 0 | I25: 39 | J25: 40 | K25: 0 | L25: 40 | M25: 1
A26: 20 | B26: อำนาจเจริญ | C26: 1537057179 | D26: เทศบาลตำบลนาหมอม้า | E26: 51 | F26: 0 | G26: 0 | H26: 0 | I26: 51 | J26: 54 | K26: 0 | L26: 54 | M26: 3
A27: 21 | B27: อำนาจเจริญ | C27: 1537067165 | D27: องค์การบริหารส่วนตำบลคำโพน | E27: 196 | F27: 4 | G27: 0 | H27: 0 | I27: 200 | J27: 205 | K27: 0 | L27: 205 | M27: 5
A28: 22 | B28: อุทัยธานี | C28: 1561067510 | D28: องค์การบริหารส่วนตำบลระบำ | E28: 113 | F28: 3 | G28: 0 | H28: 1 | I28: 117 | J28: 120 | K28: 0 | L28: 120 | M28: 3
A29: 23 | B29: อุบลราชธานี | C29: 1534067649 | D29: องค์การบริหารส่วนตำบลหนองกินเพล | E29: 110 | F29: 5 | G29: 1 | H29: 0 | I29: 116 | J29: 126 | K29: 0 | L29: 126 | M29: 10
A30: 24 | B30: อุบลราชธานี | C30: 1534067714 | D30: องค์การบริหารส่วนตำบลเหล่าแดง | E30: 58 | F30: 0 | G30: 0 | H30: 0 | I30: 58 | J30: 59 | K30: 0 | L30: 59 | M30: 1
A31: รวมทั้งหมด | E31: =SUM(E6:E30) -> 2,773 | F31: =SUM(F6:F30) -> 52 | G31: 7 | H31: 5 | I31: 2,837 | J31: 3,265 | K31: 0 | L31: 3,265 | M31: 428 | N31: 0 | O31: 0 | P31: 0

Sheet (2) อปท. ที่จ่ายไม่สำเร็จ
A1: รายละเอียดการตรวจสอบรายงานผลการจ่ายเงินโครงการกระตุ้นเศรษฐกิจ ปี 2567 ผ่านคนพิการ ขององค์กรปกครองส่วนท้องถิ่น กรณีจ่ายเป็นเงินสด
A2: (2) อปท.ที่จ่ายเงินสดผู้มีสิทธิสำเร็จบางราย
A4: ลำดับ | B4: ชื่อจังหวัด | C4: รหัสหน่วยงาน | D4: ชื่อหน่วยงาน | E4: รายงาน บก. จ่ายเงิน (คน) | J4: รายงาน สถ. จ่ายเงิน (คน) | M4: ผลต่างรายงานของ | N4: จำนวนคน
E5: ครั้งที่ 1 | F5: ครั้งที่ 2 | G5: ครั้งที่ 3 | H5: ครั้งที่ 4 | I5: รวม | J5: จ่ายสำเร็จ | K5: จ่ายไม่สำเร็จ | L5: รวม | M5: บก. - สถ. (คน) | N5: คืนแล้ว | O5: ยังไม่คืน | P5: คืนไม่ครบ
A6: 1 | B6: เชียงใหม่ | C6: 1550061419 | D6: องค์การบริหารส่วนตำบลสบเปิง | E6: 70 | F6: 6 | G6: 0 | H6: 0 | I6: 76 | J6: 87 | K6: 1 | L6: 88 | M6: 12 | O6: 1
A7: 2 | B7: เชียงราย | C7: 1557051232 | D7: เทศบาลตำบลเจดีย์หลวง | E7: 143 | F7: 0 | G7: 4 | H7: 0 | I7: 147 | J7: 147 | K7: 2 | L7: 149 | M7: 2 | N7: 2
A8: 3 | B8: เชียงราย | C8: 1557061284 | D8: องค์การบริหารส่วนตำบลปอ | E8: 179 | F8: 0 | G8: 0 | H8: 0 | I8: 179 | J8: 179 | K8: 1 | L8: 180 | M8: 1 | N8: 1
A9: 4 | B9: เชียงราย | C9: 1557061314 | D9: องค์การบริหารส่วนตำบลศรีค้ำ | E9: 137 | F9: 1 | G9: 0 | H9: 0 | I9: 138 | J9: 138 | K9: 1 | L9: 139 | M9: 1 | O9: 1
A10: 5 | B10: นครปฐม | C10: 1573061888 | D10: องค์การบริหารส่วนตำบลบางระกำ อ. บางเลน จ. นครปฐม | E10: 133 | F10: 1 | G10: 2 | H10: 0 | I10: 136 | J10: 136 | K10: 1 | L10: 137 | M10: 1 | O10: 1
A11: 6 | B11: นครปฐม | C11: 1573061905 | D11: องค์การบริหารส่วนตำบลกระตีบ | E11: 83 | F11: 4 | G11: 1 | H11: 0 | I11: 88 | J11: 88 | K11: 1 | L11: 89 | M11: 1 | O11: 1
A12: 7 | B12: นครปฐม | C12: 1573061909 | D12: องค์การบริหารส่วนตำบลทุ่งบัว | E12: 78 | F12: 0 | G12: 0 | H12: 0 | I12: 78 | J12: 78 | K12: 2 | L12: 80 | M12: 2 | O12: 2
A13: 8 | B13: บุรีรัมย์ | C13: 1531063122 | D13: องค์การบริหารส่วนตำบลนิคม | E13: 419 | F13: 4 | G13: 0 | H13: 0 | I13: 423 | J13: 425 | K13: 2 | L13: 427 | M13: 4 | N13: 2
A14: 9 | B14: พิษณุโลก | C14: 1565053901 | D14: เทศบาลตำบลบ้านแยง | E14: 83 | F14: 0 | G14: 0 | H14: 0 | I14: 83 | J14: 83 | K14: 1 | L14: 84 | M14: 1 | O14: 1
A15: 10 | B15: ลำพูน | C15: 1551065398 | D15: องค์การบริหารส่วนตำบลทาแม่ลอบ | E15: 198 | F15: 1 | G15: 6 | H15: 0 | I15: 205 | J15: 206 | K15: 3 | L15: 209 | M15: 4 | O15: 3
A16: 11 | B16: สุพรรณบุรี | C16: 1572066587 | D16: องค์การบริหารส่วนตำบลยางนอน | E16: 72 | F16: 0 | G16: 0 | H16: 0 | I16: 72 | J16: 72 | K16: 1 | L16: 73 | M16: 1 | N16: 1
A17: 12 | B17: อ่างทอง | C17: 1515067140 | D17: องค์การบริหารส่วนตำบลบางเจ้าฉ่า | E17: 64 | F17: 1 | G17: 1 | H17: 0 | I17: 66 | J17: 68 | K17: 3 | L17: 71 | M17: 5 | O17: 3
A18: 13 | B18: อุบลราชธานี | C18: 1534067622 | D18: องค์การบริหารส่วนตำบลดุมใหญ่ | E18: 92 | F18: 0 | G18: 0 | H18: 0 | I18: 92 | J18: 92 | K18: 1 | L18: 93 | M18: 1 | N18: 1
A19: รวมทั้งหมด | E19: =SUM(E6:E18) -> 1,751 | F19: =SUM(F6:F18) -> 18 | G19: 14 | H19: 0 | I19: 1,783 | J19: 1,799 | K19: 20 | L19: 1,819 | M19: 36 | N19: 7 | O19: 13 | P19: 0

Sheet (2.2.1) พบนำเงินส่งคืน บก.
A1: รายละเอียดการตรวจสอบรายงานผลการจ่ายเงินโครงการกระตุ้นเศรษฐกิจ ปี 2567 ผ่านคนพิการ ขององค์กรปกครองส่วนท้องถิ่น กรณีจ่ายเป็นเงินสด
A2: (2.2.1) พบรายการนำเงินส่งคืนตามหนังสือ กค 0402.2/ว 151
A4: ลำดับ | B4: ชื่อจังหวัด | C4: รหัสหน่วยงาน | D4: ชื่อหน่วยงาน | E4: รายงาน บก. จ่ายเงิน (คน) | J4: รายงาน สถ. จ่ายเงิน (คน) | M4: ผลต่างรายงานของ | N4: จำนวนคน
E5: ครั้งที่ 1 | F5: ครั้งที่ 2 | G5: ครั้งที่ 3 | H5: ครั้งที่ 4 | I5: รวม | J5: จ่ายสำเร็จ | K5: จ่ายไม่สำเร็จ | L5: รวม | M5: บก. - สถ. (คน) | N5: คืนแล้ว | O5: ยังไม่คืน | P5: คืนไม่ครบ
A6: 1 | B6: เชียงราย | C6: 1557051232 | D6: เทศบาลตำบลเจดีย์หลวง | E6: 143 | F6: 0 | G6: 4 | H6: 0 | I6: 147 | J6: 147 | K6: 2 | L6: 149 | M6: 2 | N6: 2
A7: 2 | B7: เชียงราย | C7: 1557061284 | D7: องค์การบริหารส่วนตำบลปอ | E7: 179 | F7: 0 | G7: 0 | H7: 0 | I7: 179 | J7: 179 | K7: 1 | L7: 180 | M7: 1 | N7: 1
A8: 3 | B8: บุรีรัมย์ | C8: 1531063122 | D8: องค์การบริหารส่วนตำบลนิคม | E8: 419 | F8: 4 | G8: 0 | H8: 0 | I8: 423 | J8: 425 | K8: 2 | L8: 427 | M8: 4 | N8: 2
A9: 4 | B9: สุพรรณบุรี | C9: 1572066587 | D9: องค์การบริหารส่วนตำบลยางนอน | E9: 72 | F9: 0 | G9: 0 | H9: 0 | I9: 72 | J9: 72 | K9: 1 | L9: 73 | M9: 1 | N9: 1
A10: 5 | B10: อุบลราชธานี | C10: 1534067622 | D10: องค์การบริหารส่วนตำบลดุมใหญ่ | E10: 92 | F10: 0 | G10: 0 | H10: 0 | I10: 92 | J10: 92 | K10: 1 | L10: 93 | M10: 1 | N10: 1
A11: รวมทั้งหมด | E11: =SUM(E6:E10) -> 905 | F11: =SUM(F6:F10) -> 4 | G11: 4 | H11: 0 | I11: 913 | J11: 915 | K11: 7 | L11: 922 | M11: 9 | N11: 7 | O11: 0 | P11: 0

Sheet (2.2.2) ไม่พบรายการนำเงินส่งคืน
A1: รายละเอียดการตรวจสอบรายงานผลการจ่ายเงินโครงการกระตุ้นเศรษฐกิจ ปี 2567 ผ่านคนพิการ ขององค์กรปกครองส่วนท้องถิ่น กรณีการจ่ายเป็นเงินสด
A2: (2.2.2) ไม่พบรายการนำเงินส่งคืนตามหนังสือ กค 0402.2/ว 151
A4: ลำดับ | B4: ชื่อจังหวัด | C4: รหัสหน่วยงาน | D4: ชื่อหน่วยงาน | E4: รายงาน บก. จ่ายเงิน (คน) | J4: รายงาน สถ. จ่ายเงิน (คน) | M4: ผลต่างรายงานของ | N4: จำนวนคน
E5: ครั้งที่ 1 | F5: ครั้งที่ 2 | G5: ครั้งที่ 3 | H5: ครั้งที่ 4 | I5: รวม | J5: จ่ายสำเร็จ | K5: จ่ายไม่สำเร็จ | L5: รวม | M5: บก. - สถ. (คน) | N5: คืนแล้ว | O5: ยังไม่คืน | P5: คืนไม่ครบ
A6: 1 | B6: เชียงใหม่ | C6: 1550061419 | D6: องค์การบริหารส่วนตำบลสบเปิง | E6: 70 | F6: 6 | G6: 0 | H6: 0 | I6: 76 | J6: 87 | K6: 1 | L6: 88 | M6: 12 | O6: 1
A7: 2 | B7: เชียงราย | C7: 1557061314 | D7: องค์การบริหารส่วนตำบลศรีค้ำ | E7: 137 | F7: 1 | G7: 0 | H7: 0 | I7: 138 | J7: 138 | K7: 1 | L7: 139 | M7: 1 | O7: 1
A8: 3 | B8: นครปฐม | C8: 1573061888 | D8: องค์การบริหารส่วนตำบลบางระกำ อ. บางเลน จ. นครปฐม | E8: 133 | F8: 1 | G8: 2 | H8: 0 | I8: 136 | J8: 136 | K8: 1 | L8: 137 | M8: 1 | O8: 1
A9: 4 | B9: นครปฐม | C9: 1573061905 | D9: องค์การบริหารส่วนตำบลกระตีบ | E9: 83 | F9: 4 | G9: 1 | H9: 0 | I9: 88 | J9: 88 | K9: 1 | L9: 89 | M9: 1 | O9: 1
A10: 5 | B10: นครปฐม | C10: 1573061909 | D10: องค์การบริหารส่วนตำบลทุ่งบัว | E10: 78 | F10: 0 | G10: 0 | H10: 0 | I10: 78 | J10: 78 | K10: 2 | L10: 80 | M10: 2 | O10: 2
A11: 6 | B11: พิษณุโลก | C11: 1565053901 | D11: เทศบาลตำบลบ้านแยง | E11: 83 | F11: 0 | G11: 0 | H11: 0 | I11: 83 | J11: 83 | K11: 1 | L11: 84 | M11: 1 | O11: 1
A12: 7 | B12: ลำพูน | C12: 1551065398 | D12: องค์การบริหารส่วนตำบลทาแม่ลอบ | E12: 198 | F12: 1 | G12: 6 | H12: 0 | I12: 205 | J12: 206 | K12: 3 | L12: 209 | M12: 4 | O12: 3
A13: 8 | B13: อ่างทอง | C13: 1515067140 | D13: องค์การบริหารส่วนตำบลบางเจ้าฉ่า | E13: 64 | F13: 1 | G13: 1 | H13: 0 | I13: 66 | J13: 68 | K13: 3 | L13: 71 | M13: 5 | O13: 3
A14: รวมทั้งหมด | E14: =SUM(E6:E13) -> 846 | F14: =SUM(F6:F13) -> 14 | G14: 10 | H14: 0 | I14: 870 | J14: 884 | K14: 13 | L14: 897 | M14: 27 | N14: 0 | O14: 13 | P14: 0

Sheet 2.2.2 อปท.รายงานข้อมูลต่ำกว่า บ
A1: รายละเอียดการตรวจสอบรายงานผลการจ่ายเงินโครงการกระตุ้นเศรษฐกิจ ปี 2567 ผ่านคนพิการ ขององค์กรปกครองส่วนท้องถิ่น กรณีการจ่ายเป็นเงินสด
A2: 2.2.2 อปท.รายงานจำนวนผู้มีสิทธิต่ำกว่ากรมบัญชีกลาง
A4: ลำดับ | B4: ชื่อจังหวัด | C4: รหัสหน่วยงาน | D4: ชื่อหน่วยงาน | E4: รายงาน บก. จ่ายเงิน (คน) | J4: รายงาน สถ. จ่ายเงิน (คน) | M4: ผลต่างรายงานของ | N4: จำนวนคน
E5: ครั้งที่ 1 | F5: ครั้งที่ 2 | G5: ครั้งที่ 3 | H5: ครั้งที่ 4 | I5: รวม | J5: จ่ายสำเร็จ | K5: จ่ายไม่สำเร็จ | L5: รวม | M5: บก. - สถ. (คน) | N5: คืนแล้ว | O5: ยังไม่คืน | P5: คืนไม่ครบ
A6: 1 | B6: เชียงใหม่ | C6: 1550041356 | D6: เทศบาลเมืองเมืองแกนพัฒนา | E6: 44 | F6: 0 | G6: 0 | H6: 0 | I6: 44 | J6: 23 | K6: 0 | L6: 23 | M6: -21
A7: 2 | B7: เชียงใหม่ | C7: 1550051473 | D7: เทศบาลตำบลขัวมุง | E7: 83 | F7: 1 | G7: 0 | H7: 0 | I7: 84 | J7: 43 | K7: 0 | L7: 43 | M7: -41
A8: 3 | B8: เชียงใหม่ | C8: 1550051551 | D8: เทศบาลตำบลแม่นะ | E8: 99 | F8: 2 | G8: 1 | H8: 0 | I8: 102 | J8: 101 | K8: 0 | L8: 101 | M8: -1
A9: 4 | B9: เชียงใหม่ | C9: 1550061452 | D9: องค์การบริหารส่วนตำบลห้วยแก้ว อ. แม่ออน จ. เชียงใหม่ | E9: 71 | F9: 2 | G9: 0 | H9: 0 | I9: 73 | J9: 69 | K9: 0 | L9: 69 | M9: -4
A10: 5 | B10: เชียงใหม่ | C10: 1550061530 | D10: องค์การบริหารส่วนตำบลแม่สูน | E10: 136 | F10: 0 | G10: 2 | H10: 0 | I10: 138 | J10: 136 | K10: 0 | L10: 136 | M10: -2
A11: 6 | B11: เชียงราย | C11: 1557051303 | D11: เทศบาลตำบลสันมะเค็ด | E11: 201 | F11: 4 | G11: 1 | H11: 0 | I11: 206 | J11: 201 | K11: 0 | L11: 201 | M11: -5
A12: 7 | B12: เชียงราย | C12: 1557061278 | D12: องค์การบริหารส่วนตำบลแม่จัน | E12: 71 | F12: 1 | G12: 0 | H12: 0 | I12: 72 | J12: 71 | K12: 0 | L12: 71 | M12: -1
A13: 8 | B13: เพชรบุรี | C13: 1576064046 | D13: องค์การบริหารส่วนตำบลสองพี่น้อง อ. แก่งกระจาน จ. เพชรบุรี | E13: 51 | F13: 1 | G13: 0 | H13: 0 | I13: 52 | J13: 51 | K13: 0 | L13: 51 | M13: -1
A14: 9 | B14: กาฬสินธุ์ | C14: 1546050217 | D14: เทศบาลตำบลนาขาม | E14: 120 | F14: 2 | G14: 0 | H14: 0 | I14: 122 | J14: 120 | K14: 0 | L14: 120 | M14: -2
A15: 10 | B15: กาฬสินธุ์ | C15: 1546050218 | D15: เทศบาลตำบลกมลาไสย | E15: 171 | F15: 1 | G15: 0 | H15: 0 | I15: 172 | J15: 171 | K15: 0 | L15: 171 | M15: -1
A16: 11 | B16: กาฬสินธุ์ | C16: 1546050223 | D16: เทศบาลตำบลบึงวิชัย | E16: 413 | F16: 10 | G16: 2 | H16: 0 | I16: 425 | J16: 413 | K16: 0 | L16: 413 | M16: -12
A17: 12 | B17: กาฬสินธุ์ | C17: 1546050328 | D17: เทศบาลตำบลภูปอ | E17: 183 | F17: 2 | G17: 0 | H17: 0 | I17: 185 | J17: 183 | K17: 0 | L17: 183 | M17: -2
A18: 13 | B18: กำแพงเพชร | C18: 1562050353 | D18: เทศบาลตำบลคลองลานพัฒนา | E18: 128 | F18: 3 | G18: 0 | H18: 0 | I18: 131 | J18: 128 | K18: 0 | L18: 128 | M18: -3
A19: 14 | B19: ขอนแก่น | C19: 1540050430 | D19: เทศบาลตำบลวังชัย | E19: 25 | F19: 1 | G19: 1 | H19: 0 | I19: 27 | J19: 25 | K19: 0 | L19: 25 | M19: -2
A20: 15 | B20: ขอนแก่น | C20: 1540050431 | D20: เทศบาลตำบลกุดน้ำใส | E20: 220 | F20: 1 | G20: 1 | H20: 2 | I20: 224 | J20: 220 | K20: 0 | L20: 220 | M20: -4
A21: 16 | B21: ขอนแก่น | C21: 1540050592 | D21: เทศบาลตำบลหนองไผ่ อ. ชุมแพ จ. ขอนแก่น | E21: 161 | F21: 2 | G21: 1 | H21: 3 | I21: 167 | J21: 159 | K21: 2 | L21: 161 | M21: -6 | O21: 2
A22: 17 | B22: ขอนแก่น | C22: 1540050614 | D22: เทศบาลตำบลโนนสมบูรณ์ อ. เขาสวนกวาง จ. ขอนแก่น | E22: 152 | F22: 3 | G22: 2 | H22: 3 | I22: 160 | J22: 82 | K22: 0 | L22: 82 | M22: -78
A23: 18 | B23: ขอนแก่น | C23: 1540060479 | D23: องค์การบริหารส่วนตำบลทรายมูล อ. น้ำพอง จ. ขอนแก่น | E23: 143 | F23: 1 | G23: 10 | H23: 1 | I23: 155 | J23: 143 | K23: 0 | L23: 143 | M23: -12
A24: 19 | B24: ขอนแก่น | C24: 1540060482 | D24: องค์การบริหารส่วนตำบลหนองกุง อ. น้ำพอง จ. ขอนแก่น | E24: 139 | F24: 0 | G24: 1 | H24: 0 | I24: 140 | J24: 139 | K24: 0 | L24: 139 | M24: -1
A25: 20 | B25: ขอนแก่น | C25: 1540060495 | D25: องค์การบริหารส่วนตำบลหนองเขียด | E25: 80 | F25: 1 | G25: 0 | H25: 0 | I25: 81 | J25: 80 | K25: 0 | L25: 80 | M25: -1
A26: 21 | B26: ขอนแก่น | C26: 1540060613 | D26: องค์การบริหารส่วนตำบลนางิ้ว อ. เขาสวนกวาง จ. ขอนแก่น | E26: 149 | F26: 5 | G26: 3 | H26: 0 | I26: 157 | J26: 155 | K26: 0 | L26: 155 | M26: -2
A27: 22 | B27: ขอนแก่น | C27: 1540060628 | D27: องค์การบริหารส่วนตำบลหนองกุงใหญ่ | E27: 413 | F27: 8 | G27: 1 | H27: 0 | I27: 422 | J27: 413 | K27: 0 | L27: 413 | M27: -9
A28: 23 | B28: ขอนแก่น | C28: 1540060629 | D28: องค์การบริหารส่วนตำบลห้วยโจด อ. กระนวน จ. ขอนแก่น | E28: 292 | F28: 1 | G28: 4 | H28: 0 | I28: 297 | J28: 291 | K28: 2 | L28: 293 | M28: -4 | O28: 2
A29: 24 | B29: จันทบุรี | C29: 1522050674 | D29: เทศบาลตำบลคลองใหญ่ อ. โป่งน้ำร้อน จ. จันทบุรี | E29: 52 | F29: 1 | G29: 0 | H29: 0 | I29: 53 | J29: 52 | K29: 0 | L29: 52 | M29: -1
A30: 25 | B30: ชัยนาท | C30: 1518050935 | D30: เทศบาลตำบลเสือโฮก | E30: 242 | F30: 1 | G30: 0 | H30: 0 | I30: 243 | J30: 242 | K30: 0 | L30: 242 | M30: -1
A31: 26 | B31: ชัยนาท | C31: 1518050955 | D31: เทศบาลตำบลธรรมามูล | E31: 12 | F31: 1 | G31: 0 | H31: 0 | I31: 13 | J31: 11 | K31: 1 | L31: 12 | M31: -1 | O31: 1
A32: 27 | B32: ชัยภูมิ | C32: 1536051076 | D32: เทศบาลตำบลห้วยยาง อ. คอนสาร จ. ชัยภูมิ | E32: 13 | F32: 1 | G32: 1 | H32: 0 | I32: 15 | J32: 13 | K32: 0 | L32: 13 | M32: -2
A33: 28 | B33: ชัยภูมิ | C33: 1536061055 | D33: องค์การบริหารส่วนตำบลหัวทะเล | E33: 445 | F33: 4 | G33: 8 | H33: 1 | I33: 458 | J33: 456 | K33: 0 | L33: 456 | M33: -2
A34: 29 | B34: ชัยภูมิ | C34: 1536061058 | D34: องค์การบริหารส่วนตำบลโคกเพชรพัฒนา | E34: 199 | F34: 0 | G34: 1 | H34: 1 | I34: 201 | J34: 199 | K34: 0 | L34: 199 | M34: -2
A35: 30 | B35: ชัยภูมิ | C35: 1536061060 | D35: องค์การบริหารส่วนตำบลดงกลาง อ. คอนสาร จ. ชัยภูมิ | E35: 266 | F35: 0 | G35: 1 | H35: 0 | I35: 267 | J35: 266 | K35: 0 | L35: 266 | M35: -1
A36: 31 | B36: ชัยภูมิ | C36: 1536061103 | D36: องค์การบริหารส่วนตำบลบ้านหัน อ. เกษตรสมบูรณ์ จ. ชัยภูมิ | E36: 5 | F36: 1 | G36: 0 | H36: 0 | I36: 6 | J36: 5 | K36: 0 | L36: 5 | M36: -1
A37: 32 | B37: ตาก | C37: 1563061772 | D37: องค์การบริหารส่วนตำบลแม่หละ | E37: 219 | F37: 0 | G37: 3 | H37: 1 | I37: 223 | J37: 219 | K37: 0 | L37: 219 | M37: -4
A38: 33 | B38: นครนายก | C38: 1526061781 | D38: องค์การบริหารส่วนตำบลนาหินลาด | E38: 118 | F38: 2 | G38: 0 | H38: 0 | I38: 120 | J38: 117 | K38: 1 | L38: 118 | M38: -2 | N38: 1
A39: 34 | B39: นครปฐม | C39: 1573061895 | D39: องค์การบริหารส่วนตำบลคลองนกกระทุง | E39: 10 | F39: 1 | G39: 0 | H39: 0 | I39: 11 | J39: 1 | K39: 1 | L39: 2 | M39: -9 | O39: 1
A40: 35 | B40: นครราชสีมา | C40: 1530052328 | D40: เทศบาลตำบลช่องแมว | E40: 341 | F40: 2 | G40: 1 | H40: 0 | I40: 344 | J40: 343 | K40: 0 | L40: 343 | M40: -1
A41: 36 | B41: นครราชสีมา | C41: 1530062135 | D41: องค์การบริหารส่วนตำบลละหานปลาค้าว | E41: 371 | F41: 0 | G41: 1 | H41: 7 | I41: 379 | J41: 371 | K41: 0 | L41: 371 | M41: -8
A42: 37 | B42: นครราชสีมา | C42: 1530062138 | D42: องค์การบริหารส่วนตำบลโนนตาเถร | E42: 101 | F42: 0 | G42: 0 | H42: 4 | I42: 105 | J42: 101 | K42: 0 | L42: 101 | M42: -4
A43: 38 | B43: นครราชสีมา | C43: 1530062157 | D43: องค์การบริหารส่วนตำบลหนองพลวง อ. ประทาย จ. นครราชสีมา | E43: 168 | F43: 1 | G43: 2 | H43: 10 | I43: 181 | J43: 179 | K43: 0 | L43: 179 | M43: -2
A44: 39 | B44: นครราชสีมา | C44: 1530062225 | D44: องค์การบริหารส่วนตำบลโนนประดู่ | E44: 71 | F44: 0 | G44: 0 | H44: 2 | I44: 73 | J44: 70 | K44: 0 | L44: 70 | M44: -3
A45: 40 | B45: นครราชสีมา | C45: 1530062276 | D45: องค์การบริหารส่วนตำบลโค้งยาง | E45: 17 | F45: 0 | G45: 1 | H45: 0 | I45: 18 | J45: 17 | K45: 0 | L45: 17 | M45: -1
A46: 41 | B46: นครราชสีมา | C46: 1530062337 | D46: องค์การบริหารส่วนตำบลดอนยาวใหญ่ | E46: 76 | F46: 1 | G46: 3 | H46: 0 | I46: 80 | J46: 77 | K46: 0 | L46: 77 | M46: -3
A47: 42 | B47: นครสวรรค์ | C47: 1560062584 | D47: องค์การบริหารส่วนตำบลสระแก้ว อ. ลาดยาว จ. นครสวรรค์ | E47: 133 | F47: 3 | G47: 4 | H47: 0 | I47: 140 | J47: 133 | K47: 0 | L47: 133 | M47: -7
A48: 43 | B48: นครสวรรค์ | C48: 1560062600 | D48: องค์การบริหารส่วนตำบลนากลาง อ. โกรกพระ จ. นครสวรรค์ | E48: 48 | F48: 2 | G48: 0 | H48: 0 | I48: 50 | J48: 48 | K48: 0 | L48: 48 | M48: -2
A49: 44 | B49: นครสวรรค์ | C49: 1560062687 | D49: องค์การบริหารส่วนตำบลสร้อยละคร | E49: 10 | F49: 1 | G49: 0 | H49: 0 | I49: 11 | J49: 10 | K49: 0 | L49: 10 | M49: -1
A50: 45 | B50: บุรีรัมย์ | C50: 1531052954 | D50: เทศบาลตำบลอิสาณ | E50: 268 | F50: 16 | G50: 3 | H50: 0 | I50: 287 | J50: 284 | K50: 0 | L50: 284 | M50: -3
A51: 46 | B51: บุรีรัมย์ | C51: 1531062994 | D51: องค์การบริหารส่วนตำบลป่าชัน | E51: 96 | F51: 0 | G51: 2 | H51: 0 | I51: 98 | J51: 96 | K51: 0 | L51: 96 | M51: -2
A52: 47 | B52: บุรีรัมย์ | C52: 1531063077 | D52: องค์การบริหารส่วนตำบลตาเสา | E52: 210 | F52: 2 | G52: 1 | H52: 0 | I52: 213 | J52: 210 | K52: 0 | L52: 210 | M52: -3
A53: 48 | B53: ประจวบคีรีขันธ์ | C53: 1577063232 | D53: องค์การบริหารส่วนตำบลศาลาลัย | E53: 40 | F53: 4 | G53: 0 | H53: 0 | I53: 44 | J53: 40 | K53: 0 | L53: 40 | M53: -4
A54: 49 | B54: พระนครศรีอยุธยา | C54: 1514063499 | D54: องค์การบริหารส่วนตำบลกระจิว | E54: 52 | F54: 1 | G54: 0 | H54: 0 | I54: 53 | J54: 52 | K54: 0 | L54: 52 | M54: -1
A55: 50 | B55: พระนครศรีอยุธยา | C55: 1514063588 | D55: องค์การบริหารส่วนตำบลบางเดื่อ | E55: 34 | F55: 3 | G55: 0 | H55: 0 | I55: 37 | J55: 34 | K55: 0 | L55: 34 | M55: -3
A56: 51 | B56: พะเยา | C56: 1556063637 | D56: องค์การบริหารส่วนตำบลป่าสัก อ. ภูซาง จ. พะเยา | E56: 129 | F56: 1 | G56: 0 | H56: 0 | I56: 130 | J56: 129 | K56: 0 | L56: 129 | M56: -1
A57: 52 | B57: พะเยา | C57: 1556063638 | D57: องค์การบริหารส่วนตำบลทุ่งกล้วย | E57: 321 | F57: 0 | G57: 1 | H57: 0 | I57: 322 | J57: 321 | K57: 0 | L57: 321 | M57: -1
A58: 53 | B58: พัทลุง | C58: 1593053786 | D58: เทศบาลตำบลสมหวัง | E58: 162 | F58: 0 | G58: 0 | H58: 0 | I58: 162 | J58: 117 | K58: 0 | L58: 117 | M58: -45
A59: 54 | B59: พิษณุโลก | C59: 1565063918 | D59: องค์การบริหารส่วนตำบลไผ่ขอดอน | E59: 135 | F59: 1 | G59: 0 | H59: 0 | I59: 136 | J59: 135 | K59: 0 | L59: 135 | M59: -1
A60: 55 | B60: พิษณุโลก | C60: 1565063985 | D60: องค์การบริหารส่วนตำบลบ่อภาค | E60: 310 | F60: 0 | G60: 2 | H60: 0 | I60: 312 | J60: 310 | K60: 0 | L60: 310 | M60: -2
A61: 56 | B61: มหาสารคาม | C61: 1544064407 | D61: องค์การบริหารส่วนตำบลสันป่าตอง | E61: 22 | F61: 0 | G61: 0 | H61: 0 | I61: 22 | J61: 0 | K61: 1 | L61: 1 | M61: -21 | N61: 1
A62: 57 | B62: มหาสารคาม | C62: 1544064444 | D62: องค์การบริหารส่วนตำบลเหล่าบัวบาน | E62: 8 | F62: 1 | G62: 0 | H62: 0 | I62: 9 | J62: 8 | K62: 0 | L62: 8 | M62: -1
A63: 58 | B63: มุกดาหาร | C63: 1549064469 | D63: องค์การบริหารส่วนตำบลเหล่าหมี | E63: 225 | F63: 2 | G63: 0 | H63: 0 | I63: 227 | J63: 225 | K63: 0 | L63: 225 | M63: -2
A64: 59 | B64: ยโสธร | C64: 1535064621 | D64: องค์การบริหารส่วนตำบลกำแมด | E64: 251 | F64: 2 | G64: 6 | H64: 0 | I64: 259 | J64: 253 | K64: 0 | L64: 253 | M64: -6
A65: 60 | B65: ร้อยเอ็ด | C65: 1545064831 | D65: องค์การบริหารส่วนตำบลท่าหาดยาว | E65: 105 | F65: 0 | G65: 1 | H65: 0 | I65: 106 | J65: 105 | K65: 0 | L65: 105 | M65: -1
A66: 61 | B66: ร้อยเอ็ด | C66: 1545064875 | D66: องค์การบริหารส่วนตำบลหนองพอก อ. ธวัชบุรี จ. ร้อยเอ็ด | E66: 60 | F66: 2 | G66: 0 | H66: 0 | I66: 62 | J66: 60 | K66: 0 | L66: 60 | M66: -2
A67: 62 | B67: ลำพูน | C67: 1551055351 | D67: เทศบาลตำบลแม่แรง | E67: 252 | F67: 3 | G67: 1 | H67: 0 | I67: 256 | J67: 81 | K67: 0 | L67: 81 | M67: -175
A68: 63 | B68: ลำพูน | C68: 1551055353 | D68: เทศบาลตำบลหนองล่อง | E68: 486 | F68: 5 | G68: 2 | H68: 0 | I68: 493 | J68: 486 | K68: 0 | L68: 486 | M68: -7
A69: 64 | B69: ลำพูน | C69: 1551065372 | D69: องค์การบริหารส่วนตำบลเวียงแก้ว | E69: 323 | F69: 1 | G69: 5 | H69: 3 | I69: 332 | J69: 323 | K69: 1 | L69: 324 | M69: -8 | N69: 1
A70: 65 | B70: ศรีสะเกษ | C70: 1533065568 | D70: องค์การบริหารส่วนตำบลกู่ | E70: 18 | F70: 0 | G70: 1 | H70: 0 | I70: 19 | J70: 1 | K70: 0 | L70: 1 | M70: -18
A71: 66 | B71: ศรีสะเกษ | C71: 1533065614 | D71: องค์การบริหารส่วนตำบลเสียว อ. เบญจลักษ์ จ. ศรีสะเกษ | E71: 21 | F71: 0 | G71: 1 | H71: 0 | I71: 22 | J71: 21 | K71: 0 | L71: 21 | M71: -1
A72: 67 | B72: ศรีสะเกษ | C72: 1533065617 | D72: องค์การบริหารส่วนตำบลหนองฮาง อ. เบญจลักษ์ จ. ศรีสะเกษ | E72: 149 | F72: 3 | G72: 2 | H72: 0 | I72: 154 | J72: 149 | K72: 0 | L72: 149 | M72: -5
A73: 68 | B73: สกลนคร | C73: 1547055729 | D73: เทศบาลตำบลสามัคคีพัฒนา | E73: 45 | F73: 1 | G73: 0 | H73: 0 | I73: 46 | J73: 45 | K73: 0 | L73: 45 | M73: -1
A74: 69 | B74: สกลนคร | C74: 1547055759 | D74: เทศบาลตำบลแร่ | E74: 168 | F74: 2 | G74: 0 | H74: 0 | I74: 170 | J74: 168 | K74: 0 | L74: 168 | M74: -2
A75: 70 | B75: สกลนคร | C75: 1547065798 | D75: องค์การบริหารส่วนตำบลแมดนาท่ม | E75: 142 | F75: 2 | G75: 0 | H75: 0 | I75: 144 | J75: 142 | K75: 0 | L75: 142 | M75: -2
A76: 71 | B76: สกลนคร | C76: 1547065831 | D76: องค์การบริหารส่วนตำบลเดื่อศรีคันไชย | E76: 8 | F76: 0 | G76: 1 | H76: 0 | I76: 9 | J76: 8 | K76: 0 | L76: 8 | M76: -1
A77: 72 | B77: สตูล | C77: 1591066035 | D77: องค์การบริหารส่วนตำบลตันหยงโป | E77: 109 | F77: 0 | G77: 0 | H77: 0 | I77: 109 | J77: 28 | K77: 0 | L77: 28 | M77: -81
A78: 73 | B78: สมุทรสาคร | C78: 1574066140 | D78: เทศบาลเมืองคลองมะเดื่อ | E78: 17 | F78: 2 | G78: 0 | H78: 0 | I78: 19 | J78: 2 | K78: 0 | L78: 2 | M78: -17
A79: 74 | B79: สระแก้ว | C79: 1527066185 | D79: องค์การบริหารส่วนตำบลทัพราช | E79: 396 | F79: 12 | G79: 8 | H79: 0 | I79: 416 | J79: 396 | K79: 0 | L79: 396 | M79: -20
A80: 75 | B80: สุพรรณบุรี | C80: 1572056481 | D80: เทศบาลตำบลด่านช้าง | E80: 32 | F80: 0 | G80: 1 | H80: 0 | I80: 33 | J80: 32 | K80: 0 | L80: 32 | M80: -1
A81: 76 | B81: สุพรรณบุรี | C81: 1572066515 | D81: องค์การบริหารส่วนตำบลองค์พระ | E81: 52 | F81: 2 | G81: 2 | H81: 1 | I81: 57 | J81: 54 | K81: 2 | L81: 56 | M81: -1 | O81: 2
A82: 77 | B82: สุพรรณบุรี | C82: 1572066542 | D82: องค์การบริหารส่วนตำบลบางเลน อ. สองพี่น้อง จ. สุพรรณบุรี | E82: 71 | F82: 4 | G82: 5 | H82: 0 | I82: 80 | J82: 71 | K82: 0 | L82: 71 | M82: -9
A83: 78 | B83: สุพรรณบุรี | C83: 1572066554 | D83: องค์การบริหารส่วนตำบลกฤษณา อ. บางปลาม้า จ. สุพรรณบุรี | E83: 63 | F83: 0 | G83: 2 | H83: 0 | I83: 65 | J83: 62 | K83: 1 | L83: 63 | M83: -2 | O83: 1
A84: 79 | B84: หนองคาย | C84: 1543066955 | D84: องค์การบริหารส่วนตำบลสังคม | E84: 75 | F84: 1 | G84: 0 | H84: 0 | I84: 76 | J84: 75 | K84: 0 | L84: 75 | M84: -1
A85: 80 | B85: หนองบัวลำภู | C85: 1539057050 | D85: เทศบาลตำบลบุญทัน | E85: 114 | F85: 2 | G85: 1 | H85: 0 | I85: 117 | J85: 114 | K85: 0 | L85: 114 | M85: -3
A86: 81 | B86: อ่างทอง | C86: 1515067107 | D86: องค์การบริหารส่วนตำบลนรสิงห์ | E86: 48 | F86: 0 | G86: 1 | H86: 0 | I86: 49 | J86: 48 | K86: 0 | L86: 48 | M86: -1
A87: 82 | B87: อ่างทอง | C87: 1515067108 | D87: องค์การบริหารส่วนตำบลศรีพราน | E87: 46 | F87: 2 | G87: 0 | H87: 0 | I87: 48 | J87: 46 | K87: 0 | L87: 46 | M87: -2
A88: 83 | B88: อ่างทอง | C88: 1515067151 | D88: องค์การบริหารส่วนตำบลจำลอง | E88: 69 | F88: 1 | G88: 0 | H88: 0 | I88: 70 | J88: 69 | K88: 0 | L88: 69 | M88: -1
A89: 84 | B89: อำนาจเจริญ | C89: 1537057160 | D89: เทศบาลตำบลนายม | E89: 162 | F89: 7 | G89: 0 | H89: 0 | I89: 169 | J89: 162 | K89: 0 | L89: 162 | M89: -7
A90: 85 | B90: อำนาจเจริญ | C90: 1537057186 | D90: เทศบาลตำบลโคกก่ง | E90: 230 | F90: 1 | G90: 0 | H90: 0 | I90: 231 | J90: 230 | K90: 0 | L90: 230 | M90: -1
A91: 86 | B91: อำนาจเจริญ | C91: 1537067171 | D91: องค์การบริหารส่วนตำบลคำพระ | E91: 241 | F91: 12 | G91: 0 | H91: 0 | I91: 253 | J91: 241 | K91: 0 | L91: 241 | M91: -12
A92: 87 | B92: อำนาจเจริญ | C92: 1537067216 | D92: องค์การบริหารส่วนตำบลโนนงาม | E92: 3 | F92: 0 | G92: 0 | H92: 0 | I92: 3 | J92: 1 | K92: 0 | L92: 1 | M92: -2
A93: 88 | B93: อุบลราชธานี | C93: 1534067574 | D93: องค์การบริหารส่วนตำบลนาดี อ. นาเยีย จ. อุบลราชธานี | E93: 147 | F93: 1 | G93: 1 | H93: 0 | I93: 149 | J93: 1 | K93: 0 | L93: 1 | M93: -148
A94: 89 | B94: อุบลราชธานี | C94: 1534067660 | D94: องค์การบริหารส่วนตำบลนาพิน | E94: 156 | F94: 0 | G94: 4 | H94: 3 | I94: 163 | J94: 156 | K94: 0 | L94: 156 | M94: -7
A95: 90 | B95: อุบลราชธานี | C95: 1534067671 | D95: องค์การบริหารส่วนตำบลบ้านแดง อ. ตระการพืชผล จ. อุบลราชธานี | E95: 59 | F95: 1 | G95: 0 | H95: 0 | I95: 60 | J95: 1 | K95: 0 | L95: 1 | M95: -59
A96: 91 | B96: อุบลราชธานี | C96: 1534067737 | D96: องค์การบริหารส่วนตำบลหนองฮาง อ. ม่วงสามสิบ จ. อุบลราชธานี | E96: 147 | F96: 2 | G96: 1 | H96: 0 | I96: 150 | J96: 1 | K96: 0 | L96: 1 | M96: -149
A97: รวมทั้งหมด | E97: =SUM(E6:E96) -> 12,739 | F97: =SUM(F6:F96) -> 176 | G97: 111 | H97: 42 | I97: 13,068 | J97: 11,940 | K97: 12 | L97: 11,952 | M97: -1,116 | N97: 3 | O97: 9 | P97: 0

Sheet (1) อปท. จ่ายสำเร็จทุกราย
A1: รายละเอียดการตรวจสอบรายงานผลการจ่ายเงินโครงการกระตุ้นเศรษฐกิจ ปี 2567 ผ่านคนพิการ ขององค์กรปกครองส่วนท้องถิ่น กรณีการจ่ายเป็นเงินสด
A2: (1) อปท.ที่จ่ายเงินสดให้ผู้มีสิทธิสำเร็จทุกราย
A4: ลำดับ | B4: ชื่อจังหวัด | C4: รหัสหน่วยงาน | D4: ชื่อหน่วยงาน | E4: รายงาน บก. จ่ายเงิน (คน) | J4: รายงาน สถ. จ่ายเงิน (คน) | M4: ผลต่างรายงานของ | N4: จำนวนคน
E5: ครั้งที่ 1 | F5: ครั้งที่ 2 | G5: ครั้งที่ 3 | H5: ครั้งที่ 4 | I5: รวม | J5: จ่ายสำเร็จ | K5: จ่ายไม่สำเร็จ | L5: รวม | M5: บก. - สถ. (คน) | N5: คืนแล้ว | O5: ยังไม่คืน | P5: คืนไม่ครบ
A6: 1 | B6: เชียงใหม่ | C6: 1550041356 | D6: เทศบาลเมืองเมืองแกนพัฒนา | E6: 44 | F6: 0 | G6: 0 | H6: 0 | I6: 44 | J6: 23 | K6: 0 | L6: 23 | M6: -21
A7: 2 | B7: เชียงใหม่ | C7: 1550051473 | D7: เทศบาลตำบลขัวมุง | E7: 83 | F7: 1 | G7: 0 | H7: 0 | I7: 84 | J7: 43 | K7: 0 | L7: 43 | M7: -41
A8: 3 | B8: เชียงใหม่ | C8: 1550051551 | D8: เทศบาลตำบลแม่นะ | E8: 99 | F8: 2 | G8: 1 | H8: 0 | I8: 102 | J8: 101 | K8: 0 | L8: 101 | M8: -1
A9: 4 | B9: เชียงใหม่ | C9: 1550061452 | D9: องค์การบริหารส่วนตำบลห้วยแก้ว อ. แม่ออน จ. เชียงใหม่ | E9: 71 | F9: 2 | G9: 0 | H9: 0 | I9: 73 | J9: 69 | K9: 0 | L9: 69 | M9: -4
A10: 5 | B10: เชียงใหม่ | C10: 1550061530 | D10: องค์การบริหารส่วนตำบลแม่สูน | E10: 136 | F10: 0 | G10: 2 | H10: 0 | I10: 138 | J10: 136 | K10: 0 | L10: 136 | M10: -2
A11: 6 | B11: เชียงราย | C11: 1557051303 | D11: เทศบาลตำบลสันมะเค็ด | E11: 201 | F11: 4 | G11: 1 | H11: 0 | I11: 206 | J11: 201 | K11: 0 | L11: 201 | M11: -5
A12: 7 | B12: เชียงราย | C12: 1557061278 | D12: องค์การบริหารส่วนตำบลแม่จัน | E12: 71 | F12: 1 | G12: 0 | H12: 0 | I12: 72 | J12: 71 | K12: 0 | L12: 71 | M12: -1
A13: 8 | B13: เพชรบุรี | C13: 1576064046 | D13: องค์การบริหารส่วนตำบลสองพี่น้อง อ. แก่งกระจาน จ. เพชรบุรี | E13: 51 | F13: 1 | G13: 0 | H13: 0 | I13: 52 | J13: 51 | K13: 0 | L13: 51 | M13: -1
A14: 9 | B14: กาฬสินธุ์ | C14: 1546050217 | D14: เทศบาลตำบลนาขาม | E14: 120 | F14: 2 | G14: 0 | H14: 0 | I14: 122 | J14: 120 | K14: 0 | L14: 120 | M14: -2
A15: 10 | B15: กาฬสินธุ์ | C15: 1546050218 | D15: เทศบาลตำบลกมลาไสย | E15: 171 | F15: 1 | G15: 0 | H15: 0 | I15: 172 | J15: 171 | K15: 0 | L15: 171 | M15: -1
A16: 11 | B16: กาฬสินธุ์ | C16: 1546050223 | D16: เทศบาลตำบลบึงวิชัย | E16: 413 | F16: 10 | G16: 2 | H16: 0 | I16: 425 | J16: 413 | K16: 0 | L16: 413 | M16: -12
A17: 12 | B17: กาฬสินธุ์ | C17: 1546050328 | D17: เทศบาลตำบลภูปอ | E17: 183 | F17: 2 | G17: 0 | H17: 0 | I17: 185 | J17: 183 | K17: 0 | L17: 183 | M17: -2
A18: 13 | B18: กำแพงเพชร | C18: 1562050353 | D18: เทศบาลตำบลคลองลานพัฒนา | E18: 128 | F18: 3 | G18: 0 | H18: 0 | I18: 131 | J18: 128 | K18: 0 | L18: 128 | M18: -3
A19: 14 | B19: ขอนแก่น | C19: 1540050430 | D19: เทศบาลตำบลวังชัย | E19: 25 | F19: 1 | G19: 1 | H19: 0 | I19: 27 | J19: 25 | K19: 0 | L19: 25 | M19: -2
A20: 15 | B20: ขอนแก่น | C20: 1540050431 | D20: เทศบาลตำบลกุดน้ำใส | E20: 220 | F20: 1 | G20: 1 | H20: 2 | I20: 224 | J20: 220 | K20: 0 | L20: 220 | M20: -4
A21: 16 | B21: ขอนแก่น | C21: 1540050614 | D21: เทศบาลตำบลโนนสมบูรณ์ อ. เขาสวนกวาง จ. ขอนแก่น | E21: 152 | F21: 3 | G21: 2 | H21: 3 | I21: 160 | J21: 82 | K21: 0 | L21: 82 | M21: -78
A22: 17 | B22: ขอนแก่น | C22: 1540060479 | D22: องค์การบริหารส่วนตำบลทรายมูล อ. น้ำพอง จ. ขอนแก่น | E22: 143 | F22: 1 | G22: 10 | H22: 1 | I22: 155 | J22: 143 | K22: 0 | L22: 143 | M22: -12
A23: 18 | B23: ขอนแก่น | C23: 1540060482 | D23: องค์การบริหารส่วนตำบลหนองกุง อ. น้ำพอง จ. ขอนแก่น | E23: 139 | F23: 0 | G23: 1 | H23: 0 | I23: 140 | J23: 139 | K23: 0 | L23: 139 | M23: -1
A24: 19 | B24: ขอนแก่น | C24: 1540060495 | D24: องค์การบริหารส่วนตำบลหนองเขียด | E24: 80 | F24: 1 | G24: 0 | H24: 0 | I24: 81 | J24: 80 | K24: 0 | L24: 80 | M24: -1
A25: 20 | B25: ขอนแก่น | C25: 1540060613 | D25: องค์การบริหารส่วนตำบลนางิ้ว อ. เขาสวนกวาง จ. ขอนแก่น | E25: 149 | F25: 5 | G25: 3 | H25: 0 | I25: 157 | J25: 155 | K25: 0 | L25: 155 | M25: -2
A26: 21 | B26: ขอนแก่น | C26: 1540060628 | D26: องค์การบริหารส่วนตำบลหนองกุงใหญ่ | E26: 413 | F26: 8 | G26: 1 | H26: 0 | I26: 422 | J26: 413 | K26: 0 | L26: 413 | M26: -9
A27: 22 | B27: จันทบุรี | C27: 1522050674 | D27: เทศบาลตำบลคลองใหญ่ อ. โป่งน้ำร้อน จ. จันทบุรี | E27: 52 | F27: 1 | G27: 0 | H27: 0 | I27: 53 | J27: 52 | K27: 0 | L27: 52 | M27: -1
A28: 23 | B28: ชัยนาท | C28: 1518050935 | D28: เทศบาลตำบลเสือโฮก | E28: 242 | F28: 1 | G28: 0 | H28: 0 | I28: 243 | J28: 242 | K28: 0 | L28: 242 | M28: -1
A29: 24 | B29: ชัยภูมิ | C29: 1536051076 | D29: เทศบาลตำบลห้วยยาง อ. คอนสาร จ. ชัยภูมิ | E29: 13 | F29: 1 | G29: 1 | H29: 0 | I29: 15 | J29: 13 | K29: 0 | L29: 13 | M29: -2
A30: 25 | B30: ชัยภูมิ | C30: 1536061055 | D30: องค์การบริหารส่วนตำบลหัวทะเล | E30: 445 | F30: 4 | G30: 8 | H30: 1 | I30: 458 | J30: 456 | K30: 0 | L30: 456 | M30: -2
A31: 26 | B31: ชัยภูมิ | C31: 1536061058 | D31: องค์การบริหารส่วนตำบลโคกเพชรพัฒนา | E31: 199 | F31: 0 | G31: 1 | H31: 1 | I31: 201 | J31: 199 | K31: 0 | L31: 199 | M31: -2
A32: 27 | B32: ชัยภูมิ | C32: 1536061060 | D32: องค์การบริหารส่วนตำบลดงกลาง อ. คอนสาร จ. ชัยภูมิ | E32: 266 | F32: 0 | G32: 1 | H32: 0 | I32: 267 | J32: 266 | K32: 0 | L32: 266 | M32: -1
A33: 28 | B33: ชัยภูมิ | C33: 1536061103 | D33: องค์การบริหารส่วนตำบลบ้านหัน อ. เกษตรสมบูรณ์ จ. ชัยภูมิ | E33: 5 | F33: 1 | G33: 0 | H33: 0 | I33: 6 | J33: 5 | K33: 0 | L33: 5 | M33: -1
A34: 29 | B34: ตาก | C34: 1563061772 | D34: องค์การบริหารส่วนตำบลแม่หละ | E34: 219 | F34: 0 | G34: 3 | H34: 1 | I34: 223 | J34: 219 | K34: 0 | L34: 219 | M34: -4
A35: 30 | B35: นครราชสีมา | C35: 1530052328 | D35: เทศบาลตำบลช่องแมว | E35: 341 | F35: 2 | G35: 1 | H35: 0 | I35: 344 | J35: 343 | K35: 0 | L35: 343 | M35: -1
A36: 31 | B36: นครราชสีมา | C36: 1530062135 | D36: องค์การบริหารส่วนตำบลละหานปลาค้าว | E36: 371 | F36: 0 | G36: 1 | H36: 7 | I36: 379 | J36: 371 | K36: 0 | L36: 371 | M36: -8
A37: 32 | B37: นครราชสีมา | C37: 1530062138 | D37: องค์การบริหารส่วนตำบลโนนตาเถร | E37: 101 | F37: 0 | G37: 0 | H37: 4 | I37: 105 | J37: 101 | K37: 0 | L37: 101 | M37: -4
A38: 33 | B38: นครราชสีมา | C38: 1530062157 | D38: องค์การบริหารส่วนตำบลหนองพลวง อ. ประทาย จ. นครราชสีมา | E38: 168 | F38: 1 | G38: 2 | H38: 10 | I38: 181 | J38: 179 | K38: 0 | L38: 179 | M38: -2
A39: 34 | B39: นครราชสีมา | C39: 1530062225 | D39: องค์การบริหารส่วนตำบลโนนประดู่ | E39: 71 | F39: 0 | G39: 0 | H39: 2 | I39: 73 | J39: 70 | K39: 0 | L39: 70 | M39: -3
A40: 35 | B40: นครราชสีมา | C40: 1530062276 | D40: องค์การบริหารส่วนตำบลโค้งยาง | E40: 17 | F40: 0 | G40: 1 | H40: 0 | I40: 18 | J40: 17 | K40: 0 | L40: 17 | M40: -1
A41: 36 | B41: นครราชสีมา | C41: 1530062337 | D41: องค์การบริหารส่วนตำบลดอนยาวใหญ่ | E41: 76 | F41: 1 | G41: 3 | H41: 0 | I41: 80 | J41: 77 | K41: 0 | L41: 77 | M41: -3
A42: 37 | B42: นครสวรรค์ | C42: 1560062584 | D42: องค์การบริหารส่วนตำบลสระแก้ว อ. ลาดยาว จ. นครสวรรค์ | E42: 133 | F42: 3 | G42: 4 | H42: 0 | I42: 140 | J42: 133 | K42: 0 | L42: 133 | M42: -7
A43: 38 | B43: นครสวรรค์ | C43: 1560062600 | D43: องค์การบริหารส่วนตำบลนากลาง อ. โกรกพระ จ. นครสวรรค์ | E43: 48 | F43: 2 | G43: 0 | H43: 0 | I43: 50 | J43: 48 | K43: 0 | L43: 48 | M43: -2
A44: 39 | B44: นครสวรรค์ | C44: 1560062687 | D44: องค์การบริหารส่วนตำบลสร้อยละคร | E44: 10 | F44: 1 | G44: 0 | H44: 0 | I44: 11 | J44: 10 | K44: 0 | L44: 10 | M44: -1
A45: 40 | B45: บุรีรัมย์ | C45: 1531052954 | D45: เทศบาลตำบลอิสาณ | E45: 268 | F45: 16 | G45: 3 | H45: 0 | I45: 287 | J45: 284 | K45: 0 | L45: 284 | M45: -3
A46: 41 | B46: บุรีรัมย์ | C46: 1531062994 | D46: องค์การบริหารส่วนตำบลป่าชัน | E46: 96 | F46: 0 | G46: 2 | H46: 0 | I46: 98 | J46: 96 | K46: 0 | L46: 96 | M46: -2
A47: 42 | B47: บุรีรัมย์ | C47: 1531063077 | D47: องค์การบริหารส่วนตำบลตาเสา | E47: 210 | F47: 2 | G47: 1 | H47: 0 | I47: 213 | J47: 210 | K47: 0 | L47: 210 | M47: -3
A48: 43 | B48: ประจวบคีรีขันธ์ | C48: 1577063232 | D48: องค์การบริหารส่วนตำบลศาลาลัย | E48: 40 | F48: 4 | G48: 0 | H48: 0 | I48: 44 | J48: 40 | K48: 0 | L48: 40 | M48: -4
A49: 44 | B49: พระนครศรีอยุธยา | C49: 1514063499 | D49: องค์การบริหารส่วนตำบลกระจิว | E49: 52 | F49: 1 | G49: 0 | H49: 0 | I49: 53 | J49: 52 | K49: 0 | L49: 52 | M49: -1
A50: 45 | B50: พระนครศรีอยุธยา | C50: 1514063588 | D50: องค์การบริหารส่วนตำบลบางเดื่อ | E50: 34 | F50: 3 | G50: 0 | H50: 0 | I50: 37 | J50: 34 | K50: 0 | L50: 34 | M50: -3
A51: 46 | B51: พะเยา | C51: 1556063637 | D51: องค์การบริหารส่วนตำบลป่าสัก อ. ภูซาง จ. พะเยา | E51: 129 | F51: 1 | G51: 0 | H51: 0 | I51: 130 | J51: 129 | K51: 0 | L51: 129 | M51: -1
A52: 47 | B52: พะเยา | C52: 1556063638 | D52: องค์การบริหารส่วนตำบลทุ่งกล้วย | E52: 321 | F52: 0 | G52: 1 | H52: 0 | I52: 322 | J52: 321 | K52: 0 | L52: 321 | M52: -1
A53: 48 | B53: พัทลุง | C53: 1593053786 | D53: เทศบาลตำบลสมหวัง | E53: 162 | F53: 0 | G53: 0 | H53: 0 | I53: 162 | J53: 117 | K53: 0 | L53: 117 | M53: -45
A54: 49 | B54: พิษณุโลก | C54: 1565063918 | D54: องค์การบริหารส่วนตำบลไผ่ขอดอน | E54: 135 | F54: 1 | G54: 0 | H54: 0 | I54: 136 | J54: 135 | K54: 0 | L54: 135 | M54: -1
A55: 50 | B55: พิษณุโลก | C55: 1565063985 | D55: องค์การบริหารส่วนตำบลบ่อภาค | E55: 310 | F55: 0 | G55: 2 | H55: 0 | I55: 312 | J55: 310 | K55: 0 | L55: 310 | M55: -2
A56: 51 | B56: มหาสารคาม | C56: 1544064444 | D56: องค์การบริหารส่วนตำบลเหล่าบัวบาน | E56: 8 | F56: 1 | G56: 0 | H56: 0 | I56: 9 | J56: 8 | K56: 0 | L56: 8 | M56: -1
A57: 52 | B57: มุกดาหาร | C57: 1549064469 | D57: องค์การบริหารส่วนตำบลเหล่าหมี | E57: 225 | F57: 2 | G57: 0 | H57: 0 | I57: 227 | J57: 225 | K57: 0 | L57: 225 | M57: -2
A58: 53 | B58: ยโสธร | C58: 1535064621 | D58: องค์การบริหารส่วนตำบลกำแมด | E58: 251 | F58: 2 | G58: 6 | H58: 0 | I58: 259 | J58: 253 | K58: 0 | L58: 253 | M58: -6
A59: 54 | B59: ร้อยเอ็ด | C59: 1545064831 | D59: องค์การบริหารส่วนตำบลท่าหาดยาว | E59: 105 | F59: 0 | G59: 1 | H59: 0 | I59: 106 | J59: 105 | K59: 0 | L59: 105 | M59: -1
A60: 55 | B60: ร้อยเอ็ด | C60: 1545064875 | D60: องค์การบริหารส่วนตำบลหนองพอก อ. ธวัชบุรี จ. ร้อยเอ็ด | E60: 60 | F60: 2 | G60: 0 | H60: 0 | I60: 62 | J60: 60 | K60: 0 | L60: 60 | M60: -2
A61: 56 | B61: ลำพูน | C61: 1551055351 | D61: เทศบาลตำบลแม่แรง | E61: 252 | F61: 3 | G61: 1 | H61: 0 | I61: 256 | J61: 81 | K61: 0 | L61: 81 | M61: -175
A62: 57 | B62: ลำพูน | C62: 1551055353 | D62: เทศบาลตำบลหนองล่อง | E62: 486 | F62: 5 | G62: 2 | H62: 0 | I62: 493 | J62: 486 | K62: 0 | L62: 486 | M62: -7
A63: 58 | B63: ศรีสะเกษ | C63: 1533065568 | D63: องค์การบริหารส่วนตำบลกู่ | E63: 18 | F63: 0 | G63: 1 | H63: 0 | I63: 19 | J63: 1 | K63: 0 | L63: 1 | M63: -18
A64: 59 | B64: ศรีสะเกษ | C64: 1533065614 | D64: องค์การบริหารส่วนตำบลเสียว อ. เบญจลักษ์ จ. ศรีสะเกษ | E64: 21 | F64: 0 | G64: 1 | H64: 0 | I64: 22 | J64: 21 | K64: 0 | L64: 21 | M64: -1
A65: 60 | B65: ศรีสะเกษ | C65: 1533065617 | D65: องค์การบริหารส่วนตำบลหนองฮาง อ. เบญจลักษ์ จ. ศรีสะเกษ | E65: 149 | F65: 3 | G65: 2 | H65: 0 | I65: 154 | J65: 149 | K65: 0 | L65: 149 | M65: -5
A66: 61 | B66: สกลนคร | C66: 1547055729 | D66: เทศบาลตำบลสามัคคีพัฒนา | E66: 45 | F66: 1 | G66: 0 | H66: 0 | I66: 46 | J66: 45 | K66: 0 | L66: 45 | M66: -1
A67: 62 | B67: สกลนคร | C67: 1547055759 | D67: เทศบาลตำบลแร่ | E67: 168 | F67: 2 | G67: 0 | H67: 0 | I67: 170 | J67: 168 | K67: 0 | L67: 168 | M67: -2
A68: 63 | B68: สกลนคร | C68: 1547065798 | D68: องค์การบริหารส่วนตำบลแมดนาท่ม | E68: 142 | F68: 2 | G68: 0 | H68: 0 | I68: 144 | J68: 142 | K68: 0 | L68: 142 | M68: -2
